{"text_format":"1","workbook":"xlsx","n_sheets":2,"sheets":["data","list"],"not_rendered":{"charts":0,"images":0,"macros":1,"external_links":1,"defined_names":3,"comments":0,"pivot_tables":0},"unopened":[],"bounds":{"document_bytes":16777216,"sheet_cells":100000,"rows_first":2000,"rows_last":500,"rows_between":2000,"halvings":0,"cell_chars":16384,"cell_head_chars":4096},"cells_cut":0,"cells_raw":0,"read":"whole","date_system":"1900"}

{"sheet":"data","index":0,"n_rows":1048576,"n_cols":12,"rows_kept":4500,"cut":true,"hidden":false,"merged":[],"bounds":{"rows_first":2000,"rows_last":500,"rows_between":2000,"halvings":0}}
["ANNEE","N° d’ordre","Nom et Prénom","Article","   Produit","Droits dus","Pénalités","Total","QUITTANCE"," DATE"," MONTANT ","Reste"]
[2014,201,"Abdelkader ",4402020000,"FAIENCE",22853,{"$f":"SUM(tbData[[#This Row],[Droits dus]]*10/100)","v":2285.3000000000002},{"$f":"SUM(F2:G2)","v":25138.3},2285086,"2014-02-23",17463,{"$f":"SUM(Tableau2[[#This Row],[Total du rôle]]-K2)","v":7675.2999999999993}]
[2014,202,"Abdelkader ",4402020001,"FAIENCE",22854,{"$f":"SUM(tbData[[#This Row],[Droits dus]]*10/100)","v":2285.4},{"$f":"SUM(F3:G3)","v":25139.4},2285087,"2014-02-24",17464,{"$f":"SUM(Tableau2[[#This Row],[Total du rôle]]-K3)","v":7675.4000000000015}]
[2014,203,"Abdelkader ",4402020002,"FAIENCE",22855,{"$f":"SUM(tbData[[#This Row],[Droits dus]]*10/100)","v":2285.5},25140.5,2285088,"2014-02-25",17465,{"$f":"SUM(Tableau2[[#This Row],[Total du rôle]]-K4)","v":7675.5}]
[2014,204,"Abdelkader ",4402020003,"FAIENCE",22856,{"$f":"SUM(tbData[[#This Row],[Droits dus]]*10/100)","v":2285.6},25141.599999999999,2285089,"2014-02-26",17466,{"$f":"SUM(Tableau2[[#This Row],[Total du rôle]]-K5)","v":7675.5999999999985}]
[2014,205,"Abdelkader ",4402020004,"FAIENCE",22857,{"$f":"SUM(tbData[[#This Row],[Droits dus]]*10/100)","v":2285.6999999999998},25142.7,2285090,"2014-02-27",17467,{"$f":"SUM(Tableau2[[#This Row],[Total du rôle]]-K6)","v":7675.7000000000007}]
[2014,206,"Abdelkader ",4402020005,"FAIENCE",22858,{"$f":"SUM(tbData[[#This Row],[Droits dus]]*10/100)","v":2285.8000000000002},25143.8,2285091,"2014-02-28",17468,{"$f":"SUM(Tableau2[[#This Row],[Total du rôle]]-K7)","v":7675.7999999999993}]
[2014,207,"Abdelkader ",4402020006,"FAIENCE",22859,{"$f":"SUM(tbData[[#This Row],[Droits dus]]*10/100)","v":2285.9},25144.9,2285092,"2014-03-01",17469,{"$f":"SUM(Tableau2[[#This Row],[Total du rôle]]-K8)","v":7675.9000000000015}]
[2014,208,"Abdelkader ",4402020007,"FAIENCE",22860,{"$f":"SUM(tbData[[#This Row],[Droits dus]]*10/100)","v":2286},25146,2285093,"2014-03-02",17470,{"$f":"SUM(Tableau2[[#This Row],[Total du rôle]]-K9)","v":7676}]
[2014,209,"Abdelkader ",4402020008,"FAIENCE",22861,{"$f":"SUM(tbData[[#This Row],[Droits dus]]*10/100)","v":2286.1},25147.1,2285094,"2014-03-03",17471,{"$f":"SUM(Tableau2[[#This Row],[Total du rôle]]-K10)","v":7676.0999999999985}]
[2014,210,"Abdelkader ",4402020009,"FAIENCE",22862,{"$f":"SUM(tbData[[#This Row],[Droits dus]]*10/100)","v":2286.1999999999998},25148.2,2285095,"2014-03-04",17472,{"$f":"SUM(Tableau2[[#This Row],[Total du rôle]]-K11)","v":7676.2000000000007}]
[2014,211,"Abdelkader ",4402020010,"FAIENCE",22863,{"$f":"SUM(tbData[[#This Row],[Droits dus]]*10/100)","v":2286.3000000000002},25149.3,2285096,"2014-03-05",17473,{"$f":"SUM(Tableau2[[#This Row],[Total du rôle]]-K12)","v":7676.2999999999993}]
[null,null,null,null,null,null,null,0,null,null,null,{"$f":"SUM(Tableau2[[#This Row],[Total du rôle]]-K13)","v":0}]
[null,null,null,null,null,null,null,0,null,null,null,{"$f":"SUM(Tableau2[[#This Row],[Total du rôle]]-K14)","v":0}]
[null,null,null,null,null,null,null,0,null,null,null,{"$f":"SUM(Tableau2[[#This Row],[Total du rôle]]-K15)","v":0}]
[null,null,null,null,null,null,null,0,null,null,null,{"$f":"SUM(Tableau2[[#This Row],[Total du rôle]]-K16)","v":0}]
[null,null,null,null,null,null,null,0,null,null,null,{"$f":"SUM(Tableau2[[#This Row],[Total du rôle]]-K17)","v":0}]
[null,null,null,null,null,null,null,0,null,null,null,{"$f":"SUM(Tableau2[[#This Row],[Total du rôle]]-K18)","v":0}]
[null,null,null,null,null,null,null,0,null,null,null,{"$f":"SUM(Tableau2[[#This Row],[Total du rôle]]-K19)","v":0}]
[null,null,null,null,null,null,null,0,null,null,null,{"$f":"SUM(Tableau2[[#This Row],[Total du rôle]]-K20)","v":0}]
[null,null,null,null,null,null,null,0,null,null,null,{"$f":"SUM(Tableau2[[#This Row],[Total du rôle]]-K21)","v":0}]
[null,null,null,null,null,null,null,0,null,null,null,{"$f":"SUM(Tableau2[[#This Row],[Total du rôle]]-K22)","v":0}]
[null,null,null,null,null,null,null,0,null,null,null,{"$f":"SUM(Tableau2[[#This Row],[Total du rôle]]-K23)","v":0}]
[null,null,null,null,null,null,null,0,null,null,null,{"$f":"SUM(Tableau2[[#This Row],[Total du rôle]]-K24)","v":0}]
[null,null,null,null,null,null,null,0,null,null,null,{"$f":"SUM(Tableau2[[#This Row],[Total du rôle]]-K25)","v":0}]
[null,null,null,null,null,null,null,0,null,null,null,{"$f":"SUM(Tableau2[[#This Row],[Total du rôle]]-K26)","v":0}]
[null,null,null,null,null,null,null,0,null,null,null,{"$f":"SUM(Tableau2[[#This Row],[Total du rôle]]-K27)","v":0}]
[null,null,null,null,null,null,null,0,null,null,null,{"$f":"SUM(Tableau2[[#This Row],[Total du rôle]]-K28)","v":0}]
[null,null,null,null,null,null,null,0,null,null,null,{"$f":"SUM(Tableau2[[#This Row],[Total du rôle]]-K29)","v":0}]
[null,null,null,null,null,null,null,0,null,null,null,{"$f":"SUM(Tableau2[[#This Row],[Total du rôle]]-K30)","v":0}]
[null,null,null,null,null,null,null,0,null,null,null,{"$f":"SUM(Tableau2[[#This Row],[Total du rôle]]-K31)","v":0}]
[null,null,null,null,null,null,null,0,null,null,null,{"$f":"SUM(Tableau2[[#This Row],[Total du rôle]]-K32)","v":0}]
[null,null,null,null,null,null,null,0,null,null,null,{"$f":"SUM(Tableau2[[#This Row],[Total du rôle]]-K33)","v":0}]
[null,null,null,null,null,null,null,0,null,null,null,{"$f":"SUM(Tableau2[[#This Row],[Total du rôle]]-K34)","v":0}]
[null,null,null,null,null,null,null,0,null,null,null,{"$f":"SUM(Tableau2[[#This Row],[Total du rôle]]-K35)","v":0}]
[null,null,null,null,null,null,null,0,null,null,null,{"$f":"SUM(Tableau2[[#This Row],[Total du rôle]]-K36)","v":0}]
[null,null,null,null,null,null,null,0,null,null,null,{"$f":"SUM(Tableau2[[#This Row],[Total du rôle]]-K37)","v":0}]
[null,null,null,null,null,null,null,0,null,null,null,{"$f":"SUM(Tableau2[[#This Row],[Total du rôle]]-K38)","v":0}]
[null,null,null,null,null,null,null,0,null,null,null,{"$f":"SUM(Tableau2[[#This Row],[Total du rôle]]-K39)","v":0}]
[null,null,null,null,null,null,null,0,null,null,null,{"$f":"SUM(Tableau2[[#This Row],[Total du rôle]]-K40)","v":0}]
[null,null,null,null,null,null,null,0,null,null,null,{"$f":"SUM(Tableau2[[#This Row],[Total du rôle]]-K41)","v":0}]
[null,null,null,null,null,null,null,0,null,null,null,{"$f":"SUM(Tableau2[[#This Row],[Total du rôle]]-K42)","v":0}]
[null,null,null,null,null,null,null,0,null,null,null,{"$f":"SUM(Tableau2[[#This Row],[Total du rôle]]-K43)","v":0}]
[null,null,null,null,null,null,null,0,null,null,null,{"$f":"SUM(Tableau2[[#This Row],[Total du rôle]]-K44)","v":0}]
[null,null,null,null,null,null,null,0,null,null,null,{"$f":"SUM(Tableau2[[#This Row],[Total du rôle]]-K45)","v":0}]
[null,null,null,null,null,null,null,0,null,null,null,{"$f":"SUM(Tableau2[[#This Row],[Total du rôle]]-K46)","v":0}]
[null,null,null,null,null,null,null,0,null,null,null,{"$f":"SUM(Tableau2[[#This Row],[Total du rôle]]-K47)","v":0}]
[null,null,null,null,null,null,null,0,null,null,null,{"$f":"SUM(Tableau2[[#This Row],[Total du rôle]]-K48)","v":0}]
[null,null,null,null,null,null,null,0,null,null,null,{"$f":"SUM(Tableau2[[#This Row],[Total du rôle]]-K49)","v":0}]
[null,null,null,null,null,null,null,0,null,null,null,{"$f":"SUM(Tableau2[[#This Row],[Total du rôle]]-K50)","v":0}]
[null,null,null,null,null,null,null,0,null,null,null,{"$f":"SUM(Tableau2[[#This Row],[Total du rôle]]-K51)","v":0}]
[null,null,null,null,null,null,null,0,null,null,null,{"$f":"SUM(Tableau2[[#This Row],[Total du rôle]]-K52)","v":0}]
[null,null,null,null,null,null,null,0,null,null,null,{"$f":"SUM(Tableau2[[#This Row],[Total du rôle]]-K53)","v":0}]
[null,null,null,null,null,null,null,0,null,null,null,{"$f":"SUM(Tableau2[[#This Row],[Total du rôle]]-K54)","v":0}]
[null,null,null,null,null,null,null,0,null,null,null,{"$f":"SUM(Tableau2[[#This Row],[Total du rôle]]-K55)","v":0}]
[null,null,null,null,null,null,null,0,null,null,null,{"$f":"SUM(Tableau2[[#This Row],[Total du rôle]]-K56)","v":0}]
[null,null,null,null,null,null,null,0,null,null,null,{"$f":"SUM(Tableau2[[#This Row],[Total du rôle]]-K57)","v":0}]
[null,null,null,null,null,null,null,0,null,null,null,{"$f":"SUM(Tableau2[[#This Row],[Total du rôle]]-K58)","v":0}]
[null,null,null,null,null,null,null,0,null,null,null,{"$f":"SUM(Tableau2[[#This Row],[Total du rôle]]-K59)","v":0}]
[null,null,null,null,null,null,null,0,null,null,null,{"$f":"SUM(Tableau2[[#This Row],[Total du rôle]]-K60)","v":0}]
[null,null,null,null,null,null,null,0,null,null,null,{"$f":"SUM(Tableau2[[#This Row],[Total du rôle]]-K61)","v":0}]
[null,null,null,null,null,null,null,0,null,null,null,{"$f":"SUM(Tableau2[[#This Row],[Total du rôle]]-K62)","v":0}]
[null,null,null,null,null,null,null,0,null,null,null,{"$f":"SUM(Tableau2[[#This Row],[Total du rôle]]-K63)","v":0}]
[null,null,null,null,null,null,null,0,null,null,null,{"$f":"SUM(Tableau2[[#This Row],[Total du rôle]]-K64)","v":0}]
[null,null,null,null,null,null,null,0,null,null,null,{"$f":"SUM(Tableau2[[#This Row],[Total du rôle]]-K65)","v":0}]
[null,null,null,null,null,null,null,0,null,null,null,{"$f":"SUM(Tableau2[[#This Row],[Total du rôle]]-K66)","v":0}]
[null,null,null,null,null,null,null,{"$f":"SUM(F67:G67)","v":0},null,null,null,{"$f":"SUM(Tableau2[[#This Row],[Total du rôle]]-K67)","v":0}]
[null,null,null,null,null,null,null,0,null,null,null,{"$f":"SUM(Tableau2[[#This Row],[Total du rôle]]-K68)","v":0}]
[null,null,null,null,null,null,null,0,null,null,null,{"$f":"SUM(Tableau2[[#This Row],[Total du rôle]]-K69)","v":0}]
[null,null,null,null,null,null,null,0,null,null,null,{"$f":"SUM(Tableau2[[#This Row],[Total du rôle]]-K70)","v":0}]
[null,null,null,null,null,null,null,0,null,null,null,{"$f":"SUM(Tableau2[[#This Row],[Total du rôle]]-K71)","v":0}]
[null,null,null,null,null,null,null,0,null,null,null,{"$f":"SUM(Tableau2[[#This Row],[Total du rôle]]-K72)","v":0}]
[null,null,null,null,null,null,null,0,null,null,null,{"$f":"SUM(Tableau2[[#This Row],[Total du rôle]]-K73)","v":0}]
[null,null,null,null,null,null,null,0,null,null,null,{"$f":"SUM(Tableau2[[#This Row],[Total du rôle]]-K74)","v":0}]
[null,null,null,null,null,null,null,0,null,null,null,{"$f":"SUM(Tableau2[[#This Row],[Total du rôle]]-K75)","v":0}]
[null,null,null,null,null,null,null,0,null,null,null,{"$f":"SUM(Tableau2[[#This Row],[Total du rôle]]-K76)","v":0}]
[null,null,null,null,null,null,null,0,null,null,null,{"$f":"SUM(Tableau2[[#This Row],[Total du rôle]]-K77)","v":0}]
[null,null,null,null,null,null,null,0,null,null,null,{"$f":"SUM(Tableau2[[#This Row],[Total du rôle]]-K78)","v":0}]
[null,null,null,null,null,null,null,0,null,null,null,{"$f":"SUM(Tableau2[[#This Row],[Total du rôle]]-K79)","v":0}]
[null,null,null,null,null,null,null,0,null,null,null,{"$f":"SUM(Tableau2[[#This Row],[Total du rôle]]-K80)","v":0}]
[null,null,null,null,null,null,null,0,null,null,null,{"$f":"SUM(Tableau2[[#This Row],[Total du rôle]]-K81)","v":0}]
[null,null,null,null,null,null,null,0,null,null,null,{"$f":"SUM(Tableau2[[#This Row],[Total du rôle]]-K82)","v":0}]
[null,null,null,null,null,null,null,0,null,null,null,{"$f":"SUM(Tableau2[[#This Row],[Total du rôle]]-K83)","v":0}]
[null,null,null,null,null,null,null,0,null,null,null,{"$f":"SUM(Tableau2[[#This Row],[Total du rôle]]-K84)","v":0}]
[null,null,null,null,null,null,null,0,null,null,null,{"$f":"SUM(Tableau2[[#This Row],[Total du rôle]]-K85)","v":0}]
[null,null,null,null,null,null,null,0,null,null,null,{"$f":"SUM(Tableau2[[#This Row],[Total du rôle]]-K86)","v":0}]
[null,null,null,null,null,null,null,0,null,null,null,{"$f":"SUM(Tableau2[[#This Row],[Total du rôle]]-K87)","v":0}]
[null,null,null,null,null,null,null,0,null,null,null,{"$f":"SUM(Tableau2[[#This Row],[Total du rôle]]-K88)","v":0}]
[null,null,null,null,null,null,null,0,null,null,null,{"$f":"SUM(Tableau2[[#This Row],[Total du rôle]]-K89)","v":0}]
[null,null,null,null,null,null,null,0,null,null,null,{"$f":"SUM(Tableau2[[#This Row],[Total du rôle]]-K90)","v":0}]
[null,null,null,null,null,null,null,0,null,null,null,{"$f":"SUM(Tableau2[[#This Row],[Total du rôle]]-K91)","v":0}]
[null,null,null,null,null,null,null,0,null,null,null,{"$f":"SUM(Tableau2[[#This Row],[Total du rôle]]-K92)","v":0}]
[null,null,null,null,null,null,null,0,null,null,null,{"$f":"SUM(Tableau2[[#This Row],[Total du rôle]]-K93)","v":0}]
[null,null,null,null,null,null,null,0,null,null,null,{"$f":"SUM(Tableau2[[#This Row],[Total du rôle]]-K94)","v":0}]
[null,null,null,null,null,null,null,0,null,null,null,{"$f":"SUM(Tableau2[[#This Row],[Total du rôle]]-K95)","v":0}]
[null,null,null,null,null,null,null,0,null,null,null,{"$f":"SUM(Tableau2[[#This Row],[Total du rôle]]-K96)","v":0}]
[null,null,null,null,null,null,null,0,null,null,null,{"$f":"SUM(Tableau2[[#This Row],[Total du rôle]]-K97)","v":0}]
[null,null,null,null,null,null,null,0,null,null,null,{"$f":"SUM(Tableau2[[#This Row],[Total du rôle]]-K98)","v":0}]
[null,null,null,null,null,null,null,0,null,null,null,{"$f":"SUM(Tableau2[[#This Row],[Total du rôle]]-K99)","v":0}]
[null,null,null,null,null,null,null,0,null,null,null,{"$f":"SUM(Tableau2[[#This Row],[Total du rôle]]-K100)","v":0}]
[null,null,null,null,null,null,null,0,null,null,null,{"$f":"SUM(Tableau2[[#This Row],[Total du rôle]]-K101)","v":0}]
[null,null,null,null,null,null,null,0,null,null,null,{"$f":"SUM(Tableau2[[#This Row],[Total du rôle]]-K102)","v":0}]
[null,null,null,null,null,null,null,0,null,null,null,{"$f":"SUM(Tableau2[[#This Row],[Total du rôle]]-K103)","v":0}]
[null,null,null,null,null,null,null,0,null,null,null,{"$f":"SUM(Tableau2[[#This Row],[Total du rôle]]-K104)","v":0}]
[null,null,null,null,null,null,null,0,null,null,null,{"$f":"SUM(Tableau2[[#This Row],[Total du rôle]]-K105)","v":0}]
[null,null,null,null,null,null,null,0,null,null,null,{"$f":"SUM(Tableau2[[#This Row],[Total du rôle]]-K106)","v":0}]
[null,null,null,null,null,null,null,0,null,null,null,{"$f":"SUM(Tableau2[[#This Row],[Total du rôle]]-K107)","v":0}]
[null,null,null,null,null,null,null,0,null,null,null,{"$f":"SUM(Tableau2[[#This Row],[Total du rôle]]-K108)","v":0}]
[null,null,null,null,null,null,null,0,null,null,null,{"$f":"SUM(Tableau2[[#This Row],[Total du rôle]]-K109)","v":0}]
[null,null,null,null,null,null,null,0,null,null,null,{"$f":"SUM(Tableau2[[#This Row],[Total du rôle]]-K110)","v":0}]
[null,null,null,null,null,null,null,0,null,null,null,{"$f":"SUM(Tableau2[[#This Row],[Total du rôle]]-K111)","v":0}]
[null,null,null,null,null,null,null,0,null,null,null,{"$f":"SUM(Tableau2[[#This Row],[Total du rôle]]-K112)","v":0}]
[null,null,null,null,null,null,null,0,null,null,null,{"$f":"SUM(Tableau2[[#This Row],[Total du rôle]]-K113)","v":0}]
[null,null,null,null,null,null,null,0,null,null,null,{"$f":"SUM(Tableau2[[#This Row],[Total du rôle]]-K114)","v":0}]
[null,null,null,null,null,null,null,0,null,null,null,{"$f":"SUM(Tableau2[[#This Row],[Total du rôle]]-K115)","v":0}]
[null,null,null,null,null,null,null,0,null,null,null,{"$f":"SUM(Tableau2[[#This Row],[Total du rôle]]-K116)","v":0}]
[null,null,null,null,null,null,null,0,null,null,null,{"$f":"SUM(Tableau2[[#This Row],[Total du rôle]]-K117)","v":0}]
[null,null,null,null,null,null,null,0,null,null,null,{"$f":"SUM(Tableau2[[#This Row],[Total du rôle]]-K118)","v":0}]
[null,null,null,null,null,null,null,0,null,null,null,{"$f":"SUM(Tableau2[[#This Row],[Total du rôle]]-K119)","v":0}]
[null,null,null,null,null,null,null,0,null,null,null,{"$f":"SUM(Tableau2[[#This Row],[Total du rôle]]-K120)","v":0}]
[null,null,null,null,null,null,null,0,null,null,null,{"$f":"SUM(Tableau2[[#This Row],[Total du rôle]]-K121)","v":0}]
[null,null,null,null,null,null,null,0,null,null,null,{"$f":"SUM(Tableau2[[#This Row],[Total du rôle]]-K122)","v":0}]
[null,null,null,null,null,null,null,0,null,null,null,{"$f":"SUM(Tableau2[[#This Row],[Total du rôle]]-K123)","v":0}]
[null,null,null,null,null,null,null,0,null,null,null,{"$f":"SUM(Tableau2[[#This Row],[Total du rôle]]-K124)","v":0}]
[null,null,null,null,null,null,null,0,null,null,null,{"$f":"SUM(Tableau2[[#This Row],[Total du rôle]]-K125)","v":0}]
[null,null,null,null,null,null,null,0,null,null,null,{"$f":"SUM(Tableau2[[#This Row],[Total du rôle]]-K126)","v":0}]
[null,null,null,null,null,null,null,0,null,null,null,{"$f":"SUM(Tableau2[[#This Row],[Total du rôle]]-K127)","v":0}]
[null,null,null,null,null,null,null,0,null,null,null,{"$f":"SUM(Tableau2[[#This Row],[Total du rôle]]-K128)","v":0}]
[null,null,null,null,null,null,null,0,null,null,null,{"$f":"SUM(Tableau2[[#This Row],[Total du rôle]]-K129)","v":0}]
[null,null,null,null,null,null,null,0,null,null,null,{"$f":"SUM(Tableau2[[#This Row],[Total du rôle]]-K130)","v":0}]
[null,null,null,null,null,null,null,{"$f":"SUM(F131:G131)","v":0},null,null,null,{"$f":"SUM(Tableau2[[#This Row],[Total du rôle]]-K131)","v":0}]
[null,null,null,null,null,null,null,{"$f":"SUM(F132:G132)","v":0},null,null,null,{"$f":"SUM(Tableau2[[#This Row],[Total du rôle]]-K132)","v":0}]
[null,null,null,null,null,null,null,0,null,null,null,{"$f":"SUM(Tableau2[[#This Row],[Total du rôle]]-K133)","v":0}]
[null,null,null,null,null,null,null,0,null,null,null,{"$f":"SUM(Tableau2[[#This Row],[Total du rôle]]-K134)","v":0}]
[null,null,null,null,null,null,null,0,null,null,null,{"$f":"SUM(Tableau2[[#This Row],[Total du rôle]]-K135)","v":0}]
[null,null,null,null,null,null,null,0,null,null,null,{"$f":"SUM(Tableau2[[#This Row],[Total du rôle]]-K136)","v":0}]
[null,null,null,null,null,null,null,0,null,null,null,{"$f":"SUM(Tableau2[[#This Row],[Total du rôle]]-K137)","v":0}]
[null,null,null,null,null,null,null,0,null,null,null,{"$f":"SUM(Tableau2[[#This Row],[Total du rôle]]-K138)","v":0}]
[null,null,null,null,null,null,null,0,null,null,null,{"$f":"SUM(Tableau2[[#This Row],[Total du rôle]]-K139)","v":0}]
[null,null,null,null,null,null,null,0,null,null,null,{"$f":"SUM(Tableau2[[#This Row],[Total du rôle]]-K140)","v":0}]
[null,null,null,null,null,null,null,0,null,null,null,{"$f":"SUM(Tableau2[[#This Row],[Total du rôle]]-K141)","v":0}]
[null,null,null,null,null,null,null,0,null,null,null,{"$f":"SUM(Tableau2[[#This Row],[Total du rôle]]-K142)","v":0}]
[null,null,null,null,null,null,null,0,null,null,null,{"$f":"SUM(Tableau2[[#This Row],[Total du rôle]]-K143)","v":0}]
[null,null,null,null,null,null,null,0,null,null,null,{"$f":"SUM(Tableau2[[#This Row],[Total du rôle]]-K144)","v":0}]
[null,null,null,null,null,null,null,0,null,null,null,{"$f":"SUM(Tableau2[[#This Row],[Total du rôle]]-K145)","v":0}]
[null,null,null,null,null,null,null,0,null,null,null,{"$f":"SUM(Tableau2[[#This Row],[Total du rôle]]-K146)","v":0}]
[null,null,null,null,null,null,null,0,null,null,null,{"$f":"SUM(Tableau2[[#This Row],[Total du rôle]]-K147)","v":0}]
[null,null,null,null,null,null,null,0,null,null,null,{"$f":"SUM(Tableau2[[#This Row],[Total du rôle]]-K148)","v":0}]
[null,null,null,null,null,null,null,0,null,null,null,{"$f":"SUM(Tableau2[[#This Row],[Total du rôle]]-K149)","v":0}]
[null,null,null,null,null,null,null,0,null,null,null,{"$f":"SUM(Tableau2[[#This Row],[Total du rôle]]-K150)","v":0}]
[null,null,null,null,null,null,null,0,null,null,null,{"$f":"SUM(Tableau2[[#This Row],[Total du rôle]]-K151)","v":0}]
[null,null,null,null,null,null,null,0,null,null,null,{"$f":"SUM(Tableau2[[#This Row],[Total du rôle]]-K152)","v":0}]
[null,null,null,null,null,null,null,0,null,null,null,{"$f":"SUM(Tableau2[[#This Row],[Total du rôle]]-K153)","v":0}]
[null,null,null,null,null,null,null,0,null,null,null,{"$f":"SUM(Tableau2[[#This Row],[Total du rôle]]-K154)","v":0}]
[null,null,null,null,null,null,null,0,null,null,null,{"$f":"SUM(Tableau2[[#This Row],[Total du rôle]]-K155)","v":0}]
[null,null,null,null,null,null,null,0,null,null,null,{"$f":"SUM(Tableau2[[#This Row],[Total du rôle]]-K156)","v":0}]
[null,null,null,null,null,null,null,0,null,null,null,{"$f":"SUM(Tableau2[[#This Row],[Total du rôle]]-K157)","v":0}]
[null,null,null,null,null,null,null,0,null,null,null,{"$f":"SUM(Tableau2[[#This Row],[Total du rôle]]-K158)","v":0}]
[null,null,null,null,null,null,null,0,null,null,null,{"$f":"SUM(Tableau2[[#This Row],[Total du rôle]]-K159)","v":0}]
[null,null,null,null,null,null,null,0,null,null,null,{"$f":"SUM(Tableau2[[#This Row],[Total du rôle]]-K160)","v":0}]
[null,null,null,null,null,null,null,0,null,null,null,{"$f":"SUM(Tableau2[[#This Row],[Total du rôle]]-K161)","v":0}]
[null,null,null,null,null,null,null,0,null,null,null,{"$f":"SUM(Tableau2[[#This Row],[Total du rôle]]-K162)","v":0}]
[null,null,null,null,null,null,null,0,null,null,null,{"$f":"SUM(Tableau2[[#This Row],[Total du rôle]]-K163)","v":0}]
[null,null,null,null,null,null,null,0,null,null,null,{"$f":"SUM(Tableau2[[#This Row],[Total du rôle]]-K164)","v":0}]
[null,null,null,null,null,null,null,0,null,null,null,{"$f":"SUM(Tableau2[[#This Row],[Total du rôle]]-K165)","v":0}]
[null,null,null,null,null,null,null,0,null,null,null,{"$f":"SUM(Tableau2[[#This Row],[Total du rôle]]-K166)","v":0}]
[null,null,null,null,null,null,null,0,null,null,null,{"$f":"SUM(Tableau2[[#This Row],[Total du rôle]]-K167)","v":0}]
[null,null,null,null,null,null,null,0,null,null,null,{"$f":"SUM(Tableau2[[#This Row],[Total du rôle]]-K168)","v":0}]
[null,null,null,null,null,null,null,0,null,null,null,{"$f":"SUM(Tableau2[[#This Row],[Total du rôle]]-K169)","v":0}]
[null,null,null,null,null,null,null,0,null,null,null,{"$f":"SUM(Tableau2[[#This Row],[Total du rôle]]-K170)","v":0}]
[null,null,null,null,null,null,null,0,null,null,null,{"$f":"SUM(Tableau2[[#This Row],[Total du rôle]]-K171)","v":0}]
[null,null,null,null,null,null,null,0,null,null,null,{"$f":"SUM(Tableau2[[#This Row],[Total du rôle]]-K172)","v":0}]
[null,null,null,null,null,null,null,0,null,null,null,{"$f":"SUM(Tableau2[[#This Row],[Total du rôle]]-K173)","v":0}]
[null,null,null,null,null,null,null,0,null,null,null,{"$f":"SUM(Tableau2[[#This Row],[Total du rôle]]-K174)","v":0}]
[null,null,null,null,null,null,null,0,null,null,null,{"$f":"SUM(Tableau2[[#This Row],[Total du rôle]]-K175)","v":0}]
[null,null,null,null,null,null,null,0,null,null,null,{"$f":"SUM(Tableau2[[#This Row],[Total du rôle]]-K176)","v":0}]
[null,null,null,null,null,null,null,0,null,null,null,{"$f":"SUM(Tableau2[[#This Row],[Total du rôle]]-K177)","v":0}]
[null,null,null,null,null,null,null,0,null,null,null,{"$f":"SUM(Tableau2[[#This Row],[Total du rôle]]-K178)","v":0}]
[null,null,null,null,null,null,null,0,null,null,null,{"$f":"SUM(Tableau2[[#This Row],[Total du rôle]]-K179)","v":0}]
[null,null,null,null,null,null,null,0,null,null,null,{"$f":"SUM(Tableau2[[#This Row],[Total du rôle]]-K180)","v":0}]
[null,null,null,null,null,null,null,0,null,null,null,{"$f":"SUM(Tableau2[[#This Row],[Total du rôle]]-K181)","v":0}]
[null,null,null,null,null,null,null,0,null,null,null,{"$f":"SUM(Tableau2[[#This Row],[Total du rôle]]-K182)","v":0}]
[null,null,null,null,null,null,null,0,null,null,null,{"$f":"SUM(Tableau2[[#This Row],[Total du rôle]]-K183)","v":0}]
[null,null,null,null,null,null,null,0,null,null,null,{"$f":"SUM(Tableau2[[#This Row],[Total du rôle]]-K184)","v":0}]
[null,null,null,null,null,null,null,0,null,null,null,{"$f":"SUM(Tableau2[[#This Row],[Total du rôle]]-K185)","v":0}]
[null,null,null,null,null,null,null,0,null,null,null,{"$f":"SUM(Tableau2[[#This Row],[Total du rôle]]-K186)","v":0}]
[null,null,null,null,null,null,null,0,null,null,null,{"$f":"SUM(Tableau2[[#This Row],[Total du rôle]]-K187)","v":0}]
[null,null,null,null,null,null,null,0,null,null,null,{"$f":"SUM(Tableau2[[#This Row],[Total du rôle]]-K188)","v":0}]
[null,null,null,null,null,null,null,0,null,null,null,{"$f":"SUM(Tableau2[[#This Row],[Total du rôle]]-K189)","v":0}]
[null,null,null,null,null,null,null,0,null,null,null,{"$f":"SUM(Tableau2[[#This Row],[Total du rôle]]-K190)","v":0}]
[null,null,null,null,null,null,null,0,null,null,null,{"$f":"SUM(Tableau2[[#This Row],[Total du rôle]]-K191)","v":0}]
[null,null,null,null,null,null,null,0,null,null,null,{"$f":"SUM(Tableau2[[#This Row],[Total du rôle]]-K192)","v":0}]
[null,null,null,null,null,null,null,0,null,null,null,{"$f":"SUM(Tableau2[[#This Row],[Total du rôle]]-K193)","v":0}]
[null,null,null,null,null,null,null,0,null,null,null,{"$f":"SUM(Tableau2[[#This Row],[Total du rôle]]-K194)","v":0}]
[null,null,null,null,null,null,null,0,null,null,null,{"$f":"SUM(Tableau2[[#This Row],[Total du rôle]]-K195)","v":0}]
[null,null,null,null,null,null,null,{"$f":"SUM(F196:G196)","v":0},null,null,null,{"$f":"SUM(Tableau2[[#This Row],[Total du rôle]]-K196)","v":0}]
[null,null,null,null,null,null,null,0,null,null,null,{"$f":"SUM(Tableau2[[#This Row],[Total du rôle]]-K197)","v":0}]
[null,null,null,null,null,null,null,0,null,null,null,{"$f":"SUM(Tableau2[[#This Row],[Total du rôle]]-K198)","v":0}]
[null,null,null,null,null,null,null,0,null,null,null,{"$f":"SUM(Tableau2[[#This Row],[Total du rôle]]-K199)","v":0}]
[null,null,null,null,null,null,null,0,null,null,null,{"$f":"SUM(Tableau2[[#This Row],[Total du rôle]]-K200)","v":0}]
[null,null,null,null,null,null,null,0,null,null,null,{"$f":"SUM(Tableau2[[#This Row],[Total du rôle]]-K201)","v":0}]
[null,null,null,null,null,null,null,0,null,null,null,{"$f":"SUM(Tableau2[[#This Row],[Total du rôle]]-K202)","v":0}]
[null,null,null,null,null,null,null,0,null,null,null,{"$f":"SUM(Tableau2[[#This Row],[Total du rôle]]-K203)","v":0}]
[null,null,null,null,null,null,null,0,null,null,null,{"$f":"SUM(Tableau2[[#This Row],[Total du rôle]]-K204)","v":0}]
[null,null,null,null,null,null,null,0,null,null,null,{"$f":"SUM(Tableau2[[#This Row],[Total du rôle]]-K205)","v":0}]
[null,null,null,null,null,null,null,0,null,null,null,{"$f":"SUM(Tableau2[[#This Row],[Total du rôle]]-K206)","v":0}]
[null,null,null,null,null,null,null,0,null,null,null,{"$f":"SUM(Tableau2[[#This Row],[Total du rôle]]-K207)","v":0}]
[null,null,null,null,null,null,null,0,null,null,null,{"$f":"SUM(Tableau2[[#This Row],[Total du rôle]]-K208)","v":0}]
[null,null,null,null,null,null,null,0,null,null,null,{"$f":"SUM(Tableau2[[#This Row],[Total du rôle]]-K209)","v":0}]
[null,null,null,null,null,null,null,0,null,null,null,{"$f":"SUM(Tableau2[[#This Row],[Total du rôle]]-K210)","v":0}]
[null,null,null,null,null,null,null,0,null,null,null,{"$f":"SUM(Tableau2[[#This Row],[Total du rôle]]-K211)","v":0}]
[null,null,null,null,null,null,null,0,null,null,null,{"$f":"SUM(Tableau2[[#This Row],[Total du rôle]]-K212)","v":0}]
[null,null,null,null,null,null,null,0,null,null,null,{"$f":"SUM(Tableau2[[#This Row],[Total du rôle]]-K213)","v":0}]
[null,null,null,null,null,null,null,0,null,null,null,{"$f":"SUM(Tableau2[[#This Row],[Total du rôle]]-K214)","v":0}]
[null,null,null,null,null,null,null,0,null,null,null,{"$f":"SUM(Tableau2[[#This Row],[Total du rôle]]-K215)","v":0}]
[null,null,null,null,null,null,null,0,null,null,null,{"$f":"SUM(Tableau2[[#This Row],[Total du rôle]]-K216)","v":0}]
[null,null,null,null,null,null,null,0,null,null,null,{"$f":"SUM(Tableau2[[#This Row],[Total du rôle]]-K217)","v":0}]
[null,null,null,null,null,null,null,0,null,null,null,{"$f":"SUM(Tableau2[[#This Row],[Total du rôle]]-K218)","v":0}]
[null,null,null,null,null,null,null,0,null,null,null,{"$f":"SUM(Tableau2[[#This Row],[Total du rôle]]-K219)","v":0}]
[null,null,null,null,null,null,null,0,null,null,null,{"$f":"SUM(Tableau2[[#This Row],[Total du rôle]]-K220)","v":0}]
[null,null,null,null,null,null,null,0,null,null,null,{"$f":"SUM(Tableau2[[#This Row],[Total du rôle]]-K221)","v":0}]
[null,null,null,null,null,null,null,0,null,null,null,{"$f":"SUM(Tableau2[[#This Row],[Total du rôle]]-K222)","v":0}]
[null,null,null,null,null,null,null,0,null,null,null,{"$f":"SUM(Tableau2[[#This Row],[Total du rôle]]-K223)","v":0}]
[null,null,null,null,null,null,null,0,null,null,null,{"$f":"SUM(Tableau2[[#This Row],[Total du rôle]]-K224)","v":0}]
[null,null,null,null,null,null,null,0,null,null,null,{"$f":"SUM(Tableau2[[#This Row],[Total du rôle]]-K225)","v":0}]
[null,null,null,null,null,null,null,0,null,null,null,{"$f":"SUM(Tableau2[[#This Row],[Total du rôle]]-K226)","v":0}]
[null,null,null,null,null,null,null,0,null,null,null,{"$f":"SUM(Tableau2[[#This Row],[Total du rôle]]-K227)","v":0}]
[null,null,null,null,null,null,null,0,null,null,null,{"$f":"SUM(Tableau2[[#This Row],[Total du rôle]]-K228)","v":0}]
[null,null,null,null,null,null,null,0,null,null,null,{"$f":"SUM(Tableau2[[#This Row],[Total du rôle]]-K229)","v":0}]
[null,null,null,null,null,null,null,0,null,null,null,{"$f":"SUM(Tableau2[[#This Row],[Total du rôle]]-K230)","v":0}]
[null,null,null,null,null,null,null,0,null,null,null,{"$f":"SUM(Tableau2[[#This Row],[Total du rôle]]-K231)","v":0}]
[null,null,null,null,null,null,null,0,null,null,null,{"$f":"SUM(Tableau2[[#This Row],[Total du rôle]]-K232)","v":0}]
[null,null,null,null,null,null,null,0,null,null,null,{"$f":"SUM(Tableau2[[#This Row],[Total du rôle]]-K233)","v":0}]
[null,null,null,null,null,null,null,0,null,null,null,{"$f":"SUM(Tableau2[[#This Row],[Total du rôle]]-K234)","v":0}]
[null,null,null,null,null,null,null,0,null,null,null,{"$f":"SUM(Tableau2[[#This Row],[Total du rôle]]-K235)","v":0}]
[null,null,null,null,null,null,null,0,null,null,null,{"$f":"SUM(Tableau2[[#This Row],[Total du rôle]]-K236)","v":0}]
[null,null,null,null,null,null,null,0,null,null,null,{"$f":"SUM(Tableau2[[#This Row],[Total du rôle]]-K237)","v":0}]
[null,null,null,null,null,null,null,0,null,null,null,{"$f":"SUM(Tableau2[[#This Row],[Total du rôle]]-K238)","v":0}]
[null,null,null,null,null,null,null,0,null,null,null,{"$f":"SUM(Tableau2[[#This Row],[Total du rôle]]-K239)","v":0}]
[null,null,null,null,null,null,null,0,null,null,null,{"$f":"SUM(Tableau2[[#This Row],[Total du rôle]]-K240)","v":0}]
[null,null,null,null,null,null,null,0,null,null,null,{"$f":"SUM(Tableau2[[#This Row],[Total du rôle]]-K241)","v":0}]
[null,null,null,null,null,null,null,0,null,null,null,{"$f":"SUM(Tableau2[[#This Row],[Total du rôle]]-K242)","v":0}]
[null,null,null,null,null,null,null,0,null,null,null,{"$f":"SUM(Tableau2[[#This Row],[Total du rôle]]-K243)","v":0}]
[null,null,null,null,null,null,null,0,null,null,null,{"$f":"SUM(Tableau2[[#This Row],[Total du rôle]]-K244)","v":0}]
[null,null,null,null,null,null,null,0,null,null,null,{"$f":"SUM(Tableau2[[#This Row],[Total du rôle]]-K245)","v":0}]
[null,null,null,null,null,null,null,0,null,null,null,{"$f":"SUM(Tableau2[[#This Row],[Total du rôle]]-K246)","v":0}]
[null,null,null,null,null,null,null,0,null,null,null,{"$f":"SUM(Tableau2[[#This Row],[Total du rôle]]-K247)","v":0}]
[null,null,null,null,null,null,null,0,null,null,null,{"$f":"SUM(Tableau2[[#This Row],[Total du rôle]]-K248)","v":0}]
[null,null,null,null,null,null,null,0,null,null,null,{"$f":"SUM(Tableau2[[#This Row],[Total du rôle]]-K249)","v":0}]
[null,null,null,null,null,null,null,0,null,null,null,{"$f":"SUM(Tableau2[[#This Row],[Total du rôle]]-K250)","v":0}]
[null,null,null,null,null,null,null,0,null,null,null,{"$f":"SUM(Tableau2[[#This Row],[Total du rôle]]-K251)","v":0}]
[null,null,null,null,null,null,null,0,null,null,null,{"$f":"SUM(Tableau2[[#This Row],[Total du rôle]]-K252)","v":0}]
[null,null,null,null,null,null,null,0,null,null,null,{"$f":"SUM(Tableau2[[#This Row],[Total du rôle]]-K253)","v":0}]
[null,null,null,null,null,null,null,0,null,null,null,{"$f":"SUM(Tableau2[[#This Row],[Total du rôle]]-K254)","v":0}]
[null,null,null,null,null,null,null,0,null,null,null,{"$f":"SUM(Tableau2[[#This Row],[Total du rôle]]-K255)","v":0}]
[null,null,null,null,null,null,null,0,null,null,null,{"$f":"SUM(Tableau2[[#This Row],[Total du rôle]]-K256)","v":0}]
[null,null,null,null,null,null,null,0,null,null,null,{"$f":"SUM(Tableau2[[#This Row],[Total du rôle]]-K257)","v":0}]
[null,null,null,null,null,null,null,0,null,null,null,{"$f":"SUM(Tableau2[[#This Row],[Total du rôle]]-K258)","v":0}]
[null,null,null,null,null,null,null,0,null,null,null,{"$f":"SUM(Tableau2[[#This Row],[Total du rôle]]-K259)","v":0}]
[null,null,null,null,null,null,null,{"$f":"SUM(F260:G260)","v":0},null,null,null,{"$f":"SUM(Tableau2[[#This Row],[Total du rôle]]-K260)","v":0}]
[null,null,null,null,null,null,null,0,null,null,null,{"$f":"SUM(Tableau2[[#This Row],[Total du rôle]]-K261)","v":0}]
[null,null,null,null,null,null,null,0,null,null,null,{"$f":"SUM(Tableau2[[#This Row],[Total du rôle]]-K262)","v":0}]
[null,null,null,null,null,null,null,0,null,null,null,{"$f":"SUM(Tableau2[[#This Row],[Total du rôle]]-K263)","v":0}]
[null,null,null,null,null,null,null,0,null,null,null,{"$f":"SUM(Tableau2[[#This Row],[Total du rôle]]-K264)","v":0}]
[null,null,null,null,null,null,null,0,null,null,null,{"$f":"SUM(Tableau2[[#This Row],[Total du rôle]]-K265)","v":0}]
[null,null,null,null,null,null,null,0,null,null,null,{"$f":"SUM(Tableau2[[#This Row],[Total du rôle]]-K266)","v":0}]
[null,null,null,null,null,null,null,0,null,null,null,{"$f":"SUM(Tableau2[[#This Row],[Total du rôle]]-K267)","v":0}]
[null,null,null,null,null,null,null,0,null,null,null,{"$f":"SUM(Tableau2[[#This Row],[Total du rôle]]-K268)","v":0}]
[null,null,null,null,null,null,null,0,null,null,null,{"$f":"SUM(Tableau2[[#This Row],[Total du rôle]]-K269)","v":0}]
[null,null,null,null,null,null,null,0,null,null,null,{"$f":"SUM(Tableau2[[#This Row],[Total du rôle]]-K270)","v":0}]
[null,null,null,null,null,null,null,0,null,null,null,{"$f":"SUM(Tableau2[[#This Row],[Total du rôle]]-K271)","v":0}]
[null,null,null,null,null,null,null,0,null,null,null,{"$f":"SUM(Tableau2[[#This Row],[Total du rôle]]-K272)","v":0}]
[null,null,null,null,null,null,null,0,null,null,null,{"$f":"SUM(Tableau2[[#This Row],[Total du rôle]]-K273)","v":0}]
[null,null,null,null,null,null,null,0,null,null,null,{"$f":"SUM(Tableau2[[#This Row],[Total du rôle]]-K274)","v":0}]
[null,null,null,null,null,null,null,0,null,null,null,{"$f":"SUM(Tableau2[[#This Row],[Total du rôle]]-K275)","v":0}]
[null,null,null,null,null,null,null,0,null,null,null,{"$f":"SUM(Tableau2[[#This Row],[Total du rôle]]-K276)","v":0}]
[null,null,null,null,null,null,null,0,null,null,null,{"$f":"SUM(Tableau2[[#This Row],[Total du rôle]]-K277)","v":0}]
[null,null,null,null,null,null,null,0,null,null,null,{"$f":"SUM(Tableau2[[#This Row],[Total du rôle]]-K278)","v":0}]
[null,null,null,null,null,null,null,0,null,null,null,{"$f":"SUM(Tableau2[[#This Row],[Total du rôle]]-K279)","v":0}]
[null,null,null,null,null,null,null,0,null,null,null,{"$f":"SUM(Tableau2[[#This Row],[Total du rôle]]-K280)","v":0}]
[null,null,null,null,null,null,null,0,null,null,null,{"$f":"SUM(Tableau2[[#This Row],[Total du rôle]]-K281)","v":0}]
[null,null,null,null,null,null,null,0,null,null,null,{"$f":"SUM(Tableau2[[#This Row],[Total du rôle]]-K282)","v":0}]
[null,null,null,null,null,null,null,0,null,null,null,{"$f":"SUM(Tableau2[[#This Row],[Total du rôle]]-K283)","v":0}]
[null,null,null,null,null,null,null,0,null,null,null,{"$f":"SUM(Tableau2[[#This Row],[Total du rôle]]-K284)","v":0}]
[null,null,null,null,null,null,null,0,null,null,null,{"$f":"SUM(Tableau2[[#This Row],[Total du rôle]]-K285)","v":0}]
[null,null,null,null,null,null,null,0,null,null,null,{"$f":"SUM(Tableau2[[#This Row],[Total du rôle]]-K286)","v":0}]
[null,null,null,null,null,null,null,0,null,null,null,{"$f":"SUM(Tableau2[[#This Row],[Total du rôle]]-K287)","v":0}]
[null,null,null,null,null,null,null,0,null,null,null,{"$f":"SUM(Tableau2[[#This Row],[Total du rôle]]-K288)","v":0}]
[null,null,null,null,null,null,null,0,null,null,null,{"$f":"SUM(Tableau2[[#This Row],[Total du rôle]]-K289)","v":0}]
[null,null,null,null,null,null,null,0,null,null,null,{"$f":"SUM(Tableau2[[#This Row],[Total du rôle]]-K290)","v":0}]
[null,null,null,null,null,null,null,0,null,null,null,{"$f":"SUM(Tableau2[[#This Row],[Total du rôle]]-K291)","v":0}]
[null,null,null,null,null,null,null,0,null,null,null,{"$f":"SUM(Tableau2[[#This Row],[Total du rôle]]-K292)","v":0}]
[null,null,null,null,null,null,null,0,null,null,null,{"$f":"SUM(Tableau2[[#This Row],[Total du rôle]]-K293)","v":0}]
[null,null,null,null,null,null,null,0,null,null,null,{"$f":"SUM(Tableau2[[#This Row],[Total du rôle]]-K294)","v":0}]
[null,null,null,null,null,null,null,0,null,null,null,{"$f":"SUM(Tableau2[[#This Row],[Total du rôle]]-K295)","v":0}]
[null,null,null,null,null,null,null,0,null,null,null,{"$f":"SUM(Tableau2[[#This Row],[Total du rôle]]-K296)","v":0}]
[null,null,null,null,null,null,null,0,null,null,null,{"$f":"SUM(Tableau2[[#This Row],[Total du rôle]]-K297)","v":0}]
[null,null,null,null,null,null,null,0,null,null,null,{"$f":"SUM(Tableau2[[#This Row],[Total du rôle]]-K298)","v":0}]
[null,null,null,null,null,null,null,0,null,null,null,{"$f":"SUM(Tableau2[[#This Row],[Total du rôle]]-K299)","v":0}]
[null,null,null,null,null,null,null,0,null,null,null,{"$f":"SUM(Tableau2[[#This Row],[Total du rôle]]-K300)","v":0}]
[null,null,null,null,null,null,null,0,null,null,null,{"$f":"SUM(Tableau2[[#This Row],[Total du rôle]]-K301)","v":0}]
[null,null,null,null,null,null,null,0,null,null,null,{"$f":"SUM(Tableau2[[#This Row],[Total du rôle]]-K302)","v":0}]
[null,null,null,null,null,null,null,0,null,null,null,{"$f":"SUM(Tableau2[[#This Row],[Total du rôle]]-K303)","v":0}]
[null,null,null,null,null,null,null,0,null,null,null,{"$f":"SUM(Tableau2[[#This Row],[Total du rôle]]-K304)","v":0}]
[null,null,null,null,null,null,null,0,null,null,null,{"$f":"SUM(Tableau2[[#This Row],[Total du rôle]]-K305)","v":0}]
[null,null,null,null,null,null,null,0,null,null,null,{"$f":"SUM(Tableau2[[#This Row],[Total du rôle]]-K306)","v":0}]
[null,null,null,null,null,null,null,0,null,null,null,{"$f":"SUM(Tableau2[[#This Row],[Total du rôle]]-K307)","v":0}]
[null,null,null,null,null,null,null,0,null,null,null,{"$f":"SUM(Tableau2[[#This Row],[Total du rôle]]-K308)","v":0}]
[null,null,null,null,null,null,null,0,null,null,null,{"$f":"SUM(Tableau2[[#This Row],[Total du rôle]]-K309)","v":0}]
[null,null,null,null,null,null,null,0,null,null,null,{"$f":"SUM(Tableau2[[#This Row],[Total du rôle]]-K310)","v":0}]
[null,null,null,null,null,null,null,0,null,null,null,{"$f":"SUM(Tableau2[[#This Row],[Total du rôle]]-K311)","v":0}]
[null,null,null,null,null,null,null,0,null,null,null,{"$f":"SUM(Tableau2[[#This Row],[Total du rôle]]-K312)","v":0}]
[null,null,null,null,null,null,null,0,null,null,null,{"$f":"SUM(Tableau2[[#This Row],[Total du rôle]]-K313)","v":0}]
[null,null,null,null,null,null,null,0,null,null,null,{"$f":"SUM(Tableau2[[#This Row],[Total du rôle]]-K314)","v":0}]
[null,null,null,null,null,null,null,0,null,null,null,{"$f":"SUM(Tableau2[[#This Row],[Total du rôle]]-K315)","v":0}]
[null,null,null,null,null,null,null,0,null,null,null,{"$f":"SUM(Tableau2[[#This Row],[Total du rôle]]-K316)","v":0}]
[null,null,null,null,null,null,null,0,null,null,null,{"$f":"SUM(Tableau2[[#This Row],[Total du rôle]]-K317)","v":0}]
[null,null,null,null,null,null,null,0,null,null,null,{"$f":"SUM(Tableau2[[#This Row],[Total du rôle]]-K318)","v":0}]
[null,null,null,null,null,null,null,0,null,null,null,{"$f":"SUM(Tableau2[[#This Row],[Total du rôle]]-K319)","v":0}]
[null,null,null,null,null,null,null,0,null,null,null,{"$f":"SUM(Tableau2[[#This Row],[Total du rôle]]-K320)","v":0}]
[null,null,null,null,null,null,null,0,null,null,null,{"$f":"SUM(Tableau2[[#This Row],[Total du rôle]]-K321)","v":0}]
[null,null,null,null,null,null,null,0,null,null,null,{"$f":"SUM(Tableau2[[#This Row],[Total du rôle]]-K322)","v":0}]
[null,null,null,null,null,null,null,0,null,null,null,{"$f":"SUM(Tableau2[[#This Row],[Total du rôle]]-K323)","v":0}]
[null,null,null,null,null,null,null,{"$f":"SUM(F324:G324)","v":0},null,null,null,{"$f":"SUM(Tableau2[[#This Row],[Total du rôle]]-K324)","v":0}]
[null,null,null,null,null,null,null,0,null,null,null,{"$f":"SUM(Tableau2[[#This Row],[Total du rôle]]-K325)","v":0}]
[null,null,null,null,null,null,null,0,null,null,null,{"$f":"SUM(Tableau2[[#This Row],[Total du rôle]]-K326)","v":0}]
[null,null,null,null,null,null,null,0,null,null,null,{"$f":"SUM(Tableau2[[#This Row],[Total du rôle]]-K327)","v":0}]
[null,null,null,null,null,null,null,0,null,null,null,{"$f":"SUM(Tableau2[[#This Row],[Total du rôle]]-K328)","v":0}]
[null,null,null,null,null,null,null,0,null,null,null,{"$f":"SUM(Tableau2[[#This Row],[Total du rôle]]-K329)","v":0}]
[null,null,null,null,null,null,null,0,null,null,null,{"$f":"SUM(Tableau2[[#This Row],[Total du rôle]]-K330)","v":0}]
[null,null,null,null,null,null,null,0,null,null,null,{"$f":"SUM(Tableau2[[#This Row],[Total du rôle]]-K331)","v":0}]
[null,null,null,null,null,null,null,0,null,null,null,{"$f":"SUM(Tableau2[[#This Row],[Total du rôle]]-K332)","v":0}]
[null,null,null,null,null,null,null,0,null,null,null,{"$f":"SUM(Tableau2[[#This Row],[Total du rôle]]-K333)","v":0}]
[null,null,null,null,null,null,null,0,null,null,null,{"$f":"SUM(Tableau2[[#This Row],[Total du rôle]]-K334)","v":0}]
[null,null,null,null,null,null,null,0,null,null,null,{"$f":"SUM(Tableau2[[#This Row],[Total du rôle]]-K335)","v":0}]
[null,null,null,null,null,null,null,0,null,null,null,{"$f":"SUM(Tableau2[[#This Row],[Total du rôle]]-K336)","v":0}]
[null,null,null,null,null,null,null,0,null,null,null,{"$f":"SUM(Tableau2[[#This Row],[Total du rôle]]-K337)","v":0}]
[null,null,null,null,null,null,null,0,null,null,null,{"$f":"SUM(Tableau2[[#This Row],[Total du rôle]]-K338)","v":0}]
[null,null,null,null,null,null,null,0,null,null,null,{"$f":"SUM(Tableau2[[#This Row],[Total du rôle]]-K339)","v":0}]
[null,null,null,null,null,null,null,0,null,null,null,{"$f":"SUM(Tableau2[[#This Row],[Total du rôle]]-K340)","v":0}]
[null,null,null,null,null,null,null,0,null,null,null,{"$f":"SUM(Tableau2[[#This Row],[Total du rôle]]-K341)","v":0}]
[null,null,null,null,null,null,null,0,null,null,null,{"$f":"SUM(Tableau2[[#This Row],[Total du rôle]]-K342)","v":0}]
[null,null,null,null,null,null,null,0,null,null,null,{"$f":"SUM(Tableau2[[#This Row],[Total du rôle]]-K343)","v":0}]
[null,null,null,null,null,null,null,0,null,null,null,{"$f":"SUM(Tableau2[[#This Row],[Total du rôle]]-K344)","v":0}]
[null,null,null,null,null,null,null,0,null,null,null,{"$f":"SUM(Tableau2[[#This Row],[Total du rôle]]-K345)","v":0}]
[null,null,null,null,null,null,null,0,null,null,null,{"$f":"SUM(Tableau2[[#This Row],[Total du rôle]]-K346)","v":0}]
[null,null,null,null,null,null,null,0,null,null,null,{"$f":"SUM(Tableau2[[#This Row],[Total du rôle]]-K347)","v":0}]
[null,null,null,null,null,null,null,0,null,null,null,{"$f":"SUM(Tableau2[[#This Row],[Total du rôle]]-K348)","v":0}]
[null,null,null,null,null,null,null,0,null,null,null,{"$f":"SUM(Tableau2[[#This Row],[Total du rôle]]-K349)","v":0}]
[null,null,null,null,null,null,null,0,null,null,null,{"$f":"SUM(Tableau2[[#This Row],[Total du rôle]]-K350)","v":0}]
[null,null,null,null,null,null,null,0,null,null,null,{"$f":"SUM(Tableau2[[#This Row],[Total du rôle]]-K351)","v":0}]
[null,null,null,null,null,null,null,0,null,null,null,{"$f":"SUM(Tableau2[[#This Row],[Total du rôle]]-K352)","v":0}]
[null,null,null,null,null,null,null,0,null,null,null,{"$f":"SUM(Tableau2[[#This Row],[Total du rôle]]-K353)","v":0}]
[null,null,null,null,null,null,null,0,null,null,null,{"$f":"SUM(Tableau2[[#This Row],[Total du rôle]]-K354)","v":0}]
[null,null,null,null,null,null,null,0,null,null,null,{"$f":"SUM(Tableau2[[#This Row],[Total du rôle]]-K355)","v":0}]
[null,null,null,null,null,null,null,0,null,null,null,{"$f":"SUM(Tableau2[[#This Row],[Total du rôle]]-K356)","v":0}]
[null,null,null,null,null,null,null,0,null,null,null,{"$f":"SUM(Tableau2[[#This Row],[Total du rôle]]-K357)","v":0}]
[null,null,null,null,null,null,null,0,null,null,null,{"$f":"SUM(Tableau2[[#This Row],[Total du rôle]]-K358)","v":0}]
[null,null,null,null,null,null,null,0,null,null,null,{"$f":"SUM(Tableau2[[#This Row],[Total du rôle]]-K359)","v":0}]
[null,null,null,null,null,null,null,0,null,null,null,{"$f":"SUM(Tableau2[[#This Row],[Total du rôle]]-K360)","v":0}]
[null,null,null,null,null,null,null,0,null,null,null,{"$f":"SUM(Tableau2[[#This Row],[Total du rôle]]-K361)","v":0}]
[null,null,null,null,null,null,null,0,null,null,null,{"$f":"SUM(Tableau2[[#This Row],[Total du rôle]]-K362)","v":0}]
[null,null,null,null,null,null,null,0,null,null,null,{"$f":"SUM(Tableau2[[#This Row],[Total du rôle]]-K363)","v":0}]
[null,null,null,null,null,null,null,0,null,null,null,{"$f":"SUM(Tableau2[[#This Row],[Total du rôle]]-K364)","v":0}]
[null,null,null,null,null,null,null,0,null,null,null,{"$f":"SUM(Tableau2[[#This Row],[Total du rôle]]-K365)","v":0}]
[null,null,null,null,null,null,null,0,null,null,null,{"$f":"SUM(Tableau2[[#This Row],[Total du rôle]]-K366)","v":0}]
[null,null,null,null,null,null,null,0,null,null,null,{"$f":"SUM(Tableau2[[#This Row],[Total du rôle]]-K367)","v":0}]
[null,null,null,null,null,null,null,0,null,null,null,{"$f":"SUM(Tableau2[[#This Row],[Total du rôle]]-K368)","v":0}]
[null,null,null,null,null,null,null,0,null,null,null,{"$f":"SUM(Tableau2[[#This Row],[Total du rôle]]-K369)","v":0}]
[null,null,null,null,null,null,null,0,null,null,null,{"$f":"SUM(Tableau2[[#This Row],[Total du rôle]]-K370)","v":0}]
[null,null,null,null,null,null,null,0,null,null,null,{"$f":"SUM(Tableau2[[#This Row],[Total du rôle]]-K371)","v":0}]
[null,null,null,null,null,null,null,0,null,null,null,{"$f":"SUM(Tableau2[[#This Row],[Total du rôle]]-K372)","v":0}]
[null,null,null,null,null,null,null,0,null,null,null,{"$f":"SUM(Tableau2[[#This Row],[Total du rôle]]-K373)","v":0}]
[null,null,null,null,null,null,null,0,null,null,null,{"$f":"SUM(Tableau2[[#This Row],[Total du rôle]]-K374)","v":0}]
[null,null,null,null,null,null,null,0,null,null,null,{"$f":"SUM(Tableau2[[#This Row],[Total du rôle]]-K375)","v":0}]
[null,null,null,null,null,null,null,0,null,null,null,{"$f":"SUM(Tableau2[[#This Row],[Total du rôle]]-K376)","v":0}]
[null,null,null,null,null,null,null,0,null,null,null,{"$f":"SUM(Tableau2[[#This Row],[Total du rôle]]-K377)","v":0}]
[null,null,null,null,null,null,null,0,null,null,null,{"$f":"SUM(Tableau2[[#This Row],[Total du rôle]]-K378)","v":0}]
[null,null,null,null,null,null,null,0,null,null,null,{"$f":"SUM(Tableau2[[#This Row],[Total du rôle]]-K379)","v":0}]
[null,null,null,null,null,null,null,0,null,null,null,{"$f":"SUM(Tableau2[[#This Row],[Total du rôle]]-K380)","v":0}]
[null,null,null,null,null,null,null,0,null,null,null,{"$f":"SUM(Tableau2[[#This Row],[Total du rôle]]-K381)","v":0}]
[null,null,null,null,null,null,null,0,null,null,null,{"$f":"SUM(Tableau2[[#This Row],[Total du rôle]]-K382)","v":0}]
[null,null,null,null,null,null,null,0,null,null,null,{"$f":"SUM(Tableau2[[#This Row],[Total du rôle]]-K383)","v":0}]
[null,null,null,null,null,null,null,0,null,null,null,{"$f":"SUM(Tableau2[[#This Row],[Total du rôle]]-K384)","v":0}]
[null,null,null,null,null,null,null,0,null,null,null,{"$f":"SUM(Tableau2[[#This Row],[Total du rôle]]-K385)","v":0}]
[null,null,null,null,null,null,null,0,null,null,null,{"$f":"SUM(Tableau2[[#This Row],[Total du rôle]]-K386)","v":0}]
[null,null,null,null,null,null,null,0,null,null,null,{"$f":"SUM(Tableau2[[#This Row],[Total du rôle]]-K387)","v":0}]
[null,null,null,null,null,null,null,{"$f":"SUM(F388:G388)","v":0},null,null,null,{"$f":"SUM(Tableau2[[#This Row],[Total du rôle]]-K388)","v":0}]
[null,null,null,null,null,null,null,0,null,null,null,{"$f":"SUM(Tableau2[[#This Row],[Total du rôle]]-K389)","v":0}]
[null,null,null,null,null,null,null,0,null,null,null,{"$f":"SUM(Tableau2[[#This Row],[Total du rôle]]-K390)","v":0}]
[null,null,null,null,null,null,null,0,null,null,null,{"$f":"SUM(Tableau2[[#This Row],[Total du rôle]]-K391)","v":0}]
[null,null,null,null,null,null,null,0,null,null,null,{"$f":"SUM(Tableau2[[#This Row],[Total du rôle]]-K392)","v":0}]
[null,null,null,null,null,null,null,0,null,null,null,{"$f":"SUM(Tableau2[[#This Row],[Total du rôle]]-K393)","v":0}]
[null,null,null,null,null,null,null,0,null,null,null,{"$f":"SUM(Tableau2[[#This Row],[Total du rôle]]-K394)","v":0}]
[null,null,null,null,null,null,null,0,null,null,null,{"$f":"SUM(Tableau2[[#This Row],[Total du rôle]]-K395)","v":0}]
[null,null,null,null,null,null,null,0,null,null,null,{"$f":"SUM(Tableau2[[#This Row],[Total du rôle]]-K396)","v":0}]
[null,null,null,null,null,null,null,0,null,null,null,{"$f":"SUM(Tableau2[[#This Row],[Total du rôle]]-K397)","v":0}]
[null,null,null,null,null,null,null,0,null,null,null,{"$f":"SUM(Tableau2[[#This Row],[Total du rôle]]-K398)","v":0}]
[null,null,null,null,null,null,null,0,null,null,null,{"$f":"SUM(Tableau2[[#This Row],[Total du rôle]]-K399)","v":0}]
[null,null,null,null,null,null,null,0,null,null,null,{"$f":"SUM(Tableau2[[#This Row],[Total du rôle]]-K400)","v":0}]
[null,null,null,null,null,null,null,0,null,null,null,{"$f":"SUM(Tableau2[[#This Row],[Total du rôle]]-K401)","v":0}]
[null,null,null,null,null,null,null,0,null,null,null,{"$f":"SUM(Tableau2[[#This Row],[Total du rôle]]-K402)","v":0}]
[null,null,null,null,null,null,null,0,null,null,null,{"$f":"SUM(Tableau2[[#This Row],[Total du rôle]]-K403)","v":0}]
[null,null,null,null,null,null,null,0,null,null,null,{"$f":"SUM(Tableau2[[#This Row],[Total du rôle]]-K404)","v":0}]
[null,null,null,null,null,null,null,0,null,null,null,{"$f":"SUM(Tableau2[[#This Row],[Total du rôle]]-K405)","v":0}]
[null,null,null,null,null,null,null,0,null,null,null,{"$f":"SUM(Tableau2[[#This Row],[Total du rôle]]-K406)","v":0}]
[null,null,null,null,null,null,null,0,null,null,null,{"$f":"SUM(Tableau2[[#This Row],[Total du rôle]]-K407)","v":0}]
[null,null,null,null,null,null,null,0,null,null,null,{"$f":"SUM(Tableau2[[#This Row],[Total du rôle]]-K408)","v":0}]
[null,null,null,null,null,null,null,0,null,null,null,{"$f":"SUM(Tableau2[[#This Row],[Total du rôle]]-K409)","v":0}]
[null,null,null,null,null,null,null,0,null,null,null,{"$f":"SUM(Tableau2[[#This Row],[Total du rôle]]-K410)","v":0}]
[null,null,null,null,null,null,null,0,null,null,null,{"$f":"SUM(Tableau2[[#This Row],[Total du rôle]]-K411)","v":0}]
[null,null,null,null,null,null,null,0,null,null,null,{"$f":"SUM(Tableau2[[#This Row],[Total du rôle]]-K412)","v":0}]
[null,null,null,null,null,null,null,0,null,null,null,{"$f":"SUM(Tableau2[[#This Row],[Total du rôle]]-K413)","v":0}]
[null,null,null,null,null,null,null,0,null,null,null,{"$f":"SUM(Tableau2[[#This Row],[Total du rôle]]-K414)","v":0}]
[null,null,null,null,null,null,null,0,null,null,null,{"$f":"SUM(Tableau2[[#This Row],[Total du rôle]]-K415)","v":0}]
[null,null,null,null,null,null,null,0,null,null,null,{"$f":"SUM(Tableau2[[#This Row],[Total du rôle]]-K416)","v":0}]
[null,null,null,null,null,null,null,0,null,null,null,{"$f":"SUM(Tableau2[[#This Row],[Total du rôle]]-K417)","v":0}]
[null,null,null,null,null,null,null,0,null,null,null,{"$f":"SUM(Tableau2[[#This Row],[Total du rôle]]-K418)","v":0}]
[null,null,null,null,null,null,null,0,null,null,null,{"$f":"SUM(Tableau2[[#This Row],[Total du rôle]]-K419)","v":0}]
[null,null,null,null,null,null,null,0,null,null,null,{"$f":"SUM(Tableau2[[#This Row],[Total du rôle]]-K420)","v":0}]
[null,null,null,null,null,null,null,0,null,null,null,{"$f":"SUM(Tableau2[[#This Row],[Total du rôle]]-K421)","v":0}]
[null,null,null,null,null,null,null,0,null,null,null,{"$f":"SUM(Tableau2[[#This Row],[Total du rôle]]-K422)","v":0}]
[null,null,null,null,null,null,null,0,null,null,null,{"$f":"SUM(Tableau2[[#This Row],[Total du rôle]]-K423)","v":0}]
[null,null,null,null,null,null,null,0,null,null,null,{"$f":"SUM(Tableau2[[#This Row],[Total du rôle]]-K424)","v":0}]
[null,null,null,null,null,null,null,0,null,null,null,{"$f":"SUM(Tableau2[[#This Row],[Total du rôle]]-K425)","v":0}]
[null,null,null,null,null,null,null,0,null,null,null,{"$f":"SUM(Tableau2[[#This Row],[Total du rôle]]-K426)","v":0}]
[null,null,null,null,null,null,null,0,null,null,null,{"$f":"SUM(Tableau2[[#This Row],[Total du rôle]]-K427)","v":0}]
[null,null,null,null,null,null,null,0,null,null,null,{"$f":"SUM(Tableau2[[#This Row],[Total du rôle]]-K428)","v":0}]
[null,null,null,null,null,null,null,0,null,null,null,{"$f":"SUM(Tableau2[[#This Row],[Total du rôle]]-K429)","v":0}]
[null,null,null,null,null,null,null,0,null,null,null,{"$f":"SUM(Tableau2[[#This Row],[Total du rôle]]-K430)","v":0}]
[null,null,null,null,null,null,null,0,null,null,null,{"$f":"SUM(Tableau2[[#This Row],[Total du rôle]]-K431)","v":0}]
[null,null,null,null,null,null,null,0,null,null,null,{"$f":"SUM(Tableau2[[#This Row],[Total du rôle]]-K432)","v":0}]
[null,null,null,null,null,null,null,0,null,null,null,{"$f":"SUM(Tableau2[[#This Row],[Total du rôle]]-K433)","v":0}]
[null,null,null,null,null,null,null,0,null,null,null,{"$f":"SUM(Tableau2[[#This Row],[Total du rôle]]-K434)","v":0}]
[null,null,null,null,null,null,null,0,null,null,null,{"$f":"SUM(Tableau2[[#This Row],[Total du rôle]]-K435)","v":0}]
[null,null,null,null,null,null,null,0,null,null,null,{"$f":"SUM(Tableau2[[#This Row],[Total du rôle]]-K436)","v":0}]
[null,null,null,null,null,null,null,0,null,null,null,{"$f":"SUM(Tableau2[[#This Row],[Total du rôle]]-K437)","v":0}]
[null,null,null,null,null,null,null,0,null,null,null,{"$f":"SUM(Tableau2[[#This Row],[Total du rôle]]-K438)","v":0}]
[null,null,null,null,null,null,null,0,null,null,null,{"$f":"SUM(Tableau2[[#This Row],[Total du rôle]]-K439)","v":0}]
[null,null,null,null,null,null,null,0,null,null,null,{"$f":"SUM(Tableau2[[#This Row],[Total du rôle]]-K440)","v":0}]
[null,null,null,null,null,null,null,0,null,null,null,{"$f":"SUM(Tableau2[[#This Row],[Total du rôle]]-K441)","v":0}]
[null,null,null,null,null,null,null,0,null,null,null,{"$f":"SUM(Tableau2[[#This Row],[Total du rôle]]-K442)","v":0}]
[null,null,null,null,null,null,null,0,null,null,null,{"$f":"SUM(Tableau2[[#This Row],[Total du rôle]]-K443)","v":0}]
[null,null,null,null,null,null,null,0,null,null,null,{"$f":"SUM(Tableau2[[#This Row],[Total du rôle]]-K444)","v":0}]
[null,null,null,null,null,null,null,0,null,null,null,{"$f":"SUM(Tableau2[[#This Row],[Total du rôle]]-K445)","v":0}]
[null,null,null,null,null,null,null,0,null,null,null,{"$f":"SUM(Tableau2[[#This Row],[Total du rôle]]-K446)","v":0}]
[null,null,null,null,null,null,null,0,null,null,null,{"$f":"SUM(Tableau2[[#This Row],[Total du rôle]]-K447)","v":0}]
[null,null,null,null,null,null,null,0,null,null,null,{"$f":"SUM(Tableau2[[#This Row],[Total du rôle]]-K448)","v":0}]
[null,null,null,null,null,null,null,0,null,null,null,{"$f":"SUM(Tableau2[[#This Row],[Total du rôle]]-K449)","v":0}]
[null,null,null,null,null,null,null,0,null,null,null,{"$f":"SUM(Tableau2[[#This Row],[Total du rôle]]-K450)","v":0}]
[null,null,null,null,null,null,null,0,null,null,null,{"$f":"SUM(Tableau2[[#This Row],[Total du rôle]]-K451)","v":0}]
[null,null,null,null,null,null,null,{"$f":"SUM(F452:G452)","v":0},null,null,null,{"$f":"SUM(Tableau2[[#This Row],[Total du rôle]]-K452)","v":0}]
[null,null,null,null,null,null,null,0,null,null,null,{"$f":"SUM(Tableau2[[#This Row],[Total du rôle]]-K453)","v":0}]
[null,null,null,null,null,null,null,0,null,null,null,{"$f":"SUM(Tableau2[[#This Row],[Total du rôle]]-K454)","v":0}]
[null,null,null,null,null,null,null,0,null,null,null,{"$f":"SUM(Tableau2[[#This Row],[Total du rôle]]-K455)","v":0}]
[null,null,null,null,null,null,null,0,null,null,null,{"$f":"SUM(Tableau2[[#This Row],[Total du rôle]]-K456)","v":0}]
[null,null,null,null,null,null,null,0,null,null,null,{"$f":"SUM(Tableau2[[#This Row],[Total du rôle]]-K457)","v":0}]
[null,null,null,null,null,null,null,0,null,null,null,{"$f":"SUM(Tableau2[[#This Row],[Total du rôle]]-K458)","v":0}]
[null,null,null,null,null,null,null,0,null,null,null,{"$f":"SUM(Tableau2[[#This Row],[Total du rôle]]-K459)","v":0}]
[null,null,null,null,null,null,null,0,null,null,null,{"$f":"SUM(Tableau2[[#This Row],[Total du rôle]]-K460)","v":0}]
[null,null,null,null,null,null,null,0,null,null,null,{"$f":"SUM(Tableau2[[#This Row],[Total du rôle]]-K461)","v":0}]
[null,null,null,null,null,null,null,0,null,null,null,{"$f":"SUM(Tableau2[[#This Row],[Total du rôle]]-K462)","v":0}]
[null,null,null,null,null,null,null,0,null,null,null,{"$f":"SUM(Tableau2[[#This Row],[Total du rôle]]-K463)","v":0}]
[null,null,null,null,null,null,null,0,null,null,null,{"$f":"SUM(Tableau2[[#This Row],[Total du rôle]]-K464)","v":0}]
[null,null,null,null,null,null,null,0,null,null,null,{"$f":"SUM(Tableau2[[#This Row],[Total du rôle]]-K465)","v":0}]
[null,null,null,null,null,null,null,0,null,null,null,{"$f":"SUM(Tableau2[[#This Row],[Total du rôle]]-K466)","v":0}]
[null,null,null,null,null,null,null,0,null,null,null,{"$f":"SUM(Tableau2[[#This Row],[Total du rôle]]-K467)","v":0}]
[null,null,null,null,null,null,null,0,null,null,null,{"$f":"SUM(Tableau2[[#This Row],[Total du rôle]]-K468)","v":0}]
[null,null,null,null,null,null,null,0,null,null,null,{"$f":"SUM(Tableau2[[#This Row],[Total du rôle]]-K469)","v":0}]
[null,null,null,null,null,null,null,0,null,null,null,{"$f":"SUM(Tableau2[[#This Row],[Total du rôle]]-K470)","v":0}]
[null,null,null,null,null,null,null,0,null,null,null,{"$f":"SUM(Tableau2[[#This Row],[Total du rôle]]-K471)","v":0}]
[null,null,null,null,null,null,null,0,null,null,null,{"$f":"SUM(Tableau2[[#This Row],[Total du rôle]]-K472)","v":0}]
[null,null,null,null,null,null,null,0,null,null,null,{"$f":"SUM(Tableau2[[#This Row],[Total du rôle]]-K473)","v":0}]
[null,null,null,null,null,null,null,0,null,null,null,{"$f":"SUM(Tableau2[[#This Row],[Total du rôle]]-K474)","v":0}]
[null,null,null,null,null,null,null,0,null,null,null,{"$f":"SUM(Tableau2[[#This Row],[Total du rôle]]-K475)","v":0}]
[null,null,null,null,null,null,null,0,null,null,null,{"$f":"SUM(Tableau2[[#This Row],[Total du rôle]]-K476)","v":0}]
[null,null,null,null,null,null,null,0,null,null,null,{"$f":"SUM(Tableau2[[#This Row],[Total du rôle]]-K477)","v":0}]
[null,null,null,null,null,null,null,0,null,null,null,{"$f":"SUM(Tableau2[[#This Row],[Total du rôle]]-K478)","v":0}]
[null,null,null,null,null,null,null,0,null,null,null,{"$f":"SUM(Tableau2[[#This Row],[Total du rôle]]-K479)","v":0}]
[null,null,null,null,null,null,null,0,null,null,null,{"$f":"SUM(Tableau2[[#This Row],[Total du rôle]]-K480)","v":0}]
[null,null,null,null,null,null,null,0,null,null,null,{"$f":"SUM(Tableau2[[#This Row],[Total du rôle]]-K481)","v":0}]
[null,null,null,null,null,null,null,0,null,null,null,{"$f":"SUM(Tableau2[[#This Row],[Total du rôle]]-K482)","v":0}]
[null,null,null,null,null,null,null,0,null,null,null,{"$f":"SUM(Tableau2[[#This Row],[Total du rôle]]-K483)","v":0}]
[null,null,null,null,null,null,null,0,null,null,null,{"$f":"SUM(Tableau2[[#This Row],[Total du rôle]]-K484)","v":0}]
[null,null,null,null,null,null,null,0,null,null,null,{"$f":"SUM(Tableau2[[#This Row],[Total du rôle]]-K485)","v":0}]
[null,null,null,null,null,null,null,0,null,null,null,{"$f":"SUM(Tableau2[[#This Row],[Total du rôle]]-K486)","v":0}]
[null,null,null,null,null,null,null,0,null,null,null,{"$f":"SUM(Tableau2[[#This Row],[Total du rôle]]-K487)","v":0}]
[null,null,null,null,null,null,null,0,null,null,null,{"$f":"SUM(Tableau2[[#This Row],[Total du rôle]]-K488)","v":0}]
[null,null,null,null,null,null,null,0,null,null,null,{"$f":"SUM(Tableau2[[#This Row],[Total du rôle]]-K489)","v":0}]
[null,null,null,null,null,null,null,0,null,null,null,{"$f":"SUM(Tableau2[[#This Row],[Total du rôle]]-K490)","v":0}]
[null,null,null,null,null,null,null,0,null,null,null,{"$f":"SUM(Tableau2[[#This Row],[Total du rôle]]-K491)","v":0}]
[null,null,null,null,null,null,null,0,null,null,null,{"$f":"SUM(Tableau2[[#This Row],[Total du rôle]]-K492)","v":0}]
[null,null,null,null,null,null,null,0,null,null,null,{"$f":"SUM(Tableau2[[#This Row],[Total du rôle]]-K493)","v":0}]
[null,null,null,null,null,null,null,0,null,null,null,{"$f":"SUM(Tableau2[[#This Row],[Total du rôle]]-K494)","v":0}]
[null,null,null,null,null,null,null,0,null,null,null,{"$f":"SUM(Tableau2[[#This Row],[Total du rôle]]-K495)","v":0}]
[null,null,null,null,null,null,null,0,null,null,null,{"$f":"SUM(Tableau2[[#This Row],[Total du rôle]]-K496)","v":0}]
[null,null,null,null,null,null,null,0,null,null,null,{"$f":"SUM(Tableau2[[#This Row],[Total du rôle]]-K497)","v":0}]
[null,null,null,null,null,null,null,0,null,null,null,{"$f":"SUM(Tableau2[[#This Row],[Total du rôle]]-K498)","v":0}]
[null,null,null,null,null,null,null,0,null,null,null,{"$f":"SUM(Tableau2[[#This Row],[Total du rôle]]-K499)","v":0}]
[null,null,null,null,null,null,null,0,null,null,null,{"$f":"SUM(Tableau2[[#This Row],[Total du rôle]]-K500)","v":0}]
[null,null,null,null,null,null,null,0,null,null,null,{"$f":"SUM(Tableau2[[#This Row],[Total du rôle]]-K501)","v":0}]
[null,null,null,null,null,null,null,0,null,null,null,{"$f":"SUM(Tableau2[[#This Row],[Total du rôle]]-K502)","v":0}]
[null,null,null,null,null,null,null,0,null,null,null,{"$f":"SUM(Tableau2[[#This Row],[Total du rôle]]-K503)","v":0}]
[null,null,null,null,null,null,null,0,null,null,null,{"$f":"SUM(Tableau2[[#This Row],[Total du rôle]]-K504)","v":0}]
[null,null,null,null,null,null,null,0,null,null,null,{"$f":"SUM(Tableau2[[#This Row],[Total du rôle]]-K505)","v":0}]
[null,null,null,null,null,null,null,0,null,null,null,{"$f":"SUM(Tableau2[[#This Row],[Total du rôle]]-K506)","v":0}]
[null,null,null,null,null,null,null,0,null,null,null,{"$f":"SUM(Tableau2[[#This Row],[Total du rôle]]-K507)","v":0}]
[null,null,null,null,null,null,null,0,null,null,null,{"$f":"SUM(Tableau2[[#This Row],[Total du rôle]]-K508)","v":0}]
[null,null,null,null,null,null,null,0,null,null,null,{"$f":"SUM(Tableau2[[#This Row],[Total du rôle]]-K509)","v":0}]
[null,null,null,null,null,null,null,0,null,null,null,{"$f":"SUM(Tableau2[[#This Row],[Total du rôle]]-K510)","v":0}]
[null,null,null,null,null,null,null,0,null,null,null,{"$f":"SUM(Tableau2[[#This Row],[Total du rôle]]-K511)","v":0}]
[null,null,null,null,null,null,null,0,null,null,null,{"$f":"SUM(Tableau2[[#This Row],[Total du rôle]]-K512)","v":0}]
[null,null,null,null,null,null,null,0,null,null,null,{"$f":"SUM(Tableau2[[#This Row],[Total du rôle]]-K513)","v":0}]
[null,null,null,null,null,null,null,0,null,null,null,{"$f":"SUM(Tableau2[[#This Row],[Total du rôle]]-K514)","v":0}]
[null,null,null,null,null,null,null,0,null,null,null,{"$f":"SUM(Tableau2[[#This Row],[Total du rôle]]-K515)","v":0}]
[null,null,null,null,null,null,null,{"$f":"SUM(F516:G516)","v":0},null,null,null,{"$f":"SUM(Tableau2[[#This Row],[Total du rôle]]-K516)","v":0}]
[null,null,null,null,null,null,null,0,null,null,null,{"$f":"SUM(Tableau2[[#This Row],[Total du rôle]]-K517)","v":0}]
[null,null,null,null,null,null,null,0,null,null,null,{"$f":"SUM(Tableau2[[#This Row],[Total du rôle]]-K518)","v":0}]
[null,null,null,null,null,null,null,0,null,null,null,{"$f":"SUM(Tableau2[[#This Row],[Total du rôle]]-K519)","v":0}]
[null,null,null,null,null,null,null,0,null,null,null,{"$f":"SUM(Tableau2[[#This Row],[Total du rôle]]-K520)","v":0}]
[null,null,null,null,null,null,null,0,null,null,null,{"$f":"SUM(Tableau2[[#This Row],[Total du rôle]]-K521)","v":0}]
[null,null,null,null,null,null,null,0,null,null,null,{"$f":"SUM(Tableau2[[#This Row],[Total du rôle]]-K522)","v":0}]
[null,null,null,null,null,null,null,0,null,null,null,{"$f":"SUM(Tableau2[[#This Row],[Total du rôle]]-K523)","v":0}]
[null,null,null,null,null,null,null,0,null,null,null,{"$f":"SUM(Tableau2[[#This Row],[Total du rôle]]-K524)","v":0}]
[null,null,null,null,null,null,null,0,null,null,null,{"$f":"SUM(Tableau2[[#This Row],[Total du rôle]]-K525)","v":0}]
[null,null,null,null,null,null,null,0,null,null,null,{"$f":"SUM(Tableau2[[#This Row],[Total du rôle]]-K526)","v":0}]
[null,null,null,null,null,null,null,0,null,null,null,{"$f":"SUM(Tableau2[[#This Row],[Total du rôle]]-K527)","v":0}]
[null,null,null,null,null,null,null,0,null,null,null,{"$f":"SUM(Tableau2[[#This Row],[Total du rôle]]-K528)","v":0}]
[null,null,null,null,null,null,null,0,null,null,null,{"$f":"SUM(Tableau2[[#This Row],[Total du rôle]]-K529)","v":0}]
[null,null,null,null,null,null,null,0,null,null,null,{"$f":"SUM(Tableau2[[#This Row],[Total du rôle]]-K530)","v":0}]
[null,null,null,null,null,null,null,0,null,null,null,{"$f":"SUM(Tableau2[[#This Row],[Total du rôle]]-K531)","v":0}]
[null,null,null,null,null,null,null,0,null,null,null,{"$f":"SUM(Tableau2[[#This Row],[Total du rôle]]-K532)","v":0}]
[null,null,null,null,null,null,null,0,null,null,null,{"$f":"SUM(Tableau2[[#This Row],[Total du rôle]]-K533)","v":0}]
[null,null,null,null,null,null,null,0,null,null,null,{"$f":"SUM(Tableau2[[#This Row],[Total du rôle]]-K534)","v":0}]
[null,null,null,null,null,null,null,0,null,null,null,{"$f":"SUM(Tableau2[[#This Row],[Total du rôle]]-K535)","v":0}]
[null,null,null,null,null,null,null,0,null,null,null,{"$f":"SUM(Tableau2[[#This Row],[Total du rôle]]-K536)","v":0}]
[null,null,null,null,null,null,null,0,null,null,null,{"$f":"SUM(Tableau2[[#This Row],[Total du rôle]]-K537)","v":0}]
[null,null,null,null,null,null,null,0,null,null,null,{"$f":"SUM(Tableau2[[#This Row],[Total du rôle]]-K538)","v":0}]
[null,null,null,null,null,null,null,0,null,null,null,{"$f":"SUM(Tableau2[[#This Row],[Total du rôle]]-K539)","v":0}]
[null,null,null,null,null,null,null,0,null,null,null,{"$f":"SUM(Tableau2[[#This Row],[Total du rôle]]-K540)","v":0}]
[null,null,null,null,null,null,null,0,null,null,null,{"$f":"SUM(Tableau2[[#This Row],[Total du rôle]]-K541)","v":0}]
[null,null,null,null,null,null,null,0,null,null,null,{"$f":"SUM(Tableau2[[#This Row],[Total du rôle]]-K542)","v":0}]
[null,null,null,null,null,null,null,0,null,null,null,{"$f":"SUM(Tableau2[[#This Row],[Total du rôle]]-K543)","v":0}]
[null,null,null,null,null,null,null,0,null,null,null,{"$f":"SUM(Tableau2[[#This Row],[Total du rôle]]-K544)","v":0}]
[null,null,null,null,null,null,null,0,null,null,null,{"$f":"SUM(Tableau2[[#This Row],[Total du rôle]]-K545)","v":0}]
[null,null,null,null,null,null,null,0,null,null,null,{"$f":"SUM(Tableau2[[#This Row],[Total du rôle]]-K546)","v":0}]
[null,null,null,null,null,null,null,0,null,null,null,{"$f":"SUM(Tableau2[[#This Row],[Total du rôle]]-K547)","v":0}]
[null,null,null,null,null,null,null,0,null,null,null,{"$f":"SUM(Tableau2[[#This Row],[Total du rôle]]-K548)","v":0}]
[null,null,null,null,null,null,null,0,null,null,null,{"$f":"SUM(Tableau2[[#This Row],[Total du rôle]]-K549)","v":0}]
[null,null,null,null,null,null,null,0,null,null,null,{"$f":"SUM(Tableau2[[#This Row],[Total du rôle]]-K550)","v":0}]
[null,null,null,null,null,null,null,0,null,null,null,{"$f":"SUM(Tableau2[[#This Row],[Total du rôle]]-K551)","v":0}]
[null,null,null,null,null,null,null,0,null,null,null,{"$f":"SUM(Tableau2[[#This Row],[Total du rôle]]-K552)","v":0}]
[null,null,null,null,null,null,null,0,null,null,null,{"$f":"SUM(Tableau2[[#This Row],[Total du rôle]]-K553)","v":0}]
[null,null,null,null,null,null,null,0,null,null,null,{"$f":"SUM(Tableau2[[#This Row],[Total du rôle]]-K554)","v":0}]
[null,null,null,null,null,null,null,0,null,null,null,{"$f":"SUM(Tableau2[[#This Row],[Total du rôle]]-K555)","v":0}]
[null,null,null,null,null,null,null,0,null,null,null,{"$f":"SUM(Tableau2[[#This Row],[Total du rôle]]-K556)","v":0}]
[null,null,null,null,null,null,null,0,null,null,null,{"$f":"SUM(Tableau2[[#This Row],[Total du rôle]]-K557)","v":0}]
[null,null,null,null,null,null,null,0,null,null,null,{"$f":"SUM(Tableau2[[#This Row],[Total du rôle]]-K558)","v":0}]
[null,null,null,null,null,null,null,0,null,null,null,{"$f":"SUM(Tableau2[[#This Row],[Total du rôle]]-K559)","v":0}]
[null,null,null,null,null,null,null,0,null,null,null,{"$f":"SUM(Tableau2[[#This Row],[Total du rôle]]-K560)","v":0}]
[null,null,null,null,null,null,null,0,null,null,null,{"$f":"SUM(Tableau2[[#This Row],[Total du rôle]]-K561)","v":0}]
[null,null,null,null,null,null,null,0,null,null,null,{"$f":"SUM(Tableau2[[#This Row],[Total du rôle]]-K562)","v":0}]
[null,null,null,null,null,null,null,0,null,null,null,{"$f":"SUM(Tableau2[[#This Row],[Total du rôle]]-K563)","v":0}]
[null,null,null,null,null,null,null,0,null,null,null,{"$f":"SUM(Tableau2[[#This Row],[Total du rôle]]-K564)","v":0}]
[null,null,null,null,null,null,null,0,null,null,null,{"$f":"SUM(Tableau2[[#This Row],[Total du rôle]]-K565)","v":0}]
[null,null,null,null,null,null,null,0,null,null,null,{"$f":"SUM(Tableau2[[#This Row],[Total du rôle]]-K566)","v":0}]
[null,null,null,null,null,null,null,0,null,null,null,{"$f":"SUM(Tableau2[[#This Row],[Total du rôle]]-K567)","v":0}]
[null,null,null,null,null,null,null,0,null,null,null,{"$f":"SUM(Tableau2[[#This Row],[Total du rôle]]-K568)","v":0}]
[null,null,null,null,null,null,null,0,null,null,null,{"$f":"SUM(Tableau2[[#This Row],[Total du rôle]]-K569)","v":0}]
[null,null,null,null,null,null,null,0,null,null,null,{"$f":"SUM(Tableau2[[#This Row],[Total du rôle]]-K570)","v":0}]
[null,null,null,null,null,null,null,0,null,null,null,{"$f":"SUM(Tableau2[[#This Row],[Total du rôle]]-K571)","v":0}]
[null,null,null,null,null,null,null,0,null,null,null,{"$f":"SUM(Tableau2[[#This Row],[Total du rôle]]-K572)","v":0}]
[null,null,null,null,null,null,null,0,null,null,null,{"$f":"SUM(Tableau2[[#This Row],[Total du rôle]]-K573)","v":0}]
[null,null,null,null,null,null,null,0,null,null,null,{"$f":"SUM(Tableau2[[#This Row],[Total du rôle]]-K574)","v":0}]
[null,null,null,null,null,null,null,0,null,null,null,{"$f":"SUM(Tableau2[[#This Row],[Total du rôle]]-K575)","v":0}]
[null,null,null,null,null,null,null,0,null,null,null,{"$f":"SUM(Tableau2[[#This Row],[Total du rôle]]-K576)","v":0}]
[null,null,null,null,null,null,null,0,null,null,null,{"$f":"SUM(Tableau2[[#This Row],[Total du rôle]]-K577)","v":0}]
[null,null,null,null,null,null,null,0,null,null,null,{"$f":"SUM(Tableau2[[#This Row],[Total du rôle]]-K578)","v":0}]
[null,null,null,null,null,null,null,0,null,null,null,{"$f":"SUM(Tableau2[[#This Row],[Total du rôle]]-K579)","v":0}]
[null,null,null,null,null,null,null,{"$f":"SUM(F580:G580)","v":0},null,null,null,{"$f":"SUM(Tableau2[[#This Row],[Total du rôle]]-K580)","v":0}]
[null,null,null,null,null,null,null,0,null,null,null,{"$f":"SUM(Tableau2[[#This Row],[Total du rôle]]-K581)","v":0}]
[null,null,null,null,null,null,null,0,null,null,null,{"$f":"SUM(Tableau2[[#This Row],[Total du rôle]]-K582)","v":0}]
[null,null,null,null,null,null,null,0,null,null,null,{"$f":"SUM(Tableau2[[#This Row],[Total du rôle]]-K583)","v":0}]
[null,null,null,null,null,null,null,0,null,null,null,{"$f":"SUM(Tableau2[[#This Row],[Total du rôle]]-K584)","v":0}]
[null,null,null,null,null,null,null,0,null,null,null,{"$f":"SUM(Tableau2[[#This Row],[Total du rôle]]-K585)","v":0}]
[null,null,null,null,null,null,null,0,null,null,null,{"$f":"SUM(Tableau2[[#This Row],[Total du rôle]]-K586)","v":0}]
[null,null,null,null,null,null,null,0,null,null,null,{"$f":"SUM(Tableau2[[#This Row],[Total du rôle]]-K587)","v":0}]
[null,null,null,null,null,null,null,0,null,null,null,{"$f":"SUM(Tableau2[[#This Row],[Total du rôle]]-K588)","v":0}]
[null,null,null,null,null,null,null,0,null,null,null,{"$f":"SUM(Tableau2[[#This Row],[Total du rôle]]-K589)","v":0}]
[null,null,null,null,null,null,null,0,null,null,null,{"$f":"SUM(Tableau2[[#This Row],[Total du rôle]]-K590)","v":0}]
[null,null,null,null,null,null,null,0,null,null,null,{"$f":"SUM(Tableau2[[#This Row],[Total du rôle]]-K591)","v":0}]
[null,null,null,null,null,null,null,0,null,null,null,{"$f":"SUM(Tableau2[[#This Row],[Total du rôle]]-K592)","v":0}]
[null,null,null,null,null,null,null,0,null,null,null,{"$f":"SUM(Tableau2[[#This Row],[Total du rôle]]-K593)","v":0}]
[null,null,null,null,null,null,null,0,null,null,null,{"$f":"SUM(Tableau2[[#This Row],[Total du rôle]]-K594)","v":0}]
[null,null,null,null,null,null,null,0,null,null,null,{"$f":"SUM(Tableau2[[#This Row],[Total du rôle]]-K595)","v":0}]
[null,null,null,null,null,null,null,0,null,null,null,{"$f":"SUM(Tableau2[[#This Row],[Total du rôle]]-K596)","v":0}]
[null,null,null,null,null,null,null,0,null,null,null,{"$f":"SUM(Tableau2[[#This Row],[Total du rôle]]-K597)","v":0}]
[null,null,null,null,null,null,null,0,null,null,null,{"$f":"SUM(Tableau2[[#This Row],[Total du rôle]]-K598)","v":0}]
[null,null,null,null,null,null,null,0,null,null,null,{"$f":"SUM(Tableau2[[#This Row],[Total du rôle]]-K599)","v":0}]
[null,null,null,null,null,null,null,0,null,null,null,{"$f":"SUM(Tableau2[[#This Row],[Total du rôle]]-K600)","v":0}]
[null,null,null,null,null,null,null,0,null,null,null,{"$f":"SUM(Tableau2[[#This Row],[Total du rôle]]-K601)","v":0}]
[null,null,null,null,null,null,null,0,null,null,null,{"$f":"SUM(Tableau2[[#This Row],[Total du rôle]]-K602)","v":0}]
[null,null,null,null,null,null,null,0,null,null,null,{"$f":"SUM(Tableau2[[#This Row],[Total du rôle]]-K603)","v":0}]
[null,null,null,null,null,null,null,0,null,null,null,{"$f":"SUM(Tableau2[[#This Row],[Total du rôle]]-K604)","v":0}]
[null,null,null,null,null,null,null,0,null,null,null,{"$f":"SUM(Tableau2[[#This Row],[Total du rôle]]-K605)","v":0}]
[null,null,null,null,null,null,null,0,null,null,null,{"$f":"SUM(Tableau2[[#This Row],[Total du rôle]]-K606)","v":0}]
[null,null,null,null,null,null,null,0,null,null,null,{"$f":"SUM(Tableau2[[#This Row],[Total du rôle]]-K607)","v":0}]
[null,null,null,null,null,null,null,0,null,null,null,{"$f":"SUM(Tableau2[[#This Row],[Total du rôle]]-K608)","v":0}]
[null,null,null,null,null,null,null,0,null,null,null,{"$f":"SUM(Tableau2[[#This Row],[Total du rôle]]-K609)","v":0}]
[null,null,null,null,null,null,null,0,null,null,null,{"$f":"SUM(Tableau2[[#This Row],[Total du rôle]]-K610)","v":0}]
[null,null,null,null,null,null,null,0,null,null,null,{"$f":"SUM(Tableau2[[#This Row],[Total du rôle]]-K611)","v":0}]
[null,null,null,null,null,null,null,0,null,null,null,{"$f":"SUM(Tableau2[[#This Row],[Total du rôle]]-K612)","v":0}]
[null,null,null,null,null,null,null,0,null,null,null,{"$f":"SUM(Tableau2[[#This Row],[Total du rôle]]-K613)","v":0}]
[null,null,null,null,null,null,null,0,null,null,null,{"$f":"SUM(Tableau2[[#This Row],[Total du rôle]]-K614)","v":0}]
[null,null,null,null,null,null,null,0,null,null,null,{"$f":"SUM(Tableau2[[#This Row],[Total du rôle]]-K615)","v":0}]
[null,null,null,null,null,null,null,0,null,null,null,{"$f":"SUM(Tableau2[[#This Row],[Total du rôle]]-K616)","v":0}]
[null,null,null,null,null,null,null,0,null,null,null,{"$f":"SUM(Tableau2[[#This Row],[Total du rôle]]-K617)","v":0}]
[null,null,null,null,null,null,null,0,null,null,null,{"$f":"SUM(Tableau2[[#This Row],[Total du rôle]]-K618)","v":0}]
[null,null,null,null,null,null,null,0,null,null,null,{"$f":"SUM(Tableau2[[#This Row],[Total du rôle]]-K619)","v":0}]
[null,null,null,null,null,null,null,0,null,null,null,{"$f":"SUM(Tableau2[[#This Row],[Total du rôle]]-K620)","v":0}]
[null,null,null,null,null,null,null,0,null,null,null,{"$f":"SUM(Tableau2[[#This Row],[Total du rôle]]-K621)","v":0}]
[null,null,null,null,null,null,null,0,null,null,null,{"$f":"SUM(Tableau2[[#This Row],[Total du rôle]]-K622)","v":0}]
[null,null,null,null,null,null,null,0,null,null,null,{"$f":"SUM(Tableau2[[#This Row],[Total du rôle]]-K623)","v":0}]
[null,null,null,null,null,null,null,0,null,null,null,{"$f":"SUM(Tableau2[[#This Row],[Total du rôle]]-K624)","v":0}]
[null,null,null,null,null,null,null,0,null,null,null,{"$f":"SUM(Tableau2[[#This Row],[Total du rôle]]-K625)","v":0}]
[null,null,null,null,null,null,null,0,null,null,null,{"$f":"SUM(Tableau2[[#This Row],[Total du rôle]]-K626)","v":0}]
[null,null,null,null,null,null,null,0,null,null,null,{"$f":"SUM(Tableau2[[#This Row],[Total du rôle]]-K627)","v":0}]
[null,null,null,null,null,null,null,0,null,null,null,{"$f":"SUM(Tableau2[[#This Row],[Total du rôle]]-K628)","v":0}]
[null,null,null,null,null,null,null,0,null,null,null,{"$f":"SUM(Tableau2[[#This Row],[Total du rôle]]-K629)","v":0}]
[null,null,null,null,null,null,null,0,null,null,null,{"$f":"SUM(Tableau2[[#This Row],[Total du rôle]]-K630)","v":0}]
[null,null,null,null,null,null,null,0,null,null,null,{"$f":"SUM(Tableau2[[#This Row],[Total du rôle]]-K631)","v":0}]
[null,null,null,null,null,null,null,0,null,null,null,{"$f":"SUM(Tableau2[[#This Row],[Total du rôle]]-K632)","v":0}]
[null,null,null,null,null,null,null,0,null,null,null,{"$f":"SUM(Tableau2[[#This Row],[Total du rôle]]-K633)","v":0}]
[null,null,null,null,null,null,null,0,null,null,null,{"$f":"SUM(Tableau2[[#This Row],[Total du rôle]]-K634)","v":0}]
[null,null,null,null,null,null,null,0,null,null,null,{"$f":"SUM(Tableau2[[#This Row],[Total du rôle]]-K635)","v":0}]
[null,null,null,null,null,null,null,0,null,null,null,{"$f":"SUM(Tableau2[[#This Row],[Total du rôle]]-K636)","v":0}]
[null,null,null,null,null,null,null,0,null,null,null,{"$f":"SUM(Tableau2[[#This Row],[Total du rôle]]-K637)","v":0}]
[null,null,null,null,null,null,null,0,null,null,null,{"$f":"SUM(Tableau2[[#This Row],[Total du rôle]]-K638)","v":0}]
[null,null,null,null,null,null,null,0,null,null,null,{"$f":"SUM(Tableau2[[#This Row],[Total du rôle]]-K639)","v":0}]
[null,null,null,null,null,null,null,0,null,null,null,{"$f":"SUM(Tableau2[[#This Row],[Total du rôle]]-K640)","v":0}]
[null,null,null,null,null,null,null,0,null,null,null,{"$f":"SUM(Tableau2[[#This Row],[Total du rôle]]-K641)","v":0}]
[null,null,null,null,null,null,null,0,null,null,null,{"$f":"SUM(Tableau2[[#This Row],[Total du rôle]]-K642)","v":0}]
[null,null,null,null,null,null,null,0,null,null,null,{"$f":"SUM(Tableau2[[#This Row],[Total du rôle]]-K643)","v":0}]
[null,null,null,null,null,null,null,{"$f":"SUM(F644:G644)","v":0},null,null,null,{"$f":"SUM(Tableau2[[#This Row],[Total du rôle]]-K644)","v":0}]
[null,null,null,null,null,null,null,0,null,null,null,{"$f":"SUM(Tableau2[[#This Row],[Total du rôle]]-K645)","v":0}]
[null,null,null,null,null,null,null,0,null,null,null,{"$f":"SUM(Tableau2[[#This Row],[Total du rôle]]-K646)","v":0}]
[null,null,null,null,null,null,null,0,null,null,null,{"$f":"SUM(Tableau2[[#This Row],[Total du rôle]]-K647)","v":0}]
[null,null,null,null,null,null,null,0,null,null,null,{"$f":"SUM(Tableau2[[#This Row],[Total du rôle]]-K648)","v":0}]
[null,null,null,null,null,null,null,0,null,null,null,{"$f":"SUM(Tableau2[[#This Row],[Total du rôle]]-K649)","v":0}]
[null,null,null,null,null,null,null,0,null,null,null,{"$f":"SUM(Tableau2[[#This Row],[Total du rôle]]-K650)","v":0}]
[null,null,null,null,null,null,null,0,null,null,null,{"$f":"SUM(Tableau2[[#This Row],[Total du rôle]]-K651)","v":0}]
[null,null,null,null,null,null,null,0,null,null,null,{"$f":"SUM(Tableau2[[#This Row],[Total du rôle]]-K652)","v":0}]
[null,null,null,null,null,null,null,0,null,null,null,{"$f":"SUM(Tableau2[[#This Row],[Total du rôle]]-K653)","v":0}]
[null,null,null,null,null,null,null,0,null,null,null,{"$f":"SUM(Tableau2[[#This Row],[Total du rôle]]-K654)","v":0}]
[null,null,null,null,null,null,null,0,null,null,null,{"$f":"SUM(Tableau2[[#This Row],[Total du rôle]]-K655)","v":0}]
[null,null,null,null,null,null,null,0,null,null,null,{"$f":"SUM(Tableau2[[#This Row],[Total du rôle]]-K656)","v":0}]
[null,null,null,null,null,null,null,0,null,null,null,{"$f":"SUM(Tableau2[[#This Row],[Total du rôle]]-K657)","v":0}]
[null,null,null,null,null,null,null,0,null,null,null,{"$f":"SUM(Tableau2[[#This Row],[Total du rôle]]-K658)","v":0}]
[null,null,null,null,null,null,null,0,null,null,null,{"$f":"SUM(Tableau2[[#This Row],[Total du rôle]]-K659)","v":0}]
[null,null,null,null,null,null,null,0,null,null,null,{"$f":"SUM(Tableau2[[#This Row],[Total du rôle]]-K660)","v":0}]
[null,null,null,null,null,null,null,0,null,null,null,{"$f":"SUM(Tableau2[[#This Row],[Total du rôle]]-K661)","v":0}]
[null,null,null,null,null,null,null,0,null,null,null,{"$f":"SUM(Tableau2[[#This Row],[Total du rôle]]-K662)","v":0}]
[null,null,null,null,null,null,null,0,null,null,null,{"$f":"SUM(Tableau2[[#This Row],[Total du rôle]]-K663)","v":0}]
[null,null,null,null,null,null,null,0,null,null,null,{"$f":"SUM(Tableau2[[#This Row],[Total du rôle]]-K664)","v":0}]
[null,null,null,null,null,null,null,0,null,null,null,{"$f":"SUM(Tableau2[[#This Row],[Total du rôle]]-K665)","v":0}]
[null,null,null,null,null,null,null,0,null,null,null,{"$f":"SUM(Tableau2[[#This Row],[Total du rôle]]-K666)","v":0}]
[null,null,null,null,null,null,null,0,null,null,null,{"$f":"SUM(Tableau2[[#This Row],[Total du rôle]]-K667)","v":0}]
[null,null,null,null,null,null,null,0,null,null,null,{"$f":"SUM(Tableau2[[#This Row],[Total du rôle]]-K668)","v":0}]
[null,null,null,null,null,null,null,0,null,null,null,{"$f":"SUM(Tableau2[[#This Row],[Total du rôle]]-K669)","v":0}]
[null,null,null,null,null,null,null,0,null,null,null,{"$f":"SUM(Tableau2[[#This Row],[Total du rôle]]-K670)","v":0}]
[null,null,null,null,null,null,null,0,null,null,null,{"$f":"SUM(Tableau2[[#This Row],[Total du rôle]]-K671)","v":0}]
[null,null,null,null,null,null,null,0,null,null,null,{"$f":"SUM(Tableau2[[#This Row],[Total du rôle]]-K672)","v":0}]
[null,null,null,null,null,null,null,0,null,null,null,{"$f":"SUM(Tableau2[[#This Row],[Total du rôle]]-K673)","v":0}]
[null,null,null,null,null,null,null,0,null,null,null,{"$f":"SUM(Tableau2[[#This Row],[Total du rôle]]-K674)","v":0}]
[null,null,null,null,null,null,null,0,null,null,null,{"$f":"SUM(Tableau2[[#This Row],[Total du rôle]]-K675)","v":0}]
[null,null,null,null,null,null,null,0,null,null,null,{"$f":"SUM(Tableau2[[#This Row],[Total du rôle]]-K676)","v":0}]
[null,null,null,null,null,null,null,0,null,null,null,{"$f":"SUM(Tableau2[[#This Row],[Total du rôle]]-K677)","v":0}]
[null,null,null,null,null,null,null,0,null,null,null,{"$f":"SUM(Tableau2[[#This Row],[Total du rôle]]-K678)","v":0}]
[null,null,null,null,null,null,null,0,null,null,null,{"$f":"SUM(Tableau2[[#This Row],[Total du rôle]]-K679)","v":0}]
[null,null,null,null,null,null,null,0,null,null,null,{"$f":"SUM(Tableau2[[#This Row],[Total du rôle]]-K680)","v":0}]
[null,null,null,null,null,null,null,0,null,null,null,{"$f":"SUM(Tableau2[[#This Row],[Total du rôle]]-K681)","v":0}]
[null,null,null,null,null,null,null,0,null,null,null,{"$f":"SUM(Tableau2[[#This Row],[Total du rôle]]-K682)","v":0}]
[null,null,null,null,null,null,null,0,null,null,null,{"$f":"SUM(Tableau2[[#This Row],[Total du rôle]]-K683)","v":0}]
[null,null,null,null,null,null,null,0,null,null,null,{"$f":"SUM(Tableau2[[#This Row],[Total du rôle]]-K684)","v":0}]
[null,null,null,null,null,null,null,0,null,null,null,{"$f":"SUM(Tableau2[[#This Row],[Total du rôle]]-K685)","v":0}]
[null,null,null,null,null,null,null,0,null,null,null,{"$f":"SUM(Tableau2[[#This Row],[Total du rôle]]-K686)","v":0}]
[null,null,null,null,null,null,null,0,null,null,null,{"$f":"SUM(Tableau2[[#This Row],[Total du rôle]]-K687)","v":0}]
[null,null,null,null,null,null,null,0,null,null,null,{"$f":"SUM(Tableau2[[#This Row],[Total du rôle]]-K688)","v":0}]
[null,null,null,null,null,null,null,0,null,null,null,{"$f":"SUM(Tableau2[[#This Row],[Total du rôle]]-K689)","v":0}]
[null,null,null,null,null,null,null,0,null,null,null,{"$f":"SUM(Tableau2[[#This Row],[Total du rôle]]-K690)","v":0}]
[null,null,null,null,null,null,null,0,null,null,null,{"$f":"SUM(Tableau2[[#This Row],[Total du rôle]]-K691)","v":0}]
[null,null,null,null,null,null,null,0,null,null,null,{"$f":"SUM(Tableau2[[#This Row],[Total du rôle]]-K692)","v":0}]
[null,null,null,null,null,null,null,0,null,null,null,{"$f":"SUM(Tableau2[[#This Row],[Total du rôle]]-K693)","v":0}]
[null,null,null,null,null,null,null,0,null,null,null,{"$f":"SUM(Tableau2[[#This Row],[Total du rôle]]-K694)","v":0}]
[null,null,null,null,null,null,null,0,null,null,null,{"$f":"SUM(Tableau2[[#This Row],[Total du rôle]]-K695)","v":0}]
[null,null,null,null,null,null,null,0,null,null,null,{"$f":"SUM(Tableau2[[#This Row],[Total du rôle]]-K696)","v":0}]
[null,null,null,null,null,null,null,0,null,null,null,{"$f":"SUM(Tableau2[[#This Row],[Total du rôle]]-K697)","v":0}]
[null,null,null,null,null,null,null,0,null,null,null,{"$f":"SUM(Tableau2[[#This Row],[Total du rôle]]-K698)","v":0}]
[null,null,null,null,null,null,null,0,null,null,null,{"$f":"SUM(Tableau2[[#This Row],[Total du rôle]]-K699)","v":0}]
[null,null,null,null,null,null,null,0,null,null,null,{"$f":"SUM(Tableau2[[#This Row],[Total du rôle]]-K700)","v":0}]
[null,null,null,null,null,null,null,0,null,null,null,{"$f":"SUM(Tableau2[[#This Row],[Total du rôle]]-K701)","v":0}]
[null,null,null,null,null,null,null,0,null,null,null,{"$f":"SUM(Tableau2[[#This Row],[Total du rôle]]-K702)","v":0}]
[null,null,null,null,null,null,null,0,null,null,null,{"$f":"SUM(Tableau2[[#This Row],[Total du rôle]]-K703)","v":0}]
[null,null,null,null,null,null,null,0,null,null,null,{"$f":"SUM(Tableau2[[#This Row],[Total du rôle]]-K704)","v":0}]
[null,null,null,null,null,null,null,0,null,null,null,{"$f":"SUM(Tableau2[[#This Row],[Total du rôle]]-K705)","v":0}]
[null,null,null,null,null,null,null,0,null,null,null,{"$f":"SUM(Tableau2[[#This Row],[Total du rôle]]-K706)","v":0}]
[null,null,null,null,null,null,null,0,null,null,null,{"$f":"SUM(Tableau2[[#This Row],[Total du rôle]]-K707)","v":0}]
[null,null,null,null,null,null,null,{"$f":"SUM(F708:G708)","v":0},null,null,null,{"$f":"SUM(Tableau2[[#This Row],[Total du rôle]]-K708)","v":0}]
[null,null,null,null,null,null,null,0,null,null,null,{"$f":"SUM(Tableau2[[#This Row],[Total du rôle]]-K709)","v":0}]
[null,null,null,null,null,null,null,0,null,null,null,{"$f":"SUM(Tableau2[[#This Row],[Total du rôle]]-K710)","v":0}]
[null,null,null,null,null,null,null,0,null,null,null,{"$f":"SUM(Tableau2[[#This Row],[Total du rôle]]-K711)","v":0}]
[null,null,null,null,null,null,null,0,null,null,null,{"$f":"SUM(Tableau2[[#This Row],[Total du rôle]]-K712)","v":0}]
[null,null,null,null,null,null,null,0,null,null,null,{"$f":"SUM(Tableau2[[#This Row],[Total du rôle]]-K713)","v":0}]
[null,null,null,null,null,null,null,0,null,null,null,{"$f":"SUM(Tableau2[[#This Row],[Total du rôle]]-K714)","v":0}]
[null,null,null,null,null,null,null,0,null,null,null,{"$f":"SUM(Tableau2[[#This Row],[Total du rôle]]-K715)","v":0}]
[null,null,null,null,null,null,null,0,null,null,null,{"$f":"SUM(Tableau2[[#This Row],[Total du rôle]]-K716)","v":0}]
[null,null,null,null,null,null,null,0,null,null,null,{"$f":"SUM(Tableau2[[#This Row],[Total du rôle]]-K717)","v":0}]
[null,null,null,null,null,null,null,0,null,null,null,{"$f":"SUM(Tableau2[[#This Row],[Total du rôle]]-K718)","v":0}]
[null,null,null,null,null,null,null,0,null,null,null,{"$f":"SUM(Tableau2[[#This Row],[Total du rôle]]-K719)","v":0}]
[null,null,null,null,null,null,null,0,null,null,null,{"$f":"SUM(Tableau2[[#This Row],[Total du rôle]]-K720)","v":0}]
[null,null,null,null,null,null,null,0,null,null,null,{"$f":"SUM(Tableau2[[#This Row],[Total du rôle]]-K721)","v":0}]
[null,null,null,null,null,null,null,0,null,null,null,{"$f":"SUM(Tableau2[[#This Row],[Total du rôle]]-K722)","v":0}]
[null,null,null,null,null,null,null,0,null,null,null,{"$f":"SUM(Tableau2[[#This Row],[Total du rôle]]-K723)","v":0}]
[null,null,null,null,null,null,null,0,null,null,null,{"$f":"SUM(Tableau2[[#This Row],[Total du rôle]]-K724)","v":0}]
[null,null,null,null,null,null,null,0,null,null,null,{"$f":"SUM(Tableau2[[#This Row],[Total du rôle]]-K725)","v":0}]
[null,null,null,null,null,null,null,0,null,null,null,{"$f":"SUM(Tableau2[[#This Row],[Total du rôle]]-K726)","v":0}]
[null,null,null,null,null,null,null,0,null,null,null,{"$f":"SUM(Tableau2[[#This Row],[Total du rôle]]-K727)","v":0}]
[null,null,null,null,null,null,null,0,null,null,null,{"$f":"SUM(Tableau2[[#This Row],[Total du rôle]]-K728)","v":0}]
[null,null,null,null,null,null,null,0,null,null,null,{"$f":"SUM(Tableau2[[#This Row],[Total du rôle]]-K729)","v":0}]
[null,null,null,null,null,null,null,0,null,null,null,{"$f":"SUM(Tableau2[[#This Row],[Total du rôle]]-K730)","v":0}]
[null,null,null,null,null,null,null,0,null,null,null,{"$f":"SUM(Tableau2[[#This Row],[Total du rôle]]-K731)","v":0}]
[null,null,null,null,null,null,null,0,null,null,null,{"$f":"SUM(Tableau2[[#This Row],[Total du rôle]]-K732)","v":0}]
[null,null,null,null,null,null,null,0,null,null,null,{"$f":"SUM(Tableau2[[#This Row],[Total du rôle]]-K733)","v":0}]
[null,null,null,null,null,null,null,0,null,null,null,{"$f":"SUM(Tableau2[[#This Row],[Total du rôle]]-K734)","v":0}]
[null,null,null,null,null,null,null,0,null,null,null,{"$f":"SUM(Tableau2[[#This Row],[Total du rôle]]-K735)","v":0}]
[null,null,null,null,null,null,null,0,null,null,null,{"$f":"SUM(Tableau2[[#This Row],[Total du rôle]]-K736)","v":0}]
[null,null,null,null,null,null,null,0,null,null,null,{"$f":"SUM(Tableau2[[#This Row],[Total du rôle]]-K737)","v":0}]
[null,null,null,null,null,null,null,0,null,null,null,{"$f":"SUM(Tableau2[[#This Row],[Total du rôle]]-K738)","v":0}]
[null,null,null,null,null,null,null,0,null,null,null,{"$f":"SUM(Tableau2[[#This Row],[Total du rôle]]-K739)","v":0}]
[null,null,null,null,null,null,null,0,null,null,null,{"$f":"SUM(Tableau2[[#This Row],[Total du rôle]]-K740)","v":0}]
[null,null,null,null,null,null,null,0,null,null,null,{"$f":"SUM(Tableau2[[#This Row],[Total du rôle]]-K741)","v":0}]
[null,null,null,null,null,null,null,0,null,null,null,{"$f":"SUM(Tableau2[[#This Row],[Total du rôle]]-K742)","v":0}]
[null,null,null,null,null,null,null,0,null,null,null,{"$f":"SUM(Tableau2[[#This Row],[Total du rôle]]-K743)","v":0}]
[null,null,null,null,null,null,null,0,null,null,null,{"$f":"SUM(Tableau2[[#This Row],[Total du rôle]]-K744)","v":0}]
[null,null,null,null,null,null,null,0,null,null,null,{"$f":"SUM(Tableau2[[#This Row],[Total du rôle]]-K745)","v":0}]
[null,null,null,null,null,null,null,0,null,null,null,{"$f":"SUM(Tableau2[[#This Row],[Total du rôle]]-K746)","v":0}]
[null,null,null,null,null,null,null,0,null,null,null,{"$f":"SUM(Tableau2[[#This Row],[Total du rôle]]-K747)","v":0}]
[null,null,null,null,null,null,null,0,null,null,null,{"$f":"SUM(Tableau2[[#This Row],[Total du rôle]]-K748)","v":0}]
[null,null,null,null,null,null,null,0,null,null,null,{"$f":"SUM(Tableau2[[#This Row],[Total du rôle]]-K749)","v":0}]
[null,null,null,null,null,null,null,0,null,null,null,{"$f":"SUM(Tableau2[[#This Row],[Total du rôle]]-K750)","v":0}]
[null,null,null,null,null,null,null,0,null,null,null,{"$f":"SUM(Tableau2[[#This Row],[Total du rôle]]-K751)","v":0}]
[null,null,null,null,null,null,null,0,null,null,null,{"$f":"SUM(Tableau2[[#This Row],[Total du rôle]]-K752)","v":0}]
[null,null,null,null,null,null,null,0,null,null,null,{"$f":"SUM(Tableau2[[#This Row],[Total du rôle]]-K753)","v":0}]
[null,null,null,null,null,null,null,0,null,null,null,{"$f":"SUM(Tableau2[[#This Row],[Total du rôle]]-K754)","v":0}]
[null,null,null,null,null,null,null,0,null,null,null,{"$f":"SUM(Tableau2[[#This Row],[Total du rôle]]-K755)","v":0}]
[null,null,null,null,null,null,null,0,null,null,null,{"$f":"SUM(Tableau2[[#This Row],[Total du rôle]]-K756)","v":0}]
[null,null,null,null,null,null,null,0,null,null,null,{"$f":"SUM(Tableau2[[#This Row],[Total du rôle]]-K757)","v":0}]
[null,null,null,null,null,null,null,0,null,null,null,{"$f":"SUM(Tableau2[[#This Row],[Total du rôle]]-K758)","v":0}]
[null,null,null,null,null,null,null,0,null,null,null,{"$f":"SUM(Tableau2[[#This Row],[Total du rôle]]-K759)","v":0}]
[null,null,null,null,null,null,null,0,null,null,null,{"$f":"SUM(Tableau2[[#This Row],[Total du rôle]]-K760)","v":0}]
[null,null,null,null,null,null,null,0,null,null,null,{"$f":"SUM(Tableau2[[#This Row],[Total du rôle]]-K761)","v":0}]
[null,null,null,null,null,null,null,0,null,null,null,{"$f":"SUM(Tableau2[[#This Row],[Total du rôle]]-K762)","v":0}]
[null,null,null,null,null,null,null,0,null,null,null,{"$f":"SUM(Tableau2[[#This Row],[Total du rôle]]-K763)","v":0}]
[null,null,null,null,null,null,null,0,null,null,null,{"$f":"SUM(Tableau2[[#This Row],[Total du rôle]]-K764)","v":0}]
[null,null,null,null,null,null,null,0,null,null,null,{"$f":"SUM(Tableau2[[#This Row],[Total du rôle]]-K765)","v":0}]
[null,null,null,null,null,null,null,0,null,null,null,{"$f":"SUM(Tableau2[[#This Row],[Total du rôle]]-K766)","v":0}]
[null,null,null,null,null,null,null,0,null,null,null,{"$f":"SUM(Tableau2[[#This Row],[Total du rôle]]-K767)","v":0}]
[null,null,null,null,null,null,null,0,null,null,null,{"$f":"SUM(Tableau2[[#This Row],[Total du rôle]]-K768)","v":0}]
[null,null,null,null,null,null,null,0,null,null,null,{"$f":"SUM(Tableau2[[#This Row],[Total du rôle]]-K769)","v":0}]
[null,null,null,null,null,null,null,0,null,null,null,{"$f":"SUM(Tableau2[[#This Row],[Total du rôle]]-K770)","v":0}]
[null,null,null,null,null,null,null,0,null,null,null,{"$f":"SUM(Tableau2[[#This Row],[Total du rôle]]-K771)","v":0}]
[null,null,null,null,null,null,null,{"$f":"SUM(F772:G772)","v":0},null,null,null,{"$f":"SUM(Tableau2[[#This Row],[Total du rôle]]-K772)","v":0}]
[null,null,null,null,null,null,null,0,null,null,null,{"$f":"SUM(Tableau2[[#This Row],[Total du rôle]]-K773)","v":0}]
[null,null,null,null,null,null,null,0,null,null,null,{"$f":"SUM(Tableau2[[#This Row],[Total du rôle]]-K774)","v":0}]
[null,null,null,null,null,null,null,0,null,null,null,{"$f":"SUM(Tableau2[[#This Row],[Total du rôle]]-K775)","v":0}]
[null,null,null,null,null,null,null,0,null,null,null,{"$f":"SUM(Tableau2[[#This Row],[Total du rôle]]-K776)","v":0}]
[null,null,null,null,null,null,null,0,null,null,null,{"$f":"SUM(Tableau2[[#This Row],[Total du rôle]]-K777)","v":0}]
[null,null,null,null,null,null,null,0,null,null,null,{"$f":"SUM(Tableau2[[#This Row],[Total du rôle]]-K778)","v":0}]
[null,null,null,null,null,null,null,0,null,null,null,{"$f":"SUM(Tableau2[[#This Row],[Total du rôle]]-K779)","v":0}]
[null,null,null,null,null,null,null,0,null,null,null,{"$f":"SUM(Tableau2[[#This Row],[Total du rôle]]-K780)","v":0}]
[null,null,null,null,null,null,null,0,null,null,null,{"$f":"SUM(Tableau2[[#This Row],[Total du rôle]]-K781)","v":0}]
[null,null,null,null,null,null,null,0,null,null,null,{"$f":"SUM(Tableau2[[#This Row],[Total du rôle]]-K782)","v":0}]
[null,null,null,null,null,null,null,0,null,null,null,{"$f":"SUM(Tableau2[[#This Row],[Total du rôle]]-K783)","v":0}]
[null,null,null,null,null,null,null,0,null,null,null,{"$f":"SUM(Tableau2[[#This Row],[Total du rôle]]-K784)","v":0}]
[null,null,null,null,null,null,null,0,null,null,null,{"$f":"SUM(Tableau2[[#This Row],[Total du rôle]]-K785)","v":0}]
[null,null,null,null,null,null,null,0,null,null,null,{"$f":"SUM(Tableau2[[#This Row],[Total du rôle]]-K786)","v":0}]
[null,null,null,null,null,null,null,0,null,null,null,{"$f":"SUM(Tableau2[[#This Row],[Total du rôle]]-K787)","v":0}]
[null,null,null,null,null,null,null,0,null,null,null,{"$f":"SUM(Tableau2[[#This Row],[Total du rôle]]-K788)","v":0}]
[null,null,null,null,null,null,null,0,null,null,null,{"$f":"SUM(Tableau2[[#This Row],[Total du rôle]]-K789)","v":0}]
[null,null,null,null,null,null,null,0,null,null,null,{"$f":"SUM(Tableau2[[#This Row],[Total du rôle]]-K790)","v":0}]
[null,null,null,null,null,null,null,0,null,null,null,{"$f":"SUM(Tableau2[[#This Row],[Total du rôle]]-K791)","v":0}]
[null,null,null,null,null,null,null,0,null,null,null,{"$f":"SUM(Tableau2[[#This Row],[Total du rôle]]-K792)","v":0}]
[null,null,null,null,null,null,null,0,null,null,null,{"$f":"SUM(Tableau2[[#This Row],[Total du rôle]]-K793)","v":0}]
[null,null,null,null,null,null,null,0,null,null,null,{"$f":"SUM(Tableau2[[#This Row],[Total du rôle]]-K794)","v":0}]
[null,null,null,null,null,null,null,0,null,null,null,{"$f":"SUM(Tableau2[[#This Row],[Total du rôle]]-K795)","v":0}]
[null,null,null,null,null,null,null,0,null,null,null,{"$f":"SUM(Tableau2[[#This Row],[Total du rôle]]-K796)","v":0}]
[null,null,null,null,null,null,null,0,null,null,null,{"$f":"SUM(Tableau2[[#This Row],[Total du rôle]]-K797)","v":0}]
[null,null,null,null,null,null,null,0,null,null,null,{"$f":"SUM(Tableau2[[#This Row],[Total du rôle]]-K798)","v":0}]
[null,null,null,null,null,null,null,0,null,null,null,{"$f":"SUM(Tableau2[[#This Row],[Total du rôle]]-K799)","v":0}]
[null,null,null,null,null,null,null,0,null,null,null,{"$f":"SUM(Tableau2[[#This Row],[Total du rôle]]-K800)","v":0}]
[null,null,null,null,null,null,null,0,null,null,null,{"$f":"SUM(Tableau2[[#This Row],[Total du rôle]]-K801)","v":0}]
[null,null,null,null,null,null,null,0,null,null,null,{"$f":"SUM(Tableau2[[#This Row],[Total du rôle]]-K802)","v":0}]
[null,null,null,null,null,null,null,0,null,null,null,{"$f":"SUM(Tableau2[[#This Row],[Total du rôle]]-K803)","v":0}]
[null,null,null,null,null,null,null,0,null,null,null,{"$f":"SUM(Tableau2[[#This Row],[Total du rôle]]-K804)","v":0}]
[null,null,null,null,null,null,null,0,null,null,null,{"$f":"SUM(Tableau2[[#This Row],[Total du rôle]]-K805)","v":0}]
[null,null,null,null,null,null,null,0,null,null,null,{"$f":"SUM(Tableau2[[#This Row],[Total du rôle]]-K806)","v":0}]
[null,null,null,null,null,null,null,0,null,null,null,{"$f":"SUM(Tableau2[[#This Row],[Total du rôle]]-K807)","v":0}]
[null,null,null,null,null,null,null,0,null,null,null,{"$f":"SUM(Tableau2[[#This Row],[Total du rôle]]-K808)","v":0}]
[null,null,null,null,null,null,null,0,null,null,null,{"$f":"SUM(Tableau2[[#This Row],[Total du rôle]]-K809)","v":0}]
[null,null,null,null,null,null,null,0,null,null,null,{"$f":"SUM(Tableau2[[#This Row],[Total du rôle]]-K810)","v":0}]
[null,null,null,null,null,null,null,0,null,null,null,{"$f":"SUM(Tableau2[[#This Row],[Total du rôle]]-K811)","v":0}]
[null,null,null,null,null,null,null,0,null,null,null,{"$f":"SUM(Tableau2[[#This Row],[Total du rôle]]-K812)","v":0}]
[null,null,null,null,null,null,null,0,null,null,null,{"$f":"SUM(Tableau2[[#This Row],[Total du rôle]]-K813)","v":0}]
[null,null,null,null,null,null,null,0,null,null,null,{"$f":"SUM(Tableau2[[#This Row],[Total du rôle]]-K814)","v":0}]
[null,null,null,null,null,null,null,0,null,null,null,{"$f":"SUM(Tableau2[[#This Row],[Total du rôle]]-K815)","v":0}]
[null,null,null,null,null,null,null,0,null,null,null,{"$f":"SUM(Tableau2[[#This Row],[Total du rôle]]-K816)","v":0}]
[null,null,null,null,null,null,null,0,null,null,null,{"$f":"SUM(Tableau2[[#This Row],[Total du rôle]]-K817)","v":0}]
[null,null,null,null,null,null,null,0,null,null,null,{"$f":"SUM(Tableau2[[#This Row],[Total du rôle]]-K818)","v":0}]
[null,null,null,null,null,null,null,0,null,null,null,{"$f":"SUM(Tableau2[[#This Row],[Total du rôle]]-K819)","v":0}]
[null,null,null,null,null,null,null,0,null,null,null,{"$f":"SUM(Tableau2[[#This Row],[Total du rôle]]-K820)","v":0}]
[null,null,null,null,null,null,null,0,null,null,null,{"$f":"SUM(Tableau2[[#This Row],[Total du rôle]]-K821)","v":0}]
[null,null,null,null,null,null,null,0,null,null,null,{"$f":"SUM(Tableau2[[#This Row],[Total du rôle]]-K822)","v":0}]
[null,null,null,null,null,null,null,0,null,null,null,{"$f":"SUM(Tableau2[[#This Row],[Total du rôle]]-K823)","v":0}]
[null,null,null,null,null,null,null,0,null,null,null,{"$f":"SUM(Tableau2[[#This Row],[Total du rôle]]-K824)","v":0}]
[null,null,null,null,null,null,null,0,null,null,null,{"$f":"SUM(Tableau2[[#This Row],[Total du rôle]]-K825)","v":0}]
[null,null,null,null,null,null,null,0,null,null,null,{"$f":"SUM(Tableau2[[#This Row],[Total du rôle]]-K826)","v":0}]
[null,null,null,null,null,null,null,0,null,null,null,{"$f":"SUM(Tableau2[[#This Row],[Total du rôle]]-K827)","v":0}]
[null,null,null,null,null,null,null,0,null,null,null,{"$f":"SUM(Tableau2[[#This Row],[Total du rôle]]-K828)","v":0}]
[null,null,null,null,null,null,null,0,null,null,null,{"$f":"SUM(Tableau2[[#This Row],[Total du rôle]]-K829)","v":0}]
[null,null,null,null,null,null,null,0,null,null,null,{"$f":"SUM(Tableau2[[#This Row],[Total du rôle]]-K830)","v":0}]
[null,null,null,null,null,null,null,0,null,null,null,{"$f":"SUM(Tableau2[[#This Row],[Total du rôle]]-K831)","v":0}]
[null,null,null,null,null,null,null,0,null,null,null,{"$f":"SUM(Tableau2[[#This Row],[Total du rôle]]-K832)","v":0}]
[null,null,null,null,null,null,null,0,null,null,null,{"$f":"SUM(Tableau2[[#This Row],[Total du rôle]]-K833)","v":0}]
[null,null,null,null,null,null,null,0,null,null,null,{"$f":"SUM(Tableau2[[#This Row],[Total du rôle]]-K834)","v":0}]
[null,null,null,null,null,null,null,0,null,null,null,{"$f":"SUM(Tableau2[[#This Row],[Total du rôle]]-K835)","v":0}]
[null,null,null,null,null,null,null,{"$f":"SUM(F836:G836)","v":0},null,null,null,{"$f":"SUM(Tableau2[[#This Row],[Total du rôle]]-K836)","v":0}]
[null,null,null,null,null,null,null,0,null,null,null,{"$f":"SUM(Tableau2[[#This Row],[Total du rôle]]-K837)","v":0}]
[null,null,null,null,null,null,null,0,null,null,null,{"$f":"SUM(Tableau2[[#This Row],[Total du rôle]]-K838)","v":0}]
[null,null,null,null,null,null,null,0,null,null,null,{"$f":"SUM(Tableau2[[#This Row],[Total du rôle]]-K839)","v":0}]
[null,null,null,null,null,null,null,0,null,null,null,{"$f":"SUM(Tableau2[[#This Row],[Total du rôle]]-K840)","v":0}]
[null,null,null,null,null,null,null,0,null,null,null,{"$f":"SUM(Tableau2[[#This Row],[Total du rôle]]-K841)","v":0}]
[null,null,null,null,null,null,null,0,null,null,null,{"$f":"SUM(Tableau2[[#This Row],[Total du rôle]]-K842)","v":0}]
[null,null,null,null,null,null,null,0,null,null,null,{"$f":"SUM(Tableau2[[#This Row],[Total du rôle]]-K843)","v":0}]
[null,null,null,null,null,null,null,0,null,null,null,{"$f":"SUM(Tableau2[[#This Row],[Total du rôle]]-K844)","v":0}]
[null,null,null,null,null,null,null,0,null,null,null,{"$f":"SUM(Tableau2[[#This Row],[Total du rôle]]-K845)","v":0}]
[null,null,null,null,null,null,null,0,null,null,null,{"$f":"SUM(Tableau2[[#This Row],[Total du rôle]]-K846)","v":0}]
[null,null,null,null,null,null,null,0,null,null,null,{"$f":"SUM(Tableau2[[#This Row],[Total du rôle]]-K847)","v":0}]
[null,null,null,null,null,null,null,0,null,null,null,{"$f":"SUM(Tableau2[[#This Row],[Total du rôle]]-K848)","v":0}]
[null,null,null,null,null,null,null,0,null,null,null,{"$f":"SUM(Tableau2[[#This Row],[Total du rôle]]-K849)","v":0}]
[null,null,null,null,null,null,null,0,null,null,null,{"$f":"SUM(Tableau2[[#This Row],[Total du rôle]]-K850)","v":0}]
[null,null,null,null,null,null,null,0,null,null,null,{"$f":"SUM(Tableau2[[#This Row],[Total du rôle]]-K851)","v":0}]
[null,null,null,null,null,null,null,0,null,null,null,{"$f":"SUM(Tableau2[[#This Row],[Total du rôle]]-K852)","v":0}]
[null,null,null,null,null,null,null,0,null,null,null,{"$f":"SUM(Tableau2[[#This Row],[Total du rôle]]-K853)","v":0}]
[null,null,null,null,null,null,null,0,null,null,null,{"$f":"SUM(Tableau2[[#This Row],[Total du rôle]]-K854)","v":0}]
[null,null,null,null,null,null,null,0,null,null,null,{"$f":"SUM(Tableau2[[#This Row],[Total du rôle]]-K855)","v":0}]
[null,null,null,null,null,null,null,0,null,null,null,{"$f":"SUM(Tableau2[[#This Row],[Total du rôle]]-K856)","v":0}]
[null,null,null,null,null,null,null,0,null,null,null,{"$f":"SUM(Tableau2[[#This Row],[Total du rôle]]-K857)","v":0}]
[null,null,null,null,null,null,null,0,null,null,null,{"$f":"SUM(Tableau2[[#This Row],[Total du rôle]]-K858)","v":0}]
[null,null,null,null,null,null,null,0,null,null,null,{"$f":"SUM(Tableau2[[#This Row],[Total du rôle]]-K859)","v":0}]
[null,null,null,null,null,null,null,0,null,null,null,{"$f":"SUM(Tableau2[[#This Row],[Total du rôle]]-K860)","v":0}]
[null,null,null,null,null,null,null,0,null,null,null,{"$f":"SUM(Tableau2[[#This Row],[Total du rôle]]-K861)","v":0}]
[null,null,null,null,null,null,null,0,null,null,null,{"$f":"SUM(Tableau2[[#This Row],[Total du rôle]]-K862)","v":0}]
[null,null,null,null,null,null,null,0,null,null,null,{"$f":"SUM(Tableau2[[#This Row],[Total du rôle]]-K863)","v":0}]
[null,null,null,null,null,null,null,0,null,null,null,{"$f":"SUM(Tableau2[[#This Row],[Total du rôle]]-K864)","v":0}]
[null,null,null,null,null,null,null,0,null,null,null,{"$f":"SUM(Tableau2[[#This Row],[Total du rôle]]-K865)","v":0}]
[null,null,null,null,null,null,null,0,null,null,null,{"$f":"SUM(Tableau2[[#This Row],[Total du rôle]]-K866)","v":0}]
[null,null,null,null,null,null,null,0,null,null,null,{"$f":"SUM(Tableau2[[#This Row],[Total du rôle]]-K867)","v":0}]
[null,null,null,null,null,null,null,0,null,null,null,{"$f":"SUM(Tableau2[[#This Row],[Total du rôle]]-K868)","v":0}]
[null,null,null,null,null,null,null,0,null,null,null,{"$f":"SUM(Tableau2[[#This Row],[Total du rôle]]-K869)","v":0}]
[null,null,null,null,null,null,null,0,null,null,null,{"$f":"SUM(Tableau2[[#This Row],[Total du rôle]]-K870)","v":0}]
[null,null,null,null,null,null,null,0,null,null,null,{"$f":"SUM(Tableau2[[#This Row],[Total du rôle]]-K871)","v":0}]
[null,null,null,null,null,null,null,0,null,null,null,{"$f":"SUM(Tableau2[[#This Row],[Total du rôle]]-K872)","v":0}]
[null,null,null,null,null,null,null,0,null,null,null,{"$f":"SUM(Tableau2[[#This Row],[Total du rôle]]-K873)","v":0}]
[null,null,null,null,null,null,null,0,null,null,null,{"$f":"SUM(Tableau2[[#This Row],[Total du rôle]]-K874)","v":0}]
[null,null,null,null,null,null,null,0,null,null,null,{"$f":"SUM(Tableau2[[#This Row],[Total du rôle]]-K875)","v":0}]
[null,null,null,null,null,null,null,0,null,null,null,{"$f":"SUM(Tableau2[[#This Row],[Total du rôle]]-K876)","v":0}]
[null,null,null,null,null,null,null,0,null,null,null,{"$f":"SUM(Tableau2[[#This Row],[Total du rôle]]-K877)","v":0}]
[null,null,null,null,null,null,null,0,null,null,null,{"$f":"SUM(Tableau2[[#This Row],[Total du rôle]]-K878)","v":0}]
[null,null,null,null,null,null,null,0,null,null,null,{"$f":"SUM(Tableau2[[#This Row],[Total du rôle]]-K879)","v":0}]
[null,null,null,null,null,null,null,0,null,null,null,{"$f":"SUM(Tableau2[[#This Row],[Total du rôle]]-K880)","v":0}]
[null,null,null,null,null,null,null,0,null,null,null,{"$f":"SUM(Tableau2[[#This Row],[Total du rôle]]-K881)","v":0}]
[null,null,null,null,null,null,null,0,null,null,null,{"$f":"SUM(Tableau2[[#This Row],[Total du rôle]]-K882)","v":0}]
[null,null,null,null,null,null,null,0,null,null,null,{"$f":"SUM(Tableau2[[#This Row],[Total du rôle]]-K883)","v":0}]
[null,null,null,null,null,null,null,0,null,null,null,{"$f":"SUM(Tableau2[[#This Row],[Total du rôle]]-K884)","v":0}]
[null,null,null,null,null,null,null,0,null,null,null,{"$f":"SUM(Tableau2[[#This Row],[Total du rôle]]-K885)","v":0}]
[null,null,null,null,null,null,null,0,null,null,null,{"$f":"SUM(Tableau2[[#This Row],[Total du rôle]]-K886)","v":0}]
[null,null,null,null,null,null,null,0,null,null,null,{"$f":"SUM(Tableau2[[#This Row],[Total du rôle]]-K887)","v":0}]
[null,null,null,null,null,null,null,0,null,null,null,{"$f":"SUM(Tableau2[[#This Row],[Total du rôle]]-K888)","v":0}]
[null,null,null,null,null,null,null,0,null,null,null,{"$f":"SUM(Tableau2[[#This Row],[Total du rôle]]-K889)","v":0}]
[null,null,null,null,null,null,null,0,null,null,null,{"$f":"SUM(Tableau2[[#This Row],[Total du rôle]]-K890)","v":0}]
[null,null,null,null,null,null,null,0,null,null,null,{"$f":"SUM(Tableau2[[#This Row],[Total du rôle]]-K891)","v":0}]
[null,null,null,null,null,null,null,0,null,null,null,{"$f":"SUM(Tableau2[[#This Row],[Total du rôle]]-K892)","v":0}]
[null,null,null,null,null,null,null,0,null,null,null,{"$f":"SUM(Tableau2[[#This Row],[Total du rôle]]-K893)","v":0}]
[null,null,null,null,null,null,null,0,null,null,null,{"$f":"SUM(Tableau2[[#This Row],[Total du rôle]]-K894)","v":0}]
[null,null,null,null,null,null,null,0,null,null,null,{"$f":"SUM(Tableau2[[#This Row],[Total du rôle]]-K895)","v":0}]
[null,null,null,null,null,null,null,0,null,null,null,{"$f":"SUM(Tableau2[[#This Row],[Total du rôle]]-K896)","v":0}]
[null,null,null,null,null,null,null,0,null,null,null,{"$f":"SUM(Tableau2[[#This Row],[Total du rôle]]-K897)","v":0}]
[null,null,null,null,null,null,null,0,null,null,null,{"$f":"SUM(Tableau2[[#This Row],[Total du rôle]]-K898)","v":0}]
[null,null,null,null,null,null,null,0,null,null,null,{"$f":"SUM(Tableau2[[#This Row],[Total du rôle]]-K899)","v":0}]
[null,null,null,null,null,null,null,{"$f":"SUM(F900:G900)","v":0},null,null,null,{"$f":"SUM(Tableau2[[#This Row],[Total du rôle]]-K900)","v":0}]
[null,null,null,null,null,null,null,0,null,null,null,{"$f":"SUM(Tableau2[[#This Row],[Total du rôle]]-K901)","v":0}]
[null,null,null,null,null,null,null,0,null,null,null,{"$f":"SUM(Tableau2[[#This Row],[Total du rôle]]-K902)","v":0}]
[null,null,null,null,null,null,null,0,null,null,null,{"$f":"SUM(Tableau2[[#This Row],[Total du rôle]]-K903)","v":0}]
[null,null,null,null,null,null,null,0,null,null,null,{"$f":"SUM(Tableau2[[#This Row],[Total du rôle]]-K904)","v":0}]
[null,null,null,null,null,null,null,0,null,null,null,{"$f":"SUM(Tableau2[[#This Row],[Total du rôle]]-K905)","v":0}]
[null,null,null,null,null,null,null,0,null,null,null,{"$f":"SUM(Tableau2[[#This Row],[Total du rôle]]-K906)","v":0}]
[null,null,null,null,null,null,null,0,null,null,null,{"$f":"SUM(Tableau2[[#This Row],[Total du rôle]]-K907)","v":0}]
[null,null,null,null,null,null,null,0,null,null,null,{"$f":"SUM(Tableau2[[#This Row],[Total du rôle]]-K908)","v":0}]
[null,null,null,null,null,null,null,0,null,null,null,{"$f":"SUM(Tableau2[[#This Row],[Total du rôle]]-K909)","v":0}]
[null,null,null,null,null,null,null,0,null,null,null,{"$f":"SUM(Tableau2[[#This Row],[Total du rôle]]-K910)","v":0}]
[null,null,null,null,null,null,null,0,null,null,null,{"$f":"SUM(Tableau2[[#This Row],[Total du rôle]]-K911)","v":0}]
[null,null,null,null,null,null,null,0,null,null,null,{"$f":"SUM(Tableau2[[#This Row],[Total du rôle]]-K912)","v":0}]
[null,null,null,null,null,null,null,0,null,null,null,{"$f":"SUM(Tableau2[[#This Row],[Total du rôle]]-K913)","v":0}]
[null,null,null,null,null,null,null,0,null,null,null,{"$f":"SUM(Tableau2[[#This Row],[Total du rôle]]-K914)","v":0}]
[null,null,null,null,null,null,null,0,null,null,null,{"$f":"SUM(Tableau2[[#This Row],[Total du rôle]]-K915)","v":0}]
[null,null,null,null,null,null,null,0,null,null,null,{"$f":"SUM(Tableau2[[#This Row],[Total du rôle]]-K916)","v":0}]
[null,null,null,null,null,null,null,0,null,null,null,{"$f":"SUM(Tableau2[[#This Row],[Total du rôle]]-K917)","v":0}]
[null,null,null,null,null,null,null,0,null,null,null,{"$f":"SUM(Tableau2[[#This Row],[Total du rôle]]-K918)","v":0}]
[null,null,null,null,null,null,null,0,null,null,null,{"$f":"SUM(Tableau2[[#This Row],[Total du rôle]]-K919)","v":0}]
[null,null,null,null,null,null,null,0,null,null,null,{"$f":"SUM(Tableau2[[#This Row],[Total du rôle]]-K920)","v":0}]
[null,null,null,null,null,null,null,0,null,null,null,{"$f":"SUM(Tableau2[[#This Row],[Total du rôle]]-K921)","v":0}]
[null,null,null,null,null,null,null,0,null,null,null,{"$f":"SUM(Tableau2[[#This Row],[Total du rôle]]-K922)","v":0}]
[null,null,null,null,null,null,null,0,null,null,null,{"$f":"SUM(Tableau2[[#This Row],[Total du rôle]]-K923)","v":0}]
[null,null,null,null,null,null,null,0,null,null,null,{"$f":"SUM(Tableau2[[#This Row],[Total du rôle]]-K924)","v":0}]
[null,null,null,null,null,null,null,0,null,null,null,{"$f":"SUM(Tableau2[[#This Row],[Total du rôle]]-K925)","v":0}]
[null,null,null,null,null,null,null,0,null,null,null,{"$f":"SUM(Tableau2[[#This Row],[Total du rôle]]-K926)","v":0}]
[null,null,null,null,null,null,null,0,null,null,null,{"$f":"SUM(Tableau2[[#This Row],[Total du rôle]]-K927)","v":0}]
[null,null,null,null,null,null,null,0,null,null,null,{"$f":"SUM(Tableau2[[#This Row],[Total du rôle]]-K928)","v":0}]
[null,null,null,null,null,null,null,0,null,null,null,{"$f":"SUM(Tableau2[[#This Row],[Total du rôle]]-K929)","v":0}]
[null,null,null,null,null,null,null,0,null,null,null,{"$f":"SUM(Tableau2[[#This Row],[Total du rôle]]-K930)","v":0}]
[null,null,null,null,null,null,null,0,null,null,null,{"$f":"SUM(Tableau2[[#This Row],[Total du rôle]]-K931)","v":0}]
[null,null,null,null,null,null,null,0,null,null,null,{"$f":"SUM(Tableau2[[#This Row],[Total du rôle]]-K932)","v":0}]
[null,null,null,null,null,null,null,0,null,null,null,{"$f":"SUM(Tableau2[[#This Row],[Total du rôle]]-K933)","v":0}]
[null,null,null,null,null,null,null,0,null,null,null,{"$f":"SUM(Tableau2[[#This Row],[Total du rôle]]-K934)","v":0}]
[null,null,null,null,null,null,null,0,null,null,null,{"$f":"SUM(Tableau2[[#This Row],[Total du rôle]]-K935)","v":0}]
[null,null,null,null,null,null,null,0,null,null,null,{"$f":"SUM(Tableau2[[#This Row],[Total du rôle]]-K936)","v":0}]
[null,null,null,null,null,null,null,0,null,null,null,{"$f":"SUM(Tableau2[[#This Row],[Total du rôle]]-K937)","v":0}]
[null,null,null,null,null,null,null,0,null,null,null,{"$f":"SUM(Tableau2[[#This Row],[Total du rôle]]-K938)","v":0}]
[null,null,null,null,null,null,null,0,null,null,null,{"$f":"SUM(Tableau2[[#This Row],[Total du rôle]]-K939)","v":0}]
[null,null,null,null,null,null,null,0,null,null,null,{"$f":"SUM(Tableau2[[#This Row],[Total du rôle]]-K940)","v":0}]
[null,null,null,null,null,null,null,0,null,null,null,{"$f":"SUM(Tableau2[[#This Row],[Total du rôle]]-K941)","v":0}]
[null,null,null,null,null,null,null,0,null,null,null,{"$f":"SUM(Tableau2[[#This Row],[Total du rôle]]-K942)","v":0}]
[null,null,null,null,null,null,null,0,null,null,null,{"$f":"SUM(Tableau2[[#This Row],[Total du rôle]]-K943)","v":0}]
[null,null,null,null,null,null,null,0,null,null,null,{"$f":"SUM(Tableau2[[#This Row],[Total du rôle]]-K944)","v":0}]
[null,null,null,null,null,null,null,0,null,null,null,{"$f":"SUM(Tableau2[[#This Row],[Total du rôle]]-K945)","v":0}]
[null,null,null,null,null,null,null,0,null,null,null,{"$f":"SUM(Tableau2[[#This Row],[Total du rôle]]-K946)","v":0}]
[null,null,null,null,null,null,null,0,null,null,null,{"$f":"SUM(Tableau2[[#This Row],[Total du rôle]]-K947)","v":0}]
[null,null,null,null,null,null,null,0,null,null,null,{"$f":"SUM(Tableau2[[#This Row],[Total du rôle]]-K948)","v":0}]
[null,null,null,null,null,null,null,0,null,null,null,{"$f":"SUM(Tableau2[[#This Row],[Total du rôle]]-K949)","v":0}]
[null,null,null,null,null,null,null,0,null,null,null,{"$f":"SUM(Tableau2[[#This Row],[Total du rôle]]-K950)","v":0}]
[null,null,null,null,null,null,null,0,null,null,null,{"$f":"SUM(Tableau2[[#This Row],[Total du rôle]]-K951)","v":0}]
[null,null,null,null,null,null,null,0,null,null,null,{"$f":"SUM(Tableau2[[#This Row],[Total du rôle]]-K952)","v":0}]
[null,null,null,null,null,null,null,0,null,null,null,{"$f":"SUM(Tableau2[[#This Row],[Total du rôle]]-K953)","v":0}]
[null,null,null,null,null,null,null,0,null,null,null,{"$f":"SUM(Tableau2[[#This Row],[Total du rôle]]-K954)","v":0}]
[null,null,null,null,null,null,null,0,null,null,null,{"$f":"SUM(Tableau2[[#This Row],[Total du rôle]]-K955)","v":0}]
[null,null,null,null,null,null,null,0,null,null,null,{"$f":"SUM(Tableau2[[#This Row],[Total du rôle]]-K956)","v":0}]
[null,null,null,null,null,null,null,0,null,null,null,{"$f":"SUM(Tableau2[[#This Row],[Total du rôle]]-K957)","v":0}]
[null,null,null,null,null,null,null,0,null,null,null,{"$f":"SUM(Tableau2[[#This Row],[Total du rôle]]-K958)","v":0}]
[null,null,null,null,null,null,null,0,null,null,null,{"$f":"SUM(Tableau2[[#This Row],[Total du rôle]]-K959)","v":0}]
[null,null,null,null,null,null,null,0,null,null,null,{"$f":"SUM(Tableau2[[#This Row],[Total du rôle]]-K960)","v":0}]
[null,null,null,null,null,null,null,0,null,null,null,{"$f":"SUM(Tableau2[[#This Row],[Total du rôle]]-K961)","v":0}]
[null,null,null,null,null,null,null,0,null,null,null,{"$f":"SUM(Tableau2[[#This Row],[Total du rôle]]-K962)","v":0}]
[null,null,null,null,null,null,null,0,null,null,null,{"$f":"SUM(Tableau2[[#This Row],[Total du rôle]]-K963)","v":0}]
[null,null,null,null,null,null,null,{"$f":"SUM(F964:G964)","v":0},null,null,null,{"$f":"SUM(Tableau2[[#This Row],[Total du rôle]]-K964)","v":0}]
[null,null,null,null,null,null,null,0,null,null,null,{"$f":"SUM(Tableau2[[#This Row],[Total du rôle]]-K965)","v":0}]
[null,null,null,null,null,null,null,0,null,null,null,{"$f":"SUM(Tableau2[[#This Row],[Total du rôle]]-K966)","v":0}]
[null,null,null,null,null,null,null,0,null,null,null,{"$f":"SUM(Tableau2[[#This Row],[Total du rôle]]-K967)","v":0}]
[null,null,null,null,null,null,null,0,null,null,null,{"$f":"SUM(Tableau2[[#This Row],[Total du rôle]]-K968)","v":0}]
[null,null,null,null,null,null,null,0,null,null,null,{"$f":"SUM(Tableau2[[#This Row],[Total du rôle]]-K969)","v":0}]
[null,null,null,null,null,null,null,0,null,null,null,{"$f":"SUM(Tableau2[[#This Row],[Total du rôle]]-K970)","v":0}]
[null,null,null,null,null,null,null,0,null,null,null,{"$f":"SUM(Tableau2[[#This Row],[Total du rôle]]-K971)","v":0}]
[null,null,null,null,null,null,null,0,null,null,null,{"$f":"SUM(Tableau2[[#This Row],[Total du rôle]]-K972)","v":0}]
[null,null,null,null,null,null,null,0,null,null,null,{"$f":"SUM(Tableau2[[#This Row],[Total du rôle]]-K973)","v":0}]
[null,null,null,null,null,null,null,0,null,null,null,{"$f":"SUM(Tableau2[[#This Row],[Total du rôle]]-K974)","v":0}]
[null,null,null,null,null,null,null,0,null,null,null,{"$f":"SUM(Tableau2[[#This Row],[Total du rôle]]-K975)","v":0}]
[null,null,null,null,null,null,null,0,null,null,null,{"$f":"SUM(Tableau2[[#This Row],[Total du rôle]]-K976)","v":0}]
[null,null,null,null,null,null,null,0,null,null,null,{"$f":"SUM(Tableau2[[#This Row],[Total du rôle]]-K977)","v":0}]
[null,null,null,null,null,null,null,0,null,null,null,{"$f":"SUM(Tableau2[[#This Row],[Total du rôle]]-K978)","v":0}]
[null,null,null,null,null,null,null,0,null,null,null,{"$f":"SUM(Tableau2[[#This Row],[Total du rôle]]-K979)","v":0}]
[null,null,null,null,null,null,null,0,null,null,null,{"$f":"SUM(Tableau2[[#This Row],[Total du rôle]]-K980)","v":0}]
[null,null,null,null,null,null,null,0,null,null,null,{"$f":"SUM(Tableau2[[#This Row],[Total du rôle]]-K981)","v":0}]
[null,null,null,null,null,null,null,0,null,null,null,{"$f":"SUM(Tableau2[[#This Row],[Total du rôle]]-K982)","v":0}]
[null,null,null,null,null,null,null,0,null,null,null,{"$f":"SUM(Tableau2[[#This Row],[Total du rôle]]-K983)","v":0}]
[null,null,null,null,null,null,null,0,null,null,null,{"$f":"SUM(Tableau2[[#This Row],[Total du rôle]]-K984)","v":0}]
[null,null,null,null,null,null,null,0,null,null,null,{"$f":"SUM(Tableau2[[#This Row],[Total du rôle]]-K985)","v":0}]
[null,null,null,null,null,null,null,0,null,null,null,{"$f":"SUM(Tableau2[[#This Row],[Total du rôle]]-K986)","v":0}]
[null,null,null,null,null,null,null,0,null,null,null,{"$f":"SUM(Tableau2[[#This Row],[Total du rôle]]-K987)","v":0}]
[null,null,null,null,null,null,null,0,null,null,null,{"$f":"SUM(Tableau2[[#This Row],[Total du rôle]]-K988)","v":0}]
[null,null,null,null,null,null,null,0,null,null,null,{"$f":"SUM(Tableau2[[#This Row],[Total du rôle]]-K989)","v":0}]
[null,null,null,null,null,null,null,0,null,null,null,{"$f":"SUM(Tableau2[[#This Row],[Total du rôle]]-K990)","v":0}]
[null,null,null,null,null,null,null,0,null,null,null,{"$f":"SUM(Tableau2[[#This Row],[Total du rôle]]-K991)","v":0}]
[null,null,null,null,null,null,null,0,null,null,null,{"$f":"SUM(Tableau2[[#This Row],[Total du rôle]]-K992)","v":0}]
[null,null,null,null,null,null,null,0,null,null,null,{"$f":"SUM(Tableau2[[#This Row],[Total du rôle]]-K993)","v":0}]
[null,null,null,null,null,null,null,0,null,null,null,{"$f":"SUM(Tableau2[[#This Row],[Total du rôle]]-K994)","v":0}]
[null,null,null,null,null,null,null,0,null,null,null,{"$f":"SUM(Tableau2[[#This Row],[Total du rôle]]-K995)","v":0}]
[null,null,null,null,null,null,null,0,null,null,null,{"$f":"SUM(Tableau2[[#This Row],[Total du rôle]]-K996)","v":0}]
[null,null,null,null,null,null,null,0,null,null,null,{"$f":"SUM(Tableau2[[#This Row],[Total du rôle]]-K997)","v":0}]
[null,null,null,null,null,null,null,0,null,null,null,{"$f":"SUM(Tableau2[[#This Row],[Total du rôle]]-K998)","v":0}]
[null,null,null,null,null,null,null,0,null,null,null,{"$f":"SUM(Tableau2[[#This Row],[Total du rôle]]-K999)","v":0}]
[null,null,null,null,null,null,null,0,null,null,null,{"$f":"SUM(Tableau2[[#This Row],[Total du rôle]]-K1000)","v":0}]
[null,null,null,null,null,null,null,0,null,null,null,{"$f":"SUM(Tableau2[[#This Row],[Total du rôle]]-K1001)","v":0}]
[null,null,null,null,null,null,null,0,null,null,null,{"$f":"SUM(Tableau2[[#This Row],[Total du rôle]]-K1002)","v":0}]
[null,null,null,null,null,null,null,0,null,null,null,{"$f":"SUM(Tableau2[[#This Row],[Total du rôle]]-K1003)","v":0}]
[null,null,null,null,null,null,null,0,null,null,null,{"$f":"SUM(Tableau2[[#This Row],[Total du rôle]]-K1004)","v":0}]
[null,null,null,null,null,null,null,0,null,null,null,{"$f":"SUM(Tableau2[[#This Row],[Total du rôle]]-K1005)","v":0}]
[null,null,null,null,null,null,null,0,null,null,null,{"$f":"SUM(Tableau2[[#This Row],[Total du rôle]]-K1006)","v":0}]
[null,null,null,null,null,null,null,0,null,null,null,{"$f":"SUM(Tableau2[[#This Row],[Total du rôle]]-K1007)","v":0}]
[null,null,null,null,null,null,null,0,null,null,null,{"$f":"SUM(Tableau2[[#This Row],[Total du rôle]]-K1008)","v":0}]
[null,null,null,null,null,null,null,0,null,null,null,{"$f":"SUM(Tableau2[[#This Row],[Total du rôle]]-K1009)","v":0}]
[null,null,null,null,null,null,null,0,null,null,null,{"$f":"SUM(Tableau2[[#This Row],[Total du rôle]]-K1010)","v":0}]
[null,null,null,null,null,null,null,0,null,null,null,{"$f":"SUM(Tableau2[[#This Row],[Total du rôle]]-K1011)","v":0}]
[null,null,null,null,null,null,null,0,null,null,null,{"$f":"SUM(Tableau2[[#This Row],[Total du rôle]]-K1012)","v":0}]
[null,null,null,null,null,null,null,0,null,null,null,{"$f":"SUM(Tableau2[[#This Row],[Total du rôle]]-K1013)","v":0}]
[null,null,null,null,null,null,null,0,null,null,null,{"$f":"SUM(Tableau2[[#This Row],[Total du rôle]]-K1014)","v":0}]
[null,null,null,null,null,null,null,0,null,null,null,{"$f":"SUM(Tableau2[[#This Row],[Total du rôle]]-K1015)","v":0}]
[null,null,null,null,null,null,null,0,null,null,null,{"$f":"SUM(Tableau2[[#This Row],[Total du rôle]]-K1016)","v":0}]
[null,null,null,null,null,null,null,0,null,null,null,{"$f":"SUM(Tableau2[[#This Row],[Total du rôle]]-K1017)","v":0}]
[null,null,null,null,null,null,null,0,null,null,null,{"$f":"SUM(Tableau2[[#This Row],[Total du rôle]]-K1018)","v":0}]
[null,null,null,null,null,null,null,0,null,null,null,{"$f":"SUM(Tableau2[[#This Row],[Total du rôle]]-K1019)","v":0}]
[null,null,null,null,null,null,null,0,null,null,null,{"$f":"SUM(Tableau2[[#This Row],[Total du rôle]]-K1020)","v":0}]
[null,null,null,null,null,null,null,0,null,null,null,{"$f":"SUM(Tableau2[[#This Row],[Total du rôle]]-K1021)","v":0}]
[null,null,null,null,null,null,null,0,null,null,null,{"$f":"SUM(Tableau2[[#This Row],[Total du rôle]]-K1022)","v":0}]
[null,null,null,null,null,null,null,0,null,null,null,{"$f":"SUM(Tableau2[[#This Row],[Total du rôle]]-K1023)","v":0}]
[null,null,null,null,null,null,null,0,null,null,null,{"$f":"SUM(Tableau2[[#This Row],[Total du rôle]]-K1024)","v":0}]
[null,null,null,null,null,null,null,0,null,null,null,{"$f":"SUM(Tableau2[[#This Row],[Total du rôle]]-K1025)","v":0}]
[null,null,null,null,null,null,null,0,null,null,null,{"$f":"SUM(Tableau2[[#This Row],[Total du rôle]]-K1026)","v":0}]
[null,null,null,null,null,null,null,0,null,null,null,{"$f":"SUM(Tableau2[[#This Row],[Total du rôle]]-K1027)","v":0}]
[null,null,null,null,null,null,null,{"$f":"SUM(F1028:G1028)","v":0},null,null,null,{"$f":"SUM(Tableau2[[#This Row],[Total du rôle]]-K1028)","v":0}]
[null,null,null,null,null,null,null,0,null,null,null,{"$f":"SUM(Tableau2[[#This Row],[Total du rôle]]-K1029)","v":0}]
[null,null,null,null,null,null,null,0,null,null,null,{"$f":"SUM(Tableau2[[#This Row],[Total du rôle]]-K1030)","v":0}]
[null,null,null,null,null,null,null,0,null,null,null,{"$f":"SUM(Tableau2[[#This Row],[Total du rôle]]-K1031)","v":0}]
[null,null,null,null,null,null,null,0,null,null,null,{"$f":"SUM(Tableau2[[#This Row],[Total du rôle]]-K1032)","v":0}]
[null,null,null,null,null,null,null,0,null,null,null,{"$f":"SUM(Tableau2[[#This Row],[Total du rôle]]-K1033)","v":0}]
[null,null,null,null,null,null,null,0,null,null,null,{"$f":"SUM(Tableau2[[#This Row],[Total du rôle]]-K1034)","v":0}]
[null,null,null,null,null,null,null,0,null,null,null,{"$f":"SUM(Tableau2[[#This Row],[Total du rôle]]-K1035)","v":0}]
[null,null,null,null,null,null,null,0,null,null,null,{"$f":"SUM(Tableau2[[#This Row],[Total du rôle]]-K1036)","v":0}]
[null,null,null,null,null,null,null,0,null,null,null,{"$f":"SUM(Tableau2[[#This Row],[Total du rôle]]-K1037)","v":0}]
[null,null,null,null,null,null,null,0,null,null,null,{"$f":"SUM(Tableau2[[#This Row],[Total du rôle]]-K1038)","v":0}]
[null,null,null,null,null,null,null,0,null,null,null,{"$f":"SUM(Tableau2[[#This Row],[Total du rôle]]-K1039)","v":0}]
[null,null,null,null,null,null,null,0,null,null,null,{"$f":"SUM(Tableau2[[#This Row],[Total du rôle]]-K1040)","v":0}]
[null,null,null,null,null,null,null,0,null,null,null,{"$f":"SUM(Tableau2[[#This Row],[Total du rôle]]-K1041)","v":0}]
[null,null,null,null,null,null,null,0,null,null,null,{"$f":"SUM(Tableau2[[#This Row],[Total du rôle]]-K1042)","v":0}]
[null,null,null,null,null,null,null,0,null,null,null,{"$f":"SUM(Tableau2[[#This Row],[Total du rôle]]-K1043)","v":0}]
[null,null,null,null,null,null,null,0,null,null,null,{"$f":"SUM(Tableau2[[#This Row],[Total du rôle]]-K1044)","v":0}]
[null,null,null,null,null,null,null,0,null,null,null,{"$f":"SUM(Tableau2[[#This Row],[Total du rôle]]-K1045)","v":0}]
[null,null,null,null,null,null,null,0,null,null,null,{"$f":"SUM(Tableau2[[#This Row],[Total du rôle]]-K1046)","v":0}]
[null,null,null,null,null,null,null,0,null,null,null,{"$f":"SUM(Tableau2[[#This Row],[Total du rôle]]-K1047)","v":0}]
[null,null,null,null,null,null,null,0,null,null,null,{"$f":"SUM(Tableau2[[#This Row],[Total du rôle]]-K1048)","v":0}]
[null,null,null,null,null,null,null,0,null,null,null,{"$f":"SUM(Tableau2[[#This Row],[Total du rôle]]-K1049)","v":0}]
[null,null,null,null,null,null,null,0,null,null,null,{"$f":"SUM(Tableau2[[#This Row],[Total du rôle]]-K1050)","v":0}]
[null,null,null,null,null,null,null,0,null,null,null,{"$f":"SUM(Tableau2[[#This Row],[Total du rôle]]-K1051)","v":0}]
[null,null,null,null,null,null,null,0,null,null,null,{"$f":"SUM(Tableau2[[#This Row],[Total du rôle]]-K1052)","v":0}]
[null,null,null,null,null,null,null,0,null,null,null,{"$f":"SUM(Tableau2[[#This Row],[Total du rôle]]-K1053)","v":0}]
[null,null,null,null,null,null,null,0,null,null,null,{"$f":"SUM(Tableau2[[#This Row],[Total du rôle]]-K1054)","v":0}]
[null,null,null,null,null,null,null,0,null,null,null,{"$f":"SUM(Tableau2[[#This Row],[Total du rôle]]-K1055)","v":0}]
[null,null,null,null,null,null,null,0,null,null,null,{"$f":"SUM(Tableau2[[#This Row],[Total du rôle]]-K1056)","v":0}]
[null,null,null,null,null,null,null,0,null,null,null,{"$f":"SUM(Tableau2[[#This Row],[Total du rôle]]-K1057)","v":0}]
[null,null,null,null,null,null,null,0,null,null,null,{"$f":"SUM(Tableau2[[#This Row],[Total du rôle]]-K1058)","v":0}]
[null,null,null,null,null,null,null,0,null,null,null,{"$f":"SUM(Tableau2[[#This Row],[Total du rôle]]-K1059)","v":0}]
[null,null,null,null,null,null,null,0,null,null,null,{"$f":"SUM(Tableau2[[#This Row],[Total du rôle]]-K1060)","v":0}]
[null,null,null,null,null,null,null,0,null,null,null,{"$f":"SUM(Tableau2[[#This Row],[Total du rôle]]-K1061)","v":0}]
[null,null,null,null,null,null,null,0,null,null,null,{"$f":"SUM(Tableau2[[#This Row],[Total du rôle]]-K1062)","v":0}]
[null,null,null,null,null,null,null,0,null,null,null,{"$f":"SUM(Tableau2[[#This Row],[Total du rôle]]-K1063)","v":0}]
[null,null,null,null,null,null,null,0,null,null,null,{"$f":"SUM(Tableau2[[#This Row],[Total du rôle]]-K1064)","v":0}]
[null,null,null,null,null,null,null,0,null,null,null,{"$f":"SUM(Tableau2[[#This Row],[Total du rôle]]-K1065)","v":0}]
[null,null,null,null,null,null,null,0,null,null,null,{"$f":"SUM(Tableau2[[#This Row],[Total du rôle]]-K1066)","v":0}]
[null,null,null,null,null,null,null,0,null,null,null,{"$f":"SUM(Tableau2[[#This Row],[Total du rôle]]-K1067)","v":0}]
[null,null,null,null,null,null,null,0,null,null,null,{"$f":"SUM(Tableau2[[#This Row],[Total du rôle]]-K1068)","v":0}]
[null,null,null,null,null,null,null,0,null,null,null,{"$f":"SUM(Tableau2[[#This Row],[Total du rôle]]-K1069)","v":0}]
[null,null,null,null,null,null,null,0,null,null,null,{"$f":"SUM(Tableau2[[#This Row],[Total du rôle]]-K1070)","v":0}]
[null,null,null,null,null,null,null,0,null,null,null,{"$f":"SUM(Tableau2[[#This Row],[Total du rôle]]-K1071)","v":0}]
[null,null,null,null,null,null,null,0,null,null,null,{"$f":"SUM(Tableau2[[#This Row],[Total du rôle]]-K1072)","v":0}]
[null,null,null,null,null,null,null,0,null,null,null,{"$f":"SUM(Tableau2[[#This Row],[Total du rôle]]-K1073)","v":0}]
[null,null,null,null,null,null,null,0,null,null,null,{"$f":"SUM(Tableau2[[#This Row],[Total du rôle]]-K1074)","v":0}]
[null,null,null,null,null,null,null,0,null,null,null,{"$f":"SUM(Tableau2[[#This Row],[Total du rôle]]-K1075)","v":0}]
[null,null,null,null,null,null,null,0,null,null,null,{"$f":"SUM(Tableau2[[#This Row],[Total du rôle]]-K1076)","v":0}]
[null,null,null,null,null,null,null,0,null,null,null,{"$f":"SUM(Tableau2[[#This Row],[Total du rôle]]-K1077)","v":0}]
[null,null,null,null,null,null,null,0,null,null,null,{"$f":"SUM(Tableau2[[#This Row],[Total du rôle]]-K1078)","v":0}]
[null,null,null,null,null,null,null,0,null,null,null,{"$f":"SUM(Tableau2[[#This Row],[Total du rôle]]-K1079)","v":0}]
[null,null,null,null,null,null,null,0,null,null,null,{"$f":"SUM(Tableau2[[#This Row],[Total du rôle]]-K1080)","v":0}]
[null,null,null,null,null,null,null,0,null,null,null,{"$f":"SUM(Tableau2[[#This Row],[Total du rôle]]-K1081)","v":0}]
[null,null,null,null,null,null,null,0,null,null,null,{"$f":"SUM(Tableau2[[#This Row],[Total du rôle]]-K1082)","v":0}]
[null,null,null,null,null,null,null,0,null,null,null,{"$f":"SUM(Tableau2[[#This Row],[Total du rôle]]-K1083)","v":0}]
[null,null,null,null,null,null,null,0,null,null,null,{"$f":"SUM(Tableau2[[#This Row],[Total du rôle]]-K1084)","v":0}]
[null,null,null,null,null,null,null,0,null,null,null,{"$f":"SUM(Tableau2[[#This Row],[Total du rôle]]-K1085)","v":0}]
[null,null,null,null,null,null,null,0,null,null,null,{"$f":"SUM(Tableau2[[#This Row],[Total du rôle]]-K1086)","v":0}]
[null,null,null,null,null,null,null,0,null,null,null,{"$f":"SUM(Tableau2[[#This Row],[Total du rôle]]-K1087)","v":0}]
[null,null,null,null,null,null,null,0,null,null,null,{"$f":"SUM(Tableau2[[#This Row],[Total du rôle]]-K1088)","v":0}]
[null,null,null,null,null,null,null,0,null,null,null,{"$f":"SUM(Tableau2[[#This Row],[Total du rôle]]-K1089)","v":0}]
[null,null,null,null,null,null,null,0,null,null,null,{"$f":"SUM(Tableau2[[#This Row],[Total du rôle]]-K1090)","v":0}]
[null,null,null,null,null,null,null,0,null,null,null,{"$f":"SUM(Tableau2[[#This Row],[Total du rôle]]-K1091)","v":0}]
[null,null,null,null,null,null,null,{"$f":"SUM(F1092:G1092)","v":0},null,null,null,{"$f":"SUM(Tableau2[[#This Row],[Total du rôle]]-K1092)","v":0}]
[null,null,null,null,null,null,null,0,null,null,null,{"$f":"SUM(Tableau2[[#This Row],[Total du rôle]]-K1093)","v":0}]
[null,null,null,null,null,null,null,0,null,null,null,{"$f":"SUM(Tableau2[[#This Row],[Total du rôle]]-K1094)","v":0}]
[null,null,null,null,null,null,null,0,null,null,null,{"$f":"SUM(Tableau2[[#This Row],[Total du rôle]]-K1095)","v":0}]
[null,null,null,null,null,null,null,0,null,null,null,{"$f":"SUM(Tableau2[[#This Row],[Total du rôle]]-K1096)","v":0}]
[null,null,null,null,null,null,null,0,null,null,null,{"$f":"SUM(Tableau2[[#This Row],[Total du rôle]]-K1097)","v":0}]
[null,null,null,null,null,null,null,0,null,null,null,{"$f":"SUM(Tableau2[[#This Row],[Total du rôle]]-K1098)","v":0}]
[null,null,null,null,null,null,null,0,null,null,null,{"$f":"SUM(Tableau2[[#This Row],[Total du rôle]]-K1099)","v":0}]
[null,null,null,null,null,null,null,0,null,null,null,{"$f":"SUM(Tableau2[[#This Row],[Total du rôle]]-K1100)","v":0}]
[null,null,null,null,null,null,null,0,null,null,null,{"$f":"SUM(Tableau2[[#This Row],[Total du rôle]]-K1101)","v":0}]
[null,null,null,null,null,null,null,0,null,null,null,{"$f":"SUM(Tableau2[[#This Row],[Total du rôle]]-K1102)","v":0}]
[null,null,null,null,null,null,null,0,null,null,null,{"$f":"SUM(Tableau2[[#This Row],[Total du rôle]]-K1103)","v":0}]
[null,null,null,null,null,null,null,0,null,null,null,{"$f":"SUM(Tableau2[[#This Row],[Total du rôle]]-K1104)","v":0}]
[null,null,null,null,null,null,null,0,null,null,null,{"$f":"SUM(Tableau2[[#This Row],[Total du rôle]]-K1105)","v":0}]
[null,null,null,null,null,null,null,0,null,null,null,{"$f":"SUM(Tableau2[[#This Row],[Total du rôle]]-K1106)","v":0}]
[null,null,null,null,null,null,null,0,null,null,null,{"$f":"SUM(Tableau2[[#This Row],[Total du rôle]]-K1107)","v":0}]
[null,null,null,null,null,null,null,0,null,null,null,{"$f":"SUM(Tableau2[[#This Row],[Total du rôle]]-K1108)","v":0}]
[null,null,null,null,null,null,null,0,null,null,null,{"$f":"SUM(Tableau2[[#This Row],[Total du rôle]]-K1109)","v":0}]
[null,null,null,null,null,null,null,0,null,null,null,{"$f":"SUM(Tableau2[[#This Row],[Total du rôle]]-K1110)","v":0}]
[null,null,null,null,null,null,null,0,null,null,null,{"$f":"SUM(Tableau2[[#This Row],[Total du rôle]]-K1111)","v":0}]
[null,null,null,null,null,null,null,0,null,null,null,{"$f":"SUM(Tableau2[[#This Row],[Total du rôle]]-K1112)","v":0}]
[null,null,null,null,null,null,null,0,null,null,null,{"$f":"SUM(Tableau2[[#This Row],[Total du rôle]]-K1113)","v":0}]
[null,null,null,null,null,null,null,0,null,null,null,{"$f":"SUM(Tableau2[[#This Row],[Total du rôle]]-K1114)","v":0}]
[null,null,null,null,null,null,null,0,null,null,null,{"$f":"SUM(Tableau2[[#This Row],[Total du rôle]]-K1115)","v":0}]
[null,null,null,null,null,null,null,0,null,null,null,{"$f":"SUM(Tableau2[[#This Row],[Total du rôle]]-K1116)","v":0}]
[null,null,null,null,null,null,null,0,null,null,null,{"$f":"SUM(Tableau2[[#This Row],[Total du rôle]]-K1117)","v":0}]
[null,null,null,null,null,null,null,0,null,null,null,{"$f":"SUM(Tableau2[[#This Row],[Total du rôle]]-K1118)","v":0}]
[null,null,null,null,null,null,null,0,null,null,null,{"$f":"SUM(Tableau2[[#This Row],[Total du rôle]]-K1119)","v":0}]
[null,null,null,null,null,null,null,0,null,null,null,{"$f":"SUM(Tableau2[[#This Row],[Total du rôle]]-K1120)","v":0}]
[null,null,null,null,null,null,null,0,null,null,null,{"$f":"SUM(Tableau2[[#This Row],[Total du rôle]]-K1121)","v":0}]
[null,null,null,null,null,null,null,0,null,null,null,{"$f":"SUM(Tableau2[[#This Row],[Total du rôle]]-K1122)","v":0}]
[null,null,null,null,null,null,null,0,null,null,null,{"$f":"SUM(Tableau2[[#This Row],[Total du rôle]]-K1123)","v":0}]
[null,null,null,null,null,null,null,0,null,null,null,{"$f":"SUM(Tableau2[[#This Row],[Total du rôle]]-K1124)","v":0}]
[null,null,null,null,null,null,null,0,null,null,null,{"$f":"SUM(Tableau2[[#This Row],[Total du rôle]]-K1125)","v":0}]
[null,null,null,null,null,null,null,0,null,null,null,{"$f":"SUM(Tableau2[[#This Row],[Total du rôle]]-K1126)","v":0}]
[null,null,null,null,null,null,null,0,null,null,null,{"$f":"SUM(Tableau2[[#This Row],[Total du rôle]]-K1127)","v":0}]
[null,null,null,null,null,null,null,0,null,null,null,{"$f":"SUM(Tableau2[[#This Row],[Total du rôle]]-K1128)","v":0}]
[null,null,null,null,null,null,null,0,null,null,null,{"$f":"SUM(Tableau2[[#This Row],[Total du rôle]]-K1129)","v":0}]
[null,null,null,null,null,null,null,0,null,null,null,{"$f":"SUM(Tableau2[[#This Row],[Total du rôle]]-K1130)","v":0}]
[null,null,null,null,null,null,null,0,null,null,null,{"$f":"SUM(Tableau2[[#This Row],[Total du rôle]]-K1131)","v":0}]
[null,null,null,null,null,null,null,0,null,null,null,{"$f":"SUM(Tableau2[[#This Row],[Total du rôle]]-K1132)","v":0}]
[null,null,null,null,null,null,null,0,null,null,null,{"$f":"SUM(Tableau2[[#This Row],[Total du rôle]]-K1133)","v":0}]
[null,null,null,null,null,null,null,0,null,null,null,{"$f":"SUM(Tableau2[[#This Row],[Total du rôle]]-K1134)","v":0}]
[null,null,null,null,null,null,null,0,null,null,null,{"$f":"SUM(Tableau2[[#This Row],[Total du rôle]]-K1135)","v":0}]
[null,null,null,null,null,null,null,0,null,null,null,{"$f":"SUM(Tableau2[[#This Row],[Total du rôle]]-K1136)","v":0}]
[null,null,null,null,null,null,null,0,null,null,null,{"$f":"SUM(Tableau2[[#This Row],[Total du rôle]]-K1137)","v":0}]
[null,null,null,null,null,null,null,0,null,null,null,{"$f":"SUM(Tableau2[[#This Row],[Total du rôle]]-K1138)","v":0}]
[null,null,null,null,null,null,null,0,null,null,null,{"$f":"SUM(Tableau2[[#This Row],[Total du rôle]]-K1139)","v":0}]
[null,null,null,null,null,null,null,0,null,null,null,{"$f":"SUM(Tableau2[[#This Row],[Total du rôle]]-K1140)","v":0}]
[null,null,null,null,null,null,null,0,null,null,null,{"$f":"SUM(Tableau2[[#This Row],[Total du rôle]]-K1141)","v":0}]
[null,null,null,null,null,null,null,0,null,null,null,{"$f":"SUM(Tableau2[[#This Row],[Total du rôle]]-K1142)","v":0}]
[null,null,null,null,null,null,null,0,null,null,null,{"$f":"SUM(Tableau2[[#This Row],[Total du rôle]]-K1143)","v":0}]
[null,null,null,null,null,null,null,0,null,null,null,{"$f":"SUM(Tableau2[[#This Row],[Total du rôle]]-K1144)","v":0}]
[null,null,null,null,null,null,null,0,null,null,null,{"$f":"SUM(Tableau2[[#This Row],[Total du rôle]]-K1145)","v":0}]
[null,null,null,null,null,null,null,0,null,null,null,{"$f":"SUM(Tableau2[[#This Row],[Total du rôle]]-K1146)","v":0}]
[null,null,null,null,null,null,null,0,null,null,null,{"$f":"SUM(Tableau2[[#This Row],[Total du rôle]]-K1147)","v":0}]
[null,null,null,null,null,null,null,0,null,null,null,{"$f":"SUM(Tableau2[[#This Row],[Total du rôle]]-K1148)","v":0}]
[null,null,null,null,null,null,null,0,null,null,null,{"$f":"SUM(Tableau2[[#This Row],[Total du rôle]]-K1149)","v":0}]
[null,null,null,null,null,null,null,0,null,null,null,{"$f":"SUM(Tableau2[[#This Row],[Total du rôle]]-K1150)","v":0}]
[null,null,null,null,null,null,null,0,null,null,null,{"$f":"SUM(Tableau2[[#This Row],[Total du rôle]]-K1151)","v":0}]
[null,null,null,null,null,null,null,0,null,null,null,{"$f":"SUM(Tableau2[[#This Row],[Total du rôle]]-K1152)","v":0}]
[null,null,null,null,null,null,null,0,null,null,null,{"$f":"SUM(Tableau2[[#This Row],[Total du rôle]]-K1153)","v":0}]
[null,null,null,null,null,null,null,0,null,null,null,{"$f":"SUM(Tableau2[[#This Row],[Total du rôle]]-K1154)","v":0}]
[null,null,null,null,null,null,null,0,null,null,null,{"$f":"SUM(Tableau2[[#This Row],[Total du rôle]]-K1155)","v":0}]
[null,null,null,null,null,null,null,{"$f":"SUM(F1156:G1156)","v":0},null,null,null,{"$f":"SUM(Tableau2[[#This Row],[Total du rôle]]-K1156)","v":0}]
[null,null,null,null,null,null,null,0,null,null,null,{"$f":"SUM(Tableau2[[#This Row],[Total du rôle]]-K1157)","v":0}]
[null,null,null,null,null,null,null,0,null,null,null,{"$f":"SUM(Tableau2[[#This Row],[Total du rôle]]-K1158)","v":0}]
[null,null,null,null,null,null,null,0,null,null,null,{"$f":"SUM(Tableau2[[#This Row],[Total du rôle]]-K1159)","v":0}]
[null,null,null,null,null,null,null,0,null,null,null,{"$f":"SUM(Tableau2[[#This Row],[Total du rôle]]-K1160)","v":0}]
[null,null,null,null,null,null,null,0,null,null,null,{"$f":"SUM(Tableau2[[#This Row],[Total du rôle]]-K1161)","v":0}]
[null,null,null,null,null,null,null,0,null,null,null,{"$f":"SUM(Tableau2[[#This Row],[Total du rôle]]-K1162)","v":0}]
[null,null,null,null,null,null,null,0,null,null,null,{"$f":"SUM(Tableau2[[#This Row],[Total du rôle]]-K1163)","v":0}]
[null,null,null,null,null,null,null,0,null,null,null,{"$f":"SUM(Tableau2[[#This Row],[Total du rôle]]-K1164)","v":0}]
[null,null,null,null,null,null,null,0,null,null,null,{"$f":"SUM(Tableau2[[#This Row],[Total du rôle]]-K1165)","v":0}]
[null,null,null,null,null,null,null,0,null,null,null,{"$f":"SUM(Tableau2[[#This Row],[Total du rôle]]-K1166)","v":0}]
[null,null,null,null,null,null,null,0,null,null,null,{"$f":"SUM(Tableau2[[#This Row],[Total du rôle]]-K1167)","v":0}]
[null,null,null,null,null,null,null,0,null,null,null,{"$f":"SUM(Tableau2[[#This Row],[Total du rôle]]-K1168)","v":0}]
[null,null,null,null,null,null,null,0,null,null,null,{"$f":"SUM(Tableau2[[#This Row],[Total du rôle]]-K1169)","v":0}]
[null,null,null,null,null,null,null,0,null,null,null,{"$f":"SUM(Tableau2[[#This Row],[Total du rôle]]-K1170)","v":0}]
[null,null,null,null,null,null,null,0,null,null,null,{"$f":"SUM(Tableau2[[#This Row],[Total du rôle]]-K1171)","v":0}]
[null,null,null,null,null,null,null,0,null,null,null,{"$f":"SUM(Tableau2[[#This Row],[Total du rôle]]-K1172)","v":0}]
[null,null,null,null,null,null,null,0,null,null,null,{"$f":"SUM(Tableau2[[#This Row],[Total du rôle]]-K1173)","v":0}]
[null,null,null,null,null,null,null,0,null,null,null,{"$f":"SUM(Tableau2[[#This Row],[Total du rôle]]-K1174)","v":0}]
[null,null,null,null,null,null,null,0,null,null,null,{"$f":"SUM(Tableau2[[#This Row],[Total du rôle]]-K1175)","v":0}]
[null,null,null,null,null,null,null,0,null,null,null,{"$f":"SUM(Tableau2[[#This Row],[Total du rôle]]-K1176)","v":0}]
[null,null,null,null,null,null,null,0,null,null,null,{"$f":"SUM(Tableau2[[#This Row],[Total du rôle]]-K1177)","v":0}]
[null,null,null,null,null,null,null,0,null,null,null,{"$f":"SUM(Tableau2[[#This Row],[Total du rôle]]-K1178)","v":0}]
[null,null,null,null,null,null,null,0,null,null,null,{"$f":"SUM(Tableau2[[#This Row],[Total du rôle]]-K1179)","v":0}]
[null,null,null,null,null,null,null,0,null,null,null,{"$f":"SUM(Tableau2[[#This Row],[Total du rôle]]-K1180)","v":0}]
[null,null,null,null,null,null,null,0,null,null,null,{"$f":"SUM(Tableau2[[#This Row],[Total du rôle]]-K1181)","v":0}]
[null,null,null,null,null,null,null,0,null,null,null,{"$f":"SUM(Tableau2[[#This Row],[Total du rôle]]-K1182)","v":0}]
[null,null,null,null,null,null,null,0,null,null,null,{"$f":"SUM(Tableau2[[#This Row],[Total du rôle]]-K1183)","v":0}]
[null,null,null,null,null,null,null,0,null,null,null,{"$f":"SUM(Tableau2[[#This Row],[Total du rôle]]-K1184)","v":0}]
[null,null,null,null,null,null,null,0,null,null,null,{"$f":"SUM(Tableau2[[#This Row],[Total du rôle]]-K1185)","v":0}]
[null,null,null,null,null,null,null,0,null,null,null,{"$f":"SUM(Tableau2[[#This Row],[Total du rôle]]-K1186)","v":0}]
[null,null,null,null,null,null,null,0,null,null,null,{"$f":"SUM(Tableau2[[#This Row],[Total du rôle]]-K1187)","v":0}]
[null,null,null,null,null,null,null,0,null,null,null,{"$f":"SUM(Tableau2[[#This Row],[Total du rôle]]-K1188)","v":0}]
[null,null,null,null,null,null,null,0,null,null,null,{"$f":"SUM(Tableau2[[#This Row],[Total du rôle]]-K1189)","v":0}]
[null,null,null,null,null,null,null,0,null,null,null,{"$f":"SUM(Tableau2[[#This Row],[Total du rôle]]-K1190)","v":0}]
[null,null,null,null,null,null,null,0,null,null,null,{"$f":"SUM(Tableau2[[#This Row],[Total du rôle]]-K1191)","v":0}]
[null,null,null,null,null,null,null,0,null,null,null,{"$f":"SUM(Tableau2[[#This Row],[Total du rôle]]-K1192)","v":0}]
[null,null,null,null,null,null,null,0,null,null,null,{"$f":"SUM(Tableau2[[#This Row],[Total du rôle]]-K1193)","v":0}]
[null,null,null,null,null,null,null,0,null,null,null,{"$f":"SUM(Tableau2[[#This Row],[Total du rôle]]-K1194)","v":0}]
[null,null,null,null,null,null,null,0,null,null,null,{"$f":"SUM(Tableau2[[#This Row],[Total du rôle]]-K1195)","v":0}]
[null,null,null,null,null,null,null,0,null,null,null,{"$f":"SUM(Tableau2[[#This Row],[Total du rôle]]-K1196)","v":0}]
[null,null,null,null,null,null,null,0,null,null,null,{"$f":"SUM(Tableau2[[#This Row],[Total du rôle]]-K1197)","v":0}]
[null,null,null,null,null,null,null,0,null,null,null,{"$f":"SUM(Tableau2[[#This Row],[Total du rôle]]-K1198)","v":0}]
[null,null,null,null,null,null,null,0,null,null,null,{"$f":"SUM(Tableau2[[#This Row],[Total du rôle]]-K1199)","v":0}]
[null,null,null,null,null,null,null,0,null,null,null,{"$f":"SUM(Tableau2[[#This Row],[Total du rôle]]-K1200)","v":0}]
[null,null,null,null,null,null,null,0,null,null,null,{"$f":"SUM(Tableau2[[#This Row],[Total du rôle]]-K1201)","v":0}]
[null,null,null,null,null,null,null,0,null,null,null,{"$f":"SUM(Tableau2[[#This Row],[Total du rôle]]-K1202)","v":0}]
[null,null,null,null,null,null,null,0,null,null,null,{"$f":"SUM(Tableau2[[#This Row],[Total du rôle]]-K1203)","v":0}]
[null,null,null,null,null,null,null,0,null,null,null,{"$f":"SUM(Tableau2[[#This Row],[Total du rôle]]-K1204)","v":0}]
[null,null,null,null,null,null,null,0,null,null,null,{"$f":"SUM(Tableau2[[#This Row],[Total du rôle]]-K1205)","v":0}]
[null,null,null,null,null,null,null,0,null,null,null,{"$f":"SUM(Tableau2[[#This Row],[Total du rôle]]-K1206)","v":0}]
[null,null,null,null,null,null,null,0,null,null,null,{"$f":"SUM(Tableau2[[#This Row],[Total du rôle]]-K1207)","v":0}]
[null,null,null,null,null,null,null,0,null,null,null,{"$f":"SUM(Tableau2[[#This Row],[Total du rôle]]-K1208)","v":0}]
[null,null,null,null,null,null,null,0,null,null,null,{"$f":"SUM(Tableau2[[#This Row],[Total du rôle]]-K1209)","v":0}]
[null,null,null,null,null,null,null,0,null,null,null,{"$f":"SUM(Tableau2[[#This Row],[Total du rôle]]-K1210)","v":0}]
[null,null,null,null,null,null,null,0,null,null,null,{"$f":"SUM(Tableau2[[#This Row],[Total du rôle]]-K1211)","v":0}]
[null,null,null,null,null,null,null,0,null,null,null,{"$f":"SUM(Tableau2[[#This Row],[Total du rôle]]-K1212)","v":0}]
[null,null,null,null,null,null,null,0,null,null,null,{"$f":"SUM(Tableau2[[#This Row],[Total du rôle]]-K1213)","v":0}]
[null,null,null,null,null,null,null,0,null,null,null,{"$f":"SUM(Tableau2[[#This Row],[Total du rôle]]-K1214)","v":0}]
[null,null,null,null,null,null,null,0,null,null,null,{"$f":"SUM(Tableau2[[#This Row],[Total du rôle]]-K1215)","v":0}]
[null,null,null,null,null,null,null,0,null,null,null,{"$f":"SUM(Tableau2[[#This Row],[Total du rôle]]-K1216)","v":0}]
[null,null,null,null,null,null,null,0,null,null,null,{"$f":"SUM(Tableau2[[#This Row],[Total du rôle]]-K1217)","v":0}]
[null,null,null,null,null,null,null,0,null,null,null,{"$f":"SUM(Tableau2[[#This Row],[Total du rôle]]-K1218)","v":0}]
[null,null,null,null,null,null,null,0,null,null,null,{"$f":"SUM(Tableau2[[#This Row],[Total du rôle]]-K1219)","v":0}]
[null,null,null,null,null,null,null,{"$f":"SUM(F1220:G1220)","v":0},null,null,null,{"$f":"SUM(Tableau2[[#This Row],[Total du rôle]]-K1220)","v":0}]
[null,null,null,null,null,null,null,0,null,null,null,{"$f":"SUM(Tableau2[[#This Row],[Total du rôle]]-K1221)","v":0}]
[null,null,null,null,null,null,null,0,null,null,null,{"$f":"SUM(Tableau2[[#This Row],[Total du rôle]]-K1222)","v":0}]
[null,null,null,null,null,null,null,0,null,null,null,{"$f":"SUM(Tableau2[[#This Row],[Total du rôle]]-K1223)","v":0}]
[null,null,null,null,null,null,null,0,null,null,null,{"$f":"SUM(Tableau2[[#This Row],[Total du rôle]]-K1224)","v":0}]
[null,null,null,null,null,null,null,0,null,null,null,{"$f":"SUM(Tableau2[[#This Row],[Total du rôle]]-K1225)","v":0}]
[null,null,null,null,null,null,null,0,null,null,null,{"$f":"SUM(Tableau2[[#This Row],[Total du rôle]]-K1226)","v":0}]
[null,null,null,null,null,null,null,0,null,null,null,{"$f":"SUM(Tableau2[[#This Row],[Total du rôle]]-K1227)","v":0}]
[null,null,null,null,null,null,null,0,null,null,null,{"$f":"SUM(Tableau2[[#This Row],[Total du rôle]]-K1228)","v":0}]
[null,null,null,null,null,null,null,0,null,null,null,{"$f":"SUM(Tableau2[[#This Row],[Total du rôle]]-K1229)","v":0}]
[null,null,null,null,null,null,null,0,null,null,null,{"$f":"SUM(Tableau2[[#This Row],[Total du rôle]]-K1230)","v":0}]
[null,null,null,null,null,null,null,0,null,null,null,{"$f":"SUM(Tableau2[[#This Row],[Total du rôle]]-K1231)","v":0}]
[null,null,null,null,null,null,null,0,null,null,null,{"$f":"SUM(Tableau2[[#This Row],[Total du rôle]]-K1232)","v":0}]
[null,null,null,null,null,null,null,0,null,null,null,{"$f":"SUM(Tableau2[[#This Row],[Total du rôle]]-K1233)","v":0}]
[null,null,null,null,null,null,null,0,null,null,null,{"$f":"SUM(Tableau2[[#This Row],[Total du rôle]]-K1234)","v":0}]
[null,null,null,null,null,null,null,0,null,null,null,{"$f":"SUM(Tableau2[[#This Row],[Total du rôle]]-K1235)","v":0}]
[null,null,null,null,null,null,null,0,null,null,null,{"$f":"SUM(Tableau2[[#This Row],[Total du rôle]]-K1236)","v":0}]
[null,null,null,null,null,null,null,0,null,null,null,{"$f":"SUM(Tableau2[[#This Row],[Total du rôle]]-K1237)","v":0}]
[null,null,null,null,null,null,null,0,null,null,null,{"$f":"SUM(Tableau2[[#This Row],[Total du rôle]]-K1238)","v":0}]
[null,null,null,null,null,null,null,0,null,null,null,{"$f":"SUM(Tableau2[[#This Row],[Total du rôle]]-K1239)","v":0}]
[null,null,null,null,null,null,null,0,null,null,null,{"$f":"SUM(Tableau2[[#This Row],[Total du rôle]]-K1240)","v":0}]
[null,null,null,null,null,null,null,0,null,null,null,{"$f":"SUM(Tableau2[[#This Row],[Total du rôle]]-K1241)","v":0}]
[null,null,null,null,null,null,null,0,null,null,null,{"$f":"SUM(Tableau2[[#This Row],[Total du rôle]]-K1242)","v":0}]
[null,null,null,null,null,null,null,0,null,null,null,{"$f":"SUM(Tableau2[[#This Row],[Total du rôle]]-K1243)","v":0}]
[null,null,null,null,null,null,null,0,null,null,null,{"$f":"SUM(Tableau2[[#This Row],[Total du rôle]]-K1244)","v":0}]
[null,null,null,null,null,null,null,0,null,null,null,{"$f":"SUM(Tableau2[[#This Row],[Total du rôle]]-K1245)","v":0}]
[null,null,null,null,null,null,null,0,null,null,null,{"$f":"SUM(Tableau2[[#This Row],[Total du rôle]]-K1246)","v":0}]
[null,null,null,null,null,null,null,0,null,null,null,{"$f":"SUM(Tableau2[[#This Row],[Total du rôle]]-K1247)","v":0}]
[null,null,null,null,null,null,null,0,null,null,null,{"$f":"SUM(Tableau2[[#This Row],[Total du rôle]]-K1248)","v":0}]
[null,null,null,null,null,null,null,0,null,null,null,{"$f":"SUM(Tableau2[[#This Row],[Total du rôle]]-K1249)","v":0}]
[null,null,null,null,null,null,null,0,null,null,null,{"$f":"SUM(Tableau2[[#This Row],[Total du rôle]]-K1250)","v":0}]
[null,null,null,null,null,null,null,0,null,null,null,{"$f":"SUM(Tableau2[[#This Row],[Total du rôle]]-K1251)","v":0}]
[null,null,null,null,null,null,null,0,null,null,null,{"$f":"SUM(Tableau2[[#This Row],[Total du rôle]]-K1252)","v":0}]
[null,null,null,null,null,null,null,0,null,null,null,{"$f":"SUM(Tableau2[[#This Row],[Total du rôle]]-K1253)","v":0}]
[null,null,null,null,null,null,null,0,null,null,null,{"$f":"SUM(Tableau2[[#This Row],[Total du rôle]]-K1254)","v":0}]
[null,null,null,null,null,null,null,0,null,null,null,{"$f":"SUM(Tableau2[[#This Row],[Total du rôle]]-K1255)","v":0}]
[null,null,null,null,null,null,null,0,null,null,null,{"$f":"SUM(Tableau2[[#This Row],[Total du rôle]]-K1256)","v":0}]
[null,null,null,null,null,null,null,0,null,null,null,{"$f":"SUM(Tableau2[[#This Row],[Total du rôle]]-K1257)","v":0}]
[null,null,null,null,null,null,null,0,null,null,null,{"$f":"SUM(Tableau2[[#This Row],[Total du rôle]]-K1258)","v":0}]
[null,null,null,null,null,null,null,0,null,null,null,{"$f":"SUM(Tableau2[[#This Row],[Total du rôle]]-K1259)","v":0}]
[null,null,null,null,null,null,null,0,null,null,null,{"$f":"SUM(Tableau2[[#This Row],[Total du rôle]]-K1260)","v":0}]
[null,null,null,null,null,null,null,0,null,null,null,{"$f":"SUM(Tableau2[[#This Row],[Total du rôle]]-K1261)","v":0}]
[null,null,null,null,null,null,null,0,null,null,null,{"$f":"SUM(Tableau2[[#This Row],[Total du rôle]]-K1262)","v":0}]
[null,null,null,null,null,null,null,0,null,null,null,{"$f":"SUM(Tableau2[[#This Row],[Total du rôle]]-K1263)","v":0}]
[null,null,null,null,null,null,null,0,null,null,null,{"$f":"SUM(Tableau2[[#This Row],[Total du rôle]]-K1264)","v":0}]
[null,null,null,null,null,null,null,0,null,null,null,{"$f":"SUM(Tableau2[[#This Row],[Total du rôle]]-K1265)","v":0}]
[null,null,null,null,null,null,null,0,null,null,null,{"$f":"SUM(Tableau2[[#This Row],[Total du rôle]]-K1266)","v":0}]
[null,null,null,null,null,null,null,0,null,null,null,{"$f":"SUM(Tableau2[[#This Row],[Total du rôle]]-K1267)","v":0}]
[null,null,null,null,null,null,null,0,null,null,null,{"$f":"SUM(Tableau2[[#This Row],[Total du rôle]]-K1268)","v":0}]
[null,null,null,null,null,null,null,0,null,null,null,{"$f":"SUM(Tableau2[[#This Row],[Total du rôle]]-K1269)","v":0}]
[null,null,null,null,null,null,null,0,null,null,null,{"$f":"SUM(Tableau2[[#This Row],[Total du rôle]]-K1270)","v":0}]
[null,null,null,null,null,null,null,0,null,null,null,{"$f":"SUM(Tableau2[[#This Row],[Total du rôle]]-K1271)","v":0}]
[null,null,null,null,null,null,null,0,null,null,null,{"$f":"SUM(Tableau2[[#This Row],[Total du rôle]]-K1272)","v":0}]
[null,null,null,null,null,null,null,0,null,null,null,{"$f":"SUM(Tableau2[[#This Row],[Total du rôle]]-K1273)","v":0}]
[null,null,null,null,null,null,null,0,null,null,null,{"$f":"SUM(Tableau2[[#This Row],[Total du rôle]]-K1274)","v":0}]
[null,null,null,null,null,null,null,0,null,null,null,{"$f":"SUM(Tableau2[[#This Row],[Total du rôle]]-K1275)","v":0}]
[null,null,null,null,null,null,null,0,null,null,null,{"$f":"SUM(Tableau2[[#This Row],[Total du rôle]]-K1276)","v":0}]
[null,null,null,null,null,null,null,0,null,null,null,{"$f":"SUM(Tableau2[[#This Row],[Total du rôle]]-K1277)","v":0}]
[null,null,null,null,null,null,null,0,null,null,null,{"$f":"SUM(Tableau2[[#This Row],[Total du rôle]]-K1278)","v":0}]
[null,null,null,null,null,null,null,0,null,null,null,{"$f":"SUM(Tableau2[[#This Row],[Total du rôle]]-K1279)","v":0}]
[null,null,null,null,null,null,null,0,null,null,null,{"$f":"SUM(Tableau2[[#This Row],[Total du rôle]]-K1280)","v":0}]
[null,null,null,null,null,null,null,0,null,null,null,{"$f":"SUM(Tableau2[[#This Row],[Total du rôle]]-K1281)","v":0}]
[null,null,null,null,null,null,null,0,null,null,null,{"$f":"SUM(Tableau2[[#This Row],[Total du rôle]]-K1282)","v":0}]
[null,null,null,null,null,null,null,0,null,null,null,{"$f":"SUM(Tableau2[[#This Row],[Total du rôle]]-K1283)","v":0}]
[null,null,null,null,null,null,null,{"$f":"SUM(F1284:G1284)","v":0},null,null,null,{"$f":"SUM(Tableau2[[#This Row],[Total du rôle]]-K1284)","v":0}]
[null,null,null,null,null,null,null,0,null,null,null,{"$f":"SUM(Tableau2[[#This Row],[Total du rôle]]-K1285)","v":0}]
[null,null,null,null,null,null,null,0,null,null,null,{"$f":"SUM(Tableau2[[#This Row],[Total du rôle]]-K1286)","v":0}]
[null,null,null,null,null,null,null,0,null,null,null,{"$f":"SUM(Tableau2[[#This Row],[Total du rôle]]-K1287)","v":0}]
[null,null,null,null,null,null,null,0,null,null,null,{"$f":"SUM(Tableau2[[#This Row],[Total du rôle]]-K1288)","v":0}]
[null,null,null,null,null,null,null,0,null,null,null,{"$f":"SUM(Tableau2[[#This Row],[Total du rôle]]-K1289)","v":0}]
[null,null,null,null,null,null,null,0,null,null,null,{"$f":"SUM(Tableau2[[#This Row],[Total du rôle]]-K1290)","v":0}]
[null,null,null,null,null,null,null,0,null,null,null,{"$f":"SUM(Tableau2[[#This Row],[Total du rôle]]-K1291)","v":0}]
[null,null,null,null,null,null,null,0,null,null,null,{"$f":"SUM(Tableau2[[#This Row],[Total du rôle]]-K1292)","v":0}]
[null,null,null,null,null,null,null,0,null,null,null,{"$f":"SUM(Tableau2[[#This Row],[Total du rôle]]-K1293)","v":0}]
[null,null,null,null,null,null,null,0,null,null,null,{"$f":"SUM(Tableau2[[#This Row],[Total du rôle]]-K1294)","v":0}]
[null,null,null,null,null,null,null,0,null,null,null,{"$f":"SUM(Tableau2[[#This Row],[Total du rôle]]-K1295)","v":0}]
[null,null,null,null,null,null,null,0,null,null,null,{"$f":"SUM(Tableau2[[#This Row],[Total du rôle]]-K1296)","v":0}]
[null,null,null,null,null,null,null,0,null,null,null,{"$f":"SUM(Tableau2[[#This Row],[Total du rôle]]-K1297)","v":0}]
[null,null,null,null,null,null,null,0,null,null,null,{"$f":"SUM(Tableau2[[#This Row],[Total du rôle]]-K1298)","v":0}]
[null,null,null,null,null,null,null,0,null,null,null,{"$f":"SUM(Tableau2[[#This Row],[Total du rôle]]-K1299)","v":0}]
[null,null,null,null,null,null,null,0,null,null,null,{"$f":"SUM(Tableau2[[#This Row],[Total du rôle]]-K1300)","v":0}]
[null,null,null,null,null,null,null,0,null,null,null,{"$f":"SUM(Tableau2[[#This Row],[Total du rôle]]-K1301)","v":0}]
[null,null,null,null,null,null,null,0,null,null,null,{"$f":"SUM(Tableau2[[#This Row],[Total du rôle]]-K1302)","v":0}]
[null,null,null,null,null,null,null,0,null,null,null,{"$f":"SUM(Tableau2[[#This Row],[Total du rôle]]-K1303)","v":0}]
[null,null,null,null,null,null,null,0,null,null,null,{"$f":"SUM(Tableau2[[#This Row],[Total du rôle]]-K1304)","v":0}]
[null,null,null,null,null,null,null,0,null,null,null,{"$f":"SUM(Tableau2[[#This Row],[Total du rôle]]-K1305)","v":0}]
[null,null,null,null,null,null,null,0,null,null,null,{"$f":"SUM(Tableau2[[#This Row],[Total du rôle]]-K1306)","v":0}]
[null,null,null,null,null,null,null,0,null,null,null,{"$f":"SUM(Tableau2[[#This Row],[Total du rôle]]-K1307)","v":0}]
[null,null,null,null,null,null,null,0,null,null,null,{"$f":"SUM(Tableau2[[#This Row],[Total du rôle]]-K1308)","v":0}]
[null,null,null,null,null,null,null,0,null,null,null,{"$f":"SUM(Tableau2[[#This Row],[Total du rôle]]-K1309)","v":0}]
[null,null,null,null,null,null,null,0,null,null,null,{"$f":"SUM(Tableau2[[#This Row],[Total du rôle]]-K1310)","v":0}]
[null,null,null,null,null,null,null,0,null,null,null,{"$f":"SUM(Tableau2[[#This Row],[Total du rôle]]-K1311)","v":0}]
[null,null,null,null,null,null,null,0,null,null,null,{"$f":"SUM(Tableau2[[#This Row],[Total du rôle]]-K1312)","v":0}]
[null,null,null,null,null,null,null,0,null,null,null,{"$f":"SUM(Tableau2[[#This Row],[Total du rôle]]-K1313)","v":0}]
[null,null,null,null,null,null,null,0,null,null,null,{"$f":"SUM(Tableau2[[#This Row],[Total du rôle]]-K1314)","v":0}]
[null,null,null,null,null,null,null,0,null,null,null,{"$f":"SUM(Tableau2[[#This Row],[Total du rôle]]-K1315)","v":0}]
[null,null,null,null,null,null,null,0,null,null,null,{"$f":"SUM(Tableau2[[#This Row],[Total du rôle]]-K1316)","v":0}]
[null,null,null,null,null,null,null,0,null,null,null,{"$f":"SUM(Tableau2[[#This Row],[Total du rôle]]-K1317)","v":0}]
[null,null,null,null,null,null,null,0,null,null,null,{"$f":"SUM(Tableau2[[#This Row],[Total du rôle]]-K1318)","v":0}]
[null,null,null,null,null,null,null,0,null,null,null,{"$f":"SUM(Tableau2[[#This Row],[Total du rôle]]-K1319)","v":0}]
[null,null,null,null,null,null,null,0,null,null,null,{"$f":"SUM(Tableau2[[#This Row],[Total du rôle]]-K1320)","v":0}]
[null,null,null,null,null,null,null,0,null,null,null,{"$f":"SUM(Tableau2[[#This Row],[Total du rôle]]-K1321)","v":0}]
[null,null,null,null,null,null,null,0,null,null,null,{"$f":"SUM(Tableau2[[#This Row],[Total du rôle]]-K1322)","v":0}]
[null,null,null,null,null,null,null,0,null,null,null,{"$f":"SUM(Tableau2[[#This Row],[Total du rôle]]-K1323)","v":0}]
[null,null,null,null,null,null,null,0,null,null,null,{"$f":"SUM(Tableau2[[#This Row],[Total du rôle]]-K1324)","v":0}]
[null,null,null,null,null,null,null,0,null,null,null,{"$f":"SUM(Tableau2[[#This Row],[Total du rôle]]-K1325)","v":0}]
[null,null,null,null,null,null,null,0,null,null,null,{"$f":"SUM(Tableau2[[#This Row],[Total du rôle]]-K1326)","v":0}]
[null,null,null,null,null,null,null,0,null,null,null,{"$f":"SUM(Tableau2[[#This Row],[Total du rôle]]-K1327)","v":0}]
[null,null,null,null,null,null,null,0,null,null,null,{"$f":"SUM(Tableau2[[#This Row],[Total du rôle]]-K1328)","v":0}]
[null,null,null,null,null,null,null,0,null,null,null,{"$f":"SUM(Tableau2[[#This Row],[Total du rôle]]-K1329)","v":0}]
[null,null,null,null,null,null,null,0,null,null,null,{"$f":"SUM(Tableau2[[#This Row],[Total du rôle]]-K1330)","v":0}]
[null,null,null,null,null,null,null,0,null,null,null,{"$f":"SUM(Tableau2[[#This Row],[Total du rôle]]-K1331)","v":0}]
[null,null,null,null,null,null,null,0,null,null,null,{"$f":"SUM(Tableau2[[#This Row],[Total du rôle]]-K1332)","v":0}]
[null,null,null,null,null,null,null,0,null,null,null,{"$f":"SUM(Tableau2[[#This Row],[Total du rôle]]-K1333)","v":0}]
[null,null,null,null,null,null,null,0,null,null,null,{"$f":"SUM(Tableau2[[#This Row],[Total du rôle]]-K1334)","v":0}]
[null,null,null,null,null,null,null,0,null,null,null,{"$f":"SUM(Tableau2[[#This Row],[Total du rôle]]-K1335)","v":0}]
[null,null,null,null,null,null,null,0,null,null,null,{"$f":"SUM(Tableau2[[#This Row],[Total du rôle]]-K1336)","v":0}]
[null,null,null,null,null,null,null,0,null,null,null,{"$f":"SUM(Tableau2[[#This Row],[Total du rôle]]-K1337)","v":0}]
[null,null,null,null,null,null,null,0,null,null,null,{"$f":"SUM(Tableau2[[#This Row],[Total du rôle]]-K1338)","v":0}]
[null,null,null,null,null,null,null,0,null,null,null,{"$f":"SUM(Tableau2[[#This Row],[Total du rôle]]-K1339)","v":0}]
[null,null,null,null,null,null,null,0,null,null,null,{"$f":"SUM(Tableau2[[#This Row],[Total du rôle]]-K1340)","v":0}]
[null,null,null,null,null,null,null,0,null,null,null,{"$f":"SUM(Tableau2[[#This Row],[Total du rôle]]-K1341)","v":0}]
[null,null,null,null,null,null,null,0,null,null,null,{"$f":"SUM(Tableau2[[#This Row],[Total du rôle]]-K1342)","v":0}]
[null,null,null,null,null,null,null,0,null,null,null,{"$f":"SUM(Tableau2[[#This Row],[Total du rôle]]-K1343)","v":0}]
[null,null,null,null,null,null,null,0,null,null,null,{"$f":"SUM(Tableau2[[#This Row],[Total du rôle]]-K1344)","v":0}]
[null,null,null,null,null,null,null,0,null,null,null,{"$f":"SUM(Tableau2[[#This Row],[Total du rôle]]-K1345)","v":0}]
[null,null,null,null,null,null,null,0,null,null,null,{"$f":"SUM(Tableau2[[#This Row],[Total du rôle]]-K1346)","v":0}]
[null,null,null,null,null,null,null,0,null,null,null,{"$f":"SUM(Tableau2[[#This Row],[Total du rôle]]-K1347)","v":0}]
[null,null,null,null,null,null,null,{"$f":"SUM(F1348:G1348)","v":0},null,null,null,{"$f":"SUM(Tableau2[[#This Row],[Total du rôle]]-K1348)","v":0}]
[null,null,null,null,null,null,null,0,null,null,null,{"$f":"SUM(Tableau2[[#This Row],[Total du rôle]]-K1349)","v":0}]
[null,null,null,null,null,null,null,0,null,null,null,{"$f":"SUM(Tableau2[[#This Row],[Total du rôle]]-K1350)","v":0}]
[null,null,null,null,null,null,null,0,null,null,null,{"$f":"SUM(Tableau2[[#This Row],[Total du rôle]]-K1351)","v":0}]
[null,null,null,null,null,null,null,0,null,null,null,{"$f":"SUM(Tableau2[[#This Row],[Total du rôle]]-K1352)","v":0}]
[null,null,null,null,null,null,null,0,null,null,null,{"$f":"SUM(Tableau2[[#This Row],[Total du rôle]]-K1353)","v":0}]
[null,null,null,null,null,null,null,0,null,null,null,{"$f":"SUM(Tableau2[[#This Row],[Total du rôle]]-K1354)","v":0}]
[null,null,null,null,null,null,null,0,null,null,null,{"$f":"SUM(Tableau2[[#This Row],[Total du rôle]]-K1355)","v":0}]
[null,null,null,null,null,null,null,0,null,null,null,{"$f":"SUM(Tableau2[[#This Row],[Total du rôle]]-K1356)","v":0}]
[null,null,null,null,null,null,null,0,null,null,null,{"$f":"SUM(Tableau2[[#This Row],[Total du rôle]]-K1357)","v":0}]
[null,null,null,null,null,null,null,0,null,null,null,{"$f":"SUM(Tableau2[[#This Row],[Total du rôle]]-K1358)","v":0}]
[null,null,null,null,null,null,null,0,null,null,null,{"$f":"SUM(Tableau2[[#This Row],[Total du rôle]]-K1359)","v":0}]
[null,null,null,null,null,null,null,0,null,null,null,{"$f":"SUM(Tableau2[[#This Row],[Total du rôle]]-K1360)","v":0}]
[null,null,null,null,null,null,null,0,null,null,null,{"$f":"SUM(Tableau2[[#This Row],[Total du rôle]]-K1361)","v":0}]
[null,null,null,null,null,null,null,0,null,null,null,{"$f":"SUM(Tableau2[[#This Row],[Total du rôle]]-K1362)","v":0}]
[null,null,null,null,null,null,null,0,null,null,null,{"$f":"SUM(Tableau2[[#This Row],[Total du rôle]]-K1363)","v":0}]
[null,null,null,null,null,null,null,0,null,null,null,{"$f":"SUM(Tableau2[[#This Row],[Total du rôle]]-K1364)","v":0}]
[null,null,null,null,null,null,null,0,null,null,null,{"$f":"SUM(Tableau2[[#This Row],[Total du rôle]]-K1365)","v":0}]
[null,null,null,null,null,null,null,0,null,null,null,{"$f":"SUM(Tableau2[[#This Row],[Total du rôle]]-K1366)","v":0}]
[null,null,null,null,null,null,null,0,null,null,null,{"$f":"SUM(Tableau2[[#This Row],[Total du rôle]]-K1367)","v":0}]
[null,null,null,null,null,null,null,0,null,null,null,{"$f":"SUM(Tableau2[[#This Row],[Total du rôle]]-K1368)","v":0}]
[null,null,null,null,null,null,null,0,null,null,null,{"$f":"SUM(Tableau2[[#This Row],[Total du rôle]]-K1369)","v":0}]
[null,null,null,null,null,null,null,0,null,null,null,{"$f":"SUM(Tableau2[[#This Row],[Total du rôle]]-K1370)","v":0}]
[null,null,null,null,null,null,null,0,null,null,null,{"$f":"SUM(Tableau2[[#This Row],[Total du rôle]]-K1371)","v":0}]
[null,null,null,null,null,null,null,0,null,null,null,{"$f":"SUM(Tableau2[[#This Row],[Total du rôle]]-K1372)","v":0}]
[null,null,null,null,null,null,null,0,null,null,null,{"$f":"SUM(Tableau2[[#This Row],[Total du rôle]]-K1373)","v":0}]
[null,null,null,null,null,null,null,0,null,null,null,{"$f":"SUM(Tableau2[[#This Row],[Total du rôle]]-K1374)","v":0}]
[null,null,null,null,null,null,null,0,null,null,null,{"$f":"SUM(Tableau2[[#This Row],[Total du rôle]]-K1375)","v":0}]
[null,null,null,null,null,null,null,0,null,null,null,{"$f":"SUM(Tableau2[[#This Row],[Total du rôle]]-K1376)","v":0}]
[null,null,null,null,null,null,null,0,null,null,null,{"$f":"SUM(Tableau2[[#This Row],[Total du rôle]]-K1377)","v":0}]
[null,null,null,null,null,null,null,0,null,null,null,{"$f":"SUM(Tableau2[[#This Row],[Total du rôle]]-K1378)","v":0}]
[null,null,null,null,null,null,null,0,null,null,null,{"$f":"SUM(Tableau2[[#This Row],[Total du rôle]]-K1379)","v":0}]
[null,null,null,null,null,null,null,0,null,null,null,{"$f":"SUM(Tableau2[[#This Row],[Total du rôle]]-K1380)","v":0}]
[null,null,null,null,null,null,null,0,null,null,null,{"$f":"SUM(Tableau2[[#This Row],[Total du rôle]]-K1381)","v":0}]
[null,null,null,null,null,null,null,0,null,null,null,{"$f":"SUM(Tableau2[[#This Row],[Total du rôle]]-K1382)","v":0}]
[null,null,null,null,null,null,null,0,null,null,null,{"$f":"SUM(Tableau2[[#This Row],[Total du rôle]]-K1383)","v":0}]
[null,null,null,null,null,null,null,0,null,null,null,{"$f":"SUM(Tableau2[[#This Row],[Total du rôle]]-K1384)","v":0}]
[null,null,null,null,null,null,null,0,null,null,null,{"$f":"SUM(Tableau2[[#This Row],[Total du rôle]]-K1385)","v":0}]
[null,null,null,null,null,null,null,0,null,null,null,{"$f":"SUM(Tableau2[[#This Row],[Total du rôle]]-K1386)","v":0}]
[null,null,null,null,null,null,null,0,null,null,null,{"$f":"SUM(Tableau2[[#This Row],[Total du rôle]]-K1387)","v":0}]
[null,null,null,null,null,null,null,0,null,null,null,{"$f":"SUM(Tableau2[[#This Row],[Total du rôle]]-K1388)","v":0}]
[null,null,null,null,null,null,null,0,null,null,null,{"$f":"SUM(Tableau2[[#This Row],[Total du rôle]]-K1389)","v":0}]
[null,null,null,null,null,null,null,0,null,null,null,{"$f":"SUM(Tableau2[[#This Row],[Total du rôle]]-K1390)","v":0}]
[null,null,null,null,null,null,null,0,null,null,null,{"$f":"SUM(Tableau2[[#This Row],[Total du rôle]]-K1391)","v":0}]
[null,null,null,null,null,null,null,0,null,null,null,{"$f":"SUM(Tableau2[[#This Row],[Total du rôle]]-K1392)","v":0}]
[null,null,null,null,null,null,null,0,null,null,null,{"$f":"SUM(Tableau2[[#This Row],[Total du rôle]]-K1393)","v":0}]
[null,null,null,null,null,null,null,0,null,null,null,{"$f":"SUM(Tableau2[[#This Row],[Total du rôle]]-K1394)","v":0}]
[null,null,null,null,null,null,null,0,null,null,null,{"$f":"SUM(Tableau2[[#This Row],[Total du rôle]]-K1395)","v":0}]
[null,null,null,null,null,null,null,0,null,null,null,{"$f":"SUM(Tableau2[[#This Row],[Total du rôle]]-K1396)","v":0}]
[null,null,null,null,null,null,null,0,null,null,null,{"$f":"SUM(Tableau2[[#This Row],[Total du rôle]]-K1397)","v":0}]
[null,null,null,null,null,null,null,0,null,null,null,{"$f":"SUM(Tableau2[[#This Row],[Total du rôle]]-K1398)","v":0}]
[null,null,null,null,null,null,null,0,null,null,null,{"$f":"SUM(Tableau2[[#This Row],[Total du rôle]]-K1399)","v":0}]
[null,null,null,null,null,null,null,0,null,null,null,{"$f":"SUM(Tableau2[[#This Row],[Total du rôle]]-K1400)","v":0}]
[null,null,null,null,null,null,null,0,null,null,null,{"$f":"SUM(Tableau2[[#This Row],[Total du rôle]]-K1401)","v":0}]
[null,null,null,null,null,null,null,0,null,null,null,{"$f":"SUM(Tableau2[[#This Row],[Total du rôle]]-K1402)","v":0}]
[null,null,null,null,null,null,null,0,null,null,null,{"$f":"SUM(Tableau2[[#This Row],[Total du rôle]]-K1403)","v":0}]
[null,null,null,null,null,null,null,0,null,null,null,{"$f":"SUM(Tableau2[[#This Row],[Total du rôle]]-K1404)","v":0}]
[null,null,null,null,null,null,null,0,null,null,null,{"$f":"SUM(Tableau2[[#This Row],[Total du rôle]]-K1405)","v":0}]
[null,null,null,null,null,null,null,0,null,null,null,{"$f":"SUM(Tableau2[[#This Row],[Total du rôle]]-K1406)","v":0}]
[null,null,null,null,null,null,null,0,null,null,null,{"$f":"SUM(Tableau2[[#This Row],[Total du rôle]]-K1407)","v":0}]
[null,null,null,null,null,null,null,0,null,null,null,{"$f":"SUM(Tableau2[[#This Row],[Total du rôle]]-K1408)","v":0}]
[null,null,null,null,null,null,null,0,null,null,null,{"$f":"SUM(Tableau2[[#This Row],[Total du rôle]]-K1409)","v":0}]
[null,null,null,null,null,null,null,0,null,null,null,{"$f":"SUM(Tableau2[[#This Row],[Total du rôle]]-K1410)","v":0}]
[null,null,null,null,null,null,null,0,null,null,null,{"$f":"SUM(Tableau2[[#This Row],[Total du rôle]]-K1411)","v":0}]
[null,null,null,null,null,null,null,{"$f":"SUM(F1412:G1412)","v":0},null,null,null,{"$f":"SUM(Tableau2[[#This Row],[Total du rôle]]-K1412)","v":0}]
[null,null,null,null,null,null,null,0,null,null,null,{"$f":"SUM(Tableau2[[#This Row],[Total du rôle]]-K1413)","v":0}]
[null,null,null,null,null,null,null,0,null,null,null,{"$f":"SUM(Tableau2[[#This Row],[Total du rôle]]-K1414)","v":0}]
[null,null,null,null,null,null,null,0,null,null,null,{"$f":"SUM(Tableau2[[#This Row],[Total du rôle]]-K1415)","v":0}]
[null,null,null,null,null,null,null,0,null,null,null,{"$f":"SUM(Tableau2[[#This Row],[Total du rôle]]-K1416)","v":0}]
[null,null,null,null,null,null,null,0,null,null,null,{"$f":"SUM(Tableau2[[#This Row],[Total du rôle]]-K1417)","v":0}]
[null,null,null,null,null,null,null,0,null,null,null,{"$f":"SUM(Tableau2[[#This Row],[Total du rôle]]-K1418)","v":0}]
[null,null,null,null,null,null,null,0,null,null,null,{"$f":"SUM(Tableau2[[#This Row],[Total du rôle]]-K1419)","v":0}]
[null,null,null,null,null,null,null,0,null,null,null,{"$f":"SUM(Tableau2[[#This Row],[Total du rôle]]-K1420)","v":0}]
[null,null,null,null,null,null,null,0,null,null,null,{"$f":"SUM(Tableau2[[#This Row],[Total du rôle]]-K1421)","v":0}]
[null,null,null,null,null,null,null,0,null,null,null,{"$f":"SUM(Tableau2[[#This Row],[Total du rôle]]-K1422)","v":0}]
[null,null,null,null,null,null,null,0,null,null,null,{"$f":"SUM(Tableau2[[#This Row],[Total du rôle]]-K1423)","v":0}]
[null,null,null,null,null,null,null,0,null,null,null,{"$f":"SUM(Tableau2[[#This Row],[Total du rôle]]-K1424)","v":0}]
[null,null,null,null,null,null,null,0,null,null,null,{"$f":"SUM(Tableau2[[#This Row],[Total du rôle]]-K1425)","v":0}]
[null,null,null,null,null,null,null,0,null,null,null,{"$f":"SUM(Tableau2[[#This Row],[Total du rôle]]-K1426)","v":0}]
[null,null,null,null,null,null,null,0,null,null,null,{"$f":"SUM(Tableau2[[#This Row],[Total du rôle]]-K1427)","v":0}]
[null,null,null,null,null,null,null,0,null,null,null,{"$f":"SUM(Tableau2[[#This Row],[Total du rôle]]-K1428)","v":0}]
[null,null,null,null,null,null,null,0,null,null,null,{"$f":"SUM(Tableau2[[#This Row],[Total du rôle]]-K1429)","v":0}]
[null,null,null,null,null,null,null,0,null,null,null,{"$f":"SUM(Tableau2[[#This Row],[Total du rôle]]-K1430)","v":0}]
[null,null,null,null,null,null,null,0,null,null,null,{"$f":"SUM(Tableau2[[#This Row],[Total du rôle]]-K1431)","v":0}]
[null,null,null,null,null,null,null,0,null,null,null,{"$f":"SUM(Tableau2[[#This Row],[Total du rôle]]-K1432)","v":0}]
[null,null,null,null,null,null,null,0,null,null,null,{"$f":"SUM(Tableau2[[#This Row],[Total du rôle]]-K1433)","v":0}]
[null,null,null,null,null,null,null,0,null,null,null,{"$f":"SUM(Tableau2[[#This Row],[Total du rôle]]-K1434)","v":0}]
[null,null,null,null,null,null,null,0,null,null,null,{"$f":"SUM(Tableau2[[#This Row],[Total du rôle]]-K1435)","v":0}]
[null,null,null,null,null,null,null,0,null,null,null,{"$f":"SUM(Tableau2[[#This Row],[Total du rôle]]-K1436)","v":0}]
[null,null,null,null,null,null,null,0,null,null,null,{"$f":"SUM(Tableau2[[#This Row],[Total du rôle]]-K1437)","v":0}]
[null,null,null,null,null,null,null,0,null,null,null,{"$f":"SUM(Tableau2[[#This Row],[Total du rôle]]-K1438)","v":0}]
[null,null,null,null,null,null,null,0,null,null,null,{"$f":"SUM(Tableau2[[#This Row],[Total du rôle]]-K1439)","v":0}]
[null,null,null,null,null,null,null,0,null,null,null,{"$f":"SUM(Tableau2[[#This Row],[Total du rôle]]-K1440)","v":0}]
[null,null,null,null,null,null,null,0,null,null,null,{"$f":"SUM(Tableau2[[#This Row],[Total du rôle]]-K1441)","v":0}]
[null,null,null,null,null,null,null,0,null,null,null,{"$f":"SUM(Tableau2[[#This Row],[Total du rôle]]-K1442)","v":0}]
[null,null,null,null,null,null,null,0,null,null,null,{"$f":"SUM(Tableau2[[#This Row],[Total du rôle]]-K1443)","v":0}]
[null,null,null,null,null,null,null,0,null,null,null,{"$f":"SUM(Tableau2[[#This Row],[Total du rôle]]-K1444)","v":0}]
[null,null,null,null,null,null,null,0,null,null,null,{"$f":"SUM(Tableau2[[#This Row],[Total du rôle]]-K1445)","v":0}]
[null,null,null,null,null,null,null,0,null,null,null,{"$f":"SUM(Tableau2[[#This Row],[Total du rôle]]-K1446)","v":0}]
[null,null,null,null,null,null,null,0,null,null,null,{"$f":"SUM(Tableau2[[#This Row],[Total du rôle]]-K1447)","v":0}]
[null,null,null,null,null,null,null,0,null,null,null,{"$f":"SUM(Tableau2[[#This Row],[Total du rôle]]-K1448)","v":0}]
[null,null,null,null,null,null,null,0,null,null,null,{"$f":"SUM(Tableau2[[#This Row],[Total du rôle]]-K1449)","v":0}]
[null,null,null,null,null,null,null,0,null,null,null,{"$f":"SUM(Tableau2[[#This Row],[Total du rôle]]-K1450)","v":0}]
[null,null,null,null,null,null,null,0,null,null,null,{"$f":"SUM(Tableau2[[#This Row],[Total du rôle]]-K1451)","v":0}]
[null,null,null,null,null,null,null,0,null,null,null,{"$f":"SUM(Tableau2[[#This Row],[Total du rôle]]-K1452)","v":0}]
[null,null,null,null,null,null,null,0,null,null,null,{"$f":"SUM(Tableau2[[#This Row],[Total du rôle]]-K1453)","v":0}]
[null,null,null,null,null,null,null,0,null,null,null,{"$f":"SUM(Tableau2[[#This Row],[Total du rôle]]-K1454)","v":0}]
[null,null,null,null,null,null,null,0,null,null,null,{"$f":"SUM(Tableau2[[#This Row],[Total du rôle]]-K1455)","v":0}]
[null,null,null,null,null,null,null,0,null,null,null,{"$f":"SUM(Tableau2[[#This Row],[Total du rôle]]-K1456)","v":0}]
[null,null,null,null,null,null,null,0,null,null,null,{"$f":"SUM(Tableau2[[#This Row],[Total du rôle]]-K1457)","v":0}]
[null,null,null,null,null,null,null,0,null,null,null,{"$f":"SUM(Tableau2[[#This Row],[Total du rôle]]-K1458)","v":0}]
[null,null,null,null,null,null,null,0,null,null,null,{"$f":"SUM(Tableau2[[#This Row],[Total du rôle]]-K1459)","v":0}]
[null,null,null,null,null,null,null,0,null,null,null,{"$f":"SUM(Tableau2[[#This Row],[Total du rôle]]-K1460)","v":0}]
[null,null,null,null,null,null,null,0,null,null,null,{"$f":"SUM(Tableau2[[#This Row],[Total du rôle]]-K1461)","v":0}]
[null,null,null,null,null,null,null,0,null,null,null,{"$f":"SUM(Tableau2[[#This Row],[Total du rôle]]-K1462)","v":0}]
[null,null,null,null,null,null,null,0,null,null,null,{"$f":"SUM(Tableau2[[#This Row],[Total du rôle]]-K1463)","v":0}]
[null,null,null,null,null,null,null,0,null,null,null,{"$f":"SUM(Tableau2[[#This Row],[Total du rôle]]-K1464)","v":0}]
[null,null,null,null,null,null,null,0,null,null,null,{"$f":"SUM(Tableau2[[#This Row],[Total du rôle]]-K1465)","v":0}]
[null,null,null,null,null,null,null,0,null,null,null,{"$f":"SUM(Tableau2[[#This Row],[Total du rôle]]-K1466)","v":0}]
[null,null,null,null,null,null,null,0,null,null,null,{"$f":"SUM(Tableau2[[#This Row],[Total du rôle]]-K1467)","v":0}]
[null,null,null,null,null,null,null,0,null,null,null,{"$f":"SUM(Tableau2[[#This Row],[Total du rôle]]-K1468)","v":0}]
[null,null,null,null,null,null,null,0,null,null,null,{"$f":"SUM(Tableau2[[#This Row],[Total du rôle]]-K1469)","v":0}]
[null,null,null,null,null,null,null,0,null,null,null,{"$f":"SUM(Tableau2[[#This Row],[Total du rôle]]-K1470)","v":0}]
[null,null,null,null,null,null,null,0,null,null,null,{"$f":"SUM(Tableau2[[#This Row],[Total du rôle]]-K1471)","v":0}]
[null,null,null,null,null,null,null,0,null,null,null,{"$f":"SUM(Tableau2[[#This Row],[Total du rôle]]-K1472)","v":0}]
[null,null,null,null,null,null,null,0,null,null,null,{"$f":"SUM(Tableau2[[#This Row],[Total du rôle]]-K1473)","v":0}]
[null,null,null,null,null,null,null,0,null,null,null,{"$f":"SUM(Tableau2[[#This Row],[Total du rôle]]-K1474)","v":0}]
[null,null,null,null,null,null,null,0,null,null,null,{"$f":"SUM(Tableau2[[#This Row],[Total du rôle]]-K1475)","v":0}]
[null,null,null,null,null,null,null,{"$f":"SUM(F1476:G1476)","v":0},null,null,null,{"$f":"SUM(Tableau2[[#This Row],[Total du rôle]]-K1476)","v":0}]
[null,null,null,null,null,null,null,0,null,null,null,{"$f":"SUM(Tableau2[[#This Row],[Total du rôle]]-K1477)","v":0}]
[null,null,null,null,null,null,null,0,null,null,null,{"$f":"SUM(Tableau2[[#This Row],[Total du rôle]]-K1478)","v":0}]
[null,null,null,null,null,null,null,0,null,null,null,{"$f":"SUM(Tableau2[[#This Row],[Total du rôle]]-K1479)","v":0}]
[null,null,null,null,null,null,null,0,null,null,null,{"$f":"SUM(Tableau2[[#This Row],[Total du rôle]]-K1480)","v":0}]
[null,null,null,null,null,null,null,0,null,null,null,{"$f":"SUM(Tableau2[[#This Row],[Total du rôle]]-K1481)","v":0}]
[null,null,null,null,null,null,null,0,null,null,null,{"$f":"SUM(Tableau2[[#This Row],[Total du rôle]]-K1482)","v":0}]
[null,null,null,null,null,null,null,0,null,null,null,{"$f":"SUM(Tableau2[[#This Row],[Total du rôle]]-K1483)","v":0}]
[null,null,null,null,null,null,null,0,null,null,null,{"$f":"SUM(Tableau2[[#This Row],[Total du rôle]]-K1484)","v":0}]
[null,null,null,null,null,null,null,0,null,null,null,{"$f":"SUM(Tableau2[[#This Row],[Total du rôle]]-K1485)","v":0}]
[null,null,null,null,null,null,null,0,null,null,null,{"$f":"SUM(Tableau2[[#This Row],[Total du rôle]]-K1486)","v":0}]
[null,null,null,null,null,null,null,0,null,null,null,{"$f":"SUM(Tableau2[[#This Row],[Total du rôle]]-K1487)","v":0}]
[null,null,null,null,null,null,null,0,null,null,null,{"$f":"SUM(Tableau2[[#This Row],[Total du rôle]]-K1488)","v":0}]
[null,null,null,null,null,null,null,0,null,null,null,{"$f":"SUM(Tableau2[[#This Row],[Total du rôle]]-K1489)","v":0}]
[null,null,null,null,null,null,null,0,null,null,null,{"$f":"SUM(Tableau2[[#This Row],[Total du rôle]]-K1490)","v":0}]
[null,null,null,null,null,null,null,0,null,null,null,{"$f":"SUM(Tableau2[[#This Row],[Total du rôle]]-K1491)","v":0}]
[null,null,null,null,null,null,null,0,null,null,null,{"$f":"SUM(Tableau2[[#This Row],[Total du rôle]]-K1492)","v":0}]
[null,null,null,null,null,null,null,0,null,null,null,{"$f":"SUM(Tableau2[[#This Row],[Total du rôle]]-K1493)","v":0}]
[null,null,null,null,null,null,null,0,null,null,null,{"$f":"SUM(Tableau2[[#This Row],[Total du rôle]]-K1494)","v":0}]
[null,null,null,null,null,null,null,0,null,null,null,{"$f":"SUM(Tableau2[[#This Row],[Total du rôle]]-K1495)","v":0}]
[null,null,null,null,null,null,null,0,null,null,null,{"$f":"SUM(Tableau2[[#This Row],[Total du rôle]]-K1496)","v":0}]
[null,null,null,null,null,null,null,0,null,null,null,{"$f":"SUM(Tableau2[[#This Row],[Total du rôle]]-K1497)","v":0}]
[null,null,null,null,null,null,null,0,null,null,null,{"$f":"SUM(Tableau2[[#This Row],[Total du rôle]]-K1498)","v":0}]
[null,null,null,null,null,null,null,0,null,null,null,{"$f":"SUM(Tableau2[[#This Row],[Total du rôle]]-K1499)","v":0}]
[null,null,null,null,null,null,null,0,null,null,null,{"$f":"SUM(Tableau2[[#This Row],[Total du rôle]]-K1500)","v":0}]
[null,null,null,null,null,null,null,0,null,null,null,{"$f":"SUM(Tableau2[[#This Row],[Total du rôle]]-K1501)","v":0}]
[null,null,null,null,null,null,null,0,null,null,null,{"$f":"SUM(Tableau2[[#This Row],[Total du rôle]]-K1502)","v":0}]
[null,null,null,null,null,null,null,0,null,null,null,{"$f":"SUM(Tableau2[[#This Row],[Total du rôle]]-K1503)","v":0}]
[null,null,null,null,null,null,null,0,null,null,null,{"$f":"SUM(Tableau2[[#This Row],[Total du rôle]]-K1504)","v":0}]
[null,null,null,null,null,null,null,0,null,null,null,{"$f":"SUM(Tableau2[[#This Row],[Total du rôle]]-K1505)","v":0}]
[null,null,null,null,null,null,null,0,null,null,null,{"$f":"SUM(Tableau2[[#This Row],[Total du rôle]]-K1506)","v":0}]
[null,null,null,null,null,null,null,0,null,null,null,{"$f":"SUM(Tableau2[[#This Row],[Total du rôle]]-K1507)","v":0}]
[null,null,null,null,null,null,null,0,null,null,null,{"$f":"SUM(Tableau2[[#This Row],[Total du rôle]]-K1508)","v":0}]
[null,null,null,null,null,null,null,0,null,null,null,{"$f":"SUM(Tableau2[[#This Row],[Total du rôle]]-K1509)","v":0}]
[null,null,null,null,null,null,null,0,null,null,null,{"$f":"SUM(Tableau2[[#This Row],[Total du rôle]]-K1510)","v":0}]
[null,null,null,null,null,null,null,0,null,null,null,{"$f":"SUM(Tableau2[[#This Row],[Total du rôle]]-K1511)","v":0}]
[null,null,null,null,null,null,null,0,null,null,null,{"$f":"SUM(Tableau2[[#This Row],[Total du rôle]]-K1512)","v":0}]
[null,null,null,null,null,null,null,0,null,null,null,{"$f":"SUM(Tableau2[[#This Row],[Total du rôle]]-K1513)","v":0}]
[null,null,null,null,null,null,null,0,null,null,null,{"$f":"SUM(Tableau2[[#This Row],[Total du rôle]]-K1514)","v":0}]
[null,null,null,null,null,null,null,0,null,null,null,{"$f":"SUM(Tableau2[[#This Row],[Total du rôle]]-K1515)","v":0}]
[null,null,null,null,null,null,null,0,null,null,null,{"$f":"SUM(Tableau2[[#This Row],[Total du rôle]]-K1516)","v":0}]
[null,null,null,null,null,null,null,0,null,null,null,{"$f":"SUM(Tableau2[[#This Row],[Total du rôle]]-K1517)","v":0}]
[null,null,null,null,null,null,null,0,null,null,null,{"$f":"SUM(Tableau2[[#This Row],[Total du rôle]]-K1518)","v":0}]
[null,null,null,null,null,null,null,0,null,null,null,{"$f":"SUM(Tableau2[[#This Row],[Total du rôle]]-K1519)","v":0}]
[null,null,null,null,null,null,null,0,null,null,null,{"$f":"SUM(Tableau2[[#This Row],[Total du rôle]]-K1520)","v":0}]
[null,null,null,null,null,null,null,0,null,null,null,{"$f":"SUM(Tableau2[[#This Row],[Total du rôle]]-K1521)","v":0}]
[null,null,null,null,null,null,null,0,null,null,null,{"$f":"SUM(Tableau2[[#This Row],[Total du rôle]]-K1522)","v":0}]
[null,null,null,null,null,null,null,0,null,null,null,{"$f":"SUM(Tableau2[[#This Row],[Total du rôle]]-K1523)","v":0}]
[null,null,null,null,null,null,null,0,null,null,null,{"$f":"SUM(Tableau2[[#This Row],[Total du rôle]]-K1524)","v":0}]
[null,null,null,null,null,null,null,0,null,null,null,{"$f":"SUM(Tableau2[[#This Row],[Total du rôle]]-K1525)","v":0}]
[null,null,null,null,null,null,null,0,null,null,null,{"$f":"SUM(Tableau2[[#This Row],[Total du rôle]]-K1526)","v":0}]
[null,null,null,null,null,null,null,0,null,null,null,{"$f":"SUM(Tableau2[[#This Row],[Total du rôle]]-K1527)","v":0}]
[null,null,null,null,null,null,null,0,null,null,null,{"$f":"SUM(Tableau2[[#This Row],[Total du rôle]]-K1528)","v":0}]
[null,null,null,null,null,null,null,0,null,null,null,{"$f":"SUM(Tableau2[[#This Row],[Total du rôle]]-K1529)","v":0}]
[null,null,null,null,null,null,null,0,null,null,null,{"$f":"SUM(Tableau2[[#This Row],[Total du rôle]]-K1530)","v":0}]
[null,null,null,null,null,null,null,0,null,null,null,{"$f":"SUM(Tableau2[[#This Row],[Total du rôle]]-K1531)","v":0}]
[null,null,null,null,null,null,null,0,null,null,null,{"$f":"SUM(Tableau2[[#This Row],[Total du rôle]]-K1532)","v":0}]
[null,null,null,null,null,null,null,0,null,null,null,{"$f":"SUM(Tableau2[[#This Row],[Total du rôle]]-K1533)","v":0}]
[null,null,null,null,null,null,null,0,null,null,null,{"$f":"SUM(Tableau2[[#This Row],[Total du rôle]]-K1534)","v":0}]
[null,null,null,null,null,null,null,0,null,null,null,{"$f":"SUM(Tableau2[[#This Row],[Total du rôle]]-K1535)","v":0}]
[null,null,null,null,null,null,null,0,null,null,null,{"$f":"SUM(Tableau2[[#This Row],[Total du rôle]]-K1536)","v":0}]
[null,null,null,null,null,null,null,0,null,null,null,{"$f":"SUM(Tableau2[[#This Row],[Total du rôle]]-K1537)","v":0}]
[null,null,null,null,null,null,null,0,null,null,null,{"$f":"SUM(Tableau2[[#This Row],[Total du rôle]]-K1538)","v":0}]
[null,null,null,null,null,null,null,0,null,null,null,{"$f":"SUM(Tableau2[[#This Row],[Total du rôle]]-K1539)","v":0}]
[null,null,null,null,null,null,null,{"$f":"SUM(F1540:G1540)","v":0},null,null,null,{"$f":"SUM(Tableau2[[#This Row],[Total du rôle]]-K1540)","v":0}]
[null,null,null,null,null,null,null,0,null,null,null,{"$f":"SUM(Tableau2[[#This Row],[Total du rôle]]-K1541)","v":0}]
[null,null,null,null,null,null,null,0,null,null,null,{"$f":"SUM(Tableau2[[#This Row],[Total du rôle]]-K1542)","v":0}]
[null,null,null,null,null,null,null,0,null,null,null,{"$f":"SUM(Tableau2[[#This Row],[Total du rôle]]-K1543)","v":0}]
[null,null,null,null,null,null,null,0,null,null,null,{"$f":"SUM(Tableau2[[#This Row],[Total du rôle]]-K1544)","v":0}]
[null,null,null,null,null,null,null,0,null,null,null,{"$f":"SUM(Tableau2[[#This Row],[Total du rôle]]-K1545)","v":0}]
[null,null,null,null,null,null,null,0,null,null,null,{"$f":"SUM(Tableau2[[#This Row],[Total du rôle]]-K1546)","v":0}]
[null,null,null,null,null,null,null,0,null,null,null,{"$f":"SUM(Tableau2[[#This Row],[Total du rôle]]-K1547)","v":0}]
[null,null,null,null,null,null,null,0,null,null,null,{"$f":"SUM(Tableau2[[#This Row],[Total du rôle]]-K1548)","v":0}]
[null,null,null,null,null,null,null,0,null,null,null,{"$f":"SUM(Tableau2[[#This Row],[Total du rôle]]-K1549)","v":0}]
[null,null,null,null,null,null,null,0,null,null,null,{"$f":"SUM(Tableau2[[#This Row],[Total du rôle]]-K1550)","v":0}]
[null,null,null,null,null,null,null,0,null,null,null,{"$f":"SUM(Tableau2[[#This Row],[Total du rôle]]-K1551)","v":0}]
[null,null,null,null,null,null,null,0,null,null,null,{"$f":"SUM(Tableau2[[#This Row],[Total du rôle]]-K1552)","v":0}]
[null,null,null,null,null,null,null,0,null,null,null,{"$f":"SUM(Tableau2[[#This Row],[Total du rôle]]-K1553)","v":0}]
[null,null,null,null,null,null,null,0,null,null,null,{"$f":"SUM(Tableau2[[#This Row],[Total du rôle]]-K1554)","v":0}]
[null,null,null,null,null,null,null,0,null,null,null,{"$f":"SUM(Tableau2[[#This Row],[Total du rôle]]-K1555)","v":0}]
[null,null,null,null,null,null,null,0,null,null,null,{"$f":"SUM(Tableau2[[#This Row],[Total du rôle]]-K1556)","v":0}]
[null,null,null,null,null,null,null,0,null,null,null,{"$f":"SUM(Tableau2[[#This Row],[Total du rôle]]-K1557)","v":0}]
[null,null,null,null,null,null,null,0,null,null,null,{"$f":"SUM(Tableau2[[#This Row],[Total du rôle]]-K1558)","v":0}]
[null,null,null,null,null,null,null,0,null,null,null,{"$f":"SUM(Tableau2[[#This Row],[Total du rôle]]-K1559)","v":0}]
[null,null,null,null,null,null,null,0,null,null,null,{"$f":"SUM(Tableau2[[#This Row],[Total du rôle]]-K1560)","v":0}]
[null,null,null,null,null,null,null,0,null,null,null,{"$f":"SUM(Tableau2[[#This Row],[Total du rôle]]-K1561)","v":0}]
[null,null,null,null,null,null,null,0,null,null,null,{"$f":"SUM(Tableau2[[#This Row],[Total du rôle]]-K1562)","v":0}]
[null,null,null,null,null,null,null,0,null,null,null,{"$f":"SUM(Tableau2[[#This Row],[Total du rôle]]-K1563)","v":0}]
[null,null,null,null,null,null,null,0,null,null,null,{"$f":"SUM(Tableau2[[#This Row],[Total du rôle]]-K1564)","v":0}]
[null,null,null,null,null,null,null,0,null,null,null,{"$f":"SUM(Tableau2[[#This Row],[Total du rôle]]-K1565)","v":0}]
[null,null,null,null,null,null,null,0,null,null,null,{"$f":"SUM(Tableau2[[#This Row],[Total du rôle]]-K1566)","v":0}]
[null,null,null,null,null,null,null,0,null,null,null,{"$f":"SUM(Tableau2[[#This Row],[Total du rôle]]-K1567)","v":0}]
[null,null,null,null,null,null,null,0,null,null,null,{"$f":"SUM(Tableau2[[#This Row],[Total du rôle]]-K1568)","v":0}]
[null,null,null,null,null,null,null,0,null,null,null,{"$f":"SUM(Tableau2[[#This Row],[Total du rôle]]-K1569)","v":0}]
[null,null,null,null,null,null,null,0,null,null,null,{"$f":"SUM(Tableau2[[#This Row],[Total du rôle]]-K1570)","v":0}]
[null,null,null,null,null,null,null,0,null,null,null,{"$f":"SUM(Tableau2[[#This Row],[Total du rôle]]-K1571)","v":0}]
[null,null,null,null,null,null,null,0,null,null,null,{"$f":"SUM(Tableau2[[#This Row],[Total du rôle]]-K1572)","v":0}]
[null,null,null,null,null,null,null,0,null,null,null,{"$f":"SUM(Tableau2[[#This Row],[Total du rôle]]-K1573)","v":0}]
[null,null,null,null,null,null,null,0,null,null,null,{"$f":"SUM(Tableau2[[#This Row],[Total du rôle]]-K1574)","v":0}]
[null,null,null,null,null,null,null,0,null,null,null,{"$f":"SUM(Tableau2[[#This Row],[Total du rôle]]-K1575)","v":0}]
[null,null,null,null,null,null,null,0,null,null,null,{"$f":"SUM(Tableau2[[#This Row],[Total du rôle]]-K1576)","v":0}]
[null,null,null,null,null,null,null,0,null,null,null,{"$f":"SUM(Tableau2[[#This Row],[Total du rôle]]-K1577)","v":0}]
[null,null,null,null,null,null,null,0,null,null,null,{"$f":"SUM(Tableau2[[#This Row],[Total du rôle]]-K1578)","v":0}]
[null,null,null,null,null,null,null,0,null,null,null,{"$f":"SUM(Tableau2[[#This Row],[Total du rôle]]-K1579)","v":0}]
[null,null,null,null,null,null,null,0,null,null,null,{"$f":"SUM(Tableau2[[#This Row],[Total du rôle]]-K1580)","v":0}]
[null,null,null,null,null,null,null,0,null,null,null,{"$f":"SUM(Tableau2[[#This Row],[Total du rôle]]-K1581)","v":0}]
[null,null,null,null,null,null,null,0,null,null,null,{"$f":"SUM(Tableau2[[#This Row],[Total du rôle]]-K1582)","v":0}]
[null,null,null,null,null,null,null,0,null,null,null,{"$f":"SUM(Tableau2[[#This Row],[Total du rôle]]-K1583)","v":0}]
[null,null,null,null,null,null,null,0,null,null,null,{"$f":"SUM(Tableau2[[#This Row],[Total du rôle]]-K1584)","v":0}]
[null,null,null,null,null,null,null,0,null,null,null,{"$f":"SUM(Tableau2[[#This Row],[Total du rôle]]-K1585)","v":0}]
[null,null,null,null,null,null,null,0,null,null,null,{"$f":"SUM(Tableau2[[#This Row],[Total du rôle]]-K1586)","v":0}]
[null,null,null,null,null,null,null,0,null,null,null,{"$f":"SUM(Tableau2[[#This Row],[Total du rôle]]-K1587)","v":0}]
[null,null,null,null,null,null,null,0,null,null,null,{"$f":"SUM(Tableau2[[#This Row],[Total du rôle]]-K1588)","v":0}]
[null,null,null,null,null,null,null,0,null,null,null,{"$f":"SUM(Tableau2[[#This Row],[Total du rôle]]-K1589)","v":0}]
[null,null,null,null,null,null,null,0,null,null,null,{"$f":"SUM(Tableau2[[#This Row],[Total du rôle]]-K1590)","v":0}]
[null,null,null,null,null,null,null,0,null,null,null,{"$f":"SUM(Tableau2[[#This Row],[Total du rôle]]-K1591)","v":0}]
[null,null,null,null,null,null,null,0,null,null,null,{"$f":"SUM(Tableau2[[#This Row],[Total du rôle]]-K1592)","v":0}]
[null,null,null,null,null,null,null,0,null,null,null,{"$f":"SUM(Tableau2[[#This Row],[Total du rôle]]-K1593)","v":0}]
[null,null,null,null,null,null,null,0,null,null,null,{"$f":"SUM(Tableau2[[#This Row],[Total du rôle]]-K1594)","v":0}]
[null,null,null,null,null,null,null,0,null,null,null,{"$f":"SUM(Tableau2[[#This Row],[Total du rôle]]-K1595)","v":0}]
[null,null,null,null,null,null,null,0,null,null,null,{"$f":"SUM(Tableau2[[#This Row],[Total du rôle]]-K1596)","v":0}]
[null,null,null,null,null,null,null,0,null,null,null,{"$f":"SUM(Tableau2[[#This Row],[Total du rôle]]-K1597)","v":0}]
[null,null,null,null,null,null,null,0,null,null,null,{"$f":"SUM(Tableau2[[#This Row],[Total du rôle]]-K1598)","v":0}]
[null,null,null,null,null,null,null,0,null,null,null,{"$f":"SUM(Tableau2[[#This Row],[Total du rôle]]-K1599)","v":0}]
[null,null,null,null,null,null,null,0,null,null,null,{"$f":"SUM(Tableau2[[#This Row],[Total du rôle]]-K1600)","v":0}]
[null,null,null,null,null,null,null,0,null,null,null,{"$f":"SUM(Tableau2[[#This Row],[Total du rôle]]-K1601)","v":0}]
[null,null,null,null,null,null,null,0,null,null,null,{"$f":"SUM(Tableau2[[#This Row],[Total du rôle]]-K1602)","v":0}]
[null,null,null,null,null,null,null,0,null,null,null,{"$f":"SUM(Tableau2[[#This Row],[Total du rôle]]-K1603)","v":0}]
[null,null,null,null,null,null,null,{"$f":"SUM(F1604:G1604)","v":0},null,null,null,{"$f":"SUM(Tableau2[[#This Row],[Total du rôle]]-K1604)","v":0}]
[null,null,null,null,null,null,null,0,null,null,null,{"$f":"SUM(Tableau2[[#This Row],[Total du rôle]]-K1605)","v":0}]
[null,null,null,null,null,null,null,0,null,null,null,{"$f":"SUM(Tableau2[[#This Row],[Total du rôle]]-K1606)","v":0}]
[null,null,null,null,null,null,null,0,null,null,null,{"$f":"SUM(Tableau2[[#This Row],[Total du rôle]]-K1607)","v":0}]
[null,null,null,null,null,null,null,0,null,null,null,{"$f":"SUM(Tableau2[[#This Row],[Total du rôle]]-K1608)","v":0}]
[null,null,null,null,null,null,null,0,null,null,null,{"$f":"SUM(Tableau2[[#This Row],[Total du rôle]]-K1609)","v":0}]
[null,null,null,null,null,null,null,0,null,null,null,{"$f":"SUM(Tableau2[[#This Row],[Total du rôle]]-K1610)","v":0}]
[null,null,null,null,null,null,null,0,null,null,null,{"$f":"SUM(Tableau2[[#This Row],[Total du rôle]]-K1611)","v":0}]
[null,null,null,null,null,null,null,0,null,null,null,{"$f":"SUM(Tableau2[[#This Row],[Total du rôle]]-K1612)","v":0}]
[null,null,null,null,null,null,null,0,null,null,null,{"$f":"SUM(Tableau2[[#This Row],[Total du rôle]]-K1613)","v":0}]
[null,null,null,null,null,null,null,0,null,null,null,{"$f":"SUM(Tableau2[[#This Row],[Total du rôle]]-K1614)","v":0}]
[null,null,null,null,null,null,null,0,null,null,null,{"$f":"SUM(Tableau2[[#This Row],[Total du rôle]]-K1615)","v":0}]
[null,null,null,null,null,null,null,0,null,null,null,{"$f":"SUM(Tableau2[[#This Row],[Total du rôle]]-K1616)","v":0}]
[null,null,null,null,null,null,null,0,null,null,null,{"$f":"SUM(Tableau2[[#This Row],[Total du rôle]]-K1617)","v":0}]
[null,null,null,null,null,null,null,0,null,null,null,{"$f":"SUM(Tableau2[[#This Row],[Total du rôle]]-K1618)","v":0}]
[null,null,null,null,null,null,null,0,null,null,null,{"$f":"SUM(Tableau2[[#This Row],[Total du rôle]]-K1619)","v":0}]
[null,null,null,null,null,null,null,0,null,null,null,{"$f":"SUM(Tableau2[[#This Row],[Total du rôle]]-K1620)","v":0}]
[null,null,null,null,null,null,null,0,null,null,null,{"$f":"SUM(Tableau2[[#This Row],[Total du rôle]]-K1621)","v":0}]
[null,null,null,null,null,null,null,0,null,null,null,{"$f":"SUM(Tableau2[[#This Row],[Total du rôle]]-K1622)","v":0}]
[null,null,null,null,null,null,null,0,null,null,null,{"$f":"SUM(Tableau2[[#This Row],[Total du rôle]]-K1623)","v":0}]
[null,null,null,null,null,null,null,0,null,null,null,{"$f":"SUM(Tableau2[[#This Row],[Total du rôle]]-K1624)","v":0}]
[null,null,null,null,null,null,null,0,null,null,null,{"$f":"SUM(Tableau2[[#This Row],[Total du rôle]]-K1625)","v":0}]
[null,null,null,null,null,null,null,0,null,null,null,{"$f":"SUM(Tableau2[[#This Row],[Total du rôle]]-K1626)","v":0}]
[null,null,null,null,null,null,null,0,null,null,null,{"$f":"SUM(Tableau2[[#This Row],[Total du rôle]]-K1627)","v":0}]
[null,null,null,null,null,null,null,0,null,null,null,{"$f":"SUM(Tableau2[[#This Row],[Total du rôle]]-K1628)","v":0}]
[null,null,null,null,null,null,null,0,null,null,null,{"$f":"SUM(Tableau2[[#This Row],[Total du rôle]]-K1629)","v":0}]
[null,null,null,null,null,null,null,0,null,null,null,{"$f":"SUM(Tableau2[[#This Row],[Total du rôle]]-K1630)","v":0}]
[null,null,null,null,null,null,null,0,null,null,null,{"$f":"SUM(Tableau2[[#This Row],[Total du rôle]]-K1631)","v":0}]
[null,null,null,null,null,null,null,0,null,null,null,{"$f":"SUM(Tableau2[[#This Row],[Total du rôle]]-K1632)","v":0}]
[null,null,null,null,null,null,null,0,null,null,null,{"$f":"SUM(Tableau2[[#This Row],[Total du rôle]]-K1633)","v":0}]
[null,null,null,null,null,null,null,0,null,null,null,{"$f":"SUM(Tableau2[[#This Row],[Total du rôle]]-K1634)","v":0}]
[null,null,null,null,null,null,null,0,null,null,null,{"$f":"SUM(Tableau2[[#This Row],[Total du rôle]]-K1635)","v":0}]
[null,null,null,null,null,null,null,0,null,null,null,{"$f":"SUM(Tableau2[[#This Row],[Total du rôle]]-K1636)","v":0}]
[null,null,null,null,null,null,null,0,null,null,null,{"$f":"SUM(Tableau2[[#This Row],[Total du rôle]]-K1637)","v":0}]
[null,null,null,null,null,null,null,0,null,null,null,{"$f":"SUM(Tableau2[[#This Row],[Total du rôle]]-K1638)","v":0}]
[null,null,null,null,null,null,null,0,null,null,null,{"$f":"SUM(Tableau2[[#This Row],[Total du rôle]]-K1639)","v":0}]
[null,null,null,null,null,null,null,0,null,null,null,{"$f":"SUM(Tableau2[[#This Row],[Total du rôle]]-K1640)","v":0}]
[null,null,null,null,null,null,null,0,null,null,null,{"$f":"SUM(Tableau2[[#This Row],[Total du rôle]]-K1641)","v":0}]
[null,null,null,null,null,null,null,0,null,null,null,{"$f":"SUM(Tableau2[[#This Row],[Total du rôle]]-K1642)","v":0}]
[null,null,null,null,null,null,null,0,null,null,null,{"$f":"SUM(Tableau2[[#This Row],[Total du rôle]]-K1643)","v":0}]
[null,null,null,null,null,null,null,0,null,null,null,{"$f":"SUM(Tableau2[[#This Row],[Total du rôle]]-K1644)","v":0}]
[null,null,null,null,null,null,null,0,null,null,null,{"$f":"SUM(Tableau2[[#This Row],[Total du rôle]]-K1645)","v":0}]
[null,null,null,null,null,null,null,0,null,null,null,{"$f":"SUM(Tableau2[[#This Row],[Total du rôle]]-K1646)","v":0}]
[null,null,null,null,null,null,null,0,null,null,null,{"$f":"SUM(Tableau2[[#This Row],[Total du rôle]]-K1647)","v":0}]
[null,null,null,null,null,null,null,0,null,null,null,{"$f":"SUM(Tableau2[[#This Row],[Total du rôle]]-K1648)","v":0}]
[null,null,null,null,null,null,null,0,null,null,null,{"$f":"SUM(Tableau2[[#This Row],[Total du rôle]]-K1649)","v":0}]
[null,null,null,null,null,null,null,0,null,null,null,{"$f":"SUM(Tableau2[[#This Row],[Total du rôle]]-K1650)","v":0}]
[null,null,null,null,null,null,null,0,null,null,null,{"$f":"SUM(Tableau2[[#This Row],[Total du rôle]]-K1651)","v":0}]
[null,null,null,null,null,null,null,0,null,null,null,{"$f":"SUM(Tableau2[[#This Row],[Total du rôle]]-K1652)","v":0}]
[null,null,null,null,null,null,null,0,null,null,null,{"$f":"SUM(Tableau2[[#This Row],[Total du rôle]]-K1653)","v":0}]
[null,null,null,null,null,null,null,0,null,null,null,{"$f":"SUM(Tableau2[[#This Row],[Total du rôle]]-K1654)","v":0}]
[null,null,null,null,null,null,null,0,null,null,null,{"$f":"SUM(Tableau2[[#This Row],[Total du rôle]]-K1655)","v":0}]
[null,null,null,null,null,null,null,0,null,null,null,{"$f":"SUM(Tableau2[[#This Row],[Total du rôle]]-K1656)","v":0}]
[null,null,null,null,null,null,null,0,null,null,null,{"$f":"SUM(Tableau2[[#This Row],[Total du rôle]]-K1657)","v":0}]
[null,null,null,null,null,null,null,0,null,null,null,{"$f":"SUM(Tableau2[[#This Row],[Total du rôle]]-K1658)","v":0}]
[null,null,null,null,null,null,null,0,null,null,null,{"$f":"SUM(Tableau2[[#This Row],[Total du rôle]]-K1659)","v":0}]
[null,null,null,null,null,null,null,0,null,null,null,{"$f":"SUM(Tableau2[[#This Row],[Total du rôle]]-K1660)","v":0}]
[null,null,null,null,null,null,null,0,null,null,null,{"$f":"SUM(Tableau2[[#This Row],[Total du rôle]]-K1661)","v":0}]
[null,null,null,null,null,null,null,0,null,null,null,{"$f":"SUM(Tableau2[[#This Row],[Total du rôle]]-K1662)","v":0}]
[null,null,null,null,null,null,null,0,null,null,null,{"$f":"SUM(Tableau2[[#This Row],[Total du rôle]]-K1663)","v":0}]
[null,null,null,null,null,null,null,0,null,null,null,{"$f":"SUM(Tableau2[[#This Row],[Total du rôle]]-K1664)","v":0}]
[null,null,null,null,null,null,null,0,null,null,null,{"$f":"SUM(Tableau2[[#This Row],[Total du rôle]]-K1665)","v":0}]
[null,null,null,null,null,null,null,0,null,null,null,{"$f":"SUM(Tableau2[[#This Row],[Total du rôle]]-K1666)","v":0}]
[null,null,null,null,null,null,null,0,null,null,null,{"$f":"SUM(Tableau2[[#This Row],[Total du rôle]]-K1667)","v":0}]
[null,null,null,null,null,null,null,{"$f":"SUM(F1668:G1668)","v":0},null,null,null,{"$f":"SUM(Tableau2[[#This Row],[Total du rôle]]-K1668)","v":0}]
[null,null,null,null,null,null,null,0,null,null,null,{"$f":"SUM(Tableau2[[#This Row],[Total du rôle]]-K1669)","v":0}]
[null,null,null,null,null,null,null,0,null,null,null,{"$f":"SUM(Tableau2[[#This Row],[Total du rôle]]-K1670)","v":0}]
[null,null,null,null,null,null,null,0,null,null,null,{"$f":"SUM(Tableau2[[#This Row],[Total du rôle]]-K1671)","v":0}]
[null,null,null,null,null,null,null,0,null,null,null,{"$f":"SUM(Tableau2[[#This Row],[Total du rôle]]-K1672)","v":0}]
[null,null,null,null,null,null,null,0,null,null,null,{"$f":"SUM(Tableau2[[#This Row],[Total du rôle]]-K1673)","v":0}]
[null,null,null,null,null,null,null,0,null,null,null,{"$f":"SUM(Tableau2[[#This Row],[Total du rôle]]-K1674)","v":0}]
[null,null,null,null,null,null,null,0,null,null,null,{"$f":"SUM(Tableau2[[#This Row],[Total du rôle]]-K1675)","v":0}]
[null,null,null,null,null,null,null,0,null,null,null,{"$f":"SUM(Tableau2[[#This Row],[Total du rôle]]-K1676)","v":0}]
[null,null,null,null,null,null,null,0,null,null,null,{"$f":"SUM(Tableau2[[#This Row],[Total du rôle]]-K1677)","v":0}]
[null,null,null,null,null,null,null,0,null,null,null,{"$f":"SUM(Tableau2[[#This Row],[Total du rôle]]-K1678)","v":0}]
[null,null,null,null,null,null,null,0,null,null,null,{"$f":"SUM(Tableau2[[#This Row],[Total du rôle]]-K1679)","v":0}]
[null,null,null,null,null,null,null,0,null,null,null,{"$f":"SUM(Tableau2[[#This Row],[Total du rôle]]-K1680)","v":0}]
[null,null,null,null,null,null,null,0,null,null,null,{"$f":"SUM(Tableau2[[#This Row],[Total du rôle]]-K1681)","v":0}]
[null,null,null,null,null,null,null,0,null,null,null,{"$f":"SUM(Tableau2[[#This Row],[Total du rôle]]-K1682)","v":0}]
[null,null,null,null,null,null,null,0,null,null,null,{"$f":"SUM(Tableau2[[#This Row],[Total du rôle]]-K1683)","v":0}]
[null,null,null,null,null,null,null,0,null,null,null,{"$f":"SUM(Tableau2[[#This Row],[Total du rôle]]-K1684)","v":0}]
[null,null,null,null,null,null,null,0,null,null,null,{"$f":"SUM(Tableau2[[#This Row],[Total du rôle]]-K1685)","v":0}]
[null,null,null,null,null,null,null,0,null,null,null,{"$f":"SUM(Tableau2[[#This Row],[Total du rôle]]-K1686)","v":0}]
[null,null,null,null,null,null,null,0,null,null,null,{"$f":"SUM(Tableau2[[#This Row],[Total du rôle]]-K1687)","v":0}]
[null,null,null,null,null,null,null,0,null,null,null,{"$f":"SUM(Tableau2[[#This Row],[Total du rôle]]-K1688)","v":0}]
[null,null,null,null,null,null,null,0,null,null,null,{"$f":"SUM(Tableau2[[#This Row],[Total du rôle]]-K1689)","v":0}]
[null,null,null,null,null,null,null,0,null,null,null,{"$f":"SUM(Tableau2[[#This Row],[Total du rôle]]-K1690)","v":0}]
[null,null,null,null,null,null,null,0,null,null,null,{"$f":"SUM(Tableau2[[#This Row],[Total du rôle]]-K1691)","v":0}]
[null,null,null,null,null,null,null,0,null,null,null,{"$f":"SUM(Tableau2[[#This Row],[Total du rôle]]-K1692)","v":0}]
[null,null,null,null,null,null,null,0,null,null,null,{"$f":"SUM(Tableau2[[#This Row],[Total du rôle]]-K1693)","v":0}]
[null,null,null,null,null,null,null,0,null,null,null,{"$f":"SUM(Tableau2[[#This Row],[Total du rôle]]-K1694)","v":0}]
[null,null,null,null,null,null,null,0,null,null,null,{"$f":"SUM(Tableau2[[#This Row],[Total du rôle]]-K1695)","v":0}]
[null,null,null,null,null,null,null,0,null,null,null,{"$f":"SUM(Tableau2[[#This Row],[Total du rôle]]-K1696)","v":0}]
[null,null,null,null,null,null,null,0,null,null,null,{"$f":"SUM(Tableau2[[#This Row],[Total du rôle]]-K1697)","v":0}]
[null,null,null,null,null,null,null,0,null,null,null,{"$f":"SUM(Tableau2[[#This Row],[Total du rôle]]-K1698)","v":0}]
[null,null,null,null,null,null,null,0,null,null,null,{"$f":"SUM(Tableau2[[#This Row],[Total du rôle]]-K1699)","v":0}]
[null,null,null,null,null,null,null,0,null,null,null,{"$f":"SUM(Tableau2[[#This Row],[Total du rôle]]-K1700)","v":0}]
[null,null,null,null,null,null,null,0,null,null,null,{"$f":"SUM(Tableau2[[#This Row],[Total du rôle]]-K1701)","v":0}]
[null,null,null,null,null,null,null,0,null,null,null,{"$f":"SUM(Tableau2[[#This Row],[Total du rôle]]-K1702)","v":0}]
[null,null,null,null,null,null,null,0,null,null,null,{"$f":"SUM(Tableau2[[#This Row],[Total du rôle]]-K1703)","v":0}]
[null,null,null,null,null,null,null,0,null,null,null,{"$f":"SUM(Tableau2[[#This Row],[Total du rôle]]-K1704)","v":0}]
[null,null,null,null,null,null,null,0,null,null,null,{"$f":"SUM(Tableau2[[#This Row],[Total du rôle]]-K1705)","v":0}]
[null,null,null,null,null,null,null,0,null,null,null,{"$f":"SUM(Tableau2[[#This Row],[Total du rôle]]-K1706)","v":0}]
[null,null,null,null,null,null,null,0,null,null,null,{"$f":"SUM(Tableau2[[#This Row],[Total du rôle]]-K1707)","v":0}]
[null,null,null,null,null,null,null,0,null,null,null,{"$f":"SUM(Tableau2[[#This Row],[Total du rôle]]-K1708)","v":0}]
[null,null,null,null,null,null,null,0,null,null,null,{"$f":"SUM(Tableau2[[#This Row],[Total du rôle]]-K1709)","v":0}]
[null,null,null,null,null,null,null,0,null,null,null,{"$f":"SUM(Tableau2[[#This Row],[Total du rôle]]-K1710)","v":0}]
[null,null,null,null,null,null,null,0,null,null,null,{"$f":"SUM(Tableau2[[#This Row],[Total du rôle]]-K1711)","v":0}]
[null,null,null,null,null,null,null,0,null,null,null,{"$f":"SUM(Tableau2[[#This Row],[Total du rôle]]-K1712)","v":0}]
[null,null,null,null,null,null,null,0,null,null,null,{"$f":"SUM(Tableau2[[#This Row],[Total du rôle]]-K1713)","v":0}]
[null,null,null,null,null,null,null,0,null,null,null,{"$f":"SUM(Tableau2[[#This Row],[Total du rôle]]-K1714)","v":0}]
[null,null,null,null,null,null,null,0,null,null,null,{"$f":"SUM(Tableau2[[#This Row],[Total du rôle]]-K1715)","v":0}]
[null,null,null,null,null,null,null,0,null,null,null,{"$f":"SUM(Tableau2[[#This Row],[Total du rôle]]-K1716)","v":0}]
[null,null,null,null,null,null,null,0,null,null,null,{"$f":"SUM(Tableau2[[#This Row],[Total du rôle]]-K1717)","v":0}]
[null,null,null,null,null,null,null,0,null,null,null,{"$f":"SUM(Tableau2[[#This Row],[Total du rôle]]-K1718)","v":0}]
[null,null,null,null,null,null,null,0,null,null,null,{"$f":"SUM(Tableau2[[#This Row],[Total du rôle]]-K1719)","v":0}]
[null,null,null,null,null,null,null,0,null,null,null,{"$f":"SUM(Tableau2[[#This Row],[Total du rôle]]-K1720)","v":0}]
[null,null,null,null,null,null,null,0,null,null,null,{"$f":"SUM(Tableau2[[#This Row],[Total du rôle]]-K1721)","v":0}]
[null,null,null,null,null,null,null,0,null,null,null,{"$f":"SUM(Tableau2[[#This Row],[Total du rôle]]-K1722)","v":0}]
[null,null,null,null,null,null,null,0,null,null,null,{"$f":"SUM(Tableau2[[#This Row],[Total du rôle]]-K1723)","v":0}]
[null,null,null,null,null,null,null,0,null,null,null,{"$f":"SUM(Tableau2[[#This Row],[Total du rôle]]-K1724)","v":0}]
[null,null,null,null,null,null,null,0,null,null,null,{"$f":"SUM(Tableau2[[#This Row],[Total du rôle]]-K1725)","v":0}]
[null,null,null,null,null,null,null,0,null,null,null,{"$f":"SUM(Tableau2[[#This Row],[Total du rôle]]-K1726)","v":0}]
[null,null,null,null,null,null,null,0,null,null,null,{"$f":"SUM(Tableau2[[#This Row],[Total du rôle]]-K1727)","v":0}]
[null,null,null,null,null,null,null,0,null,null,null,{"$f":"SUM(Tableau2[[#This Row],[Total du rôle]]-K1728)","v":0}]
[null,null,null,null,null,null,null,0,null,null,null,{"$f":"SUM(Tableau2[[#This Row],[Total du rôle]]-K1729)","v":0}]
[null,null,null,null,null,null,null,0,null,null,null,{"$f":"SUM(Tableau2[[#This Row],[Total du rôle]]-K1730)","v":0}]
[null,null,null,null,null,null,null,0,null,null,null,{"$f":"SUM(Tableau2[[#This Row],[Total du rôle]]-K1731)","v":0}]
[null,null,null,null,null,null,null,{"$f":"SUM(F1732:G1732)","v":0},null,null,null,{"$f":"SUM(Tableau2[[#This Row],[Total du rôle]]-K1732)","v":0}]
[null,null,null,null,null,null,null,0,null,null,null,{"$f":"SUM(Tableau2[[#This Row],[Total du rôle]]-K1733)","v":0}]
[null,null,null,null,null,null,null,0,null,null,null,{"$f":"SUM(Tableau2[[#This Row],[Total du rôle]]-K1734)","v":0}]
[null,null,null,null,null,null,null,0,null,null,null,{"$f":"SUM(Tableau2[[#This Row],[Total du rôle]]-K1735)","v":0}]
[null,null,null,null,null,null,null,0,null,null,null,{"$f":"SUM(Tableau2[[#This Row],[Total du rôle]]-K1736)","v":0}]
[null,null,null,null,null,null,null,0,null,null,null,{"$f":"SUM(Tableau2[[#This Row],[Total du rôle]]-K1737)","v":0}]
[null,null,null,null,null,null,null,0,null,null,null,{"$f":"SUM(Tableau2[[#This Row],[Total du rôle]]-K1738)","v":0}]
[null,null,null,null,null,null,null,0,null,null,null,{"$f":"SUM(Tableau2[[#This Row],[Total du rôle]]-K1739)","v":0}]
[null,null,null,null,null,null,null,0,null,null,null,{"$f":"SUM(Tableau2[[#This Row],[Total du rôle]]-K1740)","v":0}]
[null,null,null,null,null,null,null,0,null,null,null,{"$f":"SUM(Tableau2[[#This Row],[Total du rôle]]-K1741)","v":0}]
[null,null,null,null,null,null,null,0,null,null,null,{"$f":"SUM(Tableau2[[#This Row],[Total du rôle]]-K1742)","v":0}]
[null,null,null,null,null,null,null,0,null,null,null,{"$f":"SUM(Tableau2[[#This Row],[Total du rôle]]-K1743)","v":0}]
[null,null,null,null,null,null,null,0,null,null,null,{"$f":"SUM(Tableau2[[#This Row],[Total du rôle]]-K1744)","v":0}]
[null,null,null,null,null,null,null,0,null,null,null,{"$f":"SUM(Tableau2[[#This Row],[Total du rôle]]-K1745)","v":0}]
[null,null,null,null,null,null,null,0,null,null,null,{"$f":"SUM(Tableau2[[#This Row],[Total du rôle]]-K1746)","v":0}]
[null,null,null,null,null,null,null,0,null,null,null,{"$f":"SUM(Tableau2[[#This Row],[Total du rôle]]-K1747)","v":0}]
[null,null,null,null,null,null,null,0,null,null,null,{"$f":"SUM(Tableau2[[#This Row],[Total du rôle]]-K1748)","v":0}]
[null,null,null,null,null,null,null,0,null,null,null,{"$f":"SUM(Tableau2[[#This Row],[Total du rôle]]-K1749)","v":0}]
[null,null,null,null,null,null,null,0,null,null,null,{"$f":"SUM(Tableau2[[#This Row],[Total du rôle]]-K1750)","v":0}]
[null,null,null,null,null,null,null,0,null,null,null,{"$f":"SUM(Tableau2[[#This Row],[Total du rôle]]-K1751)","v":0}]
[null,null,null,null,null,null,null,0,null,null,null,{"$f":"SUM(Tableau2[[#This Row],[Total du rôle]]-K1752)","v":0}]
[null,null,null,null,null,null,null,0,null,null,null,{"$f":"SUM(Tableau2[[#This Row],[Total du rôle]]-K1753)","v":0}]
[null,null,null,null,null,null,null,0,null,null,null,{"$f":"SUM(Tableau2[[#This Row],[Total du rôle]]-K1754)","v":0}]
[null,null,null,null,null,null,null,0,null,null,null,{"$f":"SUM(Tableau2[[#This Row],[Total du rôle]]-K1755)","v":0}]
[null,null,null,null,null,null,null,0,null,null,null,{"$f":"SUM(Tableau2[[#This Row],[Total du rôle]]-K1756)","v":0}]
[null,null,null,null,null,null,null,0,null,null,null,{"$f":"SUM(Tableau2[[#This Row],[Total du rôle]]-K1757)","v":0}]
[null,null,null,null,null,null,null,0,null,null,null,{"$f":"SUM(Tableau2[[#This Row],[Total du rôle]]-K1758)","v":0}]
[null,null,null,null,null,null,null,0,null,null,null,{"$f":"SUM(Tableau2[[#This Row],[Total du rôle]]-K1759)","v":0}]
[null,null,null,null,null,null,null,0,null,null,null,{"$f":"SUM(Tableau2[[#This Row],[Total du rôle]]-K1760)","v":0}]
[null,null,null,null,null,null,null,0,null,null,null,{"$f":"SUM(Tableau2[[#This Row],[Total du rôle]]-K1761)","v":0}]
[null,null,null,null,null,null,null,0,null,null,null,{"$f":"SUM(Tableau2[[#This Row],[Total du rôle]]-K1762)","v":0}]
[null,null,null,null,null,null,null,0,null,null,null,{"$f":"SUM(Tableau2[[#This Row],[Total du rôle]]-K1763)","v":0}]
[null,null,null,null,null,null,null,0,null,null,null,{"$f":"SUM(Tableau2[[#This Row],[Total du rôle]]-K1764)","v":0}]
[null,null,null,null,null,null,null,0,null,null,null,{"$f":"SUM(Tableau2[[#This Row],[Total du rôle]]-K1765)","v":0}]
[null,null,null,null,null,null,null,0,null,null,null,{"$f":"SUM(Tableau2[[#This Row],[Total du rôle]]-K1766)","v":0}]
[null,null,null,null,null,null,null,0,null,null,null,{"$f":"SUM(Tableau2[[#This Row],[Total du rôle]]-K1767)","v":0}]
[null,null,null,null,null,null,null,0,null,null,null,{"$f":"SUM(Tableau2[[#This Row],[Total du rôle]]-K1768)","v":0}]
[null,null,null,null,null,null,null,0,null,null,null,{"$f":"SUM(Tableau2[[#This Row],[Total du rôle]]-K1769)","v":0}]
[null,null,null,null,null,null,null,0,null,null,null,{"$f":"SUM(Tableau2[[#This Row],[Total du rôle]]-K1770)","v":0}]
[null,null,null,null,null,null,null,0,null,null,null,{"$f":"SUM(Tableau2[[#This Row],[Total du rôle]]-K1771)","v":0}]
[null,null,null,null,null,null,null,0,null,null,null,{"$f":"SUM(Tableau2[[#This Row],[Total du rôle]]-K1772)","v":0}]
[null,null,null,null,null,null,null,0,null,null,null,{"$f":"SUM(Tableau2[[#This Row],[Total du rôle]]-K1773)","v":0}]
[null,null,null,null,null,null,null,0,null,null,null,{"$f":"SUM(Tableau2[[#This Row],[Total du rôle]]-K1774)","v":0}]
[null,null,null,null,null,null,null,0,null,null,null,{"$f":"SUM(Tableau2[[#This Row],[Total du rôle]]-K1775)","v":0}]
[null,null,null,null,null,null,null,0,null,null,null,{"$f":"SUM(Tableau2[[#This Row],[Total du rôle]]-K1776)","v":0}]
[null,null,null,null,null,null,null,0,null,null,null,{"$f":"SUM(Tableau2[[#This Row],[Total du rôle]]-K1777)","v":0}]
[null,null,null,null,null,null,null,0,null,null,null,{"$f":"SUM(Tableau2[[#This Row],[Total du rôle]]-K1778)","v":0}]
[null,null,null,null,null,null,null,0,null,null,null,{"$f":"SUM(Tableau2[[#This Row],[Total du rôle]]-K1779)","v":0}]
[null,null,null,null,null,null,null,0,null,null,null,{"$f":"SUM(Tableau2[[#This Row],[Total du rôle]]-K1780)","v":0}]
[null,null,null,null,null,null,null,0,null,null,null,{"$f":"SUM(Tableau2[[#This Row],[Total du rôle]]-K1781)","v":0}]
[null,null,null,null,null,null,null,0,null,null,null,{"$f":"SUM(Tableau2[[#This Row],[Total du rôle]]-K1782)","v":0}]
[null,null,null,null,null,null,null,0,null,null,null,{"$f":"SUM(Tableau2[[#This Row],[Total du rôle]]-K1783)","v":0}]
[null,null,null,null,null,null,null,0,null,null,null,{"$f":"SUM(Tableau2[[#This Row],[Total du rôle]]-K1784)","v":0}]
[null,null,null,null,null,null,null,0,null,null,null,{"$f":"SUM(Tableau2[[#This Row],[Total du rôle]]-K1785)","v":0}]
[null,null,null,null,null,null,null,0,null,null,null,{"$f":"SUM(Tableau2[[#This Row],[Total du rôle]]-K1786)","v":0}]
[null,null,null,null,null,null,null,0,null,null,null,{"$f":"SUM(Tableau2[[#This Row],[Total du rôle]]-K1787)","v":0}]
[null,null,null,null,null,null,null,0,null,null,null,{"$f":"SUM(Tableau2[[#This Row],[Total du rôle]]-K1788)","v":0}]
[null,null,null,null,null,null,null,0,null,null,null,{"$f":"SUM(Tableau2[[#This Row],[Total du rôle]]-K1789)","v":0}]
[null,null,null,null,null,null,null,0,null,null,null,{"$f":"SUM(Tableau2[[#This Row],[Total du rôle]]-K1790)","v":0}]
[null,null,null,null,null,null,null,0,null,null,null,{"$f":"SUM(Tableau2[[#This Row],[Total du rôle]]-K1791)","v":0}]
[null,null,null,null,null,null,null,0,null,null,null,{"$f":"SUM(Tableau2[[#This Row],[Total du rôle]]-K1792)","v":0}]
[null,null,null,null,null,null,null,0,null,null,null,{"$f":"SUM(Tableau2[[#This Row],[Total du rôle]]-K1793)","v":0}]
[null,null,null,null,null,null,null,0,null,null,null,{"$f":"SUM(Tableau2[[#This Row],[Total du rôle]]-K1794)","v":0}]
[null,null,null,null,null,null,null,0,null,null,null,{"$f":"SUM(Tableau2[[#This Row],[Total du rôle]]-K1795)","v":0}]
[null,null,null,null,null,null,null,{"$f":"SUM(F1796:G1796)","v":0},null,null,null,{"$f":"SUM(Tableau2[[#This Row],[Total du rôle]]-K1796)","v":0}]
[null,null,null,null,null,null,null,0,null,null,null,{"$f":"SUM(Tableau2[[#This Row],[Total du rôle]]-K1797)","v":0}]
[null,null,null,null,null,null,null,0,null,null,null,{"$f":"SUM(Tableau2[[#This Row],[Total du rôle]]-K1798)","v":0}]
[null,null,null,null,null,null,null,0,null,null,null,{"$f":"SUM(Tableau2[[#This Row],[Total du rôle]]-K1799)","v":0}]
[null,null,null,null,null,null,null,0,null,null,null,{"$f":"SUM(Tableau2[[#This Row],[Total du rôle]]-K1800)","v":0}]
[null,null,null,null,null,null,null,0,null,null,null,{"$f":"SUM(Tableau2[[#This Row],[Total du rôle]]-K1801)","v":0}]
[null,null,null,null,null,null,null,0,null,null,null,{"$f":"SUM(Tableau2[[#This Row],[Total du rôle]]-K1802)","v":0}]
[null,null,null,null,null,null,null,0,null,null,null,{"$f":"SUM(Tableau2[[#This Row],[Total du rôle]]-K1803)","v":0}]
[null,null,null,null,null,null,null,0,null,null,null,{"$f":"SUM(Tableau2[[#This Row],[Total du rôle]]-K1804)","v":0}]
[null,null,null,null,null,null,null,0,null,null,null,{"$f":"SUM(Tableau2[[#This Row],[Total du rôle]]-K1805)","v":0}]
[null,null,null,null,null,null,null,0,null,null,null,{"$f":"SUM(Tableau2[[#This Row],[Total du rôle]]-K1806)","v":0}]
[null,null,null,null,null,null,null,0,null,null,null,{"$f":"SUM(Tableau2[[#This Row],[Total du rôle]]-K1807)","v":0}]
[null,null,null,null,null,null,null,0,null,null,null,{"$f":"SUM(Tableau2[[#This Row],[Total du rôle]]-K1808)","v":0}]
[null,null,null,null,null,null,null,0,null,null,null,{"$f":"SUM(Tableau2[[#This Row],[Total du rôle]]-K1809)","v":0}]
[null,null,null,null,null,null,null,0,null,null,null,{"$f":"SUM(Tableau2[[#This Row],[Total du rôle]]-K1810)","v":0}]
[null,null,null,null,null,null,null,0,null,null,null,{"$f":"SUM(Tableau2[[#This Row],[Total du rôle]]-K1811)","v":0}]
[null,null,null,null,null,null,null,0,null,null,null,{"$f":"SUM(Tableau2[[#This Row],[Total du rôle]]-K1812)","v":0}]
[null,null,null,null,null,null,null,0,null,null,null,{"$f":"SUM(Tableau2[[#This Row],[Total du rôle]]-K1813)","v":0}]
[null,null,null,null,null,null,null,0,null,null,null,{"$f":"SUM(Tableau2[[#This Row],[Total du rôle]]-K1814)","v":0}]
[null,null,null,null,null,null,null,0,null,null,null,{"$f":"SUM(Tableau2[[#This Row],[Total du rôle]]-K1815)","v":0}]
[null,null,null,null,null,null,null,0,null,null,null,{"$f":"SUM(Tableau2[[#This Row],[Total du rôle]]-K1816)","v":0}]
[null,null,null,null,null,null,null,0,null,null,null,{"$f":"SUM(Tableau2[[#This Row],[Total du rôle]]-K1817)","v":0}]
[null,null,null,null,null,null,null,0,null,null,null,{"$f":"SUM(Tableau2[[#This Row],[Total du rôle]]-K1818)","v":0}]
[null,null,null,null,null,null,null,0,null,null,null,{"$f":"SUM(Tableau2[[#This Row],[Total du rôle]]-K1819)","v":0}]
[null,null,null,null,null,null,null,0,null,null,null,{"$f":"SUM(Tableau2[[#This Row],[Total du rôle]]-K1820)","v":0}]
[null,null,null,null,null,null,null,0,null,null,null,{"$f":"SUM(Tableau2[[#This Row],[Total du rôle]]-K1821)","v":0}]
[null,null,null,null,null,null,null,0,null,null,null,{"$f":"SUM(Tableau2[[#This Row],[Total du rôle]]-K1822)","v":0}]
[null,null,null,null,null,null,null,0,null,null,null,{"$f":"SUM(Tableau2[[#This Row],[Total du rôle]]-K1823)","v":0}]
[null,null,null,null,null,null,null,0,null,null,null,{"$f":"SUM(Tableau2[[#This Row],[Total du rôle]]-K1824)","v":0}]
[null,null,null,null,null,null,null,0,null,null,null,{"$f":"SUM(Tableau2[[#This Row],[Total du rôle]]-K1825)","v":0}]
[null,null,null,null,null,null,null,0,null,null,null,{"$f":"SUM(Tableau2[[#This Row],[Total du rôle]]-K1826)","v":0}]
[null,null,null,null,null,null,null,0,null,null,null,{"$f":"SUM(Tableau2[[#This Row],[Total du rôle]]-K1827)","v":0}]
[null,null,null,null,null,null,null,0,null,null,null,{"$f":"SUM(Tableau2[[#This Row],[Total du rôle]]-K1828)","v":0}]
[null,null,null,null,null,null,null,0,null,null,null,{"$f":"SUM(Tableau2[[#This Row],[Total du rôle]]-K1829)","v":0}]
[null,null,null,null,null,null,null,0,null,null,null,{"$f":"SUM(Tableau2[[#This Row],[Total du rôle]]-K1830)","v":0}]
[null,null,null,null,null,null,null,0,null,null,null,{"$f":"SUM(Tableau2[[#This Row],[Total du rôle]]-K1831)","v":0}]
[null,null,null,null,null,null,null,0,null,null,null,{"$f":"SUM(Tableau2[[#This Row],[Total du rôle]]-K1832)","v":0}]
[null,null,null,null,null,null,null,0,null,null,null,{"$f":"SUM(Tableau2[[#This Row],[Total du rôle]]-K1833)","v":0}]
[null,null,null,null,null,null,null,0,null,null,null,{"$f":"SUM(Tableau2[[#This Row],[Total du rôle]]-K1834)","v":0}]
[null,null,null,null,null,null,null,0,null,null,null,{"$f":"SUM(Tableau2[[#This Row],[Total du rôle]]-K1835)","v":0}]
[null,null,null,null,null,null,null,0,null,null,null,{"$f":"SUM(Tableau2[[#This Row],[Total du rôle]]-K1836)","v":0}]
[null,null,null,null,null,null,null,0,null,null,null,{"$f":"SUM(Tableau2[[#This Row],[Total du rôle]]-K1837)","v":0}]
[null,null,null,null,null,null,null,0,null,null,null,{"$f":"SUM(Tableau2[[#This Row],[Total du rôle]]-K1838)","v":0}]
[null,null,null,null,null,null,null,0,null,null,null,{"$f":"SUM(Tableau2[[#This Row],[Total du rôle]]-K1839)","v":0}]
[null,null,null,null,null,null,null,0,null,null,null,{"$f":"SUM(Tableau2[[#This Row],[Total du rôle]]-K1840)","v":0}]
[null,null,null,null,null,null,null,0,null,null,null,{"$f":"SUM(Tableau2[[#This Row],[Total du rôle]]-K1841)","v":0}]
[null,null,null,null,null,null,null,0,null,null,null,{"$f":"SUM(Tableau2[[#This Row],[Total du rôle]]-K1842)","v":0}]
[null,null,null,null,null,null,null,0,null,null,null,{"$f":"SUM(Tableau2[[#This Row],[Total du rôle]]-K1843)","v":0}]
[null,null,null,null,null,null,null,0,null,null,null,{"$f":"SUM(Tableau2[[#This Row],[Total du rôle]]-K1844)","v":0}]
[null,null,null,null,null,null,null,0,null,null,null,{"$f":"SUM(Tableau2[[#This Row],[Total du rôle]]-K1845)","v":0}]
[null,null,null,null,null,null,null,0,null,null,null,{"$f":"SUM(Tableau2[[#This Row],[Total du rôle]]-K1846)","v":0}]
[null,null,null,null,null,null,null,0,null,null,null,{"$f":"SUM(Tableau2[[#This Row],[Total du rôle]]-K1847)","v":0}]
[null,null,null,null,null,null,null,0,null,null,null,{"$f":"SUM(Tableau2[[#This Row],[Total du rôle]]-K1848)","v":0}]
[null,null,null,null,null,null,null,0,null,null,null,{"$f":"SUM(Tableau2[[#This Row],[Total du rôle]]-K1849)","v":0}]
[null,null,null,null,null,null,null,0,null,null,null,{"$f":"SUM(Tableau2[[#This Row],[Total du rôle]]-K1850)","v":0}]
[null,null,null,null,null,null,null,0,null,null,null,{"$f":"SUM(Tableau2[[#This Row],[Total du rôle]]-K1851)","v":0}]
[null,null,null,null,null,null,null,0,null,null,null,{"$f":"SUM(Tableau2[[#This Row],[Total du rôle]]-K1852)","v":0}]
[null,null,null,null,null,null,null,0,null,null,null,{"$f":"SUM(Tableau2[[#This Row],[Total du rôle]]-K1853)","v":0}]
[null,null,null,null,null,null,null,0,null,null,null,{"$f":"SUM(Tableau2[[#This Row],[Total du rôle]]-K1854)","v":0}]
[null,null,null,null,null,null,null,0,null,null,null,{"$f":"SUM(Tableau2[[#This Row],[Total du rôle]]-K1855)","v":0}]
[null,null,null,null,null,null,null,0,null,null,null,{"$f":"SUM(Tableau2[[#This Row],[Total du rôle]]-K1856)","v":0}]
[null,null,null,null,null,null,null,0,null,null,null,{"$f":"SUM(Tableau2[[#This Row],[Total du rôle]]-K1857)","v":0}]
[null,null,null,null,null,null,null,0,null,null,null,{"$f":"SUM(Tableau2[[#This Row],[Total du rôle]]-K1858)","v":0}]
[null,null,null,null,null,null,null,0,null,null,null,{"$f":"SUM(Tableau2[[#This Row],[Total du rôle]]-K1859)","v":0}]
[null,null,null,null,null,null,null,{"$f":"SUM(F1860:G1860)","v":0},null,null,null,{"$f":"SUM(Tableau2[[#This Row],[Total du rôle]]-K1860)","v":0}]
[null,null,null,null,null,null,null,0,null,null,null,{"$f":"SUM(Tableau2[[#This Row],[Total du rôle]]-K1861)","v":0}]
[null,null,null,null,null,null,null,0,null,null,null,{"$f":"SUM(Tableau2[[#This Row],[Total du rôle]]-K1862)","v":0}]
[null,null,null,null,null,null,null,0,null,null,null,{"$f":"SUM(Tableau2[[#This Row],[Total du rôle]]-K1863)","v":0}]
[null,null,null,null,null,null,null,0,null,null,null,{"$f":"SUM(Tableau2[[#This Row],[Total du rôle]]-K1864)","v":0}]
[null,null,null,null,null,null,null,0,null,null,null,{"$f":"SUM(Tableau2[[#This Row],[Total du rôle]]-K1865)","v":0}]
[null,null,null,null,null,null,null,0,null,null,null,{"$f":"SUM(Tableau2[[#This Row],[Total du rôle]]-K1866)","v":0}]
[null,null,null,null,null,null,null,0,null,null,null,{"$f":"SUM(Tableau2[[#This Row],[Total du rôle]]-K1867)","v":0}]
[null,null,null,null,null,null,null,0,null,null,null,{"$f":"SUM(Tableau2[[#This Row],[Total du rôle]]-K1868)","v":0}]
[null,null,null,null,null,null,null,0,null,null,null,{"$f":"SUM(Tableau2[[#This Row],[Total du rôle]]-K1869)","v":0}]
[null,null,null,null,null,null,null,0,null,null,null,{"$f":"SUM(Tableau2[[#This Row],[Total du rôle]]-K1870)","v":0}]
[null,null,null,null,null,null,null,0,null,null,null,{"$f":"SUM(Tableau2[[#This Row],[Total du rôle]]-K1871)","v":0}]
[null,null,null,null,null,null,null,0,null,null,null,{"$f":"SUM(Tableau2[[#This Row],[Total du rôle]]-K1872)","v":0}]
[null,null,null,null,null,null,null,0,null,null,null,{"$f":"SUM(Tableau2[[#This Row],[Total du rôle]]-K1873)","v":0}]
[null,null,null,null,null,null,null,0,null,null,null,{"$f":"SUM(Tableau2[[#This Row],[Total du rôle]]-K1874)","v":0}]
[null,null,null,null,null,null,null,0,null,null,null,{"$f":"SUM(Tableau2[[#This Row],[Total du rôle]]-K1875)","v":0}]
[null,null,null,null,null,null,null,0,null,null,null,{"$f":"SUM(Tableau2[[#This Row],[Total du rôle]]-K1876)","v":0}]
[null,null,null,null,null,null,null,0,null,null,null,{"$f":"SUM(Tableau2[[#This Row],[Total du rôle]]-K1877)","v":0}]
[null,null,null,null,null,null,null,0,null,null,null,{"$f":"SUM(Tableau2[[#This Row],[Total du rôle]]-K1878)","v":0}]
[null,null,null,null,null,null,null,0,null,null,null,{"$f":"SUM(Tableau2[[#This Row],[Total du rôle]]-K1879)","v":0}]
[null,null,null,null,null,null,null,0,null,null,null,{"$f":"SUM(Tableau2[[#This Row],[Total du rôle]]-K1880)","v":0}]
[null,null,null,null,null,null,null,0,null,null,null,{"$f":"SUM(Tableau2[[#This Row],[Total du rôle]]-K1881)","v":0}]
[null,null,null,null,null,null,null,0,null,null,null,{"$f":"SUM(Tableau2[[#This Row],[Total du rôle]]-K1882)","v":0}]
[null,null,null,null,null,null,null,0,null,null,null,{"$f":"SUM(Tableau2[[#This Row],[Total du rôle]]-K1883)","v":0}]
[null,null,null,null,null,null,null,0,null,null,null,{"$f":"SUM(Tableau2[[#This Row],[Total du rôle]]-K1884)","v":0}]
[null,null,null,null,null,null,null,0,null,null,null,{"$f":"SUM(Tableau2[[#This Row],[Total du rôle]]-K1885)","v":0}]
[null,null,null,null,null,null,null,0,null,null,null,{"$f":"SUM(Tableau2[[#This Row],[Total du rôle]]-K1886)","v":0}]
[null,null,null,null,null,null,null,0,null,null,null,{"$f":"SUM(Tableau2[[#This Row],[Total du rôle]]-K1887)","v":0}]
[null,null,null,null,null,null,null,0,null,null,null,{"$f":"SUM(Tableau2[[#This Row],[Total du rôle]]-K1888)","v":0}]
[null,null,null,null,null,null,null,0,null,null,null,{"$f":"SUM(Tableau2[[#This Row],[Total du rôle]]-K1889)","v":0}]
[null,null,null,null,null,null,null,0,null,null,null,{"$f":"SUM(Tableau2[[#This Row],[Total du rôle]]-K1890)","v":0}]
[null,null,null,null,null,null,null,0,null,null,null,{"$f":"SUM(Tableau2[[#This Row],[Total du rôle]]-K1891)","v":0}]
[null,null,null,null,null,null,null,0,null,null,null,{"$f":"SUM(Tableau2[[#This Row],[Total du rôle]]-K1892)","v":0}]
[null,null,null,null,null,null,null,0,null,null,null,{"$f":"SUM(Tableau2[[#This Row],[Total du rôle]]-K1893)","v":0}]
[null,null,null,null,null,null,null,0,null,null,null,{"$f":"SUM(Tableau2[[#This Row],[Total du rôle]]-K1894)","v":0}]
[null,null,null,null,null,null,null,0,null,null,null,{"$f":"SUM(Tableau2[[#This Row],[Total du rôle]]-K1895)","v":0}]
[null,null,null,null,null,null,null,0,null,null,null,{"$f":"SUM(Tableau2[[#This Row],[Total du rôle]]-K1896)","v":0}]
[null,null,null,null,null,null,null,0,null,null,null,{"$f":"SUM(Tableau2[[#This Row],[Total du rôle]]-K1897)","v":0}]
[null,null,null,null,null,null,null,0,null,null,null,{"$f":"SUM(Tableau2[[#This Row],[Total du rôle]]-K1898)","v":0}]
[null,null,null,null,null,null,null,0,null,null,null,{"$f":"SUM(Tableau2[[#This Row],[Total du rôle]]-K1899)","v":0}]
[null,null,null,null,null,null,null,0,null,null,null,{"$f":"SUM(Tableau2[[#This Row],[Total du rôle]]-K1900)","v":0}]
[null,null,null,null,null,null,null,0,null,null,null,{"$f":"SUM(Tableau2[[#This Row],[Total du rôle]]-K1901)","v":0}]
[null,null,null,null,null,null,null,0,null,null,null,{"$f":"SUM(Tableau2[[#This Row],[Total du rôle]]-K1902)","v":0}]
[null,null,null,null,null,null,null,0,null,null,null,{"$f":"SUM(Tableau2[[#This Row],[Total du rôle]]-K1903)","v":0}]
[null,null,null,null,null,null,null,0,null,null,null,{"$f":"SUM(Tableau2[[#This Row],[Total du rôle]]-K1904)","v":0}]
[null,null,null,null,null,null,null,0,null,null,null,{"$f":"SUM(Tableau2[[#This Row],[Total du rôle]]-K1905)","v":0}]
[null,null,null,null,null,null,null,0,null,null,null,{"$f":"SUM(Tableau2[[#This Row],[Total du rôle]]-K1906)","v":0}]
[null,null,null,null,null,null,null,0,null,null,null,{"$f":"SUM(Tableau2[[#This Row],[Total du rôle]]-K1907)","v":0}]
[null,null,null,null,null,null,null,0,null,null,null,{"$f":"SUM(Tableau2[[#This Row],[Total du rôle]]-K1908)","v":0}]
[null,null,null,null,null,null,null,0,null,null,null,{"$f":"SUM(Tableau2[[#This Row],[Total du rôle]]-K1909)","v":0}]
[null,null,null,null,null,null,null,0,null,null,null,{"$f":"SUM(Tableau2[[#This Row],[Total du rôle]]-K1910)","v":0}]
[null,null,null,null,null,null,null,0,null,null,null,{"$f":"SUM(Tableau2[[#This Row],[Total du rôle]]-K1911)","v":0}]
[null,null,null,null,null,null,null,0,null,null,null,{"$f":"SUM(Tableau2[[#This Row],[Total du rôle]]-K1912)","v":0}]
[null,null,null,null,null,null,null,0,null,null,null,{"$f":"SUM(Tableau2[[#This Row],[Total du rôle]]-K1913)","v":0}]
[null,null,null,null,null,null,null,0,null,null,null,{"$f":"SUM(Tableau2[[#This Row],[Total du rôle]]-K1914)","v":0}]
[null,null,null,null,null,null,null,0,null,null,null,{"$f":"SUM(Tableau2[[#This Row],[Total du rôle]]-K1915)","v":0}]
[null,null,null,null,null,null,null,0,null,null,null,{"$f":"SUM(Tableau2[[#This Row],[Total du rôle]]-K1916)","v":0}]
[null,null,null,null,null,null,null,0,null,null,null,{"$f":"SUM(Tableau2[[#This Row],[Total du rôle]]-K1917)","v":0}]
[null,null,null,null,null,null,null,0,null,null,null,{"$f":"SUM(Tableau2[[#This Row],[Total du rôle]]-K1918)","v":0}]
[null,null,null,null,null,null,null,0,null,null,null,{"$f":"SUM(Tableau2[[#This Row],[Total du rôle]]-K1919)","v":0}]
[null,null,null,null,null,null,null,0,null,null,null,{"$f":"SUM(Tableau2[[#This Row],[Total du rôle]]-K1920)","v":0}]
[null,null,null,null,null,null,null,0,null,null,null,{"$f":"SUM(Tableau2[[#This Row],[Total du rôle]]-K1921)","v":0}]
[null,null,null,null,null,null,null,0,null,null,null,{"$f":"SUM(Tableau2[[#This Row],[Total du rôle]]-K1922)","v":0}]
[null,null,null,null,null,null,null,0,null,null,null,{"$f":"SUM(Tableau2[[#This Row],[Total du rôle]]-K1923)","v":0}]
[null,null,null,null,null,null,null,{"$f":"SUM(F1924:G1924)","v":0},null,null,null,{"$f":"SUM(Tableau2[[#This Row],[Total du rôle]]-K1924)","v":0}]
[null,null,null,null,null,null,null,0,null,null,null,{"$f":"SUM(Tableau2[[#This Row],[Total du rôle]]-K1925)","v":0}]
[null,null,null,null,null,null,null,0,null,null,null,{"$f":"SUM(Tableau2[[#This Row],[Total du rôle]]-K1926)","v":0}]
[null,null,null,null,null,null,null,0,null,null,null,{"$f":"SUM(Tableau2[[#This Row],[Total du rôle]]-K1927)","v":0}]
[null,null,null,null,null,null,null,0,null,null,null,{"$f":"SUM(Tableau2[[#This Row],[Total du rôle]]-K1928)","v":0}]
[null,null,null,null,null,null,null,0,null,null,null,{"$f":"SUM(Tableau2[[#This Row],[Total du rôle]]-K1929)","v":0}]
[null,null,null,null,null,null,null,0,null,null,null,{"$f":"SUM(Tableau2[[#This Row],[Total du rôle]]-K1930)","v":0}]
[null,null,null,null,null,null,null,0,null,null,null,{"$f":"SUM(Tableau2[[#This Row],[Total du rôle]]-K1931)","v":0}]
[null,null,null,null,null,null,null,0,null,null,null,{"$f":"SUM(Tableau2[[#This Row],[Total du rôle]]-K1932)","v":0}]
[null,null,null,null,null,null,null,0,null,null,null,{"$f":"SUM(Tableau2[[#This Row],[Total du rôle]]-K1933)","v":0}]
[null,null,null,null,null,null,null,0,null,null,null,{"$f":"SUM(Tableau2[[#This Row],[Total du rôle]]-K1934)","v":0}]
[null,null,null,null,null,null,null,0,null,null,null,{"$f":"SUM(Tableau2[[#This Row],[Total du rôle]]-K1935)","v":0}]
[null,null,null,null,null,null,null,0,null,null,null,{"$f":"SUM(Tableau2[[#This Row],[Total du rôle]]-K1936)","v":0}]
[null,null,null,null,null,null,null,0,null,null,null,{"$f":"SUM(Tableau2[[#This Row],[Total du rôle]]-K1937)","v":0}]
[null,null,null,null,null,null,null,0,null,null,null,{"$f":"SUM(Tableau2[[#This Row],[Total du rôle]]-K1938)","v":0}]
[null,null,null,null,null,null,null,0,null,null,null,{"$f":"SUM(Tableau2[[#This Row],[Total du rôle]]-K1939)","v":0}]
[null,null,null,null,null,null,null,0,null,null,null,{"$f":"SUM(Tableau2[[#This Row],[Total du rôle]]-K1940)","v":0}]
[null,null,null,null,null,null,null,0,null,null,null,{"$f":"SUM(Tableau2[[#This Row],[Total du rôle]]-K1941)","v":0}]
[null,null,null,null,null,null,null,0,null,null,null,{"$f":"SUM(Tableau2[[#This Row],[Total du rôle]]-K1942)","v":0}]
[null,null,null,null,null,null,null,0,null,null,null,{"$f":"SUM(Tableau2[[#This Row],[Total du rôle]]-K1943)","v":0}]
[null,null,null,null,null,null,null,0,null,null,null,{"$f":"SUM(Tableau2[[#This Row],[Total du rôle]]-K1944)","v":0}]
[null,null,null,null,null,null,null,0,null,null,null,{"$f":"SUM(Tableau2[[#This Row],[Total du rôle]]-K1945)","v":0}]
[null,null,null,null,null,null,null,0,null,null,null,{"$f":"SUM(Tableau2[[#This Row],[Total du rôle]]-K1946)","v":0}]
[null,null,null,null,null,null,null,0,null,null,null,{"$f":"SUM(Tableau2[[#This Row],[Total du rôle]]-K1947)","v":0}]
[null,null,null,null,null,null,null,0,null,null,null,{"$f":"SUM(Tableau2[[#This Row],[Total du rôle]]-K1948)","v":0}]
[null,null,null,null,null,null,null,0,null,null,null,{"$f":"SUM(Tableau2[[#This Row],[Total du rôle]]-K1949)","v":0}]
[null,null,null,null,null,null,null,0,null,null,null,{"$f":"SUM(Tableau2[[#This Row],[Total du rôle]]-K1950)","v":0}]
[null,null,null,null,null,null,null,0,null,null,null,{"$f":"SUM(Tableau2[[#This Row],[Total du rôle]]-K1951)","v":0}]
[null,null,null,null,null,null,null,0,null,null,null,{"$f":"SUM(Tableau2[[#This Row],[Total du rôle]]-K1952)","v":0}]
[null,null,null,null,null,null,null,0,null,null,null,{"$f":"SUM(Tableau2[[#This Row],[Total du rôle]]-K1953)","v":0}]
[null,null,null,null,null,null,null,0,null,null,null,{"$f":"SUM(Tableau2[[#This Row],[Total du rôle]]-K1954)","v":0}]
[null,null,null,null,null,null,null,0,null,null,null,{"$f":"SUM(Tableau2[[#This Row],[Total du rôle]]-K1955)","v":0}]
[null,null,null,null,null,null,null,0,null,null,null,{"$f":"SUM(Tableau2[[#This Row],[Total du rôle]]-K1956)","v":0}]
[null,null,null,null,null,null,null,0,null,null,null,{"$f":"SUM(Tableau2[[#This Row],[Total du rôle]]-K1957)","v":0}]
[null,null,null,null,null,null,null,0,null,null,null,{"$f":"SUM(Tableau2[[#This Row],[Total du rôle]]-K1958)","v":0}]
[null,null,null,null,null,null,null,0,null,null,null,{"$f":"SUM(Tableau2[[#This Row],[Total du rôle]]-K1959)","v":0}]
[null,null,null,null,null,null,null,0,null,null,null,{"$f":"SUM(Tableau2[[#This Row],[Total du rôle]]-K1960)","v":0}]
[null,null,null,null,null,null,null,0,null,null,null,{"$f":"SUM(Tableau2[[#This Row],[Total du rôle]]-K1961)","v":0}]
[null,null,null,null,null,null,null,0,null,null,null,{"$f":"SUM(Tableau2[[#This Row],[Total du rôle]]-K1962)","v":0}]
[null,null,null,null,null,null,null,0,null,null,null,{"$f":"SUM(Tableau2[[#This Row],[Total du rôle]]-K1963)","v":0}]
[null,null,null,null,null,null,null,0,null,null,null,{"$f":"SUM(Tableau2[[#This Row],[Total du rôle]]-K1964)","v":0}]
[null,null,null,null,null,null,null,0,null,null,null,{"$f":"SUM(Tableau2[[#This Row],[Total du rôle]]-K1965)","v":0}]
[null,null,null,null,null,null,null,0,null,null,null,{"$f":"SUM(Tableau2[[#This Row],[Total du rôle]]-K1966)","v":0}]
[null,null,null,null,null,null,null,0,null,null,null,{"$f":"SUM(Tableau2[[#This Row],[Total du rôle]]-K1967)","v":0}]
[null,null,null,null,null,null,null,0,null,null,null,{"$f":"SUM(Tableau2[[#This Row],[Total du rôle]]-K1968)","v":0}]
[null,null,null,null,null,null,null,0,null,null,null,{"$f":"SUM(Tableau2[[#This Row],[Total du rôle]]-K1969)","v":0}]
[null,null,null,null,null,null,null,0,null,null,null,{"$f":"SUM(Tableau2[[#This Row],[Total du rôle]]-K1970)","v":0}]
[null,null,null,null,null,null,null,0,null,null,null,{"$f":"SUM(Tableau2[[#This Row],[Total du rôle]]-K1971)","v":0}]
[null,null,null,null,null,null,null,0,null,null,null,{"$f":"SUM(Tableau2[[#This Row],[Total du rôle]]-K1972)","v":0}]
[null,null,null,null,null,null,null,0,null,null,null,{"$f":"SUM(Tableau2[[#This Row],[Total du rôle]]-K1973)","v":0}]
[null,null,null,null,null,null,null,0,null,null,null,{"$f":"SUM(Tableau2[[#This Row],[Total du rôle]]-K1974)","v":0}]
[null,null,null,null,null,null,null,0,null,null,null,{"$f":"SUM(Tableau2[[#This Row],[Total du rôle]]-K1975)","v":0}]
[null,null,null,null,null,null,null,0,null,null,null,{"$f":"SUM(Tableau2[[#This Row],[Total du rôle]]-K1976)","v":0}]
[null,null,null,null,null,null,null,0,null,null,null,{"$f":"SUM(Tableau2[[#This Row],[Total du rôle]]-K1977)","v":0}]
[null,null,null,null,null,null,null,0,null,null,null,{"$f":"SUM(Tableau2[[#This Row],[Total du rôle]]-K1978)","v":0}]
[null,null,null,null,null,null,null,0,null,null,null,{"$f":"SUM(Tableau2[[#This Row],[Total du rôle]]-K1979)","v":0}]
[null,null,null,null,null,null,null,0,null,null,null,{"$f":"SUM(Tableau2[[#This Row],[Total du rôle]]-K1980)","v":0}]
[null,null,null,null,null,null,null,0,null,null,null,{"$f":"SUM(Tableau2[[#This Row],[Total du rôle]]-K1981)","v":0}]
[null,null,null,null,null,null,null,0,null,null,null,{"$f":"SUM(Tableau2[[#This Row],[Total du rôle]]-K1982)","v":0}]
[null,null,null,null,null,null,null,0,null,null,null,{"$f":"SUM(Tableau2[[#This Row],[Total du rôle]]-K1983)","v":0}]
[null,null,null,null,null,null,null,0,null,null,null,{"$f":"SUM(Tableau2[[#This Row],[Total du rôle]]-K1984)","v":0}]
[null,null,null,null,null,null,null,0,null,null,null,{"$f":"SUM(Tableau2[[#This Row],[Total du rôle]]-K1985)","v":0}]
[null,null,null,null,null,null,null,0,null,null,null,{"$f":"SUM(Tableau2[[#This Row],[Total du rôle]]-K1986)","v":0}]
[null,null,null,null,null,null,null,0,null,null,null,{"$f":"SUM(Tableau2[[#This Row],[Total du rôle]]-K1987)","v":0}]
[null,null,null,null,null,null,null,{"$f":"SUM(F1988:G1988)","v":0},null,null,null,{"$f":"SUM(Tableau2[[#This Row],[Total du rôle]]-K1988)","v":0}]
[null,null,null,null,null,null,null,0,null,null,null,{"$f":"SUM(Tableau2[[#This Row],[Total du rôle]]-K1989)","v":0}]
[null,null,null,null,null,null,null,0,null,null,null,{"$f":"SUM(Tableau2[[#This Row],[Total du rôle]]-K1990)","v":0}]
[null,null,null,null,null,null,null,0,null,null,null,{"$f":"SUM(Tableau2[[#This Row],[Total du rôle]]-K1991)","v":0}]
[null,null,null,null,null,null,null,0,null,null,null,{"$f":"SUM(Tableau2[[#This Row],[Total du rôle]]-K1992)","v":0}]
[null,null,null,null,null,null,null,0,null,null,null,{"$f":"SUM(Tableau2[[#This Row],[Total du rôle]]-K1993)","v":0}]
[null,null,null,null,null,null,null,0,null,null,null,{"$f":"SUM(Tableau2[[#This Row],[Total du rôle]]-K1994)","v":0}]
[null,null,null,null,null,null,null,0,null,null,null,{"$f":"SUM(Tableau2[[#This Row],[Total du rôle]]-K1995)","v":0}]
[null,null,null,null,null,null,null,0,null,null,null,{"$f":"SUM(Tableau2[[#This Row],[Total du rôle]]-K1996)","v":0}]
[null,null,null,null,null,null,null,0,null,null,null,{"$f":"SUM(Tableau2[[#This Row],[Total du rôle]]-K1997)","v":0}]
[null,null,null,null,null,null,null,0,null,null,null,{"$f":"SUM(Tableau2[[#This Row],[Total du rôle]]-K1998)","v":0}]
[null,null,null,null,null,null,null,0,null,null,null,{"$f":"SUM(Tableau2[[#This Row],[Total du rôle]]-K1999)","v":0}]
[null,null,null,null,null,null,null,0,null,null,null,{"$f":"SUM(Tableau2[[#This Row],[Total du rôle]]-K2000)","v":0}]
[null,null,null,null,null,null,null,0,null,null,null,{"$f":"SUM(Tableau2[[#This Row],[Total du rôle]]-K2317)","v":0}]
[null,null,null,null,null,null,null,0,null,null,null,{"$f":"SUM(Tableau2[[#This Row],[Total du rôle]]-K2832)","v":0}]
[null,null,null,null,null,null,null,0,null,null,null,{"$f":"SUM(Tableau2[[#This Row],[Total du rôle]]-K3053)","v":0}]
[null,null,null,null,null,null,null,0,null,null,null,{"$f":"SUM(Tableau2[[#This Row],[Total du rôle]]-K4091)","v":0}]
[null,null,null,null,null,null,null,0,null,null,null,{"$f":"SUM(Tableau2[[#This Row],[Total du rôle]]-K4312)","v":0}]
[null,null,null,null,null,null,null,0,null,null,null,{"$f":"SUM(Tableau2[[#This Row],[Total du rôle]]-K5056)","v":0}]
[null,null,null,null,null,null,null,0,null,null,null,{"$f":"SUM(Tableau2[[#This Row],[Total du rôle]]-K5571)","v":0}]
[null,null,null,null,null,null,null,0,null,null,null,{"$f":"SUM(Tableau2[[#This Row],[Total du rôle]]-K5792)","v":0}]
[null,null,null,null,null,null,null,0,null,null,null,{"$f":"SUM(Tableau2[[#This Row],[Total du rôle]]-K6307)","v":0}]
[null,null,null,null,null,null,null,0,null,null,null,{"$f":"SUM(Tableau2[[#This Row],[Total du rôle]]-K7051)","v":0}]
[]
[]
[]
[]
[]
[]
[]
[]
[]
[]
[]
[]
[]
[]
[]
[]
[null,null,null,null,null,null,null,0,null,null,0,0]
[null,null,null,null,null,null,null,0,null,null,0,0]
[null,null,null,null,null,null,null,0,null,null,0,0]
[null,null,null,null,null,null,null,0,null,null,0,0]
[null,null,null,null,null,null,null,0,null,null,0,0]
[null,null,null,null,null,null,null,0,null,null,0,0]
[null,null,null,null,null,null,null,0,null,null,0,0]
[null,null,null,null,null,null,null,0,null,null,0,0]
[null,null,null,null,null,null,null,0,null,null,0,0]
[null,null,null,null,null,null,null,0,null,null,0,0]
[null,null,null,null,null,null,null,0,null,null,0,0]
[null,null,null,null,null,null,null,0,null,null,0,0]
[null,null,null,null,null,null,null,0,null,null,0,0]
[null,null,null,null,null,null,null,0,null,null,0,0]
[null,null,null,null,null,null,null,0,null,null,0,0]
[null,null,null,null,null,null,null,0,null,null,0,0]
[null,null,null,null,null,null,null,0,null,null,0,0]
[null,null,null,null,null,null,null,0,null,null,0,0]
[null,null,null,null,null,null,null,0,null,null,0,0]
[null,null,null,null,null,null,null,0,null,null,0,0]
[null,null,null,null,null,null,null,0,null,null,0,0]
[null,null,null,null,null,null,null,0,null,null,0,0]
[null,null,null,null,null,null,null,0,null,null,0,0]
[null,null,null,null,null,null,null,0,null,null,0,0]
[null,null,null,null,null,null,null,0,null,null,0,0]
[null,null,null,null,null,null,null,0,null,null,0,0]
[null,null,null,null,null,null,null,0,null,null,0,0]
[null,null,null,null,null,null,null,0,null,null,0,0]
[null,null,null,null,null,null,null,0,null,null,0,0]
[null,null,null,null,null,null,null,0,null,null,0,0]
[null,null,null,null,null,null,null,0,null,null,0,0]
[null,null,null,null,null,null,null,0,null,null,0,0]
[null,null,null,null,null,null,null,0,null,null,0,0]
[null,null,null,null,null,null,null,0,null,null,0,0]
[null,null,null,null,null,null,null,0,null,null,0,0]
[null,null,null,null,null,null,null,0,null,null,0,0]
[null,null,null,null,null,null,null,0,null,null,0,0]
[null,null,null,null,null,null,null,0,null,null,0,0]
[null,null,null,null,null,null,null,{"$f":"SUM(F35842:G35842)","v":0},null,null,0,0]
[null,null,null,null,null,null,null,0,null,null,0,0]
[null,null,null,null,null,null,null,0,null,null,0,0]
[null,null,null,null,null,null,null,0,null,null,0,0]
[null,null,null,null,null,null,null,0,null,null,0,0]
[null,null,null,null,null,null,null,0,null,null,0,0]
[null,null,null,null,null,null,null,0,null,null,0,0]
[null,null,null,null,null,null,null,0,null,null,0,0]
[null,null,null,null,null,null,null,0,null,null,0,0]
[null,null,null,null,null,null,null,0,null,null,0,0]
[null,null,null,null,null,null,null,0,null,null,0,0]
[null,null,null,null,null,null,null,0,null,null,0,0]
[null,null,null,null,null,null,null,0,null,null,0,0]
[null,null,null,null,null,null,null,0,null,null,0,0]
[null,null,null,null,null,null,null,0,null,null,0,0]
[null,null,null,null,null,null,null,0,null,null,0,0]
[null,null,null,null,null,null,null,0,null,null,0,0]
[null,null,null,null,null,null,null,0,null,null,0,0]
[null,null,null,null,null,null,null,0,null,null,0,0]
[null,null,null,null,null,null,null,0,null,null,null,0]
[null,null,null,null,null,null,null,0,null,null,null,0]
[null,null,null,null,null,null,null,0,null,null,null,0]
[null,null,null,null,null,null,null,0,null,null,null,0]
[null,null,null,null,null,null,null,0,null,null,null,0]
[null,null,null,null,null,null,null,0,null,null,null,0]
[null,null,null,null,null,null,null,0,null,null,null,0]
[null,null,null,null,null,null,null,0,null,null,null,0]
[null,null,null,null,null,null,null,0,null,null,null,0]
[null,null,null,null,null,null,null,0,null,null,null,0]
[null,null,null,null,null,null,null,0,null,null,null,0]
[null,null,null,null,null,null,null,0,null,null,null,0]
[null,null,null,null,null,null,null,0,null,null,null,0]
[null,null,null,null,null,null,null,0,null,null,null,0]
[null,null,null,null,null,null,null,0,null,null,null,0]
[null,null,null,null,null,null,null,0,null,null,null,0]
[null,null,null,null,null,null,null,0,null,null,null,0]
[null,null,null,null,null,null,null,0,null,null,null,0]
[null,null,null,null,null,null,null,0,null,null,null,0]
[null,null,null,null,null,null,null,0,null,null,null,0]
[null,null,null,null,null,null,null,{"$f":"SUM(F56194:G56194)","v":0},null,null,null,0]
[null,null,null,null,null,null,null,0,null,null,null,0]
[null,null,null,null,null,null,null,0,null,null,null,0]
[null,null,null,null,null,null,null,0,null,null,null,0]
[null,null,null,null,null,null,null,0,null,null,null,0]
[null,null,null,null,null,null,null,0,null,null,null,0]
[null,null,null,null,null,null,null,0,null,null,null,0]
[null,null,null,null,null,null,null,0,null,null,null,0]
[null,null,null,null,null,null,null,0,null,null,null,0]
[null,null,null,null,null,null,null,0,null,null,null,0]
[null,null,null,null,null,null,null,0,null,null,null,0]
[null,null,null,null,null,null,null,0,null,null,null,0]
[null,null,null,null,null,null,null,0,null,null,null,0]
[null,null,null,null,null,null,null,0,null,null,null,0]
[null,null,null,null,null,null,null,0,null,null,null,0]
[null,null,null,null,null,null,null,0,null,null,null,0]
[null,null,null,null,null,null,null,0,null,null,null,0]
[null,null,null,null,null,null,null,0,null,null,null,0]
[null,null,null,null,null,null,null,0,null,null,null,0]
[null,null,null,null,null,null,null,0,null,null,null,0]
[null,null,null,null,null,null,null,0,null,null,null,0]
[null,null,null,null,null,null,null,0,null,null,null,0]
[null,null,null,null,null,null,null,0,null,null,null,0]
[null,null,null,null,null,null,null,0,null,null,null,0]
[null,null,null,null,null,null,null,0,null,null,null,0]
[null,null,null,null,null,null,null,0,null,null,null,0]
[null,null,null,null,null,null,null,0,null,null,null,0]
[null,null,null,null,null,null,null,0,null,null,null,0]
[null,null,null,null,null,null,null,0,null,null,null,0]
[null,null,null,null,null,null,null,0,null,null,null,0]
[null,null,null,null,null,null,null,0,null,null,null,0]
[null,null,null,null,null,null,null,0,null,null,null,0]
[null,null,null,null,null,null,null,0,null,null,null,0]
[null,null,null,null,null,null,null,0,null,null,null,0]
[null,null,null,null,null,null,null,0,null,null,null,0]
[null,null,null,null,null,null,null,0,null,null,null,0]
[null,null,null,null,null,null,null,0,null,null,null,0]
[null,null,null,null,null,null,null,0,null,null,null,0]
[null,null,null,null,null,null,null,0,null,null,null,0]
[null,null,null,null,null,null,null,0]
[null,null,null,null,null,null,null,0]
[null,null,null,null,null,null,null,0]
[null,null,null,null,null,null,null,0]
[null,null,null,null,null,null,null,0]
[null,null,null,null,null,null,null,0]
[null,null,null,null,null,null,null,0]
[null,null,null,null,null,null,null,0]
[null,null,null,null,null,null,null,0]
[null,null,null,null,null,null,null,0]
[null,null,null,null,null,null,null,0]
[null,null,null,null,null,null,null,0]
[null,null,null,null,null,null,null,0]
[null,null,null,null,null,null,null,0]
[null,null,null,null,null,null,null,0]
[null,null,null,null,null,null,null,0]
[null,null,null,null,null,null,null,0]
[null,null,null,null,null,null,null,0]
[null,null,null,null,null,null,null,0]
[null,null,null,null,null,null,null,{"$f":"SUM(F86466:G86466)","v":0}]
[null,null,null,null,null,null,null,0]
[null,null,null,null,null,null,null,0]
[null,null,null,null,null,null,null,0]
[null,null,null,null,null,null,null,0]
[null,null,null,null,null,null,null,0]
[null,null,null,null,null,null,null,0]
[null,null,null,null,null,null,null,0]
[null,null,null,null,null,null,null,0]
[null,null,null,null,null,null,null,0]
[null,null,null,null,null,null,null,0]
[null,null,null,null,null,null,null,0]
[null,null,null,null,null,null,null,0]
[null,null,null,null,null,null,null,0]
[null,null,null,null,null,null,null,0]
[null,null,null,null,null,null,null,0]
[null,null,null,null,null,null,null,0]
[null,null,null,null,null,null,null,0]
[null,null,null,null,null,null,null,0]
[null,null,null,null,null,null,null,0]
[null,null,null,null,null,null,null,0]
[null,null,null,null,null,null,null,0]
[null,null,null,null,null,null,null,0]
[null,null,null,null,null,null,null,0]
[null,null,null,null,null,null,null,0]
[null,null,null,null,null,null,null,0]
[null,null,null,null,null,null,null,0]
[null,null,null,null,null,null,null,0]
[null,null,null,null,null,null,null,0]
[null,null,null,null,null,null,null,0]
[null,null,null,null,null,null,null,0]
[null,null,null,null,null,null,null,0]
[null,null,null,null,null,null,null,0]
[null,null,null,null,null,null,null,0]
[null,null,null,null,null,null,null,0]
[null,null,null,null,null,null,null,0]
[null,null,null,null,null,null,null,0]
[null,null,null,null,null,null,null,0]
[null,null,null,null,null,null,null,0]
[null,null,null,null,null,null,null,{"$f":"SUM(F106818:G106818)","v":0}]
[null,null,null,null,null,null,null,0]
[null,null,null,null,null,null,null,0]
[null,null,null,null,null,null,null,0]
[null,null,null,null,null,null,null,0]
[null,null,null,null,null,null,null,0]
[null,null,null,null,null,null,null,0]
[null,null,null,null,null,null,null,0]
[null,null,null,null,null,null,null,0]
[null,null,null,null,null,null,null,0]
[null,null,null,null,null,null,null,0]
[null,null,null,null,null,null,null,0]
[null,null,null,null,null,null,null,0]
[null,null,null,null,null,null,null,0]
[null,null,null,null,null,null,null,0]
[null,null,null,null,null,null,null,0]
[null,null,null,null,null,null,null,0]
[null,null,null,null,null,null,null,0]
[null,null,null,null,null,null,null,0]
[null,null,null,null,null,null,null,0]
[null,null,null,null,null,null,null,0]
[null,null,null,null,null,null,null,0]
[null,null,null,null,null,null,null,0]
[null,null,null,null,null,null,null,0]
[null,null,null,null,null,null,null,0]
[null,null,null,null,null,null,null,0]
[null,null,null,null,null,null,null,0]
[null,null,null,null,null,null,null,0]
[null,null,null,null,null,null,null,0]
[null,null,null,null,null,null,null,0]
[null,null,null,null,null,null,null,0]
[null,null,null,null,null,null,null,0]
[null,null,null,null,null,null,null,0]
[null,null,null,null,null,null,null,0]
[null,null,null,null,null,null,null,0]
[null,null,null,null,null,null,null,0]
[null,null,null,null,null,null,null,0]
[null,null,null,null,null,null,null,0]
[null,null,null,null,null,null,null,0]
[null,null,null,null,null,null,null,0]
[null,null,null,null,null,null,null,0]
[null,null,null,null,null,null,null,0]
[null,null,null,null,null,null,null,0]
[null,null,null,null,null,null,null,0]
[null,null,null,null,null,null,null,0]
[null,null,null,null,null,null,null,0]
[null,null,null,null,null,null,null,0]
[null,null,null,null,null,null,null,0]
[null,null,null,null,null,null,null,0]
[null,null,null,null,null,null,null,0]
[null,null,null,null,null,null,null,0]
[null,null,null,null,null,null,null,0]
[null,null,null,null,null,null,null,0]
[null,null,null,null,null,null,null,0]
[null,null,null,null,null,null,null,0]
[null,null,null,null,null,null,null,0]
[null,null,null,null,null,null,null,0]
[null,null,null,null,null,null,null,0]
[null,null,null,null,null,null,null,0]
[null,null,null,null,null,null,null,0]
[null,null,null,null,null,null,null,0]
[null,null,null,null,null,null,null,0]
[null,null,null,null,null,null,null,0]
[null,null,null,null,null,null,null,0]
[null,null,null,null,null,null,null,0]
[null,null,null,null,null,null,null,0]
[null,null,null,null,null,null,null,0]
[null,null,null,null,null,null,null,0]
[null,null,null,null,null,null,null,0]
[null,null,null,null,null,null,null,0]
[null,null,null,null,null,null,null,0]
[null,null,null,null,null,null,null,0]
[null,null,null,null,null,null,null,0]
[null,null,null,null,null,null,null,0]
[null,null,null,null,null,null,null,0]
[null,null,null,null,null,null,null,0]
[null,null,null,null,null,null,null,0]
[null,null,null,null,null,null,null,0]
[null,null,null,null,null,null,null,0]
[null,null,null,null,null,null,null,0]
[null,null,null,null,null,null,null,0]
[null,null,null,null,null,null,null,0]
[null,null,null,null,null,null,null,0]
[null,null,null,null,null,null,null,0]
[null,null,null,null,null,null,null,0]
[null,null,null,null,null,null,null,0]
[null,null,null,null,null,null,null,0]
[null,null,null,null,null,null,null,0]
[null,null,null,null,null,null,null,0]
[null,null,null,null,null,null,null,0]
[null,null,null,null,null,null,null,0]
[null,null,null,null,null,null,null,0]
[null,null,null,null,null,null,null,0]
[null,null,null,null,null,null,null,0]
[null,null,null,null,null,null,null,0]
[null,null,null,null,null,null,null,0]
[null,null,null,null,null,null,null,0]
[null,null,null,null,null,null,null,{"$f":"SUM(F157442:G157442)","v":0}]
[null,null,null,null,null,null,null,0]
[null,null,null,null,null,null,null,0]
[null,null,null,null,null,null,null,0]
[null,null,null,null,null,null,null,0]
[null,null,null,null,null,null,null,0]
[null,null,null,null,null,null,null,0]
[null,null,null,null,null,null,null,0]
[null,null,null,null,null,null,null,0]
[null,null,null,null,null,null,null,0]
[null,null,null,null,null,null,null,0]
[null,null,null,null,null,null,null,0]
[null,null,null,null,null,null,null,0]
[null,null,null,null,null,null,null,0]
[null,null,null,null,null,null,null,0]
[null,null,null,null,null,null,null,0]
[null,null,null,null,null,null,null,0]
[null,null,null,null,null,null,null,0]
[null,null,null,null,null,null,null,0]
[null,null,null,null,null,null,null,0]
[null,null,null,null,null,null,null,0]
[null,null,null,null,null,null,null,0]
[null,null,null,null,null,null,null,0]
[null,null,null,null,null,null,null,0]
[null,null,null,null,null,null,null,0]
[null,null,null,null,null,null,null,0]
[null,null,null,null,null,null,null,0]
[null,null,null,null,null,null,null,0]
[null,null,null,null,null,null,null,0]
[null,null,null,null,null,null,null,0]
[null,null,null,null,null,null,null,0]
[null,null,null,null,null,null,null,0]
[null,null,null,null,null,null,null,0]
[null,null,null,null,null,null,null,0]
[null,null,null,null,null,null,null,0]
[null,null,null,null,null,null,null,0]
[null,null,null,null,null,null,null,0]
[null,null,null,null,null,null,null,0]
[null,null,null,null,null,null,null,0]
[null,null,null,null,null,null,null,{"$f":"SUM(F177794:G177794)","v":0}]
[null,null,null,null,null,null,null,0]
[null,null,null,null,null,null,null,0]
[null,null,null,null,null,null,null,0]
[null,null,null,null,null,null,null,0]
[null,null,null,null,null,null,null,0]
[null,null,null,null,null,null,null,0]
[null,null,null,null,null,null,null,0]
[null,null,null,null,null,null,null,0]
[null,null,null,null,null,null,null,0]
[null,null,null,null,null,null,null,0]
[null,null,null,null,null,null,null,0]
[null,null,null,null,null,null,null,0]
[null,null,null,null,null,null,null,0]
[null,null,null,null,null,null,null,0]
[null,null,null,null,null,null,null,0]
[null,null,null,null,null,null,null,0]
[null,null,null,null,null,null,null,0]
[null,null,null,null,null,null,null,0]
[null,null,null,null,null,null,null,0]
[null,null,null,null,null,null,null,0]
[null,null,null,null,null,null,null,0]
[null,null,null,null,null,null,null,0]
[null,null,null,null,null,null,null,0]
[null,null,null,null,null,null,null,0]
[null,null,null,null,null,null,null,0]
[null,null,null,null,null,null,null,0]
[null,null,null,null,null,null,null,0]
[null,null,null,null,null,null,null,0]
[null,null,null,null,null,null,null,0]
[null,null,null,null,null,null,null,0]
[null,null,null,null,null,null,null,0]
[null,null,null,null,null,null,null,0]
[null,null,null,null,null,null,null,0]
[null,null,null,null,null,null,null,0]
[null,null,null,null,null,null,null,0]
[null,null,null,null,null,null,null,0]
[null,null,null,null,null,null,null,0]
[null,null,null,null,null,null,null,0]
[null,null,null,null,null,null,null,0]
[null,null,null,null,null,null,null,0]
[null,null,null,null,null,null,null,0]
[null,null,null,null,null,null,null,0]
[null,null,null,null,null,null,null,0]
[null,null,null,null,null,null,null,0]
[null,null,null,null,null,null,null,0]
[null,null,null,null,null,null,null,0]
[null,null,null,null,null,null,null,0]
[null,null,null,null,null,null,null,0]
[null,null,null,null,null,null,null,0]
[null,null,null,null,null,null,null,0]
[null,null,null,null,null,null,null,0]
[null,null,null,null,null,null,null,0]
[null,null,null,null,null,null,null,0]
[null,null,null,null,null,null,null,0]
[null,null,null,null,null,null,null,0]
[null,null,null,null,null,null,null,0]
[null,null,null,null,null,null,null,0]
[null,null,null,null,null,null,null,0]
[null,null,null,null,null,null,null,0]
[null,null,null,null,null,null,null,0]
[null,null,null,null,null,null,null,0]
[null,null,null,null,null,null,null,0]
[null,null,null,null,null,null,null,0]
[null,null,null,null,null,null,null,0]
[null,null,null,null,null,null,null,0]
[null,null,null,null,null,null,null,0]
[null,null,null,null,null,null,null,0]
[null,null,null,null,null,null,null,0]
[null,null,null,null,null,null,null,0]
[null,null,null,null,null,null,null,0]
[null,null,null,null,null,null,null,0]
[null,null,null,null,null,null,null,0]
[null,null,null,null,null,null,null,0]
[null,null,null,null,null,null,null,0]
[null,null,null,null,null,null,null,0]
[null,null,null,null,null,null,null,0]
[null,null,null,null,null,null,null,0]
[null,null,null,null,null,null,null,0]
[null,null,null,null,null,null,null,0]
[null,null,null,null,null,null,null,0]
[null,null,null,null,null,null,null,0]
[null,null,null,null,null,null,null,0]
[null,null,null,null,null,null,null,0]
[null,null,null,null,null,null,null,0]
[null,null,null,null,null,null,null,0]
[null,null,null,null,null,null,null,0]
[null,null,null,null,null,null,null,0]
[null,null,null,null,null,null,null,0]
[null,null,null,null,null,null,null,0]
[null,null,null,null,null,null,null,0]
[null,null,null,null,null,null,null,0]
[null,null,null,null,null,null,null,0]
[null,null,null,null,null,null,null,0]
[null,null,null,null,null,null,null,0]
[null,null,null,null,null,null,null,0]
[null,null,null,null,null,null,null,0]
[null,null,null,null,null,null,null,0]
[null,null,null,null,null,null,null,0]
[null,null,null,null,null,null,null,0]
[null,null,null,null,null,null,null,0]
[null,null,null,null,null,null,null,0]
[null,null,null,null,null,null,null,0]
[null,null,null,null,null,null,null,0]
[null,null,null,null,null,null,null,0]
[null,null,null,null,null,null,null,0]
[null,null,null,null,null,null,null,0]
[null,null,null,null,null,null,null,0]
[null,null,null,null,null,null,null,0]
[null,null,null,null,null,null,null,0]
[null,null,null,null,null,null,null,0]
[null,null,null,null,null,null,null,0]
[null,null,null,null,null,null,null,0]
[null,null,null,null,null,null,null,0]
[null,null,null,null,null,null,null,0]
[null,null,null,null,null,null,null,0]
[null,null,null,null,null,null,null,0]
[null,null,null,null,null,null,null,0]
[null,null,null,null,null,null,null,0]
[null,null,null,null,null,null,null,0]
[null,null,null,null,null,null,null,0]
[null,null,null,null,null,null,null,0]
[null,null,null,null,null,null,null,0]
[null,null,null,null,null,null,null,0]
[null,null,null,null,null,null,null,0]
[null,null,null,null,null,null,null,0]
[null,null,null,null,null,null,null,0]
[null,null,null,null,null,null,null,0]
[null,null,null,null,null,null,null,0]
[null,null,null,null,null,null,null,0]
[null,null,null,null,null,null,null,0]
[null,null,null,null,null,null,null,0]
[null,null,null,null,null,null,null,{"$f":"SUM(F247298:G247298)","v":0}]
[null,null,null,null,null,null,null,0]
[null,null,null,null,null,null,null,0]
[null,null,null,null,null,null,null,0]
[null,null,null,null,null,null,null,0]
[null,null,null,null,null,null,null,0]
[null,null,null,null,null,null,null,0]
[null,null,null,null,null,null,null,0]
[null,null,null,null,null,null,null,0]
[null,null,null,null,null,null,null,0]
[null,null,null,null,null,null,null,0]
[null,null,null,null,null,null,null,0]
[null,null,null,null,null,null,null,0]
[null,null,null,null,null,null,null,0]
[null,null,null,null,null,null,null,0]
[null,null,null,null,null,null,null,0]
[null,null,null,null,null,null,null,0]
[null,null,null,null,null,null,null,0]
[null,null,null,null,null,null,null,0]
[null,null,null,null,null,null,null,0]
[null,null,null,null,null,null,null,0]
[null,null,null,null,null,null,null,0]
[null,null,null,null,null,null,null,0]
[null,null,null,null,null,null,null,0]
[null,null,null,null,null,null,null,0]
[null,null,null,null,null,null,null,0]
[null,null,null,null,null,null,null,0]
[null,null,null,null,null,null,null,0]
[null,null,null,null,null,null,null,0]
[null,null,null,null,null,null,null,0]
[null,null,null,null,null,null,null,0]
[null,null,null,null,null,null,null,0]
[null,null,null,null,null,null,null,0]
[null,null,null,null,null,null,null,0]
[null,null,null,null,null,null,null,0]
[null,null,null,null,null,null,null,0]
[null,null,null,null,null,null,null,0]
[null,null,null,null,null,null,null,0]
[null,null,null,null,null,null,null,0]
[null,null,null,null,null,null,null,0]
[null,null,null,null,null,null,null,0]
[null,null,null,null,null,null,null,0]
[null,null,null,null,null,null,null,0]
[null,null,null,null,null,null,null,0]
[null,null,null,null,null,null,null,0]
[null,null,null,null,null,null,null,0]
[null,null,null,null,null,null,null,0]
[null,null,null,null,null,null,null,0]
[null,null,null,null,null,null,null,0]
[null,null,null,null,null,null,null,0]
[null,null,null,null,null,null,null,0]
[null,null,null,null,null,null,null,0]
[null,null,null,null,null,null,null,0]
[null,null,null,null,null,null,null,0]
[null,null,null,null,null,null,null,0]
[null,null,null,null,null,null,null,0]
[null,null,null,null,null,null,null,0]
[null,null,null,null,null,null,null,0]
[null,null,null,null,null,null,null,0]
[null,null,null,null,null,null,null,0]
[null,null,null,null,null,null,null,0]
[null,null,null,null,null,null,null,0]
[null,null,null,null,null,null,null,0]
[null,null,null,null,null,null,null,0]
[null,null,null,null,null,null,null,0]
[null,null,null,null,null,null,null,0]
[null,null,null,null,null,null,null,0]
[null,null,null,null,null,null,null,0]
[null,null,null,null,null,null,null,0]
[null,null,null,null,null,null,null,0]
[null,null,null,null,null,null,null,0]
[null,null,null,null,null,null,null,0]
[null,null,null,null,null,null,null,0]
[null,null,null,null,null,null,null,0]
[null,null,null,null,null,null,null,0]
[null,null,null,null,null,null,null,0]
[null,null,null,null,null,null,null,0]
[null,null,null,null,null,null,null,0]
[null,null,null,null,null,null,null,0]
[null,null,null,null,null,null,null,0]
[null,null,null,null,null,null,null,0]
[null,null,null,null,null,null,null,0]
[null,null,null,null,null,null,null,0]
[null,null,null,null,null,null,null,0]
[null,null,null,null,null,null,null,0]
[null,null,null,null,null,null,null,0]
[null,null,null,null,null,null,null,0]
[null,null,null,null,null,null,null,0]
[null,null,null,null,null,null,null,0]
[null,null,null,null,null,null,null,0]
[null,null,null,null,null,null,null,0]
[null,null,null,null,null,null,null,0]
[null,null,null,null,null,null,null,0]
[null,null,null,null,null,null,null,0]
[null,null,null,null,null,null,null,0]
[null,null,null,null,null,null,null,0]
[null,null,null,null,null,null,null,0]
[null,null,null,null,null,null,null,{"$f":"SUM(F297922:G297922)","v":0}]
[null,null,null,null,null,null,null,0]
[null,null,null,null,null,null,null,0]
[null,null,null,null,null,null,null,0]
[null,null,null,null,null,null,null,0]
[null,null,null,null,null,null,null,0]
[null,null,null,null,null,null,null,0]
[null,null,null,null,null,null,null,0]
[null,null,null,null,null,null,null,0]
[null,null,null,null,null,null,null,0]
[null,null,null,null,null,null,null,0]
[null,null,null,null,null,null,null,0]
[null,null,null,null,null,null,null,0]
[null,null,null,null,null,null,null,0]
[null,null,null,null,null,null,null,0]
[null,null,null,null,null,null,null,0]
[null,null,null,null,null,null,null,0]
[null,null,null,null,null,null,null,0]
[null,null,null,null,null,null,null,0]
[null,null,null,null,null,null,null,0]
[null,null,null,null,null,null,null,0]
[null,null,null,null,null,null,null,0]
[null,null,null,null,null,null,null,0]
[null,null,null,null,null,null,null,0]
[null,null,null,null,null,null,null,0]
[null,null,null,null,null,null,null,0]
[null,null,null,null,null,null,null,0]
[null,null,null,null,null,null,null,0]
[null,null,null,null,null,null,null,0]
[null,null,null,null,null,null,null,0]
[null,null,null,null,null,null,null,0]
[null,null,null,null,null,null,null,0]
[null,null,null,null,null,null,null,0]
[null,null,null,null,null,null,null,0]
[null,null,null,null,null,null,null,0]
[null,null,null,null,null,null,null,0]
[null,null,null,null,null,null,null,0]
[null,null,null,null,null,null,null,0]
[null,null,null,null,null,null,null,0]
[null,null,null,null,null,null,null,{"$f":"SUM(F318274:G318274)","v":0}]
[null,null,null,null,null,null,null,0]
[null,null,null,null,null,null,null,0]
[null,null,null,null,null,null,null,0]
[null,null,null,null,null,null,null,0]
[null,null,null,null,null,null,null,0]
[null,null,null,null,null,null,null,0]
[null,null,null,null,null,null,null,0]
[null,null,null,null,null,null,null,0]
[null,null,null,null,null,null,null,0]
[null,null,null,null,null,null,null,0]
[null,null,null,null,null,null,null,0]
[null,null,null,null,null,null,null,0]
[null,null,null,null,null,null,null,0]
[null,null,null,null,null,null,null,0]
[null,null,null,null,null,null,null,0]
[null,null,null,null,null,null,null,0]
[null,null,null,null,null,null,null,0]
[null,null,null,null,null,null,null,0]
[null,null,null,null,null,null,null,0]
[null,null,null,null,null,null,null,0]
[null,null,null,null,null,null,null,0]
[null,null,null,null,null,null,null,0]
[null,null,null,null,null,null,null,0]
[null,null,null,null,null,null,null,0]
[null,null,null,null,null,null,null,0]
[null,null,null,null,null,null,null,0]
[null,null,null,null,null,null,null,0]
[null,null,null,null,null,null,null,0]
[null,null,null,null,null,null,null,0]
[null,null,null,null,null,null,null,0]
[null,null,null,null,null,null,null,0]
[null,null,null,null,null,null,null,0]
[null,null,null,null,null,null,null,0]
[null,null,null,null,null,null,null,0]
[null,null,null,null,null,null,null,0]
[null,null,null,null,null,null,null,0]
[null,null,null,null,null,null,null,0]
[null,null,null,null,null,null,null,0]
[null,null,null,null,null,null,null,0]
[null,null,null,null,null,null,null,0]
[null,null,null,null,null,null,null,0]
[null,null,null,null,null,null,null,0]
[null,null,null,null,null,null,null,0]
[null,null,null,null,null,null,null,0]
[null,null,null,null,null,null,null,0]
[null,null,null,null,null,null,null,0]
[null,null,null,null,null,null,null,0]
[null,null,null,null,null,null,null,0]
[null,null,null,null,null,null,null,0]
[null,null,null,null,null,null,null,0]
[null,null,null,null,null,null,null,0]
[null,null,null,null,null,null,null,0]
[null,null,null,null,null,null,null,0]
[null,null,null,null,null,null,null,0]
[null,null,null,null,null,null,null,0]
[null,null,null,null,null,null,null,0]
[null,null,null,null,null,null,null,0]
[null,null,null,null,null,null,null,{"$f":"SUM(F348546:G348546)","v":0}]
[null,null,null,null,null,null,null,0]
[null,null,null,null,null,null,null,0]
[null,null,null,null,null,null,null,0]
[null,null,null,null,null,null,null,0]
[null,null,null,null,null,null,null,0]
[null,null,null,null,null,null,null,0]
[null,null,null,null,null,null,null,0]
[null,null,null,null,null,null,null,0]
[null,null,null,null,null,null,null,0]
[null,null,null,null,null,null,null,0]
[null,null,null,null,null,null,null,0]
[null,null,null,null,null,null,null,0]
[null,null,null,null,null,null,null,0]
[null,null,null,null,null,null,null,0]
[null,null,null,null,null,null,null,0]
[null,null,null,null,null,null,null,0]
[null,null,null,null,null,null,null,0]
[null,null,null,null,null,null,null,0]
[null,null,null,null,null,null,null,0]
[null,null,null,null,null,null,null,0]
[null,null,null,null,null,null,null,0]
[null,null,null,null,null,null,null,0]
[null,null,null,null,null,null,null,0]
[null,null,null,null,null,null,null,0]
[null,null,null,null,null,null,null,0]
[null,null,null,null,null,null,null,0]
[null,null,null,null,null,null,null,0]
[null,null,null,null,null,null,null,0]
[null,null,null,null,null,null,null,0]
[null,null,null,null,null,null,null,0]
[null,null,null,null,null,null,null,0]
[null,null,null,null,null,null,null,0]
[null,null,null,null,null,null,null,0]
[null,null,null,null,null,null,null,0]
[null,null,null,null,null,null,null,0]
[null,null,null,null,null,null,null,0]
[null,null,null,null,null,null,null,0]
[null,null,null,null,null,null,null,0]
[null,null,null,null,null,null,null,{"$f":"SUM(F368898:G368898)","v":0}]
[null,null,null,null,null,null,null,0]
[null,null,null,null,null,null,null,0]
[null,null,null,null,null,null,null,0]
[null,null,null,null,null,null,null,0]
[null,null,null,null,null,null,null,0]
[null,null,null,null,null,null,null,0]
[null,null,null,null,null,null,null,0]
[null,null,null,null,null,null,null,0]
[null,null,null,null,null,null,null,0]
[null,null,null,null,null,null,null,0]
[null,null,null,null,null,null,null,0]
[null,null,null,null,null,null,null,0]
[null,null,null,null,null,null,null,0]
[null,null,null,null,null,null,null,0]
[null,null,null,null,null,null,null,0]
[null,null,null,null,null,null,null,0]
[null,null,null,null,null,null,null,0]
[null,null,null,null,null,null,null,0]
[null,null,null,null,null,null,null,0]
[null,null,null,null,null,null,null,0]
[null,null,null,null,null,null,null,0]
[null,null,null,null,null,null,null,0]
[null,null,null,null,null,null,null,0]
[null,null,null,null,null,null,null,0]
[null,null,null,null,null,null,null,0]
[null,null,null,null,null,null,null,0]
[null,null,null,null,null,null,null,0]
[null,null,null,null,null,null,null,0]
[null,null,null,null,null,null,null,0]
[null,null,null,null,null,null,null,0]
[null,null,null,null,null,null,null,0]
[null,null,null,null,null,null,null,0]
[null,null,null,null,null,null,null,0]
[null,null,null,null,null,null,null,0]
[null,null,null,null,null,null,null,0]
[null,null,null,null,null,null,null,0]
[null,null,null,null,null,null,null,0]
[null,null,null,null,null,null,null,0]
[null,null,null,null,null,null,null,0]
[null,null,null,null,null,null,null,0]
[null,null,null,null,null,null,null,0]
[null,null,null,null,null,null,null,0]
[null,null,null,null,null,null,null,0]
[null,null,null,null,null,null,null,0]
[null,null,null,null,null,null,null,0]
[null,null,null,null,null,null,null,0]
[null,null,null,null,null,null,null,0]
[null,null,null,null,null,null,null,0]
[null,null,null,null,null,null,null,0]
[null,null,null,null,null,null,null,0]
[null,null,null,null,null,null,null,0]
[null,null,null,null,null,null,null,0]
[null,null,null,null,null,null,null,0]
[null,null,null,null,null,null,null,0]
[null,null,null,null,null,null,null,0]
[null,null,null,null,null,null,null,0]
[null,null,null,null,null,null,null,0]
[null,null,null,null,null,null,null,0]
[null,null,null,null,null,null,null,0]
[null,null,null,null,null,null,null,0]
[null,null,null,null,null,null,null,0]
[null,null,null,null,null,null,null,0]
[null,null,null,null,null,null,null,0]
[null,null,null,null,null,null,null,0]
[null,null,null,null,null,null,null,0]
[null,null,null,null,null,null,null,0]
[null,null,null,null,null,null,null,0]
[null,null,null,null,null,null,null,0]
[null,null,null,null,null,null,null,0]
[null,null,null,null,null,null,null,0]
[null,null,null,null,null,null,null,0]
[null,null,null,null,null,null,null,0]
[null,null,null,null,null,null,null,0]
[null,null,null,null,null,null,null,0]
[null,null,null,null,null,null,null,0]
[null,null,null,null,null,null,null,0]
[null,null,null,null,null,null,null,0]
[null,null,null,null,null,null,null,0]
[null,null,null,null,null,null,null,0]
[null,null,null,null,null,null,null,0]
[null,null,null,null,null,null,null,0]
[null,null,null,null,null,null,null,0]
[null,null,null,null,null,null,null,0]
[null,null,null,null,null,null,null,0]
[null,null,null,null,null,null,null,0]
[null,null,null,null,null,null,null,0]
[null,null,null,null,null,null,null,0]
[null,null,null,null,null,null,null,0]
[null,null,null,null,null,null,null,0]
[null,null,null,null,null,null,null,0]
[null,null,null,null,null,null,null,0]
[null,null,null,null,null,null,null,0]
[null,null,null,null,null,null,null,0]
[null,null,null,null,null,null,null,0]
[null,null,null,null,null,null,null,0]
[null,null,null,null,null,null,null,0]
[null,null,null,null,null,null,null,{"$f":"SUM(F419522:G419522)","v":0}]
[null,null,null,null,null,null,null,0]
[null,null,null,null,null,null,null,0]
[null,null,null,null,null,null,null,0]
[null,null,null,null,null,null,null,0]
[null,null,null,null,null,null,null,0]
[null,null,null,null,null,null,null,0]
[null,null,null,null,null,null,null,0]
[null,null,null,null,null,null,null,0]
[null,null,null,null,null,null,null,0]
[null,null,null,null,null,null,null,0]
[null,null,null,null,null,null,null,0]
[null,null,null,null,null,null,null,0]
[null,null,null,null,null,null,null,0]
[null,null,null,null,null,null,null,0]
[null,null,null,null,null,null,null,0]
[null,null,null,null,null,null,null,0]
[null,null,null,null,null,null,null,0]
[null,null,null,null,null,null,null,0]
[null,null,null,null,null,null,null,0]
[null,null,null,null,null,null,null,0]
[null,null,null,null,null,null,null,0]
[null,null,null,null,null,null,null,0]
[null,null,null,null,null,null,null,0]
[null,null,null,null,null,null,null,0]
[null,null,null,null,null,null,null,0]
[null,null,null,null,null,null,null,0]
[null,null,null,null,null,null,null,0]
[null,null,null,null,null,null,null,0]
[null,null,null,null,null,null,null,0]
[null,null,null,null,null,null,null,0]
[null,null,null,null,null,null,null,0]
[null,null,null,null,null,null,null,0]
[null,null,null,null,null,null,null,0]
[null,null,null,null,null,null,null,0]
[null,null,null,null,null,null,null,0]
[null,null,null,null,null,null,null,0]
[null,null,null,null,null,null,null,0]
[null,null,null,null,null,null,null,0]
[null,null,null,null,null,null,null,{"$f":"SUM(F439874:G439874)","v":0}]
[null,null,null,null,null,null,null,0]
[null,null,null,null,null,null,null,0]
[null,null,null,null,null,null,null,0]
[null,null,null,null,null,null,null,0]
[null,null,null,null,null,null,null,0]
[null,null,null,null,null,null,null,0]
[null,null,null,null,null,null,null,0]
[null,null,null,null,null,null,null,0]
[null,null,null,null,null,null,null,0]
[null,null,null,null,null,null,null,0]
[null,null,null,null,null,null,null,0]
[null,null,null,null,null,null,null,0]
[null,null,null,null,null,null,null,0]
[null,null,null,null,null,null,null,0]
[null,null,null,null,null,null,null,0]
[null,null,null,null,null,null,null,0]
[null,null,null,null,null,null,null,0]
[null,null,null,null,null,null,null,0]
[null,null,null,null,null,null,null,0]
[null,null,null,null,null,null,null,0]
[null,null,null,null,null,null,null,0]
[null,null,null,null,null,null,null,0]
[null,null,null,null,null,null,null,0]
[null,null,null,null,null,null,null,0]
[null,null,null,null,null,null,null,0]
[null,null,null,null,null,null,null,0]
[null,null,null,null,null,null,null,0]
[null,null,null,null,null,null,null,0]
[null,null,null,null,null,null,null,0]
[null,null,null,null,null,null,null,0]
[null,null,null,null,null,null,null,0]
[null,null,null,null,null,null,null,0]
[null,null,null,null,null,null,null,0]
[null,null,null,null,null,null,null,0]
[null,null,null,null,null,null,null,0]
[null,null,null,null,null,null,null,0]
[null,null,null,null,null,null,null,0]
[null,null,null,null,null,null,null,0]
[null,null,null,null,null,null,null,0]
[null,null,null,null,null,null,null,0]
[null,null,null,null,null,null,null,0]
[null,null,null,null,null,null,null,0]
[null,null,null,null,null,null,null,0]
[null,null,null,null,null,null,null,0]
[null,null,null,null,null,null,null,0]
[null,null,null,null,null,null,null,0]
[null,null,null,null,null,null,null,0]
[null,null,null,null,null,null,null,0]
[null,null,null,null,null,null,null,0]
[null,null,null,null,null,null,null,0]
[null,null,null,null,null,null,null,0]
[null,null,null,null,null,null,null,0]
[null,null,null,null,null,null,null,0]
[null,null,null,null,null,null,null,0]
[null,null,null,null,null,null,null,0]
[null,null,null,null,null,null,null,0]
[null,null,null,null,null,null,null,0]
[null,null,null,null,null,null,null,{"$f":"SUM(F470146:G470146)","v":0}]
[null,null,null,null,null,null,null,0]
[null,null,null,null,null,null,null,0]
[null,null,null,null,null,null,null,0]
[null,null,null,null,null,null,null,0]
[null,null,null,null,null,null,null,0]
[null,null,null,null,null,null,null,0]
[null,null,null,null,null,null,null,0]
[null,null,null,null,null,null,null,0]
[null,null,null,null,null,null,null,0]
[null,null,null,null,null,null,null,0]
[null,null,null,null,null,null,null,0]
[null,null,null,null,null,null,null,0]
[null,null,null,null,null,null,null,0]
[null,null,null,null,null,null,null,0]
[null,null,null,null,null,null,null,0]
[null,null,null,null,null,null,null,0]
[null,null,null,null,null,null,null,0]
[null,null,null,null,null,null,null,0]
[null,null,null,null,null,null,null,0]
[null,null,null,null,null,null,null,0]
[null,null,null,null,null,null,null,0]
[null,null,null,null,null,null,null,0]
[null,null,null,null,null,null,null,0]
[null,null,null,null,null,null,null,0]
[null,null,null,null,null,null,null,0]
[null,null,null,null,null,null,null,0]
[null,null,null,null,null,null,null,0]
[null,null,null,null,null,null,null,0]
[null,null,null,null,null,null,null,0]
[null,null,null,null,null,null,null,0]
[null,null,null,null,null,null,null,0]
[null,null,null,null,null,null,null,0]
[null,null,null,null,null,null,null,0]
[null,null,null,null,null,null,null,0]
[null,null,null,null,null,null,null,0]
[null,null,null,null,null,null,null,0]
[null,null,null,null,null,null,null,0]
[null,null,null,null,null,null,null,0]
[null,null,null,null,null,null,null,0]
[null,null,null,null,null,null,null,0]
[null,null,null,null,null,null,null,0]
[null,null,null,null,null,null,null,0]
[null,null,null,null,null,null,null,0]
[null,null,null,null,null,null,null,0]
[null,null,null,null,null,null,null,0]
[null,null,null,null,null,null,null,0]
[null,null,null,null,null,null,null,0]
[null,null,null,null,null,null,null,0]
[null,null,null,null,null,null,null,0]
[null,null,null,null,null,null,null,0]
[null,null,null,null,null,null,null,0]
[null,null,null,null,null,null,null,0]
[null,null,null,null,null,null,null,0]
[null,null,null,null,null,null,null,0]
[null,null,null,null,null,null,null,0]
[null,null,null,null,null,null,null,0]
[null,null,null,null,null,null,null,0]
[null,null,null,null,null,null,null,0]
[null,null,null,null,null,null,null,0]
[null,null,null,null,null,null,null,0]
[null,null,null,null,null,null,null,0]
[null,null,null,null,null,null,null,0]
[null,null,null,null,null,null,null,0]
[null,null,null,null,null,null,null,0]
[null,null,null,null,null,null,null,0]
[null,null,null,null,null,null,null,0]
[null,null,null,null,null,null,null,0]
[null,null,null,null,null,null,null,0]
[null,null,null,null,null,null,null,0]
[null,null,null,null,null,null,null,0]
[null,null,null,null,null,null,null,0]
[null,null,null,null,null,null,null,0]
[null,null,null,null,null,null,null,0]
[null,null,null,null,null,null,null,0]
[null,null,null,null,null,null,null,0]
[null,null,null,null,null,null,null,0]
[null,null,null,null,null,null,null,0]
[null,null,null,null,null,null,null,0]
[null,null,null,null,null,null,null,0]
[null,null,null,null,null,null,null,0]
[null,null,null,null,null,null,null,0]
[null,null,null,null,null,null,null,0]
[null,null,null,null,null,null,null,0]
[null,null,null,null,null,null,null,0]
[null,null,null,null,null,null,null,0]
[null,null,null,null,null,null,null,0]
[null,null,null,null,null,null,null,0]
[null,null,null,null,null,null,null,0]
[null,null,null,null,null,null,null,0]
[null,null,null,null,null,null,null,0]
[null,null,null,null,null,null,null,0]
[null,null,null,null,null,null,null,0]
[null,null,null,null,null,null,null,0]
[null,null,null,null,null,null,null,0]
[null,null,null,null,null,null,null,0]
[null,null,null,null,null,null,null,0]
[null,null,null,null,null,null,null,0]
[null,null,null,null,null,null,null,0]
[null,null,null,null,null,null,null,0]
[null,null,null,null,null,null,null,0]
[null,null,null,null,null,null,null,0]
[null,null,null,null,null,null,null,0]
[null,null,null,null,null,null,null,0]
[null,null,null,null,null,null,null,0]
[null,null,null,null,null,null,null,0]
[null,null,null,null,null,null,null,0]
[null,null,null,null,null,null,null,0]
[null,null,null,null,null,null,null,0]
[null,null,null,null,null,null,null,0]
[null,null,null,null,null,null,null,0]
[null,null,null,null,null,null,null,0]
[null,null,null,null,null,null,null,0]
[null,null,null,null,null,null,null,0]
[null,null,null,null,null,null,null,0]
[null,null,null,null,null,null,null,0]
[null,null,null,null,null,null,null,0]
[null,null,null,null,null,null,null,0]
[null,null,null,null,null,null,null,0]
[null,null,null,null,null,null,null,0]
[null,null,null,null,null,null,null,0]
[null,null,null,null,null,null,null,0]
[null,null,null,null,null,null,null,0]
[null,null,null,null,null,null,null,0]
[null,null,null,null,null,null,null,0]
[null,null,null,null,null,null,null,0]
[null,null,null,null,null,null,null,0]
[null,null,null,null,null,null,null,0]
[null,null,null,null,null,null,null,0]
[null,null,null,null,null,null,null,0]
[null,null,null,null,null,null,null,0]
[null,null,null,null,null,null,null,0]
[null,null,null,null,null,null,null,0]
[null,null,null,null,null,null,null,0]
[null,null,null,null,null,null,null,0]
[null,null,null,null,null,null,null,0]
[null,null,null,null,null,null,null,0]
[null,null,null,null,null,null,null,0]
[null,null,null,null,null,null,null,0]
[null,null,null,null,null,null,null,0]
[null,null,null,null,null,null,null,0]
[null,null,null,null,null,null,null,0]
[null,null,null,null,null,null,null,0]
[null,null,null,null,null,null,null,0]
[null,null,null,null,null,null,null,0]
[null,null,null,null,null,null,null,0]
[null,null,null,null,null,null,null,0]
[null,null,null,null,null,null,null,0]
[null,null,null,null,null,null,null,0]
[null,null,null,null,null,null,null,0]
[null,null,null,null,null,null,null,0]
[null,null,null,null,null,null,null,0]
[null,null,null,null,null,null,null,0]
[null,null,null,null,null,null,null,0]
[null,null,null,null,null,null,null,0]
[null,null,null,null,null,null,null,0]
[null,null,null,null,null,null,null,0]
[null,null,null,null,null,null,null,0]
[null,null,null,null,null,null,null,0]
[null,null,null,null,null,null,null,0]
[null,null,null,null,null,null,null,0]
[null,null,null,null,null,null,null,{"$f":"SUM(F554818:G554818)","v":0}]
[null,null,null,null,null,null,null,0]
[null,null,null,null,null,null,null,0]
[null,null,null,null,null,null,null,0]
[null,null,null,null,null,null,null,0]
[null,null,null,null,null,null,null,0]
[null,null,null,null,null,null,null,0]
[null,null,null,null,null,null,null,0]
[null,null,null,null,null,null,null,0]
[null,null,null,null,null,null,null,0]
[null,null,null,null,null,null,null,0]
[null,null,null,null,null,null,null,0]
[null,null,null,null,null,null,null,0]
[null,null,null,null,null,null,null,0]
[null,null,null,null,null,null,null,0]
[null,null,null,null,null,null,null,0]
[null,null,null,null,null,null,null,0]
[null,null,null,null,null,null,null,0]
[null,null,null,null,null,null,null,0]
[null,null,null,null,null,null,null,0]
[null,null,null,null,null,null,null,0]
[null,null,null,null,null,null,null,0]
[null,null,null,null,null,null,null,0]
[null,null,null,null,null,null,null,0]
[null,null,null,null,null,null,null,0]
[null,null,null,null,null,null,null,0]
[null,null,null,null,null,null,null,0]
[null,null,null,null,null,null,null,0]
[null,null,null,null,null,null,null,0]
[null,null,null,null,null,null,null,0]
[null,null,null,null,null,null,null,0]
[null,null,null,null,null,null,null,0]
[null,null,null,null,null,null,null,0]
[null,null,null,null,null,null,null,0]
[null,null,null,null,null,null,null,0]
[null,null,null,null,null,null,null,0]
[null,null,null,null,null,null,null,0]
[null,null,null,null,null,null,null,0]
[null,null,null,null,null,null,null,0]
[null,null,null,null,null,null,null,{"$f":"SUM(F575170:G575170)","v":0}]
[null,null,null,null,null,null,null,0]
[null,null,null,null,null,null,null,0]
[null,null,null,null,null,null,null,0]
[null,null,null,null,null,null,null,0]
[null,null,null,null,null,null,null,0]
[null,null,null,null,null,null,null,0]
[null,null,null,null,null,null,null,0]
[null,null,null,null,null,null,null,0]
[null,null,null,null,null,null,null,0]
[null,null,null,null,null,null,null,0]
[null,null,null,null,null,null,null,0]
[null,null,null,null,null,null,null,0]
[null,null,null,null,null,null,null,0]
[null,null,null,null,null,null,null,0]
[null,null,null,null,null,null,null,0]
[null,null,null,null,null,null,null,0]
[null,null,null,null,null,null,null,0]
[null,null,null,null,null,null,null,0]
[null,null,null,null,null,null,null,0]
[null,null,null,null,null,null,null,0]
[null,null,null,null,null,null,null,0]
[null,null,null,null,null,null,null,0]
[null,null,null,null,null,null,null,0]
[null,null,null,null,null,null,null,0]
[null,null,null,null,null,null,null,0]
[null,null,null,null,null,null,null,0]
[null,null,null,null,null,null,null,0]
[null,null,null,null,null,null,null,0]
[null,null,null,null,null,null,null,0]
[null,null,null,null,null,null,null,0]
[null,null,null,null,null,null,null,0]
[null,null,null,null,null,null,null,0]
[null,null,null,null,null,null,null,0]
[null,null,null,null,null,null,null,0]
[null,null,null,null,null,null,null,0]
[null,null,null,null,null,null,null,0]
[null,null,null,null,null,null,null,0]
[null,null,null,null,null,null,null,0]
[null,null,null,null,null,null,null,0]
[null,null,null,null,null,null,null,0]
[null,null,null,null,null,null,null,0]
[null,null,null,null,null,null,null,0]
[null,null,null,null,null,null,null,0]
[null,null,null,null,null,null,null,0]
[null,null,null,null,null,null,null,0]
[null,null,null,null,null,null,null,0]
[null,null,null,null,null,null,null,0]
[null,null,null,null,null,null,null,0]
[null,null,null,null,null,null,null,0]
[null,null,null,null,null,null,null,0]
[null,null,null,null,null,null,null,0]
[null,null,null,null,null,null,null,0]
[null,null,null,null,null,null,null,0]
[null,null,null,null,null,null,null,0]
[null,null,null,null,null,null,null,0]
[null,null,null,null,null,null,null,0]
[null,null,null,null,null,null,null,0]
[null,null,null,null,null,null,null,0]
[null,null,null,null,null,null,null,0]
[null,null,null,null,null,null,null,0]
[null,null,null,null,null,null,null,0]
[null,null,null,null,null,null,null,0]
[null,null,null,null,null,null,null,0]
[null,null,null,null,null,null,null,0]
[null,null,null,null,null,null,null,0]
[null,null,null,null,null,null,null,0]
[null,null,null,null,null,null,null,0]
[null,null,null,null,null,null,null,0]
[null,null,null,null,null,null,null,0]
[null,null,null,null,null,null,null,0]
[null,null,null,null,null,null,null,0]
[null,null,null,null,null,null,null,0]
[null,null,null,null,null,null,null,0]
[null,null,null,null,null,null,null,0]
[null,null,null,null,null,null,null,0]
[null,null,null,null,null,null,null,0]
[null,null,null,null,null,null,null,0]
[null,null,null,null,null,null,null,0]
[null,null,null,null,null,null,null,0]
[null,null,null,null,null,null,null,0]
[null,null,null,null,null,null,null,0]
[null,null,null,null,null,null,null,0]
[null,null,null,null,null,null,null,0]
[null,null,null,null,null,null,null,0]
[null,null,null,null,null,null,null,0]
[null,null,null,null,null,null,null,0]
[null,null,null,null,null,null,null,0]
[null,null,null,null,null,null,null,0]
[null,null,null,null,null,null,null,0]
[null,null,null,null,null,null,null,0]
[null,null,null,null,null,null,null,0]
[null,null,null,null,null,null,null,0]
[null,null,null,null,null,null,null,0]
[null,null,null,null,null,null,null,0]
[null,null,null,null,null,null,null,0]
[null,null,null,null,null,null,null,0]
[null,null,null,null,null,null,null,{"$f":"SUM(F625794:G625794)","v":0}]
[null,null,null,null,null,null,null,0]
[null,null,null,null,null,null,null,0]
[null,null,null,null,null,null,null,0]
[null,null,null,null,null,null,null,0]
[null,null,null,null,null,null,null,0]
[null,null,null,null,null,null,null,0]
[null,null,null,null,null,null,null,0]
[null,null,null,null,null,null,null,0]
[null,null,null,null,null,null,null,0]
[null,null,null,null,null,null,null,0]
[null,null,null,null,null,null,null,0]
[null,null,null,null,null,null,null,0]
[null,null,null,null,null,null,null,0]
[null,null,null,null,null,null,null,0]
[null,null,null,null,null,null,null,0]
[null,null,null,null,null,null,null,0]
[null,null,null,null,null,null,null,0]
[null,null,null,null,null,null,null,0]
[null,null,null,null,null,null,null,0]
[null,null,null,null,null,null,null,0]
[null,null,null,null,null,null,null,0]
[null,null,null,null,null,null,null,0]
[null,null,null,null,null,null,null,0]
[null,null,null,null,null,null,null,0]
[null,null,null,null,null,null,null,0]
[null,null,null,null,null,null,null,0]
[null,null,null,null,null,null,null,0]
[null,null,null,null,null,null,null,0]
[null,null,null,null,null,null,null,0]
[null,null,null,null,null,null,null,0]
[null,null,null,null,null,null,null,0]
[null,null,null,null,null,null,null,0]
[null,null,null,null,null,null,null,0]
[null,null,null,null,null,null,null,0]
[null,null,null,null,null,null,null,0]
[null,null,null,null,null,null,null,0]
[null,null,null,null,null,null,null,0]
[null,null,null,null,null,null,null,0]
[null,null,null,null,null,null,null,{"$f":"SUM(F646146:G646146)","v":0}]
[null,null,null,null,null,null,null,0]
[null,null,null,null,null,null,null,0]
[null,null,null,null,null,null,null,0]
[null,null,null,null,null,null,null,0]
[null,null,null,null,null,null,null,0]
[null,null,null,null,null,null,null,0]
[null,null,null,null,null,null,null,0]
[null,null,null,null,null,null,null,0]
[null,null,null,null,null,null,null,0]
[null,null,null,null,null,null,null,0]
[null,null,null,null,null,null,null,0]
[null,null,null,null,null,null,null,0]
[null,null,null,null,null,null,null,0]
[null,null,null,null,null,null,null,0]
[null,null,null,null,null,null,null,0]
[null,null,null,null,null,null,null,0]
[null,null,null,null,null,null,null,0]
[null,null,null,null,null,null,null,0]
[null,null,null,null,null,null,null,0]
[null,null,null,null,null,null,null,0]
[null,null,null,null,null,null,null,0]
[null,null,null,null,null,null,null,0]
[null,null,null,null,null,null,null,0]
[null,null,null,null,null,null,null,0]
[null,null,null,null,null,null,null,0]
[null,null,null,null,null,null,null,0]
[null,null,null,null,null,null,null,0]
[null,null,null,null,null,null,null,0]
[null,null,null,null,null,null,null,0]
[null,null,null,null,null,null,null,0]
[null,null,null,null,null,null,null,0]
[null,null,null,null,null,null,null,0]
[null,null,null,null,null,null,null,0]
[null,null,null,null,null,null,null,0]
[null,null,null,null,null,null,null,0]
[null,null,null,null,null,null,null,0]
[null,null,null,null,null,null,null,0]
[null,null,null,null,null,null,null,0]
[null,null,null,null,null,null,null,0]
[null,null,null,null,null,null,null,0]
[null,null,null,null,null,null,null,0]
[null,null,null,null,null,null,null,0]
[null,null,null,null,null,null,null,0]
[null,null,null,null,null,null,null,0]
[null,null,null,null,null,null,null,0]
[null,null,null,null,null,null,null,0]
[null,null,null,null,null,null,null,0]
[null,null,null,null,null,null,null,0]
[null,null,null,null,null,null,null,0]
[null,null,null,null,null,null,null,0]
[null,null,null,null,null,null,null,0]
[null,null,null,null,null,null,null,0]
[null,null,null,null,null,null,null,0]
[null,null,null,null,null,null,null,0]
[null,null,null,null,null,null,null,0]
[null,null,null,null,null,null,null,0]
[null,null,null,null,null,null,null,0]
[null,null,null,null,null,null,null,0]
[null,null,null,null,null,null,null,0]
[null,null,null,null,null,null,null,0]
[null,null,null,null,null,null,null,0]
[null,null,null,null,null,null,null,0]
[null,null,null,null,null,null,null,0]
[null,null,null,null,null,null,null,0]
[null,null,null,null,null,null,null,0]
[null,null,null,null,null,null,null,0]
[null,null,null,null,null,null,null,0]
[null,null,null,null,null,null,null,0]
[null,null,null,null,null,null,null,0]
[null,null,null,null,null,null,null,0]
[null,null,null,null,null,null,null,0]
[null,null,null,null,null,null,null,0]
[null,null,null,null,null,null,null,0]
[null,null,null,null,null,null,null,0]
[null,null,null,null,null,null,null,0]
[null,null,null,null,null,null,null,0]
[null,null,null,null,null,null,null,0]
[null,null,null,null,null,null,null,0]
[null,null,null,null,null,null,null,0]
[null,null,null,null,null,null,null,0]
[null,null,null,null,null,null,null,0]
[null,null,null,null,null,null,null,0]
[null,null,null,null,null,null,null,0]
[null,null,null,null,null,null,null,0]
[null,null,null,null,null,null,null,0]
[null,null,null,null,null,null,null,0]
[null,null,null,null,null,null,null,0]
[null,null,null,null,null,null,null,0]
[null,null,null,null,null,null,null,0]
[null,null,null,null,null,null,null,0]
[null,null,null,null,null,null,null,0]
[null,null,null,null,null,null,null,0]
[null,null,null,null,null,null,null,0]
[null,null,null,null,null,null,null,0]
[null,null,null,null,null,null,null,0]
[null,null,null,null,null,null,null,0]
[null,null,null,null,null,null,null,{"$f":"SUM(F696770:G696770)","v":0}]
[null,null,null,null,null,null,null,0]
[null,null,null,null,null,null,null,0]
[null,null,null,null,null,null,null,0]
[null,null,null,null,null,null,null,0]
[null,null,null,null,null,null,null,0]
[null,null,null,null,null,null,null,0]
[null,null,null,null,null,null,null,0]
[null,null,null,null,null,null,null,0]
[null,null,null,null,null,null,null,0]
[null,null,null,null,null,null,null,0]
[null,null,null,null,null,null,null,0]
[null,null,null,null,null,null,null,0]
[null,null,null,null,null,null,null,0]
[null,null,null,null,null,null,null,0]
[null,null,null,null,null,null,null,0]
[null,null,null,null,null,null,null,0]
[null,null,null,null,null,null,null,0]
[null,null,null,null,null,null,null,0]
[null,null,null,null,null,null,null,0]
[null,null,null,null,null,null,null,0]
[null,null,null,null,null,null,null,0]
[null,null,null,null,null,null,null,0]
[null,null,null,null,null,null,null,0]
[null,null,null,null,null,null,null,0]
[null,null,null,null,null,null,null,0]
[null,null,null,null,null,null,null,0]
[null,null,null,null,null,null,null,0]
[null,null,null,null,null,null,null,0]
[null,null,null,null,null,null,null,0]
[null,null,null,null,null,null,null,0]
[null,null,null,null,null,null,null,0]
[null,null,null,null,null,null,null,0]
[null,null,null,null,null,null,null,0]
[null,null,null,null,null,null,null,0]
[null,null,null,null,null,null,null,0]
[null,null,null,null,null,null,null,0]
[null,null,null,null,null,null,null,0]
[null,null,null,null,null,null,null,0]
[null,null,null,null,null,null,null,{"$f":"SUM(F717122:G717122)","v":0}]
[null,null,null,null,null,null,null,0]
[null,null,null,null,null,null,null,0]
[null,null,null,null,null,null,null,0]
[null,null,null,null,null,null,null,0]
[null,null,null,null,null,null,null,0]
[null,null,null,null,null,null,null,0]
[null,null,null,null,null,null,null,0]
[null,null,null,null,null,null,null,0]
[null,null,null,null,null,null,null,0]
[null,null,null,null,null,null,null,0]
[null,null,null,null,null,null,null,0]
[null,null,null,null,null,null,null,0]
[null,null,null,null,null,null,null,0]
[null,null,null,null,null,null,null,0]
[null,null,null,null,null,null,null,0]
[null,null,null,null,null,null,null,0]
[null,null,null,null,null,null,null,0]
[null,null,null,null,null,null,null,0]
[null,null,null,null,null,null,null,0]
[null,null,null,null,null,null,null,0]
[null,null,null,null,null,null,null,0]
[null,null,null,null,null,null,null,0]
[null,null,null,null,null,null,null,0]
[null,null,null,null,null,null,null,0]
[null,null,null,null,null,null,null,0]
[null,null,null,null,null,null,null,0]
[null,null,null,null,null,null,null,0]
[null,null,null,null,null,null,null,0]
[null,null,null,null,null,null,null,0]
[null,null,null,null,null,null,null,0]
[null,null,null,null,null,null,null,0]
[null,null,null,null,null,null,null,0]
[null,null,null,null,null,null,null,0]
[null,null,null,null,null,null,null,0]
[null,null,null,null,null,null,null,0]
[null,null,null,null,null,null,null,0]
[null,null,null,null,null,null,null,0]
[null,null,null,null,null,null,null,0]
[null,null,null,null,null,null,null,0]
[null,null,null,null,null,null,null,0]
[null,null,null,null,null,null,null,0]
[null,null,null,null,null,null,null,0]
[null,null,null,null,null,null,null,0]
[null,null,null,null,null,null,null,0]
[null,null,null,null,null,null,null,0]
[null,null,null,null,null,null,null,0]
[null,null,null,null,null,null,null,0]
[null,null,null,null,null,null,null,0]
[null,null,null,null,null,null,null,0]
[null,null,null,null,null,null,null,0]
[null,null,null,null,null,null,null,0]
[null,null,null,null,null,null,null,0]
[null,null,null,null,null,null,null,0]
[null,null,null,null,null,null,null,0]
[null,null,null,null,null,null,null,0]
[null,null,null,null,null,null,null,0]
[null,null,null,null,null,null,null,0]
[null,null,null,null,null,null,null,{"$f":"SUM(F747394:G747394)","v":0}]
[null,null,null,null,null,null,null,0]
[null,null,null,null,null,null,null,0]
[null,null,null,null,null,null,null,0]
[null,null,null,null,null,null,null,0]
[null,null,null,null,null,null,null,0]
[null,null,null,null,null,null,null,0]
[null,null,null,null,null,null,null,0]
[null,null,null,null,null,null,null,0]
[null,null,null,null,null,null,null,0]
[null,null,null,null,null,null,null,0]
[null,null,null,null,null,null,null,0]
[null,null,null,null,null,null,null,0]
[null,null,null,null,null,null,null,0]
[null,null,null,null,null,null,null,0]
[null,null,null,null,null,null,null,0]
[null,null,null,null,null,null,null,0]
[null,null,null,null,null,null,null,0]
[null,null,null,null,null,null,null,0]
[null,null,null,null,null,null,null,0]
[null,null,null,null,null,null,null,0]
[null,null,null,null,null,null,null,0]
[null,null,null,null,null,null,null,0]
[null,null,null,null,null,null,null,0]
[null,null,null,null,null,null,null,0]
[null,null,null,null,null,null,null,0]
[null,null,null,null,null,null,null,0]
[null,null,null,null,null,null,null,0]
[null,null,null,null,null,null,null,0]
[null,null,null,null,null,null,null,0]
[null,null,null,null,null,null,null,0]
[null,null,null,null,null,null,null,0]
[null,null,null,null,null,null,null,0]
[null,null,null,null,null,null,null,0]
[null,null,null,null,null,null,null,0]
[null,null,null,null,null,null,null,0]
[null,null,null,null,null,null,null,0]
[null,null,null,null,null,null,null,0]
[null,null,null,null,null,null,null,0]
[null,null,null,null,null,null,null,{"$f":"SUM(F767746:G767746)","v":0}]
[null,null,null,null,null,null,null,0]
[null,null,null,null,null,null,null,0]
[null,null,null,null,null,null,null,0]
[null,null,null,null,null,null,null,0]
[null,null,null,null,null,null,null,0]
[null,null,null,null,null,null,null,0]
[null,null,null,null,null,null,null,0]
[null,null,null,null,null,null,null,0]
[null,null,null,null,null,null,null,0]
[null,null,null,null,null,null,null,0]
[null,null,null,null,null,null,null,0]
[null,null,null,null,null,null,null,0]
[null,null,null,null,null,null,null,0]
[null,null,null,null,null,null,null,0]
[null,null,null,null,null,null,null,0]
[null,null,null,null,null,null,null,0]
[null,null,null,null,null,null,null,0]
[null,null,null,null,null,null,null,0]
[null,null,null,null,null,null,null,0]
[null,null,null,null,null,null,null,0]
[null,null,null,null,null,null,null,0]
[null,null,null,null,null,null,null,0]
[null,null,null,null,null,null,null,0]
[null,null,null,null,null,null,null,0]
[null,null,null,null,null,null,null,0]
[null,null,null,null,null,null,null,0]
[null,null,null,null,null,null,null,0]
[null,null,null,null,null,null,null,0]
[null,null,null,null,null,null,null,0]
[null,null,null,null,null,null,null,0]
[null,null,null,null,null,null,null,0]
[null,null,null,null,null,null,null,0]
[null,null,null,null,null,null,null,0]
[null,null,null,null,null,null,null,0]
[null,null,null,null,null,null,null,0]
[null,null,null,null,null,null,null,0]
[null,null,null,null,null,null,null,0]
[null,null,null,null,null,null,null,0]
[null,null,null,null,null,null,null,0]
[null,null,null,null,null,null,null,0]
[null,null,null,null,null,null,null,0]
[null,null,null,null,null,null,null,0]
[null,null,null,null,null,null,null,0]
[null,null,null,null,null,null,null,0]
[null,null,null,null,null,null,null,0]
[null,null,null,null,null,null,null,0]
[null,null,null,null,null,null,null,0]
[null,null,null,null,null,null,null,0]
[null,null,null,null,null,null,null,0]
[null,null,null,null,null,null,null,0]
[null,null,null,null,null,null,null,0]
[null,null,null,null,null,null,null,0]
[null,null,null,null,null,null,null,0]
[null,null,null,null,null,null,null,0]
[null,null,null,null,null,null,null,0]
[null,null,null,null,null,null,null,0]
[null,null,null,null,null,null,null,0]
[null,null,null,null,null,null,null,0]
[null,null,null,null,null,null,null,0]
[null,null,null,null,null,null,null,0]
[null,null,null,null,null,null,null,0]
[null,null,null,null,null,null,null,0]
[null,null,null,null,null,null,null,0]
[null,null,null,null,null,null,null,0]
[null,null,null,null,null,null,null,0]
[null,null,null,null,null,null,null,0]
[null,null,null,null,null,null,null,0]
[null,null,null,null,null,null,null,0]
[null,null,null,null,null,null,null,0]
[null,null,null,null,null,null,null,0]
[null,null,null,null,null,null,null,0]
[null,null,null,null,null,null,null,0]
[null,null,null,null,null,null,null,0]
[null,null,null,null,null,null,null,0]
[null,null,null,null,null,null,null,0]
[null,null,null,null,null,null,null,0]
[null,null,null,null,null,null,null,0]
[null,null,null,null,null,null,null,0]
[null,null,null,null,null,null,null,0]
[null,null,null,null,null,null,null,0]
[null,null,null,null,null,null,null,0]
[null,null,null,null,null,null,null,0]
[null,null,null,null,null,null,null,0]
[null,null,null,null,null,null,null,0]
[null,null,null,null,null,null,null,0]
[null,null,null,null,null,null,null,0]
[null,null,null,null,null,null,null,0]
[null,null,null,null,null,null,null,0]
[null,null,null,null,null,null,null,0]
[null,null,null,null,null,null,null,0]
[null,null,null,null,null,null,null,0]
[null,null,null,null,null,null,null,0]
[null,null,null,null,null,null,null,0]
[null,null,null,null,null,null,null,0]
[null,null,null,null,null,null,null,0]
[null,null,null,null,null,null,null,0]
[null,null,null,null,null,null,null,0]
[null,null,null,null,null,null,null,0]
[null,null,null,null,null,null,null,0]
[null,null,null,null,null,null,null,0]
[null,null,null,null,null,null,null,0]
[null,null,null,null,null,null,null,0]
[null,null,null,null,null,null,null,0]
[null,null,null,null,null,null,null,0]
[null,null,null,null,null,null,null,0]
[null,null,null,null,null,null,null,0]
[null,null,null,null,null,null,null,0]
[null,null,null,null,null,null,null,0]
[null,null,null,null,null,null,null,0]
[null,null,null,null,null,null,null,0]
[null,null,null,null,null,null,null,0]
[null,null,null,null,null,null,null,0]
[null,null,null,null,null,null,null,0]
[null,null,null,null,null,null,null,0]
[null,null,null,null,null,null,null,0]
[null,null,null,null,null,null,null,0]
[null,null,null,null,null,null,null,0]
[null,null,null,null,null,null,null,0]
[null,null,null,null,null,null,null,0]
[null,null,null,null,null,null,null,0]
[null,null,null,null,null,null,null,0]
[null,null,null,null,null,null,null,0]
[null,null,null,null,null,null,null,0]
[null,null,null,null,null,null,null,0]
[null,null,null,null,null,null,null,0]
[null,null,null,null,null,null,null,0]
[null,null,null,null,null,null,null,0]
[null,null,null,null,null,null,null,0]
[null,null,null,null,null,null,null,0]
[null,null,null,null,null,null,null,0]
[null,null,null,null,null,null,null,0]
[null,null,null,null,null,null,null,{"$f":"SUM(F837250:G837250)","v":0}]
[null,null,null,null,null,null,null,0]
[null,null,null,null,null,null,null,0]
[null,null,null,null,null,null,null,0]
[null,null,null,null,null,null,null,0]
[null,null,null,null,null,null,null,0]
[null,null,null,null,null,null,null,0]
[null,null,null,null,null,null,null,0]
[null,null,null,null,null,null,null,0]
[null,null,null,null,null,null,null,0]
[null,null,null,null,null,null,null,0]
[null,null,null,null,null,null,null,0]
[null,null,null,null,null,null,null,0]
[null,null,null,null,null,null,null,0]
[null,null,null,null,null,null,null,0]
[null,null,null,null,null,null,null,0]
[null,null,null,null,null,null,null,0]
[null,null,null,null,null,null,null,0]
[null,null,null,null,null,null,null,0]
[null,null,null,null,null,null,null,0]
[null,null,null,null,null,null,null,0]
[null,null,null,null,null,null,null,0]
[null,null,null,null,null,null,null,0]
[null,null,null,null,null,null,null,0]
[null,null,null,null,null,null,null,0]
[null,null,null,null,null,null,null,0]
[null,null,null,null,null,null,null,0]
[null,null,null,null,null,null,null,0]
[null,null,null,null,null,null,null,0]
[null,null,null,null,null,null,null,0]
[null,null,null,null,null,null,null,0]
[null,null,null,null,null,null,null,0]
[null,null,null,null,null,null,null,0]
[null,null,null,null,null,null,null,0]
[null,null,null,null,null,null,null,0]
[null,null,null,null,null,null,null,0]
[null,null,null,null,null,null,null,0]
[null,null,null,null,null,null,null,0]
[null,null,null,null,null,null,null,0]
[null,null,null,null,null,null,null,0]
[null,null,null,null,null,null,null,0]
[null,null,null,null,null,null,null,0]
[null,null,null,null,null,null,null,0]
[null,null,null,null,null,null,null,0]
[null,null,null,null,null,null,null,0]
[null,null,null,null,null,null,null,0]
[null,null,null,null,null,null,null,0]
[null,null,null,null,null,null,null,0]
[null,null,null,null,null,null,null,0]
[null,null,null,null,null,null,null,0]
[null,null,null,null,null,null,null,0]
[null,null,null,null,null,null,null,0]
[null,null,null,null,null,null,null,0]
[null,null,null,null,null,null,null,0]
[null,null,null,null,null,null,null,0]
[null,null,null,null,null,null,null,0]
[null,null,null,null,null,null,null,0]
[null,null,null,null,null,null,null,0]
[null,null,null,null,null,null,null,0]
[null,null,null,null,null,null,null,0]
[null,null,null,null,null,null,null,0]
[null,null,null,null,null,null,null,0]
[null,null,null,null,null,null,null,0]
[null,null,null,null,null,null,null,0]
[null,null,null,null,null,null,null,0]
[null,null,null,null,null,null,null,0]
[null,null,null,null,null,null,null,0]
[null,null,null,null,null,null,null,0]
[null,null,null,null,null,null,null,0]
[null,null,null,null,null,null,null,0]
[null,null,null,null,null,null,null,0]
[null,null,null,null,null,null,null,0]
[null,null,null,null,null,null,null,0]
[null,null,null,null,null,null,null,0]
[null,null,null,null,null,null,null,0]
[null,null,null,null,null,null,null,0]
[null,null,null,null,null,null,null,0]
[null,null,null,null,null,null,null,0]
[null,null,null,null,null,null,null,0]
[null,null,null,null,null,null,null,0]
[null,null,null,null,null,null,null,0]
[null,null,null,null,null,null,null,0]
[null,null,null,null,null,null,null,0]
[null,null,null,null,null,null,null,0]
[null,null,null,null,null,null,null,0]
[null,null,null,null,null,null,null,0]
[null,null,null,null,null,null,null,0]
[null,null,null,null,null,null,null,0]
[null,null,null,null,null,null,null,0]
[null,null,null,null,null,null,null,0]
[null,null,null,null,null,null,null,0]
[null,null,null,null,null,null,null,0]
[null,null,null,null,null,null,null,0]
[null,null,null,null,null,null,null,0]
[null,null,null,null,null,null,null,0]
[null,null,null,null,null,null,null,0]
[null,null,null,null,null,null,null,0]
[null,null,null,null,null,null,null,{"$f":"SUM(F887874:G887874)","v":0}]
[null,null,null,null,null,null,null,0]
[null,null,null,null,null,null,null,0]
[null,null,null,null,null,null,null,0]
[null,null,null,null,null,null,null,0]
[null,null,null,null,null,null,null,0]
[null,null,null,null,null,null,null,0]
[null,null,null,null,null,null,null,0]
[null,null,null,null,null,null,null,0]
[null,null,null,null,null,null,null,0]
[null,null,null,null,null,null,null,0]
[null,null,null,null,null,null,null,0]
[null,null,null,null,null,null,null,0]
[null,null,null,null,null,null,null,0]
[null,null,null,null,null,null,null,0]
[null,null,null,null,null,null,null,0]
[null,null,null,null,null,null,null,0]
[null,null,null,null,null,null,null,0]
[null,null,null,null,null,null,null,0]
[null,null,null,null,null,null,null,0]
[null,null,null,null,null,null,null,0]
[null,null,null,null,null,null,null,0]
[null,null,null,null,null,null,null,0]
[null,null,null,null,null,null,null,0]
[null,null,null,null,null,null,null,0]
[null,null,null,null,null,null,null,0]
[null,null,null,null,null,null,null,0]
[null,null,null,null,null,null,null,0]
[null,null,null,null,null,null,null,0]
[null,null,null,null,null,null,null,0]
[null,null,null,null,null,null,null,0]
[null,null,null,null,null,null,null,0]
[null,null,null,null,null,null,null,0]
[null,null,null,null,null,null,null,0]
[null,null,null,null,null,null,null,0]
[null,null,null,null,null,null,null,0]
[null,null,null,null,null,null,null,0]
[null,null,null,null,null,null,null,0]
[null,null,null,null,null,null,null,0]
[null,null,null,null,null,null,null,{"$f":"SUM(F908226:G908226)","v":0}]
[null,null,null,null,null,null,null,0]
[null,null,null,null,null,null,null,0]
[null,null,null,null,null,null,null,0]
[null,null,null,null,null,null,null,0]
[null,null,null,null,null,null,null,0]
[null,null,null,null,null,null,null,0]
[null,null,null,null,null,null,null,0]
[null,null,null,null,null,null,null,0]
[null,null,null,null,null,null,null,0]
[null,null,null,null,null,null,null,0]
[null,null,null,null,null,null,null,0]
[null,null,null,null,null,null,null,0]
[null,null,null,null,null,null,null,0]
[null,null,null,null,null,null,null,0]
[null,null,null,null,null,null,null,0]
[null,null,null,null,null,null,null,0]
[null,null,null,null,null,null,null,0]
[null,null,null,null,null,null,null,0]
[null,null,null,null,null,null,null,0]
[null,null,null,null,null,null,null,0]
[null,null,null,null,null,null,null,0]
[null,null,null,null,null,null,null,0]
[null,null,null,null,null,null,null,0]
[null,null,null,null,null,null,null,0]
[null,null,null,null,null,null,null,0]
[null,null,null,null,null,null,null,0]
[null,null,null,null,null,null,null,0]
[null,null,null,null,null,null,null,0]
[null,null,null,null,null,null,null,0]
[null,null,null,null,null,null,null,0]
[null,null,null,null,null,null,null,0]
[null,null,null,null,null,null,null,0]
[null,null,null,null,null,null,null,0]
[null,null,null,null,null,null,null,0]
[null,null,null,null,null,null,null,0]
[null,null,null,null,null,null,null,0]
[null,null,null,null,null,null,null,0]
[null,null,null,null,null,null,null,0]
[null,null,null,null,null,null,null,0]
[null,null,null,null,null,null,null,0]
[null,null,null,null,null,null,null,0]
[null,null,null,null,null,null,null,0]
[null,null,null,null,null,null,null,0]
[null,null,null,null,null,null,null,0]
[null,null,null,null,null,null,null,0]
[null,null,null,null,null,null,null,0]
[null,null,null,null,null,null,null,0]
[null,null,null,null,null,null,null,0]
[null,null,null,null,null,null,null,0]
[null,null,null,null,null,null,null,0]
[null,null,null,null,null,null,null,0]
[null,null,null,null,null,null,null,0]
[null,null,null,null,null,null,null,0]
[null,null,null,null,null,null,null,0]
[null,null,null,null,null,null,null,0]
[null,null,null,null,null,null,null,0]
[null,null,null,null,null,null,null,0]
[null,null,null,null,null,null,null,{"$f":"SUM(F938498:G938498)","v":0}]
[null,null,null,null,null,null,null,0]
[null,null,null,null,null,null,null,0]
[null,null,null,null,null,null,null,0]
[null,null,null,null,null,null,null,0]
[null,null,null,null,null,null,null,0]
[null,null,null,null,null,null,null,0]
[null,null,null,null,null,null,null,0]
[null,null,null,null,null,null,null,0]
[null,null,null,null,null,null,null,0]
[null,null,null,null,null,null,null,0]
[null,null,null,null,null,null,null,0]
[null,null,null,null,null,null,null,0]
[null,null,null,null,null,null,null,0]
[null,null,null,null,null,null,null,0]
[null,null,null,null,null,null,null,0]
[null,null,null,null,null,null,null,0]
[null,null,null,null,null,null,null,0]
[null,null,null,null,null,null,null,0]
[null,null,null,null,null,null,null,0]
[null,null,null,null,null,null,null,0]
[null,null,null,null,null,null,null,0]
[null,null,null,null,null,null,null,0]
[null,null,null,null,null,null,null,0]
[null,null,null,null,null,null,null,0]
[null,null,null,null,null,null,null,0]
[null,null,null,null,null,null,null,0]
[null,null,null,null,null,null,null,0]
[null,null,null,null,null,null,null,0]
[null,null,null,null,null,null,null,0]
[null,null,null,null,null,null,null,0]
[null,null,null,null,null,null,null,0]
[null,null,null,null,null,null,null,0]
[null,null,null,null,null,null,null,0]
[null,null,null,null,null,null,null,0]
[null,null,null,null,null,null,null,0]
[null,null,null,null,null,null,null,0]
[null,null,null,null,null,null,null,0]
[null,null,null,null,null,null,null,0]
[null,null,null,null,null,null,null,{"$f":"SUM(F958850:G958850)","v":0}]
[null,null,null,null,null,null,null,0]
[null,null,null,null,null,null,null,0]
[null,null,null,null,null,null,null,0]
[null,null,null,null,null,null,null,0]
[null,null,null,null,null,null,null,0]
[null,null,null,null,null,null,null,0]
[null,null,null,null,null,null,null,0]
[null,null,null,null,null,null,null,0]
[null,null,null,null,null,null,null,0]
[null,null,null,null,null,null,null,0]
[null,null,null,null,null,null,null,0]
[null,null,null,null,null,null,null,0]
[null,null,null,null,null,null,null,0]
[null,null,null,null,null,null,null,0]
[null,null,null,null,null,null,null,0]
[null,null,null,null,null,null,null,0]
[null,null,null,null,null,null,null,0]
[null,null,null,null,null,null,null,0]
[null,null,null,null,null,null,null,0]
[null,null,null,null,null,null,null,0]
[null,null,null,null,null,null,null,0]
[null,null,null,null,null,null,null,0]
[null,null,null,null,null,null,null,0]
[null,null,null,null,null,null,null,0]
[null,null,null,null,null,null,null,0]
[null,null,null,null,null,null,null,0]
[null,null,null,null,null,null,null,0]
[null,null,null,null,null,null,null,0]
[null,null,null,null,null,null,null,0]
[null,null,null,null,null,null,null,0]
[null,null,null,null,null,null,null,0]
[null,null,null,null,null,null,null,0]
[null,null,null,null,null,null,null,0]
[null,null,null,null,null,null,null,0]
[null,null,null,null,null,null,null,0]
[null,null,null,null,null,null,null,0]
[null,null,null,null,null,null,null,0]
[null,null,null,null,null,null,null,0]
[null,null,null,null,null,null,null,0]
[null,null,null,null,null,null,null,0]
[null,null,null,null,null,null,null,0]
[null,null,null,null,null,null,null,0]
[null,null,null,null,null,null,null,0]
[null,null,null,null,null,null,null,0]
[null,null,null,null,null,null,null,0]
[null,null,null,null,null,null,null,0]
[null,null,null,null,null,null,null,0]
[null,null,null,null,null,null,null,0]
[null,null,null,null,null,null,null,0]
[null,null,null,null,null,null,null,0]
[null,null,null,null,null,null,null,0]
[null,null,null,null,null,null,null,0]
[null,null,null,null,null,null,null,0]
[null,null,null,null,null,null,null,0]
[null,null,null,null,null,null,null,0]
[null,null,null,null,null,null,null,0]
[null,null,null,null,null,null,null,0]
[null,null,null,null,null,null,null,0]
[null,null,null,null,null,null,null,0]
[null,null,null,null,null,null,null,0]
[null,null,null,null,null,null,null,0]
[null,null,null,null,null,null,null,0]
[null,null,null,null,null,null,null,0]
[null,null,null,null,null,null,null,0]
[null,null,null,null,null,null,null,0]
[null,null,null,null,null,null,null,0]
[null,null,null,null,null,null,null,0]
[null,null,null,null,null,null,null,0]
[null,null,null,null,null,null,null,0]
[null,null,null,null,null,null,null,0]
[null,null,null,null,null,null,null,0]
[null,null,null,null,null,null,null,0]
[null,null,null,null,null,null,null,0]
[null,null,null,null,null,null,null,0]
[null,null,null,null,null,null,null,0]
[null,null,null,null,null,null,null,0]
[null,null,null,null,null,null,null,0]
[null,null,null,null,null,null,null,0]
[null,null,null,null,null,null,null,0]
[null,null,null,null,null,null,null,0]
[null,null,null,null,null,null,null,0]
[null,null,null,null,null,null,null,0]
[null,null,null,null,null,null,null,0]
[null,null,null,null,null,null,null,0]
[null,null,null,null,null,null,null,0]
[null,null,null,null,null,null,null,0]
[null,null,null,null,null,null,null,0]
[null,null,null,null,null,null,null,0]
[null,null,null,null,null,null,null,0]
[null,null,null,null,null,null,null,0]
[null,null,null,null,null,null,null,0]
[null,null,null,null,null,null,null,0]
[null,null,null,null,null,null,null,0]
[null,null,null,null,null,null,null,0]
[null,null,null,null,null,null,null,0]
[null,null,null,null,null,null,null,0]
[null,null,null,null,null,null,null,{"$f":"SUM(F1009474:G1009474)","v":0}]
[null,null,null,null,null,null,null,0]
[null,null,null,null,null,null,null,0]
[null,null,null,null,null,null,null,0]
[null,null,null,null,null,null,null,0]
[null,null,null,null,null,null,null,0]
[null,null,null,null,null,null,null,0]
[null,null,null,null,null,null,null,0]
[null,null,null,null,null,null,null,0]
[null,null,null,null,null,null,null,0]
[null,null,null,null,null,null,null,0]
[null,null,null,null,null,null,null,0]
[null,null,null,null,null,null,null,0]
[null,null,null,null,null,null,null,0]
[null,null,null,null,null,null,null,0]
[null,null,null,null,null,null,null,0]
[null,null,null,null,null,null,null,0]
[null,null,null,null,null,null,null,0]
[null,null,null,null,null,null,null,0]
[null,null,null,null,null,null,null,0]
[null,null,null,null,null,null,null,0]
[null,null,null,null,null,null,null,0]
[null,null,null,null,null,null,null,0]
[null,null,null,null,null,null,null,0]
[null,null,null,null,null,null,null,0]
[null,null,null,null,null,null,null,0]
[null,null,null,null,null,null,null,0]
[null,null,null,null,null,null,null,0]
[null,null,null,null,null,null,null,0]
[null,null,null,null,null,null,null,0]
[null,null,null,null,null,null,null,0]
[null,null,null,null,null,null,null,0]
[null,null,null,null,null,null,null,0]
[null,null,null,null,null,null,null,0]
[null,null,null,null,null,null,null,0]
[null,null,null,null,null,null,null,0]
[null,null,null,null,null,null,null,0]
[null,null,null,null,null,null,null,0]
[null,null,null,null,null,null,null,0]
[null,null,null,null,null,null,null,{"$f":"SUM(F1029826:G1029826)","v":0}]
[null,null,null,null,null,null,null,0]
[null,null,null,null,null,null,null,0]
[null,null,null,null,null,null,null,0]
[null,null,null,null,null,null,null,0]
[null,null,null,null,null,null,null,0]
[null,null,null,null,null,null,null,0]
[null,null,null,null,null,null,null,0]
[null,null,null,null,null,null,null,0]
[null,null,null,null,null,null,null,0]
[null,null,null,null,null,null,null,0]
[null,null,null,null,null,null,null,0]
[null,null,null,null,null,null,null,0]
[null,null,null,null,null,null,null,0]
[null,null,null,null,null,null,null,0]
[null,null,null,null,null,null,null,0]
[null,null,null,null,null,null,null,0]
[null,null,null,null,null,null,null,0]
[null,null,null,null,null,null,null,0]
[null,null,null,null,null,null,null,0]
[null,null,null,null,null,null,null,0]
[null,null,null,null,null,null,null,0]
[null,null,null,null,null,null,null,0]
[null,null,null,null,null,null,null,0]
[null,null,null,null,null,null,null,0]
[null,null,null,null,null,null,null,0]
[null,null,null,null,null,null,null,0]
[null,null,null,null,null,null,null,0]
[null,null,null,null,null,null,null,0]
[null,null,null,null,null,null,null,0]
[null,null,null,null,null,null,null,0]
[null,null,null,null,null,null,null,0]
[null,null,null,null,null,null,null,0]
[null,null,null,null,null,null,null,0]
[null,null,null,null,null,null,null,0]
[null,null,null,null,null,null,null,0]
[null,null,null,null,null,null,null,0]
[null,null,null,null,null,null,null,0]
[null,null,null,null,null,null,null,0]
[null,null,null,null,null,null,null,0]
[null,null,null,null,null,null,null,0]
[null,null,null,null,null,null,null,0]
[null,null,null,null,null,null,null,0]
[null,null,null,null,null,null,null,0]
[null,null,null,null,null,null,null,0]
[null,null,null,null,null,null,null,0]
[null,null,null,null,null,null,null,0]
[null,null,null,null,null,null,null,0]
[null,null,null,null,null,null,null,0]
[null,null,null,null,null,null,null,0]
[null,null,null,null,null,null,null,0]
[null,null,null,null,null,null,null,0]
[null,null,null,null,null,null,null,0]
[null,null,null,null,null,null,null,0]
[null,null,null,null,null,null,null,0]
[null,null,null,null,null,null,null,0]
[null,null,null,null,null,null,null,0]
[null,null,null,null,null,null,null,0]
[null,null,null,null,null,null,null,0]
[null,null,null,null,null,null,null,0]
[null,null,null,null,null,null,null,0]
[null,null,null,null,null,null,null,0]
[null,null,null,null,null,null,null,0]
[null,null,null,null,null,null,null,0]
[null,null,null,null,null,null,null,0]
[null,null,null,null,null,null,null,0]
[null,null,null,null,null,null,null,0]
[null,null,null,null,null,null,null,0]
[null,null,null,null,null,null,null,0]
[null,null,null,null,null,null,null,0]
[null,null,null,null,null,null,null,0]
[null,null,null,null,null,null,null,0]
[null,null,null,null,null,null,null,0]
[null,null,null,null,null,null,null,0]
[null,null,null,null,null,null,null,0]
[null,null,null,null,null,null,null,0]
[null,null,null,null,null,null,null,0]
[null,null,null,null,null,null,null,0]
[null,null,null,null,null,null,null,0]
[null,null,null,null,null,null,null,0]
[null,null,null,null,null,null,null,0]
[null,null,null,null,null,null,null,0]
[null,null,null,null,null,null,null,0]
[null,null,null,null,null,null,null,0]
[null,null,null,null,null,null,null,0]
[null,null,null,null,null,null,null,0]
[null,null,null,null,null,null,null,0]
[null,null,null,null,null,null,null,0]
[null,null,null,null,null,null,null,{"$f":"SUM(F1048130:G1048130)","v":0}]
[null,null,null,null,null,null,null,0]
[null,null,null,null,null,null,null,0]
[null,null,null,null,null,null,null,0]
[null,null,null,null,null,null,null,0]
[null,null,null,null,null,null,null,0]
[null,null,null,null,null,null,null,0]
[null,null,null,null,null,null,null,0]
[null,null,null,null,null,null,null,0]
[null,null,null,null,null,null,null,0]
[null,null,null,null,null,null,null,0]
[null,null,null,null,null,null,null,0]
[null,null,null,null,null,null,null,0]
[null,null,null,null,null,null,null,0]
[null,null,null,null,null,null,null,0]
[null,null,null,null,null,null,null,0]
[null,null,null,null,null,null,null,0]
[null,null,null,null,null,null,null,0]
[null,null,null,null,null,null,null,0]
[null,null,null,null,null,null,null,0]
[null,null,null,null,null,null,null,0]
[null,null,null,null,null,null,null,0]
[null,null,null,null,null,null,null,0]
[null,null,null,null,null,null,null,0]
[null,null,null,null,null,null,null,0]
[null,null,null,null,null,null,null,0]
[null,null,null,null,null,null,null,0]
[null,null,null,null,null,null,null,0]
[null,null,null,null,null,null,null,0]
[null,null,null,null,null,null,null,0]
[null,null,null,null,null,null,null,0]
[null,null,null,null,null,null,null,0]
[null,null,null,null,null,null,null,0]
[null,null,null,null,null,null,null,0]
[null,null,null,null,null,null,null,0]
[null,null,null,null,null,null,null,0]
[null,null,null,null,null,null,null,0]
[null,null,null,null,null,null,null,0]
[null,null,null,null,null,null,null,0]
[null,null,null,null,null,null,null,0]
[null,null,null,null,null,null,null,0]
[null,null,null,null,null,null,null,0]
[null,null,null,null,null,null,null,0]
[null,null,null,null,null,null,null,0]
[null,null,null,null,null,null,null,0]
[null,null,null,null,null,null,null,0]
[null,null,null,null,null,null,null,0]
[null,null,null,null,null,null,null,0]
[null,null,null,null,null,null,null,0]
[null,null,null,null,null,null,null,0]
[null,null,null,null,null,null,null,0]
[null,null,null,null,null,null,null,0]
[null,null,null,null,null,null,null,0]
[null,null,null,null,null,null,null,0]
[null,null,null,null,null,null,null,0]
[null,null,null,null,null,null,null,0]
[null,null,null,null,null,null,null,0]
[null,null,null,null,null,null,null,0]
[null,null,null,null,null,null,null,0]
[null,null,null,null,null,null,null,0]
[null,null,null,null,null,null,null,0]
[null,null,null,null,null,null,null,0]
[null,null,null,null,null,null,null,0]
[null,null,null,null,null,null,null,0]
[null,null,null,null,null,null,null,{"$f":"SUM(F1048194:G1048194)","v":0}]
[null,null,null,null,null,null,null,0]
[null,null,null,null,null,null,null,0]
[null,null,null,null,null,null,null,0]
[null,null,null,null,null,null,null,0]
[null,null,null,null,null,null,null,0]
[null,null,null,null,null,null,null,0]
[null,null,null,null,null,null,null,0]
[null,null,null,null,null,null,null,0]
[null,null,null,null,null,null,null,0]
[null,null,null,null,null,null,null,0]
[null,null,null,null,null,null,null,0]
[null,null,null,null,null,null,null,0]
[null,null,null,null,null,null,null,0]
[null,null,null,null,null,null,null,0]
[null,null,null,null,null,null,null,0]
[null,null,null,null,null,null,null,0]
[null,null,null,null,null,null,null,0]
[null,null,null,null,null,null,null,0]
[null,null,null,null,null,null,null,0]
[null,null,null,null,null,null,null,0]
[null,null,null,null,null,null,null,0]
[null,null,null,null,null,null,null,0]
[null,null,null,null,null,null,null,0]
[null,null,null,null,null,null,null,0]
[null,null,null,null,null,null,null,0]
[null,null,null,null,null,null,null,0]
[null,null,null,null,null,null,null,0]
[null,null,null,null,null,null,null,0]
[null,null,null,null,null,null,null,0]
[null,null,null,null,null,null,null,0]
[null,null,null,null,null,null,null,0]
[null,null,null,null,null,null,null,0]
[null,null,null,null,null,null,null,0]
[null,null,null,null,null,null,null,0]
[null,null,null,null,null,null,null,0]
[null,null,null,null,null,null,null,0]
[null,null,null,null,null,null,null,0]
[null,null,null,null,null,null,null,0]
[null,null,null,null,null,null,null,0]
[null,null,null,null,null,null,null,0]
[null,null,null,null,null,null,null,0]
[null,null,null,null,null,null,null,0]
[null,null,null,null,null,null,null,0]
[null,null,null,null,null,null,null,0]
[null,null,null,null,null,null,null,0]
[null,null,null,null,null,null,null,0]
[null,null,null,null,null,null,null,0]
[null,null,null,null,null,null,null,0]
[null,null,null,null,null,null,null,0]
[null,null,null,null,null,null,null,0]
[null,null,null,null,null,null,null,0]
[null,null,null,null,null,null,null,0]
[null,null,null,null,null,null,null,0]
[null,null,null,null,null,null,null,0]
[null,null,null,null,null,null,null,0]
[null,null,null,null,null,null,null,0]
[null,null,null,null,null,null,null,0]
[null,null,null,null,null,null,null,0]
[null,null,null,null,null,null,null,0]
[null,null,null,null,null,null,null,0]
[null,null,null,null,null,null,null,0]
[null,null,null,null,null,null,null,0]
[null,null,null,null,null,null,null,0]
[null,null,null,null,null,null,null,{"$f":"SUM(F1048258:G1048258)","v":0}]
[null,null,null,null,null,null,null,0]
[null,null,null,null,null,null,null,0]
[null,null,null,null,null,null,null,0]
[null,null,null,null,null,null,null,0]
[null,null,null,null,null,null,null,0]
[null,null,null,null,null,null,null,0]
[null,null,null,null,null,null,null,0]
[null,null,null,null,null,null,null,0]
[null,null,null,null,null,null,null,0]
[null,null,null,null,null,null,null,0]
[null,null,null,null,null,null,null,0]
[null,null,null,null,null,null,null,0]
[null,null,null,null,null,null,null,0]
[null,null,null,null,null,null,null,0]
[null,null,null,null,null,null,null,0]
[null,null,null,null,null,null,null,0]
[null,null,null,null,null,null,null,0]
[null,null,null,null,null,null,null,0]
[null,null,null,null,null,null,null,0]
[null,null,null,null,null,null,null,0]
[null,null,null,null,null,null,null,0]
[null,null,null,null,null,null,null,0]
[null,null,null,null,null,null,null,0]
[null,null,null,null,null,null,null,0]
[null,null,null,null,null,null,null,0]
[null,null,null,null,null,null,null,0]
[null,null,null,null,null,null,null,0]
[null,null,null,null,null,null,null,0]
[null,null,null,null,null,null,null,0]
[null,null,null,null,null,null,null,0]
[null,null,null,null,null,null,null,0]
[null,null,null,null,null,null,null,0]
[null,null,null,null,null,null,null,0]
[null,null,null,null,null,null,null,0]
[null,null,null,null,null,null,null,0]
[null,null,null,null,null,null,null,0]
[null,null,null,null,null,null,null,0]
[null,null,null,null,null,null,null,0]
[null,null,null,null,null,null,null,0]
[null,null,null,null,null,null,null,0]
[null,null,null,null,null,null,null,0]
[null,null,null,null,null,null,null,0]
[null,null,null,null,null,null,null,0]
[null,null,null,null,null,null,null,0]
[null,null,null,null,null,null,null,0]
[null,null,null,null,null,null,null,0]
[null,null,null,null,null,null,null,0]
[null,null,null,null,null,null,null,0]
[null,null,null,null,null,null,null,0]
[null,null,null,null,null,null,null,0]
[null,null,null,null,null,null,null,0]
[null,null,null,null,null,null,null,0]
[null,null,null,null,null,null,null,0]
[null,null,null,null,null,null,null,0]
[null,null,null,null,null,null,null,0]
[null,null,null,null,null,null,null,0]
[null,null,null,null,null,null,null,0]
[null,null,null,null,null,null,null,0]
[null,null,null,null,null,null,null,0]
[null,null,null,null,null,null,null,0]
[null,null,null,null,null,null,null,0]
[null,null,null,null,null,null,null,0]
[null,null,null,null,null,null,null,0]
[null,null,null,null,null,null,null,{"$f":"SUM(F1048322:G1048322)","v":0}]
[null,null,null,null,null,null,null,0]
[null,null,null,null,null,null,null,0]
[null,null,null,null,null,null,null,0]
[null,null,null,null,null,null,null,0]
[null,null,null,null,null,null,null,0]
[null,null,null,null,null,null,null,0]
[null,null,null,null,null,null,null,0]
[null,null,null,null,null,null,null,0]
[null,null,null,null,null,null,null,0]
[null,null,null,null,null,null,null,0]
[null,null,null,null,null,null,null,0]
[null,null,null,null,null,null,null,0]
[null,null,null,null,null,null,null,0]
[null,null,null,null,null,null,null,0]
[null,null,null,null,null,null,null,0]
[null,null,null,null,null,null,null,0]
[null,null,null,null,null,null,null,0]
[null,null,null,null,null,null,null,0]
[null,null,null,null,null,null,null,0]
[null,null,null,null,null,null,null,0]
[null,null,null,null,null,null,null,0]
[null,null,null,null,null,null,null,0]
[null,null,null,null,null,null,null,0]
[null,null,null,null,null,null,null,0]
[null,null,null,null,null,null,null,0]
[null,null,null,null,null,null,null,0]
[null,null,null,null,null,null,null,0]
[null,null,null,null,null,null,null,0]
[null,null,null,null,null,null,null,0]
[null,null,null,null,null,null,null,0]
[null,null,null,null,null,null,null,0]
[null,null,null,null,null,null,null,0]
[null,null,null,null,null,null,null,0]
[null,null,null,null,null,null,null,0]
[null,null,null,null,null,null,null,0]
[null,null,null,null,null,null,null,0]
[null,null,null,null,null,null,null,0]
[null,null,null,null,null,null,null,0]
[null,null,null,null,null,null,null,0]
[null,null,null,null,null,null,null,0]
[null,null,null,null,null,null,null,0]
[null,null,null,null,null,null,null,0]
[null,null,null,null,null,null,null,0]
[null,null,null,null,null,null,null,0]
[null,null,null,null,null,null,null,0]
[null,null,null,null,null,null,null,0]
[null,null,null,null,null,null,null,0]
[null,null,null,null,null,null,null,0]
[null,null,null,null,null,null,null,0]
[null,null,null,null,null,null,null,0]
[null,null,null,null,null,null,null,0]
[null,null,null,null,null,null,null,0]
[null,null,null,null,null,null,null,0]
[null,null,null,null,null,null,null,0]
[null,null,null,null,null,null,null,0]
[null,null,null,null,null,null,null,0]
[null,null,null,null,null,null,null,0]
[null,null,null,null,null,null,null,0]
[null,null,null,null,null,null,null,0]
[null,null,null,null,null,null,null,0]
[null,null,null,null,null,null,null,0]
[null,null,null,null,null,null,null,0]
[null,null,null,null,null,null,null,0]
[null,null,null,null,null,null,null,{"$f":"SUM(F1048386:G1048386)","v":0}]
[null,null,null,null,null,null,null,0]
[null,null,null,null,null,null,null,0]
[null,null,null,null,null,null,null,0]
[null,null,null,null,null,null,null,0]
[null,null,null,null,null,null,null,0]
[null,null,null,null,null,null,null,0]
[null,null,null,null,null,null,null,0]
[null,null,null,null,null,null,null,0]
[null,null,null,null,null,null,null,0]
[null,null,null,null,null,null,null,0]
[null,null,null,null,null,null,null,0]
[null,null,null,null,null,null,null,0]
[null,null,null,null,null,null,null,0]
[null,null,null,null,null,null,null,0]
[null,null,null,null,null,null,null,0]
[null,null,null,null,null,null,null,0]
[null,null,null,null,null,null,null,0]
[null,null,null,null,null,null,null,0]
[null,null,null,null,null,null,null,0]
[null,null,null,null,null,null,null,0]
[null,null,null,null,null,null,null,0]
[null,null,null,null,null,null,null,0]
[null,null,null,null,null,null,null,0]
[null,null,null,null,null,null,null,0]
[null,null,null,null,null,null,null,0]
[null,null,null,null,null,null,null,0]
[null,null,null,null,null,null,null,0]
[null,null,null,null,null,null,null,0]
[null,null,null,null,null,null,null,0]
[null,null,null,null,null,null,null,0]
[null,null,null,null,null,null,null,0]
[null,null,null,null,null,null,null,0]
[null,null,null,null,null,null,null,0]
[null,null,null,null,null,null,null,0]
[null,null,null,null,null,null,null,0]
[null,null,null,null,null,null,null,0]
[null,null,null,null,null,null,null,0]
[null,null,null,null,null,null,null,0]
[null,null,null,null,null,null,null,0]
[null,null,null,null,null,null,null,0]
[null,null,null,null,null,null,null,0]
[null,null,null,null,null,null,null,0]
[null,null,null,null,null,null,null,0]
[null,null,null,null,null,null,null,0]
[null,null,null,null,null,null,null,0]
[null,null,null,null,null,null,null,0]
[null,null,null,null,null,null,null,0]
[null,null,null,null,null,null,null,0]
[null,null,null,null,null,null,null,0]
[null,null,null,null,null,null,null,0]
[null,null,null,null,null,null,null,0]
[null,null,null,null,null,null,null,0]
[null,null,null,null,null,null,null,0]
[null,null,null,null,null,null,null,0]
[null,null,null,null,null,null,null,0]
[null,null,null,null,null,null,null,0]
[null,null,null,null,null,null,null,0]
[null,null,null,null,null,null,null,0]
[null,null,null,null,null,null,null,0]
[null,null,null,null,null,null,null,0]
[null,null,null,null,null,null,null,0]
[null,null,null,null,null,null,null,0]
[null,null,null,null,null,null,null,0]
[null,null,null,null,null,null,null,{"$f":"SUM(F1048450:G1048450)","v":0}]
[null,null,null,null,null,null,null,0]
[null,null,null,null,null,null,null,0]
[null,null,null,null,null,null,null,0]
[null,null,null,null,null,null,null,0]
[null,null,null,null,null,null,null,0]
[null,null,null,null,null,null,null,0]
[null,null,null,null,null,null,null,0]
[null,null,null,null,null,null,null,0]
[null,null,null,null,null,null,null,0]
[null,null,null,null,null,null,null,0]
[null,null,null,null,null,null,null,0]
[null,null,null,null,null,null,null,0]
[null,null,null,null,null,null,null,0]
[null,null,null,null,null,null,null,0]
[null,null,null,null,null,null,null,0]
[null,null,null,null,null,null,null,0]
[null,null,null,null,null,null,null,0]
[null,null,null,null,null,null,null,0]
[null,null,null,null,null,null,null,0]
[null,null,null,null,null,null,null,0]
[null,null,null,null,null,null,null,0]
[null,null,null,null,null,null,null,0]
[null,null,null,null,null,null,null,0]
[null,null,null,null,null,null,null,0]
[null,null,null,null,null,null,null,0]
[null,null,null,null,null,null,null,0]
[null,null,null,null,null,null,null,0]
[null,null,null,null,null,null,null,0]
[null,null,null,null,null,null,null,0]
[null,null,null,null,null,null,null,0]
[null,null,null,null,null,null,null,0]
[null,null,null,null,null,null,null,0]
[null,null,null,null,null,null,null,0]
[null,null,null,null,null,null,null,0]
[null,null,null,null,null,null,null,0]
[null,null,null,null,null,null,null,0]
[null,null,null,null,null,null,null,0]
[null,null,null,null,null,null,null,0]
[null,null,null,null,null,null,null,0]
[null,null,null,null,null,null,null,0]
[null,null,null,null,null,null,null,0]
[null,null,null,null,null,null,null,0]
[null,null,null,null,null,null,null,0]
[null,null,null,null,null,null,null,0]
[null,null,null,null,null,null,null,0]
[null,null,null,null,null,null,null,0]
[null,null,null,null,null,null,null,0]
[null,null,null,null,null,null,null,0]
[null,null,null,null,null,null,null,0]
[null,null,null,null,null,null,null,0]
[null,null,null,null,null,null,null,0]
[null,null,null,null,null,null,null,0]
[null,null,null,null,null,null,null,0]
[null,null,null,null,null,null,null,0]
[null,null,null,null,null,null,null,0]
[null,null,null,null,null,null,null,0]
[null,null,null,null,null,null,null,0]
[null,null,null,null,null,null,null,0]
[null,null,null,null,null,null,null,0]
[null,null,null,null,null,null,null,0]
[null,null,null,null,null,null,null,0]
[null,null,null,null,null,null,null,0]
[null,null,null,null,null,null,null,0]
[null,null,null,null,null,null,null,{"$f":"SUM(F1048514:G1048514)","v":0}]
[null,null,null,null,null,null,null,0]
[null,null,null,null,null,null,null,0]
[null,null,null,null,null,null,null,0]
[null,null,null,null,null,null,null,0]
[null,null,null,null,null,null,null,0]
[null,null,null,null,null,null,null,0]
[null,null,null,null,null,null,null,0]
[null,null,null,null,null,null,null,0]
[null,null,null,null,null,null,null,0]
[null,null,null,null,null,null,null,0]
[null,null,null,null,null,null,null,0]
[null,null,null,null,null,null,null,0]
[null,null,null,null,null,null,null,0]
[null,null,null,null,null,null,null,0]
[null,null,null,null,null,null,null,0]
[null,null,null,null,null,null,null,0]
[null,null,null,null,null,null,null,0]
[null,null,null,null,null,null,null,0]
[null,null,null,null,null,null,null,0]
[null,null,null,null,null,null,null,0]
[null,null,null,null,null,null,null,0]
[null,null,null,null,null,null,null,0]
[null,null,null,null,null,null,null,0]
[null,null,null,null,null,null,null,0]
[null,null,null,null,null,null,null,0]
[null,null,null,null,null,null,null,0]
[null,null,null,null,null,null,null,0]
[null,null,null,null,null,null,null,0]
[null,null,null,null,null,null,null,0]
[null,null,null,null,null,null,null,0]
[null,null,null,null,null,null,null,0]
[null,null,null,null,null,null,null,0]
[null,null,null,null,null,null,null,0]
[null,null,null,null,null,null,null,0]
[null,null,null,null,null,null,null,0]
[null,null,null,null,null,null,null,0]
[null,null,null,null,null,null,null,0]
[null,null,null,null,null,null,null,0]
[null,null,null,null,null,null,null,0]
[null,null,null,null,null,null,null,0]
[null,null,null,null,null,null,null,0]
[null,null,null,null,null,null,null,0]
[null,null,null,null,null,null,null,0]
[null,null,null,null,null,null,null,0]
[null,null,null,null,null,null,null,0]
[null,null,null,null,null,null,null,0]
[null,null,null,null,null,null,null,0]
[null,null,null,null,null,null,null,0]
[null,null,null,null,null,null,null,0]
[null,null,null,null,null,null,null,0]
[null,null,null,null,null,null,null,0]
[null,null,null,null,null,null,null,0]
[null,null,null,null,null,null,null,0]
[null,null,null,null,null,null,null,0]
[null,null,null,null,null,null,null,0]
[null,null,null,null,null,null,null,0]
[null,null,null,null,null,null,null,0]
[null,null,null,null,null,null,null,0]
[null,null,null,null,null,null,null,0]
[null,null,null,null,null,null,null,0]
[null,null,null,null,null,null,null,0]
[null,null,null,null,null,null,null,0]

{"sheet":"list","index":1,"n_rows":3,"n_cols":2,"rows_kept":3,"cut":false,"hidden":true,"merged":[]}
["ذكر","متزوج"]
["انثى","اعزب"]
[null,"مطلق"]